Workbook

Sheet Sample Report (hidden)
A2: Date
A3: Hen
A4: Program
A5: Start at 999999
A6: Sequence component 1 | B6: Time 1 | C6: Seqeunce Component 2 | D6: Time 2 | E6: Seqeunce Component 3 | F6: Time 3 | G6: Correct 0 = No 1=Yes | J6: Seqeunce | K6: Time
A7: 12 | B7: 7 | C7: 12 | D7: 42 | E7: 13 | F7: 18 | G7: if 77 new line, if 31 or 41 = yes new line on 77, | J7: =string of Seqeunce compponent 1, 2 & 3 | K7: =time 3
A8: This continues until ther is a 1 on its own to indicate start of summary data
J9: 10-19 =1
A10: Summary Data | J10: 20-29 =2
A11: Correct | B11: Incorrect | C11: Rft | D11: total | E11: Av Correct | F11: Av Incorrect | G11: Percent correct | H11: Time | J11: in this example the seqeunce would be 111
A12: 40 | B12: 33 | C12: 40 | D12: 73 | E12: 23.95 | F12: 15 | G12: 54 | H12: 806

Sheet Summary
A2: Day | B2: Date | C2: Average Response Rate | D2: Target % | E2: RF for non correct sequence | F2: U Value | K2: Block 1 | L2: Block 2 | M2: Block 3 | N2: Block 4 | O2: Block 5 | P2: Block 6
A3: 1 | B3: ='!M210B4I.sha'!B2:C2 -> <date> | C3: =('!M210B4I.sha'!F177/60)/'!M210B4I.sha'!Q3 -> 2.336549708 | D3: ='!M210B4I.sha'!N20/'!M210B4I.sha'!Q3 -> 0.005847953216 | E3: =SUM('!M210B4I.sha'!L20:Q20)/'!M210B4I.sha'!Q3 -> 1.573099415 | F3: ='!M210B4I.sha'!Q16 -> 0.2909541376 | J3: Average Response Rate | K3: =AVERAGE(C3:C7) -> 2.255042059 | L3: =AVERAGE(C8:C12) -> 2.365489605 | M3: =AVERAGE(C13:C17) -> 2.81447143 | N3: =AVERAGE(C18:C22) -> 2.509259062 | O3: =AVERAGE(C23:C27) -> 2.420399666 | P3: =AVERAGE(C28:C32) -> 2.955441045
A4: 2 | B4: ='!M211A2I.sha'!B2:C2 -> <date> | C4: =('!M211A2I.sha'!F197/60)/'!M211A2I.sha'!Q3 -> 2.082547993 | D4: ='!M211A2I.sha'!N20/'!M211A2I.sha'!Q3 -> 0 | E4: =SUM('!M211A2I.sha'!L20:Q20)/'!M211A2I.sha'!Q3 -> 1.497382199 | F4: ='!M211A2I.sha'!Q16 -> 0.2354953082 | J4: Target % | K4: =AVERAGE(D3:D7) -> 0.001169590643 | L4: =AVERAGE(D8:D12) -> 0.008322786986 | M4: =AVERAGE(D13:D17) -> 0.002363357501 | N4: =AVERAGE(D18:D22) -> 0.008751342575 | O4: =AVERAGE(D23:D27) -> 0.005913636285 | P4: =AVERAGE(D28:D32) -> 0.01400541759
A5: 3 | B5: ='!M212A1I.sha'!B2:C2 -> <date> | C5: =('!M212A1I.sha'!F193/60)/'!M212A1I.sha'!Q3 -> 2.135918004 | D5: ='!M212A1I.sha'!N20/'!M212A1I.sha'!Q3 -> 0 | E5: =SUM('!M212A1I.sha'!L20:Q20)/'!M212A1I.sha'!Q3 -> 1.518716578 | F5: ='!M212A1I.sha'!Q16 -> 0.2681246537 | J5: CCRF | K5: =AVERAGE(E3:E7) -> 1.563857275 | L5: =AVERAGE(E8:E12) -> 1.1460809 | M5: =AVERAGE(E13:E17) -> 1.709660909 | N5: =AVERAGE(E18:E22) -> 1.316115712 | O5: =AVERAGE(E23:E27) -> 1.272379594 | P5: =AVERAGE(E28:E32) -> 1.777576556
A6: 4 | B6: ='!M213B3I.sha'!B2:C2 -> <date> | C6: =('!M213B3I.sha'!F181/60)/'!M213B3I.sha'!Q3 -> 2.268857143 | D6: ='!M213B3I.sha'!N20/'!M213B3I.sha'!Q3 -> 0 | E6: =SUM('!M213B3I.sha'!L20:Q20)/'!M213B3I.sha'!Q3 -> 1.594285714 | F6: ='!M213B3I.sha'!Q16 -> 0.3174056944 | J6: U Value | K6: =AVERAGE(F3:F7) -> 0.2848308601 | L6: =AVERAGE(F8:F12) -> 0.3427336406 | M6: =AVERAGE(F13:F17) -> 0.3369625423 | N6: =AVERAGE(F18:F22) -> 0.3441167597 | O6: =AVERAGE(F23:F27) -> 0.3529881117 | P6: =AVERAGE(F28:F32) -> 0.3760046174
A7: 5 | B7: ='!M214A3I.sha'!B2:C2 -> <date> | C7: =('!M214A3I.sha'!F168/60)/'!M214A3I.sha'!Q3 -> 2.451337449 | D7: ='!M214A3I.sha'!N20/'!M214A3I.sha'!Q3 -> 0 | E7: =SUM('!M214A3I.sha'!L20:Q20)/'!M214A3I.sha'!Q3 -> 1.635802469 | F7: ='!M214A3I.sha'!Q16 -> 0.3121745068
A8: 6 | B8: ='!M215A3I.sha'!B2:C2 -> <date> | C8: =('!M215A3I.sha'!F175/60)/'!M215A3I.sha'!Q3 -> 2.364595661 | D8: ='!M215A3I.sha'!N20/'!M215A3I.sha'!Q3 -> 0.01183431953 | E8: =SUM('!M215A3I.sha'!L20:Q20)/'!M215A3I.sha'!Q3 -> 1.591715976 | F8: ='!M215A3I.sha'!Q16 -> 0.3492080326
A9: 7 | B9: ='!M216A0I.sha'!B2:C2 -> <date> | C9: =('!M216A0I.sha'!F185/60)/'!M216A0I.sha'!Q3 -> 2.214990689 | D9: ='!M216A0I.sha'!N20/'!M216A0I.sha'!Q3 -> 0 | E9: =SUM('!M216A0I.sha'!L20:Q20)/'!M216A0I.sha'!Q3 -> 1.016759777 | F9: ='!M216A0I.sha'!Q16 -> 0.3345479877 | G9: =K3 -> 2.255042059 | H9: =L3 -> 2.365489605 | I9: 2.81447143 | J9: 2.509259062 | K9: 2.420399666 | L9: 2.955441045 | M9: =K4 -> 0.001169590643 | N9: =L4 -> 0.008322786986 | O9: 0.002363357501 | P9: 0.008751342575 | Q9: 0.005913636285 | R9: 0.01400541759 | S9: =K6 -> 0.2848308601 | T9: =L6 -> 0.3427336406 | U9: 0.3369625423 | V9: 0.3441167597 | W9: 0.3529881117 | X9: 0.3760046174
A10: 8 | B10: ='!M217B1I.sha'!B2:C2 -> <date> | C10: =('!M217B1I.sha'!F153/60)/'!M217B1I.sha'!Q3 -> 2.674774775 | D10: ='!M217B1I.sha'!N20/'!M217B1I.sha'!Q3 -> 0.006756756757 | E10: =SUM('!M217B1I.sha'!L20:Q20)/'!M217B1I.sha'!Q3 -> 1.087837838 | F10: ='!M217B1I.sha'!Q16 -> 0.348055106
A11: 9 | B11: ='!M218A4I.sha'!B2:C2 -> <date> | C11: =('!M218A4I.sha'!F182/60)/'!M218A4I.sha'!Q3 -> 2.268655303 | D11: ='!M218A4I.sha'!N20/'!M218A4I.sha'!Q3 -> 0.005681818182 | E11: =SUM('!M218A4I.sha'!L20:Q20)/'!M218A4I.sha'!Q3 -> 1.034090909 | F11: ='!M218A4I.sha'!Q16 -> 0.3455094616
A12: 10 | B12: ='!M219B2I.sha'!B2:C2 -> <date> | C12: =('!M219B2I.sha'!F179/60)/'!M219B2I.sha'!Q3 -> 2.304431599 | D12: ='!M219B2I.sha'!N20/'!M219B2I.sha'!Q3 -> 0.01734104046 | E12: =SUM('!M219B2I.sha'!L20:Q20)/'!M219B2I.sha'!Q3 -> 1 | F12: ='!M219B2I.sha'!Q16 -> 0.3363476151
A13: 11 | B13: ='!M220B1I.sha'!B2:C2 -> <date> | C13: =('!M220B1I.sha'!F184/60)/'!M220B1I.sha'!Q3 -> 2.243913858 | D13: ='!M220B1I.sha'!N20/'!M220B1I.sha'!Q3 -> 0 | E13: =SUM('!M220B1I.sha'!L20:Q20)/'!M220B1I.sha'!Q3 -> 1.516853933 | F13: ='!M220B1I.sha'!Q16 -> 0.3275216376
A14: 12 | B14: ='!M221A5I.sha'!B2:C2 -> <date> | C14: =('!M221A5I.sha'!F148/60)/'!M221A5I.sha'!Q3 -> 2.814906103 | D14: ='!M221A5I.sha'!N20/'!M221A5I.sha'!Q3 -> 0 | E14: =SUM('!M221A5I.sha'!L20:Q20)/'!M221A5I.sha'!Q3 -> 1.190140845 | F14: ='!M221A5I.sha'!Q16 -> 0.3678911816
A15: 13 | B15: ='!M222A1I.sha'!B2:C2 -> <date> | C15: =('!M222A1I.sha'!F182/60)/'!M222A1I.sha'!Q3 -> 2.268560606 | D15: ='!M222A1I.sha'!N20/'!M222A1I.sha'!Q3 -> 0.005681818182 | E15: =SUM('!M222A1I.sha'!L20:Q20)/'!M222A1I.sha'!Q3 -> 1.539772727 | F15: ='!M222A1I.sha'!Q16 -> 0.2986973669
A16: 14 | B16: ='!M223A3I.sha'!B2:C2 -> <date> | C16: =('!M223A3I.sha'!F169/60)/'!M223A3I.sha'!Q3 -> 2.453578732 | D16: ='!M223A3I.sha'!N20/'!M223A3I.sha'!Q3 -> 0.006134969325 | E16: =SUM('!M223A3I.sha'!L20:Q20)/'!M223A3I.sha'!Q3 -> 1.699386503 | F16: ='!M223A3I.sha'!Q16 -> 0.3303479004
A17: 15 | B17: ='!M224A2I.sha'!B2:C2 -> <date> | C17: =('!M224A2I.sha'!F99/60)/'!M224A2I.sha'!Q3 -> 4.291397849 | D17: ='!M224A2I.sha'!N20/'!M224A2I.sha'!Q3 -> 0 | E17: =SUM('!M224A2I.sha'!L20:Q20)/'!M224A2I.sha'!Q3 -> 2.602150538 | F17: ='!M224A2I.sha'!Q16 -> 0.3603546249
A18: 16 | B18: ='!M225A2I.sha'!B2:C2 -> <date> | C18: =('!M225A2I.sha'!F171/60)/'!M225A2I.sha'!Q3 -> 2.417979798 | D18: ='!M225A2I.sha'!N20/'!M225A2I.sha'!Q3 -> 0.01212121212 | E18: =SUM('!M225A2I.sha'!L20:Q20)/'!M225A2I.sha'!Q3 -> 1.018181818 | F18: ='!M225A2I.sha'!Q16 -> 0.2854872779
A19: 17 | B19: ='!M226A5I.sha'!B2:C2 -> <date> | C19: =('!M226A5I.sha'!F145/60)/'!M226A5I.sha'!Q3 -> 2.875179856 | D19: ='!M226A5I.sha'!N20/'!M226A5I.sha'!Q3 -> 0.007194244604 | E19: =SUM('!M226A5I.sha'!L20:Q20)/'!M226A5I.sha'!Q3 -> 1.856115108 | F19: ='!M226A5I.sha'!Q16 -> 0.3604414019
A20: 18 | B20: ='!M227A4I.sha'!B2:C2 -> <date> | C20: =('!M227A4I.sha'!F166/60)/'!M227A4I.sha'!Q3 -> 2.493229167 | D20: ='!M227A4I.sha'!N20/'!M227A4I.sha'!Q3 -> 0.0125 | E20: =SUM('!M227A4I.sha'!L20:Q20)/'!M227A4I.sha'!Q3 -> 1.0375 | F20: ='!M227A4I.sha'!Q16 -> 0.3493495975
A21: 19 | B21: ='!M228A4I.sha'!B2:C2 -> <date> | C21: =('!M228A4I.sha'!F175/60)/'!M228A4I.sha'!Q3 -> 2.35739645 | D21: ='!M228A4I.sha'!N20/'!M228A4I.sha'!Q3 -> 0.005917159763 | E21: =SUM('!M228A4I.sha'!L20:Q20)/'!M228A4I.sha'!Q3 -> 0.9940828402 | F21: ='!M228A4I.sha'!Q16 -> 0.3550317782
A22: 20 | B22: ='!M229B0I.sha'!B2:C2 -> <date> | C22: =('!M229B0I.sha'!F172/60)/'!M229B0I.sha'!Q3 -> 2.40251004 | D22: ='!M229B0I.sha'!N20/'!M229B0I.sha'!Q3 -> 0.006024096386 | E22: =SUM('!M229B0I.sha'!L20:Q20)/'!M229B0I.sha'!Q3 -> 1.674698795 | F22: ='!M229B0I.sha'!Q16 -> 0.3702737431
A23: 21 | B23: ='!M301A4I.sha'!B2:C2 -> <date> | C23: =('!M301A4I.sha'!F176/60)/'!M301A4I.sha'!Q3 -> 2.34627451 | D23: ='!M301A4I.sha'!N20/'!M301A4I.sha'!Q3 -> 0.01176470588 | E23: =SUM('!M301A4I.sha'!L20:Q20)/'!M301A4I.sha'!Q3 -> 1.588235294 | F23: ='!M301A4I.sha'!Q16 -> 0.3587204512
A24: 22 | B24: ='!M302A5I.sha'!B2:C2 -> <date> | C24: =('!M302A5I.sha'!F182/60)/'!M302A5I.sha'!Q3 -> 2.263636364 | D24: ='!M302A5I.sha'!N20/'!M302A5I.sha'!Q3 -> 0.005681818182 | E24: =SUM('!M302A5I.sha'!L20:Q20)/'!M302A5I.sha'!Q3 -> 1.602272727 | F24: ='!M302A5I.sha'!Q16 -> 0.3528279462
A25: 23 | B25: ='!M303A3I.sha'!B2:C2 -> <date> | C25: =('!M303A3I.sha'!F170/60)/'!M303A3I.sha'!Q3 -> 2.437703252 | D25: ='!M303A3I.sha'!N20/'!M303A3I.sha'!Q3 -> 0.006097560976 | E25: =SUM('!M303A3I.sha'!L20:Q20)/'!M303A3I.sha'!Q3 -> 1.085365854 | F25: ='!M303A3I.sha'!Q16 -> 0.3620074324
A26: 24 | B26: ='!M304B0I.sha'!B2:C2 -> <date> | C26: =('!M304B0I.sha'!F172/60)/'!M304B0I.sha'!Q3 -> 2.401606426 | D26: ='!M304B0I.sha'!N20/'!M304B0I.sha'!Q3 -> 0.006024096386 | E26: =SUM('!M304B0I.sha'!L20:Q20)/'!M304B0I.sha'!Q3 -> 1.006024096 | F26: ='!M304B0I.sha'!Q16 -> 0.3183547885
A27: 25 | B27: ='!M305A3I.sha'!B2:C2 -> <date> | C27: =('!M305A3I.sha'!F155/60)/'!M305A3I.sha'!Q3 -> 2.652777778 | D27: ='!M305A3I.sha'!N20/'!M305A3I.sha'!Q3 -> 0 | E27: =SUM('!M305A3I.sha'!L20:Q20)/'!M305A3I.sha'!Q3 -> 1.08 | F27: ='!M305A3I.sha'!Q16 -> 0.3730299404
A28: 26 | B28: ='!M306B2I.sha'!B2:C2 -> <date> | C28: =('!M306B2I.sha'!F167/60)/'!M306B2I.sha'!Q3 -> 2.412008282 | D28: ='!M306B2I.sha'!N20/'!M306B2I.sha'!Q3 -> 0.006211180124 | E28: =SUM('!M306B2I.sha'!L20:Q20)/'!M306B2I.sha'!Q3 -> 1.652173913 | F28: ='!M306B2I.sha'!Q16 -> 0.3499004039
A29: 27 | B29: ='!M307B1I.sha'!B2:C2 -> <date> | C29: =('!M307B1I.sha'!F153/60)/'!M307B1I.sha'!Q3 -> 2.710770975 | D29: ='!M307B1I.sha'!N20/'!M307B1I.sha'!Q3 -> 0.006802721088 | E29: =SUM('!M307B1I.sha'!L20:Q20)/'!M307B1I.sha'!Q3 -> 1.843537415 | F29: ='!M307B1I.sha'!Q16 -> 0.3596185447
A30: 28 | B30: ='!M308A2I.sha'!B2:C2 -> <date> | C30: =('!M308A2I.sha'!F142/60)/'!M308A2I.sha'!Q3 -> 2.940808824 | D30: ='!M308A2I.sha'!N20/'!M308A2I.sha'!Q3 -> 0.01470588235 | E30: =SUM('!M308A2I.sha'!L20:Q20)/'!M308A2I.sha'!Q3 -> 1.161764706 | F30: ='!M308A2I.sha'!Q16 -> 0.3752029456
A31: 29 | B31: ='!M309A3I.sha'!B2:C2 -> <date> | C31: =('!M309A3I.sha'!F112/60)/'!M309A3I.sha'!Q3 -> 3.758176101 | D31: ='!M309A3I.sha'!N20/'!M309A3I.sha'!Q3 -> 0.02830188679 | E31: =SUM('!M309A3I.sha'!L20:Q20)/'!M309A3I.sha'!Q3 -> 2.452830189 | F31: ='!M309A3I.sha'!Q16 -> 0.4192965756
A32: 30

Sheet Start
F1: Use Folder 51 | H1: Auto Clean Up | J1: Correct sequence
F2: FALSE | H2: TRUE | J2: 121
A4: Working with Folder | G4: Process All/Or Pick A number: ALL or an integer
A5: F:\Possum Chapter\Raw Data\Ishan\new phase LRL\ | G5: ALL
A6: Filenames:
A7: !M309A3I.sha | G7: Paint Cells
A8: !M213B3I.sha | G8: FALSE
A9: !M214A3I.sha
A10: !M215A3I.sha
A11: !M216A0I.sha
A12: !M217B1I.sha
A13: !M218A4I.sha
A14: !M219B2I.sha
A15: !M220B1I.sha
A16: !M221A5I.sha
A17: !M222A1I.sha
A18: !M223A3I.sha
A19: !M224A2I.sha
A20: !M225A2I.sha
A21: !M226A5I.sha
A22: !M227A4I.sha
A23: !M228A4I.sha
A24: !M229B0I.sha
A25: !M301A4I.sha
A26: !M302A5I.sha
A27: !M303A3I.sha
A28: !M304B0I.sha
A29: !M305A3I.sha
A30: !M306B2I.sha
A31: !M307B1I.sha
A32: !M308A2I.sha
A33: !M212A1I.sha
A34: !M210B4I.sha
A35: !M211A2I.sha

Sheet !M210B4I.sha
A1: Report for:!M210B4I.sha
A2: Date: | B2: <date>
A3: Hen: | B3: <hen> | F3: Correct Sequence | G3: =Start!J2 -> 121 | P3: Total Sequences in Data | Q3: =4994-COUNTBLANK(L7:L5000) -> 171 | V3: Total Sequences in Block Data | W3: =COUNTA(L7:L35) -> 29 | AA3: Total Sequences in Block Data | AB3: =COUNTA(L36:L63) -> 28 | AF3: Total Sequences in Block Data | AG3: =COUNTA(L64:L92) -> 29 | AK3: Total Sequences in Block Data | AL3: =COUNTA(L93:L120) -> 28 | AP3: Total Sequences in Block Data | AQ3: =COUNTA(L121:L149) -> 29 | AU3: Total Sequences in Block Data | AV3: =COUNTA(L150:L177) -> 28
P4: Total Sequences in Summary | Q4: =SUM(O7:O14) -> 171 | V4: Total Sequences in Block Summary | W4: =SUM(U7:U14) -> 29 | AA4: Total Sequences in Block Summary | AB4: =SUM(Z7:Z14) -> 28 | AF4: Total Sequences in Block Summary | AG4: =SUM(AE7:AE14) -> 29 | AK4: Total Sequences in Block Summary | AL4: =SUM(AJ7:AJ14) -> 28 | AP4: Total Sequences in Block Summary | AQ4: =SUM(AO7:AO14) -> 29 | AU4: Total Sequences in Block Summary | AV4: =SUM(AT7:AT14) -> 28
T5: Block 1 | Y5: Block 2 | AD5: Block 3 | AI5: Block 4 | AN5: Block 5 | AS5: Block 6
A6: Sequence Component 1 | B6: Time 1 | C6: Sequence Component 2 | D6: Time 2 | E6: Sequence Component 3 | F6: Time 3 | G6: Sequence Component 4 | H6: Time 4 | I6: Sequence Component 5 | J6: Time 5 | K6: Correct? 0=No 1=Yes | L6: Sequence | N6: Frequency | P6: Relative Frequency | Q6: Variability | T6: Frequency | V6: Relative Frequency | W6: Variability | Y6: Frequency | AA6: Relative Frequency | AB6: Variability | AD6: Frequency | AF6: Relative Frequency | AG6: Variability | AI6: Frequency | AK6: Relative Frequency | AL6: Variability | AN6: Frequency | AP6: Relative Frequency | AQ6: Variability | AS6: Frequency | AU6: Relative Frequency | AV6: Variability
A7: 22 | B7: 42 | C7: 23 | D7: 46 | E7: 24 | F7: 52 | K7: 0 | L7: 222 | N7: 111 | O7: =COUNTIF($L$7:$L$500,N7) -> 3 | P7: =O7/$Q$4 -> 0.01754385965 | Q7: =IF(P7=0,0,(P7*((LOG(P7))/LOG(2)))) -> -0.1023314038 | T7: =N7 -> 111 | U7: =COUNTIF(L7:L35,T7) -> 1 | V7: =U7/(W4-U9) -> 0.03571428571 | W7: =IF(V7=0,0,(V7*((LOG(V7))/LOG(2)))) -> -0.1716912472 | Y7: =N7 -> 111 | Z7: =COUNTIF(L36:L63,Y7) -> 0 | AA7: =Z7/(AB4-Z9) -> 0 | AB7: =IF(AA7=0,0,(AA7*((LOG(AA7))/LOG(2)))) -> 0 | AD7: =N7 -> 111 | AE7: =COUNTIF(L64:L92,AD7) -> 0 | AF7: =AE7/(AG4-AE9) -> 0 | AG7: =IF(AF7=0,0,(AF7*((LOG(AF7))/LOG(2)))) -> 0 | AI7: =N7 -> 111 | AJ7: =COUNTIF(L93:L120,AI7) -> 0 | AK7: =AJ7/(AL4-AJ9) -> 0 | AL7: =IF(AK7=0,0,(AK7*((LOG(AK7))/LOG(2)))) -> 0 | AN7: =N7 -> 111 | AO7: =COUNTIF(L121:L149,AN7) -> 0 | AP7: =AO7/(AQ4-AO9) -> 0 | AQ7: =IF(AP7=0,0,(AP7*((LOG(AP7))/LOG(2)))) -> 0 | AS7: =N7 -> 111 | AT7: =COUNTIF(L150:L177,AS7) -> 2 | AU7: =AT7/(AV4-AT9) -> 0.07142857143 | AV7: =IF(AU7=0,0,(AU7*((LOG(AU7))/LOG(2)))) -> -0.271953923
A8: 11 | B8: 219 | C8: 12 | D8: 227 | E8: 24 | F8: 236 | K8: 0 | L8: 112 | N8: 112 | O8: =COUNTIF($L$7:$L$500,N8) -> 5 | P8: =O8/$Q$4 -> 0.02923976608 | Q8: =IF(P8=0,0,(P8*((LOG(P8))/LOG(2)))) -> -0.149003638 | T8: =N8 -> 112 | U8: =COUNTIF(L7:L35,T8) -> 3 | V8: =U8/(W4-U9) -> 0.1071428571 | W8: =IF(V8=0,0,(V8*((LOG(V8))/LOG(2)))) -> -0.3452563309 | Y8: =N8 -> 112 | Z8: =COUNTIF(L36:L63,Y8) -> 0 | AA8: =Z8/(AB4-Z9) -> 0 | AB8: =IF(AA8=0,0,(AA8*((LOG(AA8))/LOG(2)))) -> 0 | AD8: =N8 -> 112 | AE8: =COUNTIF(L64:L92,AD8) -> 2 | AF8: =AE8/(AG4-AE9) -> 0.06896551724 | AG8: =IF(AF8=0,0,(AF8*((LOG(AF8))/LOG(2)))) -> -0.2660676548 | AI8: =N8 -> 112 | AJ8: =COUNTIF(L93:L120,AI8) -> 0 | AK8: =AJ8/(AL4-AJ9) -> 0 | AL8: =IF(AK8=0,0,(AK8*((LOG(AK8))/LOG(2)))) -> 0 | AN8: =N8 -> 112 | AO8: =COUNTIF(L121:L149,AN8) -> 0 | AP8: =AO8/(AQ4-AO9) -> 0 | AQ8: =IF(AP8=0,0,(AP8*((LOG(AP8))/LOG(2)))) -> 0 | AS8: =N8 -> 112 | AT8: =COUNTIF(L150:L177,AS8) -> 0 | AU8: =AT8/(AV4-AT9) -> 0 | AV8: =IF(AU8=0,0,(AU8*((LOG(AU8))/LOG(2)))) -> 0
A9: 11 | B9: 341 | C9: 21 | D9: 354 | E9: 11 | F9: 373 | K9: 0 | L9: 121 | N9: 121 | O9: =COUNTIF($L$7:$L$500,N9) -> 1 | P9: =O9/$Q$4 -> 0.005847953216 | Q9: =IF(P9=0,0,(P9*((LOG(P9))/LOG(2)))) -> -0.04337925447 | T9: =N9 -> 121 | U9: =COUNTIF(L7:L35,T9) -> 1 | Y9: =N9 -> 121 | Z9: =COUNTIF(L36:L63,Y9) -> 0 | AD9: =N9 -> 121 | AE9: =COUNTIF(L64:L92,AD9) -> 0 | AI9: =N9 -> 121 | AJ9: =COUNTIF(L93:L120,AI9) -> 0 | AN9: =N9 -> 121 | AO9: =COUNTIF(L121:L149,AN9) -> 0 | AS9: =N9 -> 121 | AT9: =COUNTIF(L150:L177,AS9) -> 0
A10: 22 | B10: 479 | C10: 14 | D10: 524 | E10: 13 | F10: 534 | K10: 0 | L10: 211 | N10: 122 | O10: =COUNTIF($L$7:$L$500,N10) -> 2 | P10: =O10/$Q$4 -> 0.01169590643 | Q10: =IF(P10=0,0,(P10*((LOG(P10))/LOG(2)))) -> -0.07506260251 | T10: =N10 -> 122 | U10: =COUNTIF(L7:L35,T10) -> 1 | V10: =U10/(W4-U9) -> 0.03571428571 | W10: =IF(V10=0,0,(V10*((LOG(V10))/LOG(2)))) -> -0.1716912472 | Y10: =N10 -> 122 | Z10: =COUNTIF(L36:L63,Y10) -> 1 | AA10: =Z10/(AB4-Z9) -> 0.03571428571 | AB10: =IF(AA10=0,0,(AA10*((LOG(AA10))/LOG(2)))) -> -0.1716912472 | AD10: =N10 -> 122 | AE10: =COUNTIF(L64:L92,AD10) -> 0 | AF10: =AE10/(AG4-AE9) -> 0 | AG10: =IF(AF10=0,0,(AF10*((LOG(AF10))/LOG(2)))) -> 0 | AI10: =N10 -> 122 | AJ10: =COUNTIF(L93:L120,AI10) -> 0 | AK10: =AJ10/(AL4-AJ9) -> 0 | AL10: =IF(AK10=0,0,(AK10*((LOG(AK10))/LOG(2)))) -> 0 | AN10: =N10 -> 122 | AO10: =COUNTIF(L121:L149,AN10) -> 0 | AP10: =AO10/(AQ4-AO9) -> 0 | AQ10: =IF(AP10=0,0,(AP10*((LOG(AP10))/LOG(2)))) -> 0 | AS10: =N10 -> 122 | AT10: =COUNTIF(L150:L177,AS10) -> 0 | AU10: =AT10/(AV4-AT9) -> 0 | AV10: =IF(AU10=0,0,(AU10*((LOG(AU10))/LOG(2)))) -> 0
A11: 22 | B11: 634 | C11: 14 | D11: 660 | E11: 24 | F11: 709 | K11: 0 | L11: 212 | N11: 211 | O11: =COUNTIF($L$7:$L$500,N11) -> 40 | P11: =O11/$Q$4 -> 0.2339181287 | Q11: =IF(P11=0,0,(P11*((LOG(P11))/LOG(2)))) -> -0.4902747181 | T11: =N11 -> 211 | U11: =COUNTIF(L7:L35,T11) -> 11 | V11: =U11/(W4-U9) -> 0.3928571429 | W11: =IF(V11=0,0,(V11*((LOG(V11))/LOG(2)))) -> -0.5295412978 | Y11: =N11 -> 211 | Z11: =COUNTIF(L36:L63,Y11) -> 6 | AA11: =Z11/(AB4-Z9) -> 0.2142857143 | AB11: =IF(AA11=0,0,(AA11*((LOG(AA11))/LOG(2)))) -> -0.4762269474 | AD11: =N11 -> 211 | AE11: =COUNTIF(L64:L92,AD11) -> 4 | AF11: =AE11/(AG4-AE9) -> 0.1379310345 | AG11: =IF(AF11=0,0,(AF11*((LOG(AF11))/LOG(2)))) -> -0.3942042752 | AI11: =N11 -> 211 | AJ11: =COUNTIF(L93:L120,AI11) -> 3 | AK11: =AJ11/(AL4-AJ9) -> 0.1071428571 | AL11: =IF(AK11=0,0,(AK11*((LOG(AK11))/LOG(2)))) -> -0.3452563309 | AN11: =N11 -> 211 | AO11: =COUNTIF(L121:L149,AN11) -> 7 | AP11: =AO11/(AQ4-AO9) -> 0.2413793103 | AQ11: =IF(AP11=0,0,(AP11*((LOG(AP11))/LOG(2)))) -> -0.4949787073 | AS11: =N11 -> 211 | AT11: =COUNTIF(L150:L177,AS11) -> 9 | AU11: =AT11/(AV4-AT9) -> 0.3214285714 | AV11: =IF(AU11=0,0,(AU11*((LOG(AU11))/LOG(2)))) -> -0.5263167602
A12: 11 | B12: 830 | C12: 21 | D12: 842 | E12: 22 | F12: 849 | K12: 0 | L12: 122 | N12: 212 | O12: =COUNTIF($L$7:$L$500,N12) -> 20 | P12: =O12/$Q$4 -> 0.1169590643 | Q12: =IF(P12=0,0,(P12*((LOG(P12))/LOG(2)))) -> -0.3620964234 | T12: =N12 -> 212 | U12: =COUNTIF(L7:L35,T12) -> 8 | V12: =U12/(W4-U9) -> 0.2857142857 | W12: =IF(V12=0,0,(V12*((LOG(V12))/LOG(2)))) -> -0.5163871206 | Y12: =N12 -> 212 | Z12: =COUNTIF(L36:L63,Y12) -> 4 | AA12: =Z12/(AB4-Z9) -> 0.1428571429 | AB12: =IF(AA12=0,0,(AA12*((LOG(AA12))/LOG(2)))) -> -0.4010507032 | AD12: =N12 -> 212 | AE12: =COUNTIF(L64:L92,AD12) -> 3 | AF12: =AE12/(AG4-AE9) -> 0.1034482759 | AG12: =IF(AF12=0,0,(AF12*((LOG(AF12))/LOG(2)))) -> -0.3385881201 | AI12: =N12 -> 212 | AJ12: =COUNTIF(L93:L120,AI12) -> 3 | AK12: =AJ12/(AL4-AJ9) -> 0.1071428571 | AL12: =IF(AK12=0,0,(AK12*((LOG(AK12))/LOG(2)))) -> -0.3452563309 | AN12: =N12 -> 212 | AO12: =COUNTIF(L121:L149,AN12) -> 2 | AP12: =AO12/(AQ4-AO9) -> 0.06896551724 | AQ12: =IF(AP12=0,0,(AP12*((LOG(AP12))/LOG(2)))) -> -0.2660676548 | AS12: =N12 -> 212 | AT12: =COUNTIF(L150:L177,AS12) -> 0 | AU12: =AT12/(AV4-AT9) -> 0 | AV12: =IF(AU12=0,0,(AU12*((LOG(AU12))/LOG(2)))) -> 0
A13: 22 | B13: 959 | C13: 14 | D13: 1005 | E13: 13 | F13: 1019 | K13: 0 | L13: 211 | N13: 221 | O13: =COUNTIF($L$7:$L$500,N13) -> 74 | P13: =O13/$Q$4 -> 0.432748538 | Q13: =IF(P13=0,0,(P13*((LOG(P13))/LOG(2)))) -> -0.5229329652 | T13: =N13 -> 221 | U13: =COUNTIF(L7:L35,T13) -> 3 | V13: =U13/(W4-U9) -> 0.1071428571 | W13: =IF(V13=0,0,(V13*((LOG(V13))/LOG(2)))) -> -0.3452563309 | Y13: =N13 -> 221 | Z13: =COUNTIF(L36:L63,Y13) -> 11 | AA13: =Z13/(AB4-Z9) -> 0.3928571429 | AB13: =IF(AA13=0,0,(AA13*((LOG(AA13))/LOG(2)))) -> -0.5295412978 | AD13: =N13 -> 221 | AE13: =COUNTIF(L64:L92,AD13) -> 14 | AF13: =AE13/(AG4-AE9) -> 0.4827586207 | AG13: =IF(AF13=0,0,(AF13*((LOG(AF13))/LOG(2)))) -> -0.5071987939 | AI13: =N13 -> 221 | AJ13: =COUNTIF(L93:L120,AI13) -> 15 | AK13: =AJ13/(AL4-AJ9) -> 0.5357142857 | AL13: =IF(AK13=0,0,(AK13*((LOG(AK13))/LOG(2)))) -> -0.4823916035 | AN13: =N13 -> 221 | AO13: =COUNTIF(L121:L149,AN13) -> 17 | AP13: =AO13/(AQ4-AO9) -> 0.5862068966 | AQ13: =IF(AP13=0,0,(AP13*((LOG(AP13))/LOG(2)))) -> -0.4516830557 | AS13: =N13 -> 221 | AT13: =COUNTIF(L150:L177,AS13) -> 14 | AU13: =AT13/(AV4-AT9) -> 0.5 | AV13: =IF(AU13=0,0,(AU13*((LOG(AU13))/LOG(2)))) -> -0.5
A14: 11 | B14: 1148 | C14: 12 | D14: 1158 | E14: 13 | F14: 1168 | K14: 0 | L14: 111 | N14: 222 | O14: =COUNTIF($L$7:$L$500,N14) -> 26 | P14: =O14/$Q$4 -> 0.1520467836 | Q14: =IF(P14=0,0,(P14*((LOG(P14))/LOG(2)))) -> -0.4131738755 | T14: =N14 -> 222 | U14: =COUNTIF(L7:L35,T14) -> 1 | V14: =U14/(W4-U9) -> 0.03571428571 | W14: =IF(V14=0,0,(V14*((LOG(V14))/LOG(2)))) -> -0.1716912472 | Y14: =N14 -> 222 | Z14: =COUNTIF(L36:L63,Y14) -> 6 | AA14: =Z14/(AB4-Z9) -> 0.2142857143 | AB14: =IF(AA14=0,0,(AA14*((LOG(AA14))/LOG(2)))) -> -0.4762269474 | AD14: =N14 -> 222 | AE14: =COUNTIF(L64:L92,AD14) -> 6 | AF14: =AE14/(AG4-AE9) -> 0.2068965517 | AG14: =IF(AF14=0,0,(AF14*((LOG(AF14))/LOG(2)))) -> -0.4702796885 | AI14: =N14 -> 222 | AJ14: =COUNTIF(L93:L120,AI14) -> 7 | AK14: =AJ14/(AL4-AJ9) -> 0.25 | AL14: =IF(AK14=0,0,(AK14*((LOG(AK14))/LOG(2)))) -> -0.5 | AN14: =N14 -> 222 | AO14: =COUNTIF(L121:L149,AN14) -> 3 | AP14: =AO14/(AQ4-AO9) -> 0.1034482759 | AQ14: =IF(AP14=0,0,(AP14*((LOG(AP14))/LOG(2)))) -> -0.3385881201 | AS14: =N14 -> 222 | AT14: =COUNTIF(L150:L177,AS14) -> 3 | AU14: =AT14/(AV4-AT9) -> 0.1071428571 | AV14: =IF(AU14=0,0,(AU14*((LOG(AU14))/LOG(2)))) -> -0.3452563309
A15: 22 | B15: 1330 | C15: 14 | D15: 1357 | E15: 24 | F15: 1393 | K15: 0 | L15: 212 | P15: =SUM(P7:P14) -> 1 | Q15: =-SUM(Q7:Q14) -> 2.158254881 | V15: =SUM(V7:V14) -> 1 | W15: =-SUM(W7:W14) -> 2.251514822 | AA15: =SUM(AA7:AA14) -> 1 | AB15: =-SUM(AB7:AB14) -> 2.054737143 | AF15: =SUM(AF7:AF14) -> 1 | AG15: =-SUM(AG7:AG14) -> 1.976338533 | AK15: =SUM(AK7:AK14) -> 1 | AL15: =-SUM(AL7:AL14) -> 1.672904265 | AP15: =SUM(AP7:AP14) -> 1 | AQ15: =-SUM(AQ7:AQ14) -> 1.551317538 | AU15: =SUM(AU7:AU14) -> 1 | AV15: =-SUM(AV7:AV14) -> 1.643527014
A16: 11 | B16: 1525 | C16: 12 | D16: 1614 | E16: 24 | F16: 1626 | K16: 0 | L16: 112 | P16: U= | Q16: =Q15/(LOG(Q4)/LOG(2)) -> 0.2909541376 | V16: U1= | W16: =W15/(LOG(W4)/LOG(2)) -> 0.4634671943 | AA16: U2= | AB16: =AB15/(LOG(AB4)/LOG(2)) -> 0.4274153201 | AF16: U3= | AG16: =AG15/(LOG(AG4)/LOG(2)) -> 0.4068230268 | AK16: U4= | AL16: =AL15/(LOG(AL4)/LOG(2)) -> 0.3479885077 | AP16: U5= | AQ16: =AQ15/(LOG(AQ4)/LOG(2)) -> 0.3193338013 | AU16: U6= | AV16: =AV15/(LOG(AV4)/LOG(2)) -> 0.3418776106
A17: 22 | B17: 1725 | C17: 14 | D17: 1746 | E17: 24 | F17: 1880 | K17: 0 | L17: 212
A18: 22 | B18: 1977 | C18: 14 | D18: 2007 | E18: 13 | F18: 2022 | K18: 0 | L18: 211
A19: 22 | B19: 2120 | C19: 14 | D19: 2138 | E19: 24 | F19: 2212 | K19: 0 | L19: 212 | N19: Total Target Seq
A20: 22 | B20: 2311 | C20: 14 | D20: 2341 | E20: 13 | F20: 2357 | K20: 0 | L20: 211 | N20: =COUNTIF(L7:L177,G3) -> 1 | P20: 29 | Q20: 28 | R20: 29 | S20: 28 | T20: 29 | U20: 28
A21: 22 | B21: 2452 | C21: 14 | D21: 2463 | E21: 13 | F21: 2472 | K21: 0 | L21: 211 | P21: % of reinforcement given in 6 equal intervals based on number of trials
A22: 22 | B22: 2587 | C22: 14 | D22: 2596 | E22: 13 | F22: 2605 | K22: 0 | L22: 211 | P22: %_1 | Q22: %_2 | R22: %_3 | S22: %_4 | T22: %_5 | U22: %_6
A23: 22 | B23: 2705 | C23: 14 | D23: 2722 | E23: 24 | F23: 2777 | K23: 0 | L23: 212 | O23: target sequence | P23: =$G$3 -> 121 | Q23: =$G$3 -> 121 | R23: =$G$3 -> 121 | S23: =$G$3 -> 121 | T23: =$G$3 -> 121 | U23: =$G$3 -> 121
A24: 22 | B24: 2873 | C24: 14 | D24: 2884 | E24: 24 | F24: 2903 | K24: 0 | L24: 212 | O24: total reinforcement | P24: =U9 -> 1 | Q24: =Z9 -> 0 | R24: =AE9 -> 0 | S24: =AJ9 -> 0 | T24: =AO9 -> 0 | U24: =AT9 -> 0
A25: 22 | B25: 3005 | C25: 14 | D25: 3033 | E25: 13 | F25: 3041 | K25: 0 | L25: 211 | O25: % target
A26: 22 | B26: 3137 | C26: 14 | D26: 3160 | E26: 13 | F26: 3177 | K26: 0 | L26: 211 | O26: CCRF
A27: 22 | B27: 3278 | C27: 14 | D27: 3288 | E27: 13 | F27: 3298 | K27: 0 | L27: 211 | O27: % CCRf
A28: 22 | B28: 3397 | C28: 14 | D28: 3413 | E28: 24 | F28: 3464 | K28: 0 | L28: 212 | O28: average response rate | P28: =F35/P20 -> 153.9655172 | Q28: =(F63-F35)/Q20 -> 124.2857143 | R28: =(F92-F63)/R20 -> 119.2758621 | S28: =(F120-F92)/S20 -> 122.7142857 | T28: =(F149-F120)/T20 -> 118.5517241 | U28: =(F177-F149)/U20 -> 203.3928571
A29: 22 | B29: 3559 | C29: 14 | D29: 3580 | E29: 24 | F29: 3599 | K29: 0 | L29: 212
A30: 22 | B30: 3695 | C30: 23 | D30: 3702 | E30: 13 | F30: 3717 | K30: 0 | L30: 221
A31: 11 | B31: 3949 | C31: 12 | D31: 3958 | E31: 24 | F31: 3970 | K31: 0 | L31: 112
A32: 22 | B32: 4068 | C32: 23 | D32: 4080 | E32: 13 | F32: 4096 | K32: 0 | L32: 221
A33: 22 | B33: 4194 | C33: 14 | D33: 4208 | E33: 13 | F33: 4219 | K33: 0 | L33: 211
A34: 22 | B34: 4317 | C34: 14 | D34: 4333 | E34: 13 | F34: 4342 | K34: 0 | L34: 211
A35: 22 | B35: 4439 | C35: 23 | D35: 4446 | E35: 13 | F35: 4465 | K35: 0 | L35: 221
A36: 22 | B36: 4561 | C36: 14 | D36: 4588 | E36: 24 | F36: 4644 | K36: 0 | L36: 212
A37: 22 | B37: 4749 | C37: 14 | D37: 4768 | E37: 24 | F37: 4788 | K37: 0 | L37: 212
A38: 22 | B38: 4885 | C38: 14 | D38: 4917 | E38: 13 | F38: 4928 | K38: 0 | L38: 211
A39: 22 | B39: 5024 | C39: 23 | D39: 5030 | E39: 13 | F39: 5044 | K39: 0 | L39: 221
A40: 22 | B40: 5142 | C40: 23 | D40: 5150 | E40: 13 | F40: 5165 | K40: 0 | L40: 221
A41: 22 | B41: 5263 | C41: 14 | D41: 5278 | E41: 24 | F41: 5288 | K41: 0 | L41: 212
A42: 22 | B42: 5383 | C42: 23 | D42: 5389 | E42: 13 | F42: 5399 | K42: 0 | L42: 221
A43: 22 | B43: 5495 | C43: 14 | D43: 5505 | E43: 24 | F43: 5520 | K43: 0 | L43: 212
A44: 22 | B44: 5616 | C44: 23 | D44: 5620 | E44: 13 | F44: 5634 | K44: 0 | L44: 221
A45: 22 | B45: 5733 | C45: 14 | D45: 5748 | E45: 13 | F45: 5764 | K45: 0 | L45: 211
A46: 22 | B46: 5862 | C46: 23 | D46: 5866 | E46: 24 | F46: 5870 | K46: 0 | L46: 222
A47: 22 | B47: 5970 | C47: 23 | D47: 5980 | E47: 13 | F47: 6003 | K47: 0 | L47: 221
A48: 22 | B48: 6101 | C48: 23 | D48: 6106 | E48: 13 | F48: 6127 | K48: 0 | L48: 221
A49: 22 | B49: 6225 | C49: 23 | D49: 6231 | E49: 24 | F49: 6235 | K49: 0 | L49: 222
A50: 22 | B50: 6332 | C50: 14 | D50: 6350 | E50: 13 | F50: 6362 | K50: 0 | L50: 211
A51: 11 | B51: 6480 | C51: 21 | D51: 6496 | E51: 22 | F51: 6502 | K51: 0 | L51: 122
A52: 22 | B52: 6597 | C52: 23 | D52: 6601 | E52: 13 | F52: 6613 | K52: 0 | L52: 221
A53: 22 | B53: 6713 | C53: 23 | D53: 6721 | E53: 13 | F53: 6739 | K53: 0 | L53: 221
A54: 22 | B54: 6837 | C54: 23 | D54: 6845 | E54: 13 | F54: 6861 | K54: 0 | L54: 221
A55: 22 | B55: 6958 | C55: 23 | D55: 6964 | E55: 24 | F55: 6969 | K55: 0 | L55: 222
A56: 22 | B56: 7068 | C56: 14 | D56: 7079 | E56: 13 | F56: 7087 | K56: 0 | L56: 211
A57: 22 | B57: 7184 | C57: 23 | D57: 7191 | E57: 13 | F57: 7207 | K57: 0 | L57: 221
A58: 22 | B58: 7312 | C58: 14 | D58: 7324 | E58: 13 | F58: 7331 | K58: 0 | L58: 211
A59: 22 | B59: 7429 | C59: 23 | D59: 7433 | E59: 24 | F59: 7443 | K59: 0 | L59: 222
A60: 22 | B60: 7541 | C60: 23 | D60: 7547 | E60: 13 | F60: 7558 | K60: 0 | L60: 221
A61: 22 | B61: 7698 | C61: 23 | D61: 7704 | E61: 24 | F61: 7710 | K61: 0 | L61: 222
A62: 22 | B62: 7805 | C62: 14 | D62: 7829 | E62: 13 | F62: 7838 | K62: 0 | L62: 211
A63: 22 | B63: 7935 | C63: 23 | D63: 7941 | E63: 24 | F63: 7945 | K63: 0 | L63: 222
A64: 11 | B64: 8052 | C64: 12 | D64: 8058 | E64: 24 | F64: 8075 | K64: 0 | L64: 112
A65: 22 | B65: 8173 | C65: 23 | D65: 8178 | E65: 13 | F65: 8191 | K65: 0 | L65: 221
A66: 22 | B66: 8288 | C66: 23 | D66: 8293 | E66: 13 | F66: 8303 | K66: 0 | L66: 221
A67: 22 | B67: 8416 | C67: 14 | D67: 8428 | E67: 13 | F67: 8436 | K67: 0 | L67: 211
A68: 22 | B68: 8533 | C68: 23 | D68: 8539 | E68: 13 | F68: 8549 | K68: 0 | L68: 221
A69: 22 | B69: 8647 | C69: 23 | D69: 8652 | E69: 13 | F69: 8664 | K69: 0 | L69: 221
A70: 22 | B70: 8760 | C70: 23 | D70: 8763 | E70: 24 | F70: 8770 | K70: 0 | L70: 222
A71: 22 | B71: 8873 | C71: 14 | D71: 8885 | E71: 13 | F71: 8891 | K71: 0 | L71: 211
A72: 22 | B72: 8990 | C72: 23 | D72: 8993 | E72: 13 | F72: 9007 | K72: 0 | L72: 221
A73: 22 | B73: 9124 | C73: 23 | D73: 9129 | E73: 24 | F73: 9134 | K73: 0 | L73: 222
A74: 22 | B74: 9234 | C74: 14 | D74: 9246 | E74: 13 | F74: 9255 | K74: 0 | L74: 211
A75: 22 | B75: 9351 | C75: 23 | D75: 9356 | E75: 13 | F75: 9369 | K75: 0 | L75: 221
A76: 22 | B76: 9465 | C76: 23 | D76: 9470 | E76: 13 | F76: 9479 | K76: 0 | L76: 221
A77: 22 | B77: 9576 | C77: 23 | D77: 9586 | E77: 13 | F77: 9603 | K77: 0 | L77: 221
A78: 22 | B78: 9701 | C78: 23 | D78: 9703 | E78: 13 | F78: 9716 | K78: 0 | L78: 221
A79: 22 | B79: 9813 | C79: 23 | D79: 9819 | E79: 13 | F79: 9831 | K79: 0 | L79: 221
A80: 22 | B80: 9929 | C80: 14 | D80: 9944 | E80: 24 | F80: 9958 | K80: 0 | L80: 212
A81: 22 | B81: 10053 | C81: 23 | D81: 10057 | E81: 13 | F81: 10068 | K81: 0 | L81: 221
A82: 22 | B82: 10201 | C82: 23 | D82: 10205 | E82: 24 | F82: 10211 | K82: 0 | L82: 222
A83: 22 | B83: 10307 | C83: 14 | D83: 10322 | E83: 24 | F83: 10333 | K83: 0 | L83: 212
A84: 22 | B84: 10429 | C84: 23 | D84: 10434 | E84: 13 | F84: 10443 | K84: 0 | L84: 221
A85: 22 | B85: 10541 | C85: 23 | D85: 10546 | E85: 24 | F85: 10552 | K85: 0 | L85: 222
A86: 22 | B86: 10648 | C86: 14 | D86: 10662 | E86: 13 | F86: 10675 | K86: 0 | L86: 211
A87: 22 | B87: 10771 | C87: 23 | D87: 10776 | E87: 13 | F87: 10785 | K87: 0 | L87: 221
A88: 22 | B88: 10883 | C88: 23 | D88: 10888 | E88: 13 | F88: 10908 | K88: 0 | L88: 221
A89: 22 | B89: 11030 | C89: 23 | D89: 11036 | E89: 24 | F89: 11046 | K89: 0 | L89: 222
A90: 22 | B90: 11144 | C90: 14 | D90: 11157 | E90: 24 | F90: 11171 | K90: 0 | L90: 212
A91: 22 | B91: 11269 | C91: 23 | D91: 11275 | E91: 24 | F91: 11279 | K91: 0 | L91: 222
A92: 11 | B92: 11385 | C92: 12 | D92: 11393 | E92: 24 | F92: 11404 | K92: 0 | L92: 112
A93: 22 | B93: 11500 | C93: 23 | D93: 11507 | E93: 13 | F93: 11521 | K93: 0 | L93: 221
A94: 22 | B94: 11619 | C94: 23 | D94: 11628 | E94: 13 | F94: 11658 | K94: 0 | L94: 221
A95: 22 | B95: 11755 | C95: 23 | D95: 11757 | E95: 24 | F95: 11770 | K95: 0 | L95: 222
A96: 22 | B96: 11866 | C96: 14 | D96: 11876 | E96: 13 | F96: 11883 | K96: 0 | L96: 211
A97: 22 | B97: 11981 | C97: 23 | D97: 11987 | E97: 13 | F97: 11998 | K97: 0 | L97: 221
A98: 22 | B98: 12094 | C98: 23 | D98: 12100 | E98: 13 | F98: 12110 | K98: 0 | L98: 221
A99: 22 | B99: 12207 | C99: 23 | D99: 12212 | E99: 13 | F99: 12222 | K99: 0 | L99: 221
A100: 22 | B100: 12322 | C100: 23 | D100: 12326 | E100: 24 | F100: 12332 | K100: 0 | L100: 222
A101: 22 | B101: 12429 | C101: 23 | D101: 12435 | E101: 13 | F101: 12448 | K101: 0 | L101: 221
A102: 22 | B102: 12544 | C102: 23 | D102: 12553 | E102: 13 | F102: 12573 | K102: 0 | L102: 221
A103: 22 | B103: 12669 | C103: 23 | D103: 12674 | E103: 13 | F103: 12685 | K103: 0 | L103: 221
A104: 22 | B104: 12782 | C104: 23 | D104: 12787 | E104: 24 | F104: 12791 | K104: 0 | L104: 222
A105: 22 | B105: 12888 | C105: 23 | D105: 12900 | E105: 13 | F105: 12913 | K105: 0 | L105: 221
A106: 22 | B106: 13012 | C106: 14 | D106: 13024 | E106: 13 | F106: 13030 | K106: 0 | L106: 211
A107: 22 | B107: 13127 | C107: 14 | D107: 13141 | E107: 24 | F107: 13155 | K107: 0 | L107: 212
A108: 22 | B108: 13252 | C108: 23 | D108: 13254 | E108: 24 | F108: 13260 | K108: 0 | L108: 222
A109: 22 | B109: 13356 | C109: 23 | D109: 13360 | E109: 13 | F109: 13382 | K109: 0 | L109: 221
A110: 22 | B110: 13579 | C110: 23 | D110: 13585 | E110: 24 | F110: 13590 | K110: 0 | L110: 222
A111: 22 | B111: 13687 | C111: 23 | D111: 13692 | E111: 24 | F111: 13700 | K111: 0 | L111: 222
A112: 22 | B112: 13796 | C112: 23 | D112: 13800 | E112: 13 | F112: 13811 | K112: 0 | L112: 221
A113: 22 | B113: 13910 | C113: 14 | D113: 13929 | E113: 13 | F113: 13938 | K113: 0 | L113: 211
A114: 22 | B114: 14036 | C114: 23 | D114: 14047 | E114: 13 | F114: 14059 | K114: 0 | L114: 221
A115: 22 | B115: 14155 | C115: 23 | D115: 14159 | E115: 13 | F115: 14170 | K115: 0 | L115: 221
A116: 22 | B116: 14359 | C116: 23 | D116: 14365 | E116: 24 | F116: 14370 | K116: 0 | L116: 222
A117: 22 | B117: 14465 | C117: 23 | D117: 14469 | E117: 13 | F117: 14480 | K117: 0 | L117: 221
A118: 22 | B118: 14576 | C118: 14 | D118: 14586 | E118: 24 | F118: 14601 | K118: 0 | L118: 212
A119: 22 | B119: 14696 | C119: 14 | D119: 14712 | E119: 24 | F119: 14726 | K119: 0 | L119: 212
A120: 22 | B120: 14822 | C120: 23 | D120: 14827 | E120: 13 | F120: 14840 | K120: 0 | L120: 221
A121: 22 | B121: 14937 | C121: 23 | D121: 14944 | E121: 13 | F121: 14961 | K121: 0 | L121: 221
A122: 22 | B122: 15058 | C122: 14 | D122: 15073 | E122: 13 | F122: 15076 | K122: 0 | L122: 211
A123: 22 | B123: 15172 | C123: 14 | D123: 15182 | E123: 13 | F123: 15191 | K123: 0 | L123: 211
A124: 22 | B124: 15287 | C124: 23 | D124: 15292 | E124: 13 | F124: 15307 | K124: 0 | L124: 221
A125: 22 | B125: 15403 | C125: 23 | D125: 15407 | E125: 13 | F125: 15434 | K125: 0 | L125: 221
A126: 22 | B126: 15534 | C126: 14 | D126: 15544 | E126: 24 | F126: 15559 | K126: 0 | L126: 212
A127: 22 | B127: 15655 | C127: 23 | D127: 15659 | E127: 13 | F127: 15670 | K127: 0 | L127: 221
A128: 22 | B128: 15768 | C128: 23 | D128: 15773 | E128: 13 | F128: 15784 | K128: 0 | L128: 221
A129: 22 | B129: 15882 | C129: 23 | D129: 15887 | E129: 13 | F129: 15902 | K129: 0 | L129: 221
A130: 22 | B130: 16000 | C130: 23 | D130: 16009 | E130: 13 | F130: 16020 | K130: 0 | L130: 221
A131: 22 | B131: 16117 | C131: 14 | D131: 16133 | E131: 13 | F131: 16142 | K131: 0 | L131: 211
A132: 22 | B132: 16264 | C132: 23 | D132: 16270 | E132: 24 | F132: 16276 | K132: 0 | L132: 222
A133: 22 | B133: 16374 | C133: 23 | D133: 16382 | E133: 24 | F133: 16390 | K133: 0 | L133: 222
A134: 22 | B134: 16485 | C134: 14 | D134: 16496 | E134: 24 | F134: 16508 | K134: 0 | L134: 212
A135: 22 | B135: 16607 | C135: 14 | D135: 16631 | E135: 13 | F135: 16646 | K135: 0 | L135: 211
A136: 22 | B136: 16746 | C136: 23 | D136: 16751 | E136: 13 | F136: 16761 | K136: 0 | L136: 221
A137: 22 | B137: 16858 | C137: 14 | D137: 16872 | E137: 13 | F137: 16880 | K137: 0 | L137: 211
A138: 22 | B138: 16983 | C138: 14 | D138: 16994 | E138: 13 | F138: 17003 | K138: 0 | L138: 211
A139: 22 | B139: 17101 | C139: 23 | D139: 17106 | E139: 13 | F139: 17116 | K139: 0 | L139: 221
A140: 22 | B140: 17213 | C140: 23 | D140: 17217 | E140: 13 | F140: 17229 | K140: 0 | L140: 221
A141: 22 | B141: 17324 | C141: 23 | D141: 17328 | E141: 13 | F141: 17342 | K141: 0 | L141: 221
A142: 22 | B142: 17434 | C142: 23 | D142: 17444 | E142: 13 | F142: 17456 | K142: 0 | L142: 221
A143: 22 | B143: 17554 | C143: 23 | D143: 17565 | E143: 13 | F143: 17575 | K143: 0 | L143: 221
A144: 22 | B144: 17672 | C144: 23 | D144: 17676 | E144: 13 | F144: 17695 | K144: 0 | L144: 221
A145: 22 | B145: 17807 | C145: 23 | D145: 17814 | E145: 13 | F145: 17824 | K145: 0 | L145: 221
A146: 22 | B146: 17921 | C146: 14 | D146: 17931 | E146: 13 | F146: 17940 | K146: 0 | L146: 211
A147: 22 | B147: 18036 | C147: 23 | D147: 18039 | E147: 24 | F147: 18041 | K147: 0 | L147: 222
A148: 22 | B148: 18139 | C148: 23 | D148: 18144 | E148: 13 | F148: 18161 | K148: 0 | L148: 221
A149: 22 | B149: 18259 | C149: 23 | D149: 18264 | E149: 13 | F149: 18278 | K149: 0 | L149: 221
A150: 22 | B150: 18375 | C150: 23 | D150: 18379 | E150: 13 | F150: 18393 | K150: 0 | L150: 221
A151: 22 | B151: 18497 | C151: 23 | D151: 18502 | E151: 13 | F151: 18513 | K151: 0 | L151: 221
A152: 22 | B152: 18610 | C152: 23 | D152: 18616 | E152: 24 | F152: 18621 | K152: 0 | L152: 222
A153: 22 | B153: 18718 | C153: 23 | D153: 18723 | E153: 13 | F153: 18734 | K153: 0 | L153: 221
A154: 22 | B154: 18832 | C154: 23 | D154: 18837 | E154: 13 | F154: 18848 | K154: 0 | L154: 221
A155: 22 | B155: 18945 | C155: 14 | D155: 18954 | E155: 13 | F155: 18959 | K155: 0 | L155: 211
A156: 22 | B156: 19059 | C156: 23 | D156: 19064 | E156: 13 | F156: 19075 | K156: 0 | L156: 221
A157: 22 | B157: 19171 | C157: 23 | D157: 19176 | E157: 13 | F157: 19193 | K157: 0 | L157: 221
A158: 22 | B158: 19289 | C158: 23 | D158: 19298 | E158: 24 | F158: 19307 | K158: 0 | L158: 222
A159: 22 | B159: 19406 | C159: 23 | D159: 19411 | E159: 13 | F159: 19427 | K159: 0 | L159: 221
A160: 22 | B160: 21762 | C160: 23 | D160: 21770 | E160: 24 | F160: 21776 | K160: 0 | L160: 222
A161: 22 | B161: 21872 | C161: 14 | D161: 21882 | E161: 13 | F161: 21888 | K161: 0 | L161: 211
A162: 22 | B162: 21984 | C162: 14 | D162: 21998 | E162: 13 | F162: 22004 | K162: 0 | L162: 211
A163: 11 | B163: 22114 | C163: 12 | D163: 22120 | E163: 13 | F163: 22128 | K163: 0 | L163: 111
A164: 22 | B164: 22434 | C164: 23 | D164: 22444 | E164: 13 | F164: 22452 | K164: 0 | L164: 221
A165: 11 | B165: 22561 | C165: 12 | D165: 22568 | E165: 13 | F165: 22577 | K165: 0 | L165: 111
A166: 22 | B166: 22676 | C166: 14 | D166: 22688 | E166: 13 | F166: 22694 | K166: 0 | L166: 211
A167: 22 | B167: 22793 | C167: 14 | D167: 22803 | E167: 13 | F167: 22811 | K167: 0 | L167: 211
A168: 22 | B168: 22906 | C168: 23 | D168: 22912 | E168: 13 | F168: 22922 | K168: 0 | L168: 221
A169: 22 | B169: 23019 | C169: 14 | D169: 23034 | E169: 13 | F169: 23042 | K169: 0 | L169: 211
A170: 22 | B170: 23138 | C170: 23 | D170: 23147 | E170: 13 | F170: 23161 | K170: 0 | L170: 221
A171: 22 | B171: 23260 | C171: 14 | D171: 23271 | E171: 13 | F171: 23279 | K171: 0 | L171: 211
A172: 22 | B172: 23378 | C172: 14 | D172: 23393 | E172: 13 | F172: 23401 | K172: 0 | L172: 211
A173: 22 | B173: 23497 | C173: 23 | D173: 23503 | E173: 13 | F173: 23514 | K173: 0 | L173: 221
A174: 22 | B174: 23610 | C174: 23 | D174: 23616 | E174: 13 | F174: 23624 | K174: 0 | L174: 221
A175: 22 | B175: 23721 | C175: 23 | D175: 23724 | E175: 13 | F175: 23739 | K175: 0 | L175: 221
A176: 22 | B176: 23837 | C176: 14 | D176: 23850 | E176: 13 | F176: 23858 | K176: 0 | L176: 211
A177: 22 | B177: 23956 | C177: 23 | D177: 23961 | E177: 13 | F177: 23973 | L177: 221

Sheet !M211A2I.sha
A1: Report for:!M211A2I.sha
A2: Date: | B2: <date>
A3: Hen: | B3: <hen> | F3: Correct Sequence | G3: =Start!J2 -> 121 | P3: Total Sequences in Data | Q3: =4994-COUNTBLANK(L7:L5000) -> 191 | V3: Total Sequences in Block Data | W3: =COUNTA(L7:L38) -> 32 | AA3: Total Sequences in Block Data | AB3: =COUNTA(L39:L70) -> 32 | AF3: Total Sequences in Block Data | AG3: =COUNTA(L71:L101) -> 31 | AK3: Total Sequences in Block Data | AL3: =COUNTA(L102:L133) -> 32 | AP3: Total Sequences in Block Data | AQ3: =COUNTA(L134:L165) -> 32 | AU3: Total Sequences in Block Data | AV3: =COUNTA(L166:L197) -> 32
P4: Total Sequences in Summary | Q4: =SUM(O7:O14) -> 191 | V4: Total Sequences in Block Summary | W4: =SUM(U7:U14) -> 32 | AA4: Total Sequences in Block Summary | AB4: =SUM(Z7:Z14) -> 32 | AF4: Total Sequences in Block Summary | AG4: =SUM(AE7:AE14) -> 31 | AK4: Total Sequences in Block Summary | AL4: =SUM(AJ7:AJ14) -> 32 | AP4: Total Sequences in Block Summary | AQ4: =SUM(AO7:AO14) -> 32 | AU4: Total Sequences in Block Summary | AV4: =SUM(AT7:AT14) -> 32
T5: Block 1 | Y5: Block 2 | AD5: Block 3 | AI5: Block 4 | AN5: Block 5 | AS5: Block 6
A6: Sequence Component 1 | B6: Time 1 | C6: Sequence Component 2 | D6: Time 2 | E6: Sequence Component 3 | F6: Time 3 | G6: Sequence Component 4 | H6: Time 4 | I6: Sequence Component 5 | J6: Time 5 | K6: Correct? 0=No 1=Yes | L6: Sequence | N6: Frequency | P6: Relative Frequency | Q6: Variability | T6: Frequency | V6: Relative Frequency | W6: Variability | Y6: Frequency | AA6: Relative Frequency | AB6: Variability | AD6: Frequency | AF6: Relative Frequency | AG6: Variability | AI6: Frequency | AK6: Relative Frequency | AL6: Variability | AN6: Frequency | AP6: Relative Frequency | AQ6: Variability | AS6: Frequency | AU6: Relative Frequency | AV6: Variability
A7: 22 | B7: 10 | C7: 14 | D7: 19 | E7: 13 | F7: 25 | K7: 0 | L7: 211 | N7: 111 | O7: =COUNTIF($L$7:$L$500,N7) -> 3 | P7: =O7/$Q$4 -> 0.01570680628 | Q7: =IF(P7=0,0,(P7*((LOG(P7))/LOG(2)))) -> -0.09412250776 | T7: =N7 -> 111 | U7: =COUNTIF(L7:L38,T7) -> 1 | V7: =U7/(W4-U9) -> 0.03125 | W7: =IF(V7=0,0,(V7*((LOG(V7))/LOG(2)))) -> -0.15625 | Y7: =N7 -> 111 | Z7: =COUNTIF(L39:L70,Y7) -> 1 | AA7: =Z7/(AB4-Z9) -> 0.03125 | AB7: =IF(AA7=0,0,(AA7*((LOG(AA7))/LOG(2)))) -> -0.15625 | AD7: =N7 -> 111 | AE7: =COUNTIF(L71:L101,AD7) -> 1 | AF7: =AE7/(AG4-AE9) -> 0.03225806452 | AG7: =IF(AF7=0,0,(AF7*((LOG(AF7))/LOG(2)))) -> -0.1598127842 | AI7: =N7 -> 111 | AJ7: =COUNTIF(L102:L133,AI7) -> 0 | AK7: =AJ7/(AL4-AJ9) -> 0 | AL7: =IF(AK7=0,0,(AK7*((LOG(AK7))/LOG(2)))) -> 0 | AN7: =N7 -> 111 | AO7: =COUNTIF(L134:L165,AN7) -> 0 | AP7: =AO7/(AQ4-AO9) -> 0 | AQ7: =IF(AP7=0,0,(AP7*((LOG(AP7))/LOG(2)))) -> 0 | AS7: =N7 -> 111 | AT7: =COUNTIF(L166:L197,AS7) -> 0 | AU7: =AT7/(AV4-AT9) -> 0 | AV7: =IF(AU7=0,0,(AU7*((LOG(AU7))/LOG(2)))) -> 0
A8: 22 | B8: 124 | C8: 14 | D8: 134 | E8: 13 | F8: 142 | K8: 0 | L8: 211 | N8: 112 | O8: =COUNTIF($L$7:$L$500,N8) -> 2 | P8: =O8/$Q$4 -> 0.01047120419 | Q8: =IF(P8=0,0,(P8*((LOG(P8))/LOG(2)))) -> -0.06887360029 | T8: =N8 -> 112 | U8: =COUNTIF(L7:L38,T8) -> 1 | V8: =U8/(W4-U9) -> 0.03125 | W8: =IF(V8=0,0,(V8*((LOG(V8))/LOG(2)))) -> -0.15625 | Y8: =N8 -> 112 | Z8: =COUNTIF(L39:L70,Y8) -> 0 | AA8: =Z8/(AB4-Z9) -> 0 | AB8: =IF(AA8=0,0,(AA8*((LOG(AA8))/LOG(2)))) -> 0 | AD8: =N8 -> 112 | AE8: =COUNTIF(L71:L101,AD8) -> 0 | AF8: =AE8/(AG4-AE9) -> 0 | AG8: =IF(AF8=0,0,(AF8*((LOG(AF8))/LOG(2)))) -> 0 | AI8: =N8 -> 112 | AJ8: =COUNTIF(L102:L133,AI8) -> 0 | AK8: =AJ8/(AL4-AJ9) -> 0 | AL8: =IF(AK8=0,0,(AK8*((LOG(AK8))/LOG(2)))) -> 0 | AN8: =N8 -> 112 | AO8: =COUNTIF(L134:L165,AN8) -> 1 | AP8: =AO8/(AQ4-AO9) -> 0.03125 | AQ8: =IF(AP8=0,0,(AP8*((LOG(AP8))/LOG(2)))) -> -0.15625 | AS8: =N8 -> 112 | AT8: =COUNTIF(L166:L197,AS8) -> 0 | AU8: =AT8/(AV4-AT9) -> 0 | AV8: =IF(AU8=0,0,(AU8*((LOG(AU8))/LOG(2)))) -> 0
A9: 22 | B9: 239 | C9: 23 | D9: 244 | E9: 13 | F9: 272 | K9: 0 | L9: 221 | N9: 121 | O9: =COUNTIF($L$7:$L$500,N9) -> 0 | P9: =O9/$Q$4 -> 0 | Q9: =IF(P9=0,0,(P9*((LOG(P9))/LOG(2)))) -> 0 | T9: =N9 -> 121 | U9: =COUNTIF(L7:L38,T9) -> 0 | Y9: =N9 -> 121 | Z9: =COUNTIF(L39:L70,Y9) -> 0 | AD9: =N9 -> 121 | AE9: =COUNTIF(L71:L101,AD9) -> 0 | AI9: =N9 -> 121 | AJ9: =COUNTIF(L102:L133,AI9) -> 0 | AN9: =N9 -> 121 | AO9: =COUNTIF(L134:L165,AN9) -> 0 | AS9: =N9 -> 121 | AT9: =COUNTIF(L166:L197,AS9) -> 0
A10: 22 | B10: 397 | C10: 14 | D10: 422 | E10: 24 | F10: 473 | K10: 0 | L10: 212 | N10: 122 | O10: =COUNTIF($L$7:$L$500,N10) -> 3 | P10: =O10/$Q$4 -> 0.01570680628 | Q10: =IF(P10=0,0,(P10*((LOG(P10))/LOG(2)))) -> -0.09412250776 | T10: =N10 -> 122 | U10: =COUNTIF(L7:L38,T10) -> 0 | V10: =U10/(W4-U9) -> 0 | W10: =IF(V10=0,0,(V10*((LOG(V10))/LOG(2)))) -> 0 | Y10: =N10 -> 122 | Z10: =COUNTIF(L39:L70,Y10) -> 0 | AA10: =Z10/(AB4-Z9) -> 0 | AB10: =IF(AA10=0,0,(AA10*((LOG(AA10))/LOG(2)))) -> 0 | AD10: =N10 -> 122 | AE10: =COUNTIF(L71:L101,AD10) -> 0 | AF10: =AE10/(AG4-AE9) -> 0 | AG10: =IF(AF10=0,0,(AF10*((LOG(AF10))/LOG(2)))) -> 0 | AI10: =N10 -> 122 | AJ10: =COUNTIF(L102:L133,AI10) -> 1 | AK10: =AJ10/(AL4-AJ9) -> 0.03125 | AL10: =IF(AK10=0,0,(AK10*((LOG(AK10))/LOG(2)))) -> -0.15625 | AN10: =N10 -> 122 | AO10: =COUNTIF(L134:L165,AN10) -> 1 | AP10: =AO10/(AQ4-AO9) -> 0.03125 | AQ10: =IF(AP10=0,0,(AP10*((LOG(AP10))/LOG(2)))) -> -0.15625 | AS10: =N10 -> 122 | AT10: =COUNTIF(L166:L197,AS10) -> 1 | AU10: =AT10/(AV4-AT9) -> 0.03125 | AV10: =IF(AU10=0,0,(AU10*((LOG(AU10))/LOG(2)))) -> -0.15625
A11: 22 | B11: 582 | C11: 14 | D11: 616 | E11: 24 | F11: 685 | K11: 0 | L11: 212 | N11: 211 | O11: =COUNTIF($L$7:$L$500,N11) -> 31 | P11: =O11/$Q$4 -> 0.1623036649 | Q11: =IF(P11=0,0,(P11*((LOG(P11))/LOG(2)))) -> -0.4257602516 | T11: =N11 -> 211 | U11: =COUNTIF(L7:L38,T11) -> 7 | V11: =U11/(W4-U9) -> 0.21875 | W11: =IF(V11=0,0,(V11*((LOG(V11))/LOG(2)))) -> -0.4796411108 | Y11: =N11 -> 211 | Z11: =COUNTIF(L39:L70,Y11) -> 3 | AA11: =Z11/(AB4-Z9) -> 0.09375 | AB11: =IF(AA11=0,0,(AA11*((LOG(AA11))/LOG(2)))) -> -0.3201597656 | AD11: =N11 -> 211 | AE11: =COUNTIF(L71:L101,AD11) -> 5 | AF11: =AE11/(AG4-AE9) -> 0.1612903226 | AG11: =IF(AF11=0,0,(AF11*((LOG(AF11))/LOG(2)))) -> -0.4245593896 | AI11: =N11 -> 211 | AJ11: =COUNTIF(L102:L133,AI11) -> 7 | AK11: =AJ11/(AL4-AJ9) -> 0.21875 | AL11: =IF(AK11=0,0,(AK11*((LOG(AK11))/LOG(2)))) -> -0.4796411108 | AN11: =N11 -> 211 | AO11: =COUNTIF(L134:L165,AN11) -> 7 | AP11: =AO11/(AQ4-AO9) -> 0.21875 | AQ11: =IF(AP11=0,0,(AP11*((LOG(AP11))/LOG(2)))) -> -0.4796411108 | AS11: =N11 -> 211 | AT11: =COUNTIF(L166:L197,AS11) -> 2 | AU11: =AT11/(AV4-AT9) -> 0.0625 | AV11: =IF(AU11=0,0,(AU11*((LOG(AU11))/LOG(2)))) -> -0.25
A12: 22 | B12: 782 | C12: 14 | D12: 803 | E12: 13 | F12: 917 | K12: 0 | L12: 211 | N12: 212 | O12: =COUNTIF($L$7:$L$500,N12) -> 3 | P12: =O12/$Q$4 -> 0.01570680628 | Q12: =IF(P12=0,0,(P12*((LOG(P12))/LOG(2)))) -> -0.09412250776 | T12: =N12 -> 212 | U12: =COUNTIF(L7:L38,T12) -> 2 | V12: =U12/(W4-U9) -> 0.0625 | W12: =IF(V12=0,0,(V12*((LOG(V12))/LOG(2)))) -> -0.25 | Y12: =N12 -> 212 | Z12: =COUNTIF(L39:L70,Y12) -> 0 | AA12: =Z12/(AB4-Z9) -> 0 | AB12: =IF(AA12=0,0,(AA12*((LOG(AA12))/LOG(2)))) -> 0 | AD12: =N12 -> 212 | AE12: =COUNTIF(L71:L101,AD12) -> 1 | AF12: =AE12/(AG4-AE9) -> 0.03225806452 | AG12: =IF(AF12=0,0,(AF12*((LOG(AF12))/LOG(2)))) -> -0.1598127842 | AI12: =N12 -> 212 | AJ12: =COUNTIF(L102:L133,AI12) -> 0 | AK12: =AJ12/(AL4-AJ9) -> 0 | AL12: =IF(AK12=0,0,(AK12*((LOG(AK12))/LOG(2)))) -> 0 | AN12: =N12 -> 212 | AO12: =COUNTIF(L134:L165,AN12) -> 0 | AP12: =AO12/(AQ4-AO9) -> 0 | AQ12: =IF(AP12=0,0,(AP12*((LOG(AP12))/LOG(2)))) -> 0 | AS12: =N12 -> 212 | AT12: =COUNTIF(L166:L197,AS12) -> 0 | AU12: =AT12/(AV4-AT9) -> 0 | AV12: =IF(AU12=0,0,(AU12*((LOG(AU12))/LOG(2)))) -> 0
A13: 22 | B13: 1016 | C13: 23 | D13: 1020 | E13: 13 | F13: 1035 | K13: 0 | L13: 221 | N13: 221 | O13: =COUNTIF($L$7:$L$500,N13) -> 97 | P13: =O13/$Q$4 -> 0.5078534031 | Q13: =IF(P13=0,0,(P13*((LOG(P13))/LOG(2)))) -> -0.49643482 | T13: =N13 -> 221 | U13: =COUNTIF(L7:L38,T13) -> 14 | V13: =U13/(W4-U9) -> 0.4375 | W13: =IF(V13=0,0,(V13*((LOG(V13))/LOG(2)))) -> -0.5217822216 | Y13: =N13 -> 221 | Z13: =COUNTIF(L39:L70,Y13) -> 16 | AA13: =Z13/(AB4-Z9) -> 0.5 | AB13: =IF(AA13=0,0,(AA13*((LOG(AA13))/LOG(2)))) -> -0.5 | AD13: =N13 -> 221 | AE13: =COUNTIF(L71:L101,AD13) -> 14 | AF13: =AE13/(AG4-AE9) -> 0.4516129032 | AG13: =IF(AF13=0,0,(AF13*((LOG(AF13))/LOG(2)))) -> -0.5179283689 | AI13: =N13 -> 221 | AJ13: =COUNTIF(L102:L133,AI13) -> 20 | AK13: =AJ13/(AL4-AJ9) -> 0.625 | AL13: =IF(AK13=0,0,(AK13*((LOG(AK13))/LOG(2)))) -> -0.4237949407 | AN13: =N13 -> 221 | AO13: =COUNTIF(L134:L165,AN13) -> 12 | AP13: =AO13/(AQ4-AO9) -> 0.375 | AQ13: =IF(AP13=0,0,(AP13*((LOG(AP13))/LOG(2)))) -> -0.5306390622 | AS13: =N13 -> 221 | AT13: =COUNTIF(L166:L197,AS13) -> 21 | AU13: =AT13/(AV4-AT9) -> 0.65625 | AV13: =IF(AU13=0,0,(AU13*((LOG(AU13))/LOG(2)))) -> -0.3987916913
A14: 22 | B14: 1135 | C14: 23 | D14: 1142 | E14: 13 | F14: 1153 | K14: 0 | L14: 221 | N14: 222 | O14: =COUNTIF($L$7:$L$500,N14) -> 52 | P14: =O14/$Q$4 -> 0.2722513089 | Q14: =IF(P14=0,0,(P14*((LOG(P14))/LOG(2)))) -> -0.511012742 | T14: =N14 -> 222 | U14: =COUNTIF(L7:L38,T14) -> 7 | V14: =U14/(W4-U9) -> 0.21875 | W14: =IF(V14=0,0,(V14*((LOG(V14))/LOG(2)))) -> -0.4796411108 | Y14: =N14 -> 222 | Z14: =COUNTIF(L39:L70,Y14) -> 12 | AA14: =Z14/(AB4-Z9) -> 0.375 | AB14: =IF(AA14=0,0,(AA14*((LOG(AA14))/LOG(2)))) -> -0.5306390622 | AD14: =N14 -> 222 | AE14: =COUNTIF(L71:L101,AD14) -> 10 | AF14: =AE14/(AG4-AE9) -> 0.3225806452 | AG14: =IF(AF14=0,0,(AF14*((LOG(AF14))/LOG(2)))) -> -0.526538134 | AI14: =N14 -> 222 | AJ14: =COUNTIF(L102:L133,AI14) -> 4 | AK14: =AJ14/(AL4-AJ9) -> 0.125 | AL14: =IF(AK14=0,0,(AK14*((LOG(AK14))/LOG(2)))) -> -0.375 | AN14: =N14 -> 222 | AO14: =COUNTIF(L134:L165,AN14) -> 11 | AP14: =AO14/(AQ4-AO9) -> 0.34375 | AQ14: =IF(AP14=0,0,(AP14*((LOG(AP14))/LOG(2)))) -> -0.5295703811 | AS14: =N14 -> 222 | AT14: =COUNTIF(L166:L197,AS14) -> 8 | AU14: =AT14/(AV4-AT9) -> 0.25 | AV14: =IF(AU14=0,0,(AU14*((LOG(AU14))/LOG(2)))) -> -0.5
A15: 22 | B15: 1252 | C15: 23 | D15: 1256 | E15: 13 | F15: 1266 | K15: 0 | L15: 221 | P15: =SUM(P7:P14) -> 1 | Q15: =-SUM(Q7:Q14) -> 1.784448937 | V15: =SUM(V7:V14) -> 1 | W15: =-SUM(W7:W14) -> 2.043564443 | AA15: =SUM(AA7:AA14) -> 1 | AB15: =-SUM(AB7:AB14) -> 1.507048828 | AF15: =SUM(AF7:AF14) -> 1 | AG15: =-SUM(AG7:AG14) -> 1.788651461 | AK15: =SUM(AK7:AK14) -> 1 | AL15: =-SUM(AL7:AL14) -> 1.434686051 | AP15: =SUM(AP7:AP14) -> 1 | AQ15: =-SUM(AQ7:AQ14) -> 1.852350554 | AU15: =SUM(AU7:AU14) -> 1 | AV15: =-SUM(AV7:AV14) -> 1.305041691
A16: 22 | B16: 1364 | C16: 23 | D16: 1369 | E16: 13 | F16: 1385 | K16: 0 | L16: 221 | P16: U= | Q16: =Q15/(LOG(Q4)/LOG(2)) -> 0.2354953082 | V16: U1= | W16: =W15/(LOG(W4)/LOG(2)) -> 0.4087128886 | AA16: U2= | AB16: =AB15/(LOG(AB4)/LOG(2)) -> 0.3014097656 | AF16: U3= | AG16: =AG15/(LOG(AG4)/LOG(2)) -> 0.3610376636 | AK16: U4= | AL16: =AL15/(LOG(AL4)/LOG(2)) -> 0.2869372103 | AP16: U5= | AQ16: =AQ15/(LOG(AQ4)/LOG(2)) -> 0.3704701108 | AU16: U6= | AV16: =AV15/(LOG(AV4)/LOG(2)) -> 0.2610083383
A17: 22 | B17: 1482 | C17: 23 | D17: 1486 | E17: 13 | F17: 1501 | K17: 0 | L17: 221
A18: 22 | B18: 1599 | C18: 23 | D18: 1608 | E18: 13 | F18: 1624 | K18: 0 | L18: 221
A19: 22 | B19: 1722 | C19: 23 | D19: 1727 | E19: 13 | F19: 1743 | K19: 0 | L19: 221 | N19: Total Target Seq
A20: 22 | B20: 1841 | C20: 23 | D20: 1846 | E20: 24 | F20: 1858 | K20: 0 | L20: 222 | N20: =COUNTIF(L7:L197,G3) -> 0 | P20: 32 | Q20: 32 | R20: 31 | S20: 32 | T20: 32 | U20: 32
A21: 22 | B21: 1965 | C21: 23 | D21: 1976 | E21: 24 | F21: 1983 | K21: 0 | L21: 222 | P21: % of reinforcement given in 6 equal intervals based on number of trials
A22: 22 | B22: 2081 | C22: 23 | D22: 2086 | E22: 13 | F22: 2111 | K22: 0 | L22: 221 | P22: %_1 | Q22: %_2 | R22: %_3 | S22: %_4 | T22: %_5 | U22: %_6
A23: 22 | B23: 2210 | C23: 14 | D23: 2229 | E23: 13 | F23: 2236 | K23: 0 | L23: 211 | O23: target sequence | P23: =$G$3 -> 121 | Q23: =$G$3 -> 121 | R23: =$G$3 -> 121 | S23: =$G$3 -> 121 | T23: =$G$3 -> 121 | U23: =$G$3 -> 121
A24: 22 | B24: 2332 | C24: 23 | D24: 2337 | E24: 13 | F24: 2357 | K24: 0 | L24: 221 | O24: total reinforcement | P24: =U9 -> 0 | Q24: =Z9 -> 0 | R24: =AE9 -> 0 | S24: =AJ9 -> 0 | T24: =AO9 -> 0 | U24: =AT9 -> 0
A25: 22 | B25: 2455 | C25: 23 | D25: 2459 | E25: 13 | F25: 2475 | K25: 0 | L25: 221 | O25: % target
A26: 22 | B26: 2573 | C26: 23 | D26: 2579 | E26: 24 | F26: 2588 | K26: 0 | L26: 222 | O26: CCRF
A27: 22 | B27: 2685 | C27: 23 | D27: 2690 | E27: 13 | F27: 2703 | K27: 0 | L27: 221 | O27: % CCRf
A28: 11 | B28: 2843 | C28: 12 | D28: 2849 | E28: 24 | F28: 2860 | K28: 0 | L28: 112 | O28: average response rate | P28: =F38/P20 -> 127.59375 | Q28: =(F70-F38)/Q20 -> 114.40625 | R28: =(F101-F70)/R20 -> 133.2903226 | S28: =(F133-F101)/S20 -> 131.96875 | T28: =(F165-F133)/T20 -> 121.34375 | U28: =(F197-F165)/U20 -> 121.375
A29: 11 | B29: 2988 | C29: 12 | D29: 2995 | E29: 13 | F29: 3002 | K29: 0 | L29: 111
A30: 22 | B30: 3100 | C30: 14 | D30: 3115 | E30: 13 | F30: 3124 | K30: 0 | L30: 211
A31: 22 | B31: 3220 | C31: 23 | D31: 3224 | E31: 13 | F31: 3243 | K31: 0 | L31: 221
A32: 22 | B32: 3365 | C32: 23 | D32: 3369 | E32: 24 | F32: 3374 | K32: 0 | L32: 222
A33: 22 | B33: 3473 | C33: 14 | D33: 3485 | E33: 13 | F33: 3489 | K33: 0 | L33: 211
A34: 22 | B34: 3585 | C34: 23 | D34: 3591 | E34: 24 | F34: 3599 | K34: 0 | L34: 222
A35: 22 | B35: 3696 | C35: 23 | D35: 3699 | E35: 13 | F35: 3710 | K35: 0 | L35: 221
A36: 22 | B36: 3848 | C36: 23 | D36: 3854 | E36: 24 | F36: 3862 | K36: 0 | L36: 222
A37: 22 | B37: 3957 | C37: 14 | D37: 3968 | E37: 13 | F37: 3974 | K37: 0 | L37: 211
A38: 22 | B38: 4071 | C38: 23 | D38: 4076 | E38: 24 | F38: 4083 | K38: 0 | L38: 222
A39: 22 | B39: 4181 | C39: 14 | D39: 4193 | E39: 13 | F39: 4203 | K39: 0 | L39: 211
A40: 22 | B40: 4302 | C40: 23 | D40: 4308 | E40: 13 | F40: 4319 | K40: 0 | L40: 221
A41: 22 | B41: 4416 | C41: 23 | D41: 4423 | E41: 13 | F41: 4433 | K41: 0 | L41: 221
A42: 22 | B42: 4531 | C42: 23 | D42: 4536 | E42: 13 | F42: 4549 | K42: 0 | L42: 221
A43: 22 | B43: 4645 | C43: 23 | D43: 4652 | E43: 13 | F43: 4667 | K43: 0 | L43: 221
A44: 22 | B44: 4796 | C44: 23 | D44: 4800 | E44: 24 | F44: 4806 | K44: 0 | L44: 222
A45: 22 | B45: 4902 | C45: 23 | D45: 4906 | E45: 24 | F45: 4916 | K45: 0 | L45: 222
A46: 22 | B46: 5013 | C46: 23 | D46: 5019 | E46: 13 | F46: 5030 | K46: 0 | L46: 221
A47: 22 | B47: 5126 | C47: 23 | D47: 5131 | E47: 13 | F47: 5146 | K47: 0 | L47: 221
A48: 22 | B48: 5243 | C48: 23 | D48: 5246 | E48: 24 | F48: 5254 | K48: 0 | L48: 222
A49: 22 | B49: 5350 | C49: 23 | D49: 5355 | E49: 24 | F49: 5361 | K49: 0 | L49: 222
A50: 11 | B50: 5472 | C50: 12 | D50: 5480 | E50: 13 | F50: 5489 | K50: 0 | L50: 111
A51: 22 | B51: 5588 | C51: 23 | D51: 5593 | E51: 24 | F51: 5598 | K51: 0 | L51: 222
A52: 22 | B52: 5694 | C52: 23 | D52: 5699 | E52: 24 | F52: 5705 | K52: 0 | L52: 222
A53: 22 | B53: 5803 | C53: 23 | D53: 5805 | E53: 24 | F53: 5812 | K53: 0 | L53: 222
A54: 22 | B54: 5911 | C54: 23 | D54: 5915 | E54: 24 | F54: 5923 | K54: 0 | L54: 222
A55: 22 | B55: 6019 | C55: 23 | D55: 6024 | E55: 13 | F55: 6037 | K55: 0 | L55: 221
A56: 22 | B56: 6134 | C56: 23 | D56: 6139 | E56: 24 | F56: 6143 | K56: 0 | L56: 222
A57: 22 | B57: 6242 | C57: 23 | D57: 6248 | E57: 13 | F57: 6260 | K57: 0 | L57: 221
A58: 22 | B58: 6358 | C58: 23 | D58: 6363 | E58: 13 | F58: 6377 | K58: 0 | L58: 221
A59: 22 | B59: 6473 | C59: 23 | D59: 6479 | E59: 13 | F59: 6491 | K59: 0 | L59: 221
A60: 22 | B60: 6587 | C60: 23 | D60: 6591 | E60: 13 | F60: 6601 | K60: 0 | L60: 221
A61: 22 | B61: 6698 | C61: 23 | D61: 6704 | E61: 13 | F61: 6717 | K61: 0 | L61: 221
A62: 22 | B62: 6828 | C62: 23 | D62: 6833 | E62: 24 | F62: 6837 | K62: 0 | L62: 222
A63: 22 | B63: 6932 | C63: 23 | D63: 6937 | E63: 13 | F63: 6949 | K63: 0 | L63: 221
A64: 22 | B64: 7045 | C64: 23 | D64: 7049 | E64: 13 | F64: 7060 | K64: 0 | L64: 221
A65: 22 | B65: 7158 | C65: 23 | D65: 7162 | E65: 24 | F65: 7170 | K65: 0 | L65: 222
A66: 22 | B66: 7266 | C66: 23 | D66: 7274 | E66: 24 | F66: 7280 | K66: 0 | L66: 222
A67: 22 | B67: 7378 | C67: 14 | D67: 7388 | E67: 13 | F67: 7395 | K67: 0 | L67: 211
A68: 22 | B68: 7493 | C68: 23 | D68: 7498 | E68: 13 | F68: 7509 | K68: 0 | L68: 221
A69: 22 | B69: 7606 | C69: 23 | D69: 7613 | E69: 13 | F69: 7623 | K69: 0 | L69: 221
A70: 22 | B70: 7722 | C70: 14 | D70: 7739 | E70: 13 | F70: 7744 | K70: 0 | L70: 211
A71: 22 | B71: 7841 | C71: 23 | D71: 7847 | E71: 13 | F71: 7857 | K71: 0 | L71: 221
A72: 22 | B72: 7954 | C72: 23 | D72: 7960 | E72: 24 | F72: 7966 | K72: 0 | L72: 222
A73: 22 | B73: 8062 | C73: 23 | D73: 8067 | E73: 13 | F73: 8078 | K73: 0 | L73: 221
A74: 22 | B74: 8177 | C74: 23 | D74: 8183 | E74: 13 | F74: 8196 | K74: 0 | L74: 221
A75: 22 | B75: 8487 | C75: 23 | D75: 8491 | E75: 24 | F75: 8497 | K75: 0 | L75: 222
A76: 22 | B76: 8611 | C76: 23 | D76: 8614 | E76: 24 | F76: 8619 | K76: 0 | L76: 222
A77: 22 | B77: 8717 | C77: 23 | D77: 8722 | E77: 13 | F77: 8734 | K77: 0 | L77: 221
A78: 22 | B78: 8833 | C78: 23 | D78: 8837 | E78: 13 | F78: 8847 | K78: 0 | L78: 221
A79: 22 | B79: 9240 | C79: 23 | D79: 9243 | E79: 24 | F79: 9248 | K79: 0 | L79: 222
A80: 22 | B80: 9359 | C80: 14 | D80: 9368 | E80: 13 | F80: 9374 | K80: 0 | L80: 211
A81: 22 | B81: 9470 | C81: 14 | D81: 9480 | E81: 13 | F81: 9488 | K81: 0 | L81: 211
A82: 11 | B82: 9602 | C82: 12 | D82: 9609 | E82: 13 | F82: 9615 | K82: 0 | L82: 111
A83: 22 | B83: 9713 | C83: 14 | D83: 9725 | E83: 13 | F83: 9730 | K83: 0 | L83: 211
A84: 22 | B84: 9827 | C84: 14 | D84: 9841 | E84: 13 | F84: 9847 | K84: 0 | L84: 211
A85: 22 | B85: 9946 | C85: 23 | D85: 9950 | E85: 13 | F85: 9959 | K85: 0 | L85: 221
A86: 22 | B86: 10056 | C86: 23 | D86: 10074 | E86: 13 | F86: 10084 | K86: 0 | L86: 221
A87: 22 | B87: 10182 | C87: 23 | D87: 10187 | E87: 24 | F87: 10192 | K87: 0 | L87: 222
A88: 22 | B88: 10288 | C88: 23 | D88: 10293 | E88: 13 | F88: 10304 | K88: 0 | L88: 221
A89: 22 | B89: 10402 | C89: 23 | D89: 10407 | E89: 13 | F89: 10421 | K89: 0 | L89: 221
A90: 22 | B90: 10517 | C90: 23 | D90: 10522 | E90: 13 | F90: 10532 | K90: 0 | L90: 221
A91: 22 | B91: 10628 | C91: 23 | D91: 10632 | E91: 13 | F91: 10641 | K91: 0 | L91: 221
A92: 22 | B92: 10739 | C92: 23 | D92: 10743 | E92: 24 | F92: 10752 | K92: 0 | L92: 222
A93: 22 | B93: 10850 | C93: 23 | D93: 10853 | E93: 24 | F93: 10858 | K93: 0 | L93: 222
A94: 22 | B94: 10953 | C94: 14 | D94: 10969 | E94: 13 | F94: 10975 | K94: 0 | L94: 211
A95: 22 | B95: 11106 | C95: 23 | D95: 11111 | E95: 24 | F95: 11117 | K95: 0 | L95: 222
A96: 22 | B96: 11239 | C96: 23 | D96: 11243 | E96: 24 | F96: 11248 | K96: 0 | L96: 222
A97: 22 | B97: 11344 | C97: 23 | D97: 11353 | E97: 13 | F97: 11367 | K97: 0 | L97: 221
A98: 22 | B98: 11462 | C98: 23 | D98: 11466 | E98: 24 | F98: 11471 | K98: 0 | L98: 222
A99: 22 | B99: 11568 | C99: 23 | D99: 11572 | E99: 13 | F99: 11584 | K99: 0 | L99: 221
A100: 22 | B100: 11739 | C100: 14 | D100: 11748 | E100: 24 | F100: 11761 | K100: 0 | L100: 212
A101: 22 | B101: 11859 | C101: 23 | D101: 11867 | E101: 13 | F101: 11876 | K101: 0 | L101: 221
A102: 22 | B102: 11975 | C102: 14 | D102: 11991 | E102: 13 | F102: 11996 | K102: 0 | L102: 211
A103: 22 | B103: 12097 | C103: 23 | D103: 12102 | E103: 13 | F103: 12111 | K103: 0 | L103: 221
A104: 22 | B104: 12211 | C104: 14 | D104: 12224 | E104: 13 | F104: 12230 | K104: 0 | L104: 211
A105: 22 | B105: 12326 | C105: 23 | D105: 12336 | E105: 13 | F105: 12345 | K105: 0 | L105: 221
A106: 22 | B106: 12643 | C106: 23 | D106: 12650 | E106: 13 | F106: 12658 | K106: 0 | L106: 221
A107: 22 | B107: 12755 | C107: 14 | D107: 12772 | E107: 13 | F107: 12778 | K107: 0 | L107: 211
A108: 22 | B108: 12876 | C108: 23 | D108: 12879 | E108: 13 | F108: 12888 | K108: 0 | L108: 221
A109: 22 | B109: 12986 | C109: 23 | D109: 12994 | E109: 13 | F109: 13004 | K109: 0 | L109: 221
A110: 22 | B110: 13128 | C110: 23 | D110: 13135 | E110: 24 | F110: 13141 | K110: 0 | L110: 222
A111: 22 | B111: 13239 | C111: 23 | D111: 13243 | E111: 24 | F111: 13247 | K111: 0 | L111: 222
A112: 22 | B112: 13462 | C112: 23 | D112: 13472 | E112: 24 | F112: 13480 | K112: 0 | L112: 222
A113: 22 | B113: 13578 | C113: 23 | D113: 13584 | E113: 13 | F113: 13593 | K113: 0 | L113: 221
A114: 22 | B114: 13692 | C114: 23 | D114: 13698 | E114: 13 | F114: 13712 | K114: 0 | L114: 221
A115: 22 | B115: 13808 | C115: 23 | D115: 13816 | E115: 13 | F115: 13827 | K115: 0 | L115: 221
A116: 22 | B116: 13922 | C116: 23 | D116: 13926 | E116: 13 | F116: 13935 | K116: 0 | L116: 221
A117: 22 | B117: 14031 | C117: 23 | D117: 14035 | E117: 24 | F117: 14041 | K117: 0 | L117: 222
A118: 22 | B118: 14142 | C118: 23 | D118: 14149 | E118: 13 | F118: 14159 | K118: 0 | L118: 221
A119: 22 | B119: 14255 | C119: 23 | D119: 14260 | E119: 13 | F119: 14271 | K119: 0 | L119: 221
A120: 22 | B120: 14369 | C120: 23 | D120: 14374 | E120: 13 | F120: 14384 | K120: 0 | L120: 221
A121: 11 | B121: 14742 | C121: 21 | D121: 14752 | E121: 22 | F121: 14757 | K121: 0 | L121: 122
A122: 22 | B122: 14768 | C122: 23 | D122: 14771 | E122: 13 | F122: 14782 | K122: 0 | L122: 221
A123: 22 | B123: 14878 | C123: 14 | D123: 14892 | E123: 13 | F123: 14898 | K123: 0 | L123: 211
A124: 22 | B124: 14995 | C124: 23 | D124: 15000 | E124: 13 | F124: 15009 | K124: 0 | L124: 221
A125: 22 | B125: 15104 | C125: 14 | D125: 15117 | E125: 13 | F125: 15122 | K125: 0 | L125: 211
A126: 22 | B126: 15218 | C126: 23 | D126: 15223 | E126: 13 | F126: 15231 | K126: 0 | L126: 221
A127: 22 | B127: 15327 | C127: 23 | D127: 15331 | E127: 13 | F127: 15341 | K127: 0 | L127: 221
A128: 22 | B128: 15438 | C128: 23 | D128: 15443 | E128: 13 | F128: 15454 | K128: 0 | L128: 221
A129: 22 | B129: 15587 | C129: 14 | D129: 15596 | E129: 13 | F129: 15602 | K129: 0 | L129: 211
A130: 22 | B130: 15701 | C130: 14 | D130: 15711 | E130: 13 | F130: 15717 | K130: 0 | L130: 211
A131: 22 | B131: 15816 | C131: 23 | D131: 15821 | E131: 13 | F131: 15829 | K131: 0 | L131: 221
A132: 22 | B132: 15974 | C132: 23 | D132: 15978 | E132: 13 | F132: 15986 | K132: 0 | L132: 221
A133: 22 | B133: 16084 | C133: 23 | D133: 16091 | E133: 13 | F133: 16099 | K133: 0 | L133: 221
A134: 22 | B134: 16202 | C134: 14 | D134: 16211 | E134: 13 | F134: 16218 | K134: 0 | L134: 211
A135: 22 | B135: 16320 | C135: 14 | D135: 16332 | E135: 13 | F135: 16338 | K135: 0 | L135: 211
A136: 22 | B136: 16434 | C136: 14 | D136: 16447 | E136: 13 | F136: 16453 | K136: 0 | L136: 211
A137: 22 | B137: 16549 | C137: 23 | D137: 16553 | E137: 13 | F137: 16562 | K137: 0 | L137: 221
A138: 22 | B138: 16658 | C138: 23 | D138: 16662 | E138: 24 | F138: 16668 | K138: 0 | L138: 222
A139: 22 | B139: 16788 | C139: 23 | D139: 16792 | E139: 24 | F139: 16795 | K139: 0 | L139: 222
A140: 22 | B140: 16912 | C140: 23 | D140: 16916 | E140: 24 | F140: 16922 | K140: 0 | L140: 222
A141: 22 | B141: 17030 | C141: 23 | D141: 17036 | E141: 24 | F141: 17042 | K141: 0 | L141: 222
A142: 22 | B142: 17140 | C142: 23 | D142: 17144 | E142: 24 | F142: 17149 | K142: 0 | L142: 222
A143: 22 | B143: 17322 | C143: 23 | D143: 17327 | E143: 24 | F143: 17334 | K143: 0 | L143: 222
A144: 22 | B144: 17431 | C144: 23 | D144: 17436 | E144: 13 | F144: 17446 | K144: 0 | L144: 221
A145: 22 | B145: 17544 | C145: 23 | D145: 17552 | E145: 13 | F145: 17562 | K145: 0 | L145: 221
A146: 22 | B146: 17659 | C146: 23 | D146: 17664 | E146: 13 | F146: 17675 | K146: 0 | L146: 221
A147: 22 | B147: 17775 | C147: 23 | D147: 17783 | E147: 24 | F147: 17790 | K147: 0 | L147: 222
A148: 22 | B148: 17888 | C148: 23 | D148: 17895 | E148: 13 | F148: 17906 | K148: 0 | L148: 221
A149: 11 | B149: 18037 | C149: 21 | D149: 18049 | E149: 22 | F149: 18061 | K149: 0 | L149: 122
A150: 22 | B150: 18159 | C150: 23 | D150: 18164 | E150: 24 | F150: 18170 | K150: 0 | L150: 222
A151: 11 | B151: 18279 | C151: 12 | D151: 18285 | E151: 24 | F151: 18299 | K151: 0 | L151: 112
A152: 22 | B152: 18397 | C152: 14 | D152: 18414 | E152: 13 | F152: 18421 | K152: 0 | L152: 211
A153: 22 | B153: 18516 | C153: 23 | D153: 18520 | E153: 13 | F153: 18528 | K153: 0 | L153: 221
A154: 22 | B154: 18626 | C154: 14 | D154: 18639 | E154: 13 | F154: 18646 | K154: 0 | L154: 211
A155: 22 | B155: 18745 | C155: 14 | D155: 18759 | E155: 13 | F155: 18765 | K155: 0 | L155: 211
A156: 22 | B156: 18862 | C156: 14 | D156: 18873 | E156: 13 | F156: 18881 | K156: 0 | L156: 211
A157: 22 | B157: 18978 | C157: 23 | D157: 18985 | E157: 13 | F157: 18993 | K157: 0 | L157: 221
A158: 22 | B158: 19088 | C158: 23 | D158: 19091 | E158: 13 | F158: 19102 | K158: 0 | L158: 221
A159: 22 | B159: 19221 | C159: 23 | D159: 19227 | E159: 13 | F159: 19236 | K159: 0 | L159: 221
A160: 22 | B160: 19333 | C160: 23 | D160: 19338 | E160: 13 | F160: 19348 | K160: 0 | L160: 221
A161: 22 | B161: 19527 | C161: 23 | D161: 19533 | E161: 24 | F161: 19539 | K161: 0 | L161: 222
A162: 22 | B162: 19639 | C162: 23 | D162: 19648 | E162: 24 | F162: 19654 | K162: 0 | L162: 222
A163: 22 | B163: 19750 | C163: 23 | D163: 19755 | E163: 24 | F163: 19758 | K163: 0 | L163: 222
A164: 22 | B164: 19856 | C164: 23 | D164: 19862 | E164: 13 | F164: 19873 | K164: 0 | L164: 221
A165: 22 | B165: 19968 | C165: 23 | D165: 19973 | E165: 13 | F165: 19982 | K165: 0 | L165: 221
A166: 22 | B166: 20081 | C166: 23 | D166: 20086 | E166: 13 | F166: 20105 | K166: 0 | L166: 221
A167: 22 | B167: 20202 | C167: 23 | D167: 20207 | E167: 13 | F167: 20218 | K167: 0 | L167: 221
A168: 22 | B168: 20313 | C168: 23 | D168: 20316 | E168: 13 | F168: 20326 | K168: 0 | L168: 221
A169: 22 | B169: 20468 | C169: 23 | D169: 20474 | E169: 24 | F169: 20480 | K169: 0 | L169: 222
A170: 22 | B170: 20582 | C170: 23 | D170: 20588 | E170: 13 | F170: 20598 | K170: 0 | L170: 221
A171: 22 | B171: 20693 | C171: 23 | D171: 20704 | E171: 13 | F171: 20713 | K171: 0 | L171: 221
A172: 22 | B172: 20811 | C172: 23 | D172: 20815 | E172: 13 | F172: 20828 | K172: 0 | L172: 221
A173: 22 | B173: 20924 | C173: 23 | D173: 20932 | E173: 13 | F173: 20943 | K173: 0 | L173: 221
A174: 22 | B174: 21042 | C174: 23 | D174: 21046 | E174: 13 | F174: 21057 | K174: 0 | L174: 221
A175: 22 | B175: 21153 | C175: 23 | D175: 21156 | E175: 13 | F175: 21167 | K175: 0 | L175: 221
A176: 22 | B176: 21379 | C176: 23 | D176: 21385 | E176: 24 | F176: 21389 | K176: 0 | L176: 222
A177: 22 | B177: 21482 | C177: 23 | D177: 21484 | E177: 24 | F177: 21486 | K177: 0 | L177: 222
A178: 22 | B178: 21598 | C178: 23 | D178: 21607 | E178: 13 | F178: 21618 | K178: 0 | L178: 221
A179: 22 | B179: 21714 | C179: 23 | D179: 21719 | E179: 13 | F179: 21728 | K179: 0 | L179: 221
A180: 22 | B180: 21824 | C180: 14 | D180: 21839 | E180: 13 | F180: 21844 | K180: 0 | L180: 211
A181: 22 | B181: 21944 | C181: 23 | D181: 21948 | E181: 13 | F181: 21960 | K181: 0 | L181: 221
A182: 22 | B182: 22057 | C182: 23 | D182: 22061 | E182: 13 | F182: 22069 | K182: 0 | L182: 221
A183: 22 | B183: 22168 | C183: 23 | D183: 22176 | E183: 13 | F183: 22185 | K183: 0 | L183: 221
A184: 22 | B184: 22280 | C184: 23 | D184: 22284 | E184: 13 | F184: 22295 | K184: 0 | L184: 221
A185: 22 | B185: 22390 | C185: 23 | D185: 22392 | E185: 24 | F185: 22398 | K185: 0 | L185: 222
A186: 22 | B186: 22492 | C186: 23 | D186: 22495 | E186: 13 | F186: 22506 | K186: 0 | L186: 221
A187: 22 | B187: 22603 | C187: 23 | D187: 22613 | E187: 24 | F187: 22619 | K187: 0 | L187: 222
A188: 22 | B188: 22714 | C188: 23 | D188: 22718 | E188: 13 | F188: 22728 | K188: 0 | L188: 221
A189: 22 | B189: 22826 | C189: 23 | D189: 22830 | E189: 24 | F189: 22838 | K189: 0 | L189: 222
A190: 22 | B190: 22937 | C190: 23 | D190: 22941 | E190: 13 | F190: 22949 | K190: 0 | L190: 221
A191: 22 | B191: 23047 | C191: 23 | D191: 23051 | E191: 13 | F191: 23066 | K191: 0 | L191: 221
A192: 22 | B192: 23163 | C192: 23 | D192: 23166 | E192: 13 | F192: 23179 | K192: 0 | L192: 221
A193: 22 | B193: 23276 | C193: 23 | D193: 23281 | E193: 24 | F193: 23287 | K193: 0 | L193: 222
A194: 11 | B194: 23408 | C194: 21 | D194: 23423 | E194: 22 | F194: 23431 | K194: 0 | L194: 122
A195: 22 | B195: 23526 | C195: 23 | D195: 23531 | E195: 13 | F195: 23541 | K195: 0 | L195: 221
A196: 22 | B196: 23639 | C196: 14 | D196: 23658 | E196: 13 | F196: 23662 | K196: 0 | L196: 211
A197: 22 | B197: 23856 | C197: 23 | D197: 23861 | E197: 24 | F197: 23866 | K197: 0 | L197: 222

Sheet !M212A1I.sha
A1: Report for:!M212A1I.sha
A2: Date: | B2: <date>
A3: Hen: | B3: <hen> | F3: Correct Sequence | G3: =Start!J2 -> 121 | P3: Total Sequences in Data | Q3: =4994-COUNTBLANK(L7:L5000) -> 187 | V3: Total Sequences in Block Data | W3: =COUNTA(L7:L37) -> 31 | AA3: Total Sequences in Block Data | AB3: =COUNTA(L38:L68) -> 31 | AF3: Total Sequences in Block Data | AG3: =COUNTA(L69:L100) -> 32 | AK3: Total Sequences in Block Data | AL3: =COUNTA(L101:L131) -> 31 | AP3: Total Sequences in Block Data | AQ3: =COUNTA(L132:L162) -> 31 | AU3: Total Sequences in Block Data | AV3: =COUNTA(L163:L193) -> 31
P4: Total Sequences in Summary | Q4: =SUM(O7:O14) -> 187 | V4: Total Sequences in Block Summary | W4: =SUM(U7:U14) -> 31 | AA4: Total Sequences in Block Summary | AB4: =SUM(Z7:Z14) -> 31 | AF4: Total Sequences in Block Summary | AG4: =SUM(AE7:AE14) -> 32 | AK4: Total Sequences in Block Summary | AL4: =SUM(AJ7:AJ14) -> 31 | AP4: Total Sequences in Block Summary | AQ4: =SUM(AO7:AO14) -> 31 | AU4: Total Sequences in Block Summary | AV4: =SUM(AT7:AT14) -> 31
T5: Block 1 | Y5: Block 2 | AD5: Block 3 | AI5: Block 4 | AN5: Block 5 | AS5: Block 6
A6: Sequence Component 1 | B6: Time 1 | C6: Sequence Component 2 | D6: Time 2 | E6: Sequence Component 3 | F6: Time 3 | G6: Sequence Component 4 | H6: Time 4 | I6: Sequence Component 5 | J6: Time 5 | K6: Correct? 0=No 1=Yes | L6: Sequence | N6: Frequency | P6: Relative Frequency | Q6: Variability | T6: Frequency | V6: Relative Frequency | W6: Variability | Y6: Frequency | AA6: Relative Frequency | AB6: Variability | AD6: Frequency | AF6: Relative Frequency | AG6: Variability | AI6: Frequency | AK6: Relative Frequency | AL6: Variability | AN6: Frequency | AP6: Relative Frequency | AQ6: Variability | AS6: Frequency | AU6: Relative Frequency | AV6: Variability
A7: 11 | B7: 22 | C7: 21 | D7: 44 | E7: 22 | F7: 51 | K7: 0 | L7: 122 | N7: 111 | O7: =COUNTIF($L$7:$L$500,N7) -> 4 | P7: =O7/$Q$4 -> 0.02139037433 | Q7: =IF(P7=0,0,(P7*((LOG(P7))/LOG(2)))) -> -0.1186501489 | T7: =N7 -> 111 | U7: =COUNTIF(L7:L37,T7) -> 0 | V7: =U7/(W4-U9) -> 0 | W7: =IF(V7=0,0,(V7*((LOG(V7))/LOG(2)))) -> 0 | Y7: =N7 -> 111 | Z7: =COUNTIF(L38:L68,Y7) -> 0 | AA7: =Z7/(AB4-Z9) -> 0 | AB7: =IF(AA7=0,0,(AA7*((LOG(AA7))/LOG(2)))) -> 0 | AD7: =N7 -> 111 | AE7: =COUNTIF(L69:L100,AD7) -> 0 | AF7: =AE7/(AG4-AE9) -> 0 | AG7: =IF(AF7=0,0,(AF7*((LOG(AF7))/LOG(2)))) -> 0 | AI7: =N7 -> 111 | AJ7: =COUNTIF(L101:L131,AI7) -> 2 | AK7: =AJ7/(AL4-AJ9) -> 0.06451612903 | AL7: =IF(AK7=0,0,(AK7*((LOG(AK7))/LOG(2)))) -> -0.2551094394 | AN7: =N7 -> 111 | AO7: =COUNTIF(L132:L162,AN7) -> 0 | AP7: =AO7/(AQ4-AO9) -> 0 | AQ7: =IF(AP7=0,0,(AP7*((LOG(AP7))/LOG(2)))) -> 0 | AS7: =N7 -> 111 | AT7: =COUNTIF(L163:L193,AS7) -> 2 | AU7: =AT7/(AV4-AT9) -> 0.06451612903 | AV7: =IF(AU7=0,0,(AU7*((LOG(AU7))/LOG(2)))) -> -0.2551094394
A8: 22 | B8: 149 | C8: 14 | D8: 159 | E8: 13 | F8: 167 | K8: 0 | L8: 211 | N8: 112 | O8: =COUNTIF($L$7:$L$500,N8) -> 8 | P8: =O8/$Q$4 -> 0.04278074866 | Q8: =IF(P8=0,0,(P8*((LOG(P8))/LOG(2)))) -> -0.1945195491 | T8: =N8 -> 112 | U8: =COUNTIF(L7:L37,T8) -> 0 | V8: =U8/(W4-U9) -> 0 | W8: =IF(V8=0,0,(V8*((LOG(V8))/LOG(2)))) -> 0 | Y8: =N8 -> 112 | Z8: =COUNTIF(L38:L68,Y8) -> 1 | AA8: =Z8/(AB4-Z9) -> 0.03225806452 | AB8: =IF(AA8=0,0,(AA8*((LOG(AA8))/LOG(2)))) -> -0.1598127842 | AD8: =N8 -> 112 | AE8: =COUNTIF(L69:L100,AD8) -> 1 | AF8: =AE8/(AG4-AE9) -> 0.03125 | AG8: =IF(AF8=0,0,(AF8*((LOG(AF8))/LOG(2)))) -> -0.15625 | AI8: =N8 -> 112 | AJ8: =COUNTIF(L101:L131,AI8) -> 2 | AK8: =AJ8/(AL4-AJ9) -> 0.06451612903 | AL8: =IF(AK8=0,0,(AK8*((LOG(AK8))/LOG(2)))) -> -0.2551094394 | AN8: =N8 -> 112 | AO8: =COUNTIF(L132:L162,AN8) -> 0 | AP8: =AO8/(AQ4-AO9) -> 0 | AQ8: =IF(AP8=0,0,(AP8*((LOG(AP8))/LOG(2)))) -> 0 | AS8: =N8 -> 112 | AT8: =COUNTIF(L163:L193,AS8) -> 4 | AU8: =AT8/(AV4-AT9) -> 0.1290322581 | AV8: =IF(AU8=0,0,(AU8*((LOG(AU8))/LOG(2)))) -> -0.3811866207
A9: 22 | B9: 263 | C9: 23 | D9: 274 | E9: 24 | F9: 280 | K9: 0 | L9: 222 | N9: 121 | O9: =COUNTIF($L$7:$L$500,N9) -> 0 | P9: =O9/$Q$4 -> 0 | Q9: =IF(P9=0,0,(P9*((LOG(P9))/LOG(2)))) -> 0 | T9: =N9 -> 121 | U9: =COUNTIF(L7:L37,T9) -> 0 | Y9: =N9 -> 121 | Z9: =COUNTIF(L38:L68,Y9) -> 0 | AD9: =N9 -> 121 | AE9: =COUNTIF(L69:L100,AD9) -> 0 | AI9: =N9 -> 121 | AJ9: =COUNTIF(L101:L131,AI9) -> 0 | AN9: =N9 -> 121 | AO9: =COUNTIF(L132:L162,AN9) -> 0 | AS9: =N9 -> 121 | AT9: =COUNTIF(L163:L193,AS9) -> 0
A10: 22 | B10: 380 | C10: 23 | D10: 385 | E10: 13 | F10: 396 | K10: 0 | L10: 221 | N10: 122 | O10: =COUNTIF($L$7:$L$500,N10) -> 6 | P10: =O10/$Q$4 -> 0.0320855615 | Q10: =IF(P10=0,0,(P10*((LOG(P10))/LOG(2)))) -> -0.159206373 | T10: =N10 -> 122 | U10: =COUNTIF(L7:L37,T10) -> 1 | V10: =U10/(W4-U9) -> 0.03225806452 | W10: =IF(V10=0,0,(V10*((LOG(V10))/LOG(2)))) -> -0.1598127842 | Y10: =N10 -> 122 | Z10: =COUNTIF(L38:L68,Y10) -> 1 | AA10: =Z10/(AB4-Z9) -> 0.03225806452 | AB10: =IF(AA10=0,0,(AA10*((LOG(AA10))/LOG(2)))) -> -0.1598127842 | AD10: =N10 -> 122 | AE10: =COUNTIF(L69:L100,AD10) -> 1 | AF10: =AE10/(AG4-AE9) -> 0.03125 | AG10: =IF(AF10=0,0,(AF10*((LOG(AF10))/LOG(2)))) -> -0.15625 | AI10: =N10 -> 122 | AJ10: =COUNTIF(L101:L131,AI10) -> 1 | AK10: =AJ10/(AL4-AJ9) -> 0.03225806452 | AL10: =IF(AK10=0,0,(AK10*((LOG(AK10))/LOG(2)))) -> -0.1598127842 | AN10: =N10 -> 122 | AO10: =COUNTIF(L132:L162,AN10) -> 1 | AP10: =AO10/(AQ4-AO9) -> 0.03225806452 | AQ10: =IF(AP10=0,0,(AP10*((LOG(AP10))/LOG(2)))) -> -0.1598127842 | AS10: =N10 -> 122 | AT10: =COUNTIF(L163:L193,AS10) -> 1 | AU10: =AT10/(AV4-AT9) -> 0.03225806452 | AV10: =IF(AU10=0,0,(AU10*((LOG(AU10))/LOG(2)))) -> -0.1598127842
A11: 22 | B11: 501 | C11: 14 | D11: 512 | E11: 13 | F11: 521 | K11: 0 | L11: 211 | N11: 211 | O11: =COUNTIF($L$7:$L$500,N11) -> 57 | P11: =O11/$Q$4 -> 0.3048128342 | Q11: =IF(P11=0,0,(P11*((LOG(P11))/LOG(2)))) -> -0.522450553 | T11: =N11 -> 211 | U11: =COUNTIF(L7:L37,T11) -> 6 | V11: =U11/(W4-U9) -> 0.1935483871 | W11: =IF(V11=0,0,(V11*((LOG(V11))/LOG(2)))) -> -0.4585613825 | Y11: =N11 -> 211 | Z11: =COUNTIF(L38:L68,Y11) -> 7 | AA11: =Z11/(AB4-Z9) -> 0.2258064516 | AB11: =IF(AA11=0,0,(AA11*((LOG(AA11))/LOG(2)))) -> -0.4847706361 | AD11: =N11 -> 211 | AE11: =COUNTIF(L69:L100,AD11) -> 15 | AF11: =AE11/(AG4-AE9) -> 0.46875 | AG11: =IF(AF11=0,0,(AF11*((LOG(AF11))/LOG(2)))) -> -0.5123950333 | AI11: =N11 -> 211 | AJ11: =COUNTIF(L101:L131,AI11) -> 9 | AK11: =AJ11/(AL4-AJ9) -> 0.2903225806 | AL11: =IF(AK11=0,0,(AK11*((LOG(AK11))/LOG(2)))) -> -0.518014251 | AN11: =N11 -> 211 | AO11: =COUNTIF(L132:L162,AN11) -> 8 | AP11: =AO11/(AQ4-AO9) -> 0.2580645161 | AQ11: =IF(AP11=0,0,(AP11*((LOG(AP11))/LOG(2)))) -> -0.5043087253 | AS11: =N11 -> 211 | AT11: =COUNTIF(L163:L193,AS11) -> 12 | AU11: =AT11/(AV4-AT9) -> 0.3870967742 | AV11: =IF(AU11=0,0,(AU11*((LOG(AU11))/LOG(2)))) -> -0.5300259908
A12: 22 | B12: 625 | C12: 23 | D12: 629 | E12: 13 | F12: 639 | K12: 0 | L12: 221 | N12: 212 | O12: =COUNTIF($L$7:$L$500,N12) -> 3 | P12: =O12/$Q$4 -> 0.01604278075 | Q12: =IF(P12=0,0,(P12*((LOG(P12))/LOG(2)))) -> -0.09564596726 | T12: =N12 -> 212 | U12: =COUNTIF(L7:L37,T12) -> 0 | V12: =U12/(W4-U9) -> 0 | W12: =IF(V12=0,0,(V12*((LOG(V12))/LOG(2)))) -> 0 | Y12: =N12 -> 212 | Z12: =COUNTIF(L38:L68,Y12) -> 1 | AA12: =Z12/(AB4-Z9) -> 0.03225806452 | AB12: =IF(AA12=0,0,(AA12*((LOG(AA12))/LOG(2)))) -> -0.1598127842 | AD12: =N12 -> 212 | AE12: =COUNTIF(L69:L100,AD12) -> 0 | AF12: =AE12/(AG4-AE9) -> 0 | AG12: =IF(AF12=0,0,(AF12*((LOG(AF12))/LOG(2)))) -> 0 | AI12: =N12 -> 212 | AJ12: =COUNTIF(L101:L131,AI12) -> 1 | AK12: =AJ12/(AL4-AJ9) -> 0.03225806452 | AL12: =IF(AK12=0,0,(AK12*((LOG(AK12))/LOG(2)))) -> -0.1598127842 | AN12: =N12 -> 212 | AO12: =COUNTIF(L132:L162,AN12) -> 0 | AP12: =AO12/(AQ4-AO9) -> 0 | AQ12: =IF(AP12=0,0,(AP12*((LOG(AP12))/LOG(2)))) -> 0 | AS12: =N12 -> 212 | AT12: =COUNTIF(L163:L193,AS12) -> 1 | AU12: =AT12/(AV4-AT9) -> 0.03225806452 | AV12: =IF(AU12=0,0,(AU12*((LOG(AU12))/LOG(2)))) -> -0.1598127842
A13: 22 | B13: 736 | C13: 23 | D13: 741 | E13: 24 | F13: 749 | K13: 0 | L13: 222 | N13: 221 | O13: =COUNTIF($L$7:$L$500,N13) -> 81 | P13: =O13/$Q$4 -> 0.4331550802 | Q13: =IF(P13=0,0,(P13*((LOG(P13))/LOG(2)))) -> -0.5228374386 | T13: =N13 -> 221 | U13: =COUNTIF(L7:L37,T13) -> 17 | V13: =U13/(W4-U9) -> 0.5483870968 | W13: =IF(V13=0,0,(V13*((LOG(V13))/LOG(2)))) -> -0.4753054508 | Y13: =N13 -> 221 | Z13: =COUNTIF(L38:L68,Y13) -> 17 | AA13: =Z13/(AB4-Z9) -> 0.5483870968 | AB13: =IF(AA13=0,0,(AA13*((LOG(AA13))/LOG(2)))) -> -0.4753054508 | AD13: =N13 -> 221 | AE13: =COUNTIF(L69:L100,AD13) -> 13 | AF13: =AE13/(AG4-AE9) -> 0.40625 | AG13: =IF(AF13=0,0,(AF13*((LOG(AF13))/LOG(2)))) -> -0.5279463645 | AI13: =N13 -> 221 | AJ13: =COUNTIF(L101:L131,AI13) -> 10 | AK13: =AJ13/(AL4-AJ9) -> 0.3225806452 | AL13: =IF(AK13=0,0,(AK13*((LOG(AK13))/LOG(2)))) -> -0.526538134 | AN13: =N13 -> 221 | AO13: =COUNTIF(L132:L162,AN13) -> 18 | AP13: =AO13/(AQ4-AO9) -> 0.5806451613 | AQ13: =IF(AP13=0,0,(AP13*((LOG(AP13))/LOG(2)))) -> -0.4553833407 | AS13: =N13 -> 221 | AT13: =COUNTIF(L163:L193,AS13) -> 6 | AU13: =AT13/(AV4-AT9) -> 0.1935483871 | AV13: =IF(AU13=0,0,(AU13*((LOG(AU13))/LOG(2)))) -> -0.4585613825
A14: 22 | B14: 846 | C14: 23 | D14: 858 | E14: 13 | F14: 877 | K14: 0 | L14: 221 | N14: 222 | O14: =COUNTIF($L$7:$L$500,N14) -> 28 | P14: =O14/$Q$4 -> 0.1497326203 | Q14: =IF(P14=0,0,(P14*((LOG(P14))/LOG(2)))) -> -0.4101984335 | T14: =N14 -> 222 | U14: =COUNTIF(L7:L37,T14) -> 7 | V14: =U14/(W4-U9) -> 0.2258064516 | W14: =IF(V14=0,0,(V14*((LOG(V14))/LOG(2)))) -> -0.4847706361 | Y14: =N14 -> 222 | Z14: =COUNTIF(L38:L68,Y14) -> 4 | AA14: =Z14/(AB4-Z9) -> 0.1290322581 | AB14: =IF(AA14=0,0,(AA14*((LOG(AA14))/LOG(2)))) -> -0.3811866207 | AD14: =N14 -> 222 | AE14: =COUNTIF(L69:L100,AD14) -> 2 | AF14: =AE14/(AG4-AE9) -> 0.0625 | AG14: =IF(AF14=0,0,(AF14*((LOG(AF14))/LOG(2)))) -> -0.25 | AI14: =N14 -> 222 | AJ14: =COUNTIF(L101:L131,AI14) -> 6 | AK14: =AJ14/(AL4-AJ9) -> 0.1935483871 | AL14: =IF(AK14=0,0,(AK14*((LOG(AK14))/LOG(2)))) -> -0.4585613825 | AN14: =N14 -> 222 | AO14: =COUNTIF(L132:L162,AN14) -> 4 | AP14: =AO14/(AQ4-AO9) -> 0.1290322581 | AQ14: =IF(AP14=0,0,(AP14*((LOG(AP14))/LOG(2)))) -> -0.3811866207 | AS14: =N14 -> 222 | AT14: =COUNTIF(L163:L193,AS14) -> 5 | AU14: =AT14/(AV4-AT9) -> 0.1612903226 | AV14: =IF(AU14=0,0,(AU14*((LOG(AU14))/LOG(2)))) -> -0.4245593896
A15: 22 | B15: 974 | C15: 23 | D15: 979 | E15: 13 | F15: 991 | K15: 0 | L15: 221 | P15: =SUM(P7:P14) -> 1 | Q15: =-SUM(Q7:Q14) -> 2.023508463 | V15: =SUM(V7:V14) -> 1 | W15: =-SUM(W7:W14) -> 1.578450254 | AA15: =SUM(AA7:AA14) -> 1 | AB15: =-SUM(AB7:AB14) -> 1.82070106 | AF15: =SUM(AF7:AF14) -> 1 | AG15: =-SUM(AG7:AG14) -> 1.602841398 | AK15: =SUM(AK7:AK14) -> 1 | AL15: =-SUM(AL7:AL14) -> 2.332958215 | AP15: =SUM(AP7:AP14) -> 1 | AQ15: =-SUM(AQ7:AQ14) -> 1.500691471 | AU15: =SUM(AU7:AU14) -> 1 | AV15: =-SUM(AV7:AV14) -> 2.369068391
A16: 22 | B16: 1089 | C16: 23 | D16: 1098 | E16: 13 | F16: 1109 | K16: 0 | L16: 221 | P16: U= | Q16: =Q15/(LOG(Q4)/LOG(2)) -> 0.2681246537 | V16: U1= | W16: =W15/(LOG(W4)/LOG(2)) -> 0.3186087419 | AA16: U2= | AB16: =AB15/(LOG(AB4)/LOG(2)) -> 0.3675068459 | AF16: U3= | AG16: =AG15/(LOG(AG4)/LOG(2)) -> 0.3205682796 | AK16: U4= | AL16: =AL15/(LOG(AL4)/LOG(2)) -> 0.4709054847 | AP16: U5= | AQ16: =AQ15/(LOG(AQ4)/LOG(2)) -> 0.3029132026 | AU16: U6= | AV16: =AV15/(LOG(AV4)/LOG(2)) -> 0.4781942909
A17: 22 | B17: 1205 | C17: 23 | D17: 1210 | E17: 13 | F17: 1222 | K17: 0 | L17: 221
A18: 22 | B18: 1321 | C18: 23 | D18: 1325 | E18: 13 | F18: 1339 | K18: 0 | L18: 221
A19: 22 | B19: 1436 | C19: 14 | D19: 1451 | E19: 13 | F19: 1460 | K19: 0 | L19: 211 | N19: Total Target Seq
A20: 22 | B20: 1581 | C20: 23 | D20: 1587 | E20: 24 | F20: 1595 | K20: 0 | L20: 222 | N20: =COUNTIF(L7:L193,G3) -> 0 | P20: 31 | Q20: 31 | R20: 32 | S20: 31 | T20: 31 | U20: 31
A21: 22 | B21: 1692 | C21: 23 | D21: 1696 | E21: 13 | F21: 1709 | K21: 0 | L21: 221 | P21: % of reinforcement given in 6 equal intervals based on number of trials
A22: 22 | B22: 1805 | C22: 23 | D22: 1810 | E22: 13 | F22: 1822 | K22: 0 | L22: 221 | P22: %_1 | Q22: %_2 | R22: %_3 | S22: %_4 | T22: %_5 | U22: %_6
A23: 22 | B23: 1921 | C23: 23 | D23: 1925 | E23: 24 | F23: 1934 | K23: 0 | L23: 222 | O23: target sequence | P23: =$G$3 -> 121 | Q23: =$G$3 -> 121 | R23: =$G$3 -> 121 | S23: =$G$3 -> 121 | T23: =$G$3 -> 121 | U23: =$G$3 -> 121
A24: 22 | B24: 2034 | C24: 23 | D24: 2039 | E24: 24 | F24: 2048 | K24: 0 | L24: 222 | O24: total reinforcement | P24: =U9 -> 0 | Q24: =Z9 -> 0 | R24: =AE9 -> 0 | S24: =AJ9 -> 0 | T24: =AO9 -> 0 | U24: =AT9 -> 0
A25: 22 | B25: 2145 | C25: 23 | D25: 2151 | E25: 13 | F25: 2162 | K25: 0 | L25: 221 | O25: % target
A26: 22 | B26: 2262 | C26: 14 | D26: 2274 | E26: 13 | F26: 2281 | K26: 0 | L26: 211 | O26: CCRF
A27: 22 | B27: 2377 | C27: 23 | D27: 2386 | E27: 13 | F27: 2397 | K27: 0 | L27: 221 | O27: % CCRf
A28: 22 | B28: 2497 | C28: 23 | D28: 2503 | E28: 13 | F28: 2520 | K28: 0 | L28: 221 | O28: average response rate | P28: =F37/P20 -> 118.9032258 | Q28: =(F68-F37)/Q20 -> 132.5806452 | R28: =(F100-F68)/R20 -> 130.5625 | S28: =(F131-F100)/S20 -> 138.3548387 | T28: =(F162-F131)/T20 -> 121.483871 | U28: =(F193-F162)/U20 -> 126.9677419
A29: 22 | B29: 2620 | C29: 14 | D29: 2634 | E29: 13 | F29: 2636 | K29: 0 | L29: 211
A30: 22 | B30: 2737 | C30: 14 | D30: 2747 | E30: 13 | F30: 2754 | K30: 0 | L30: 211
A31: 22 | B31: 2849 | C31: 23 | D31: 2854 | E31: 13 | F31: 2866 | K31: 0 | L31: 221
A32: 22 | B32: 2962 | C32: 23 | D32: 2965 | E32: 24 | F32: 2971 | K32: 0 | L32: 222
A33: 22 | B33: 3069 | C33: 23 | D33: 3073 | E33: 13 | F33: 3082 | K33: 0 | L33: 221
A34: 22 | B34: 3180 | C34: 23 | D34: 3185 | E34: 13 | F34: 3195 | K34: 0 | L34: 221
A35: 22 | B35: 3415 | C35: 23 | D35: 3423 | E35: 13 | F35: 3436 | K35: 0 | L35: 221
A36: 22 | B36: 3558 | C36: 23 | D36: 3564 | E36: 24 | F36: 3571 | K36: 0 | L36: 222
A37: 22 | B37: 3669 | C37: 23 | D37: 3677 | E37: 13 | F37: 3686 | K37: 0 | L37: 221
A38: 22 | B38: 3783 | C38: 23 | D38: 3787 | E38: 24 | F38: 3793 | K38: 0 | L38: 222
A39: 22 | B39: 3888 | C39: 23 | D39: 3897 | E39: 13 | F39: 3908 | K39: 0 | L39: 221
A40: 22 | B40: 4007 | C40: 23 | D40: 4012 | E40: 13 | F40: 4024 | K40: 0 | L40: 221
A41: 22 | B41: 4158 | C41: 14 | D41: 4185 | E41: 13 | F41: 4191 | K41: 0 | L41: 211
A42: 22 | B42: 4288 | C42: 23 | D42: 4292 | E42: 13 | F42: 4303 | K42: 0 | L42: 221
A43: 22 | B43: 4399 | C43: 23 | D43: 4405 | E43: 24 | F43: 4413 | K43: 0 | L43: 222
A44: 22 | B44: 4510 | C44: 23 | D44: 4514 | E44: 13 | F44: 4524 | K44: 0 | L44: 221
A45: 22 | B45: 4624 | C45: 14 | D45: 4637 | E45: 13 | F45: 4643 | K45: 0 | L45: 211
A46: 22 | B46: 4843 | C46: 23 | D46: 4849 | E46: 13 | F46: 4859 | K46: 0 | L46: 221
A47: 22 | B47: 5023 | C47: 23 | D47: 5028 | E47: 13 | F47: 5036 | K47: 0 | L47: 221
A48: 22 | B48: 5132 | C48: 23 | D48: 5138 | E48: 13 | F48: 5150 | K48: 0 | L48: 221
A49: 11 | B49: 5251 | C49: 12 | D49: 5260 | E49: 24 | F49: 5270 | K49: 0 | L49: 112
A50: 11 | B50: 5577 | C50: 21 | D50: 5604 | E50: 22 | F50: 5611 | K50: 0 | L50: 122
A51: 22 | B51: 5709 | C51: 14 | D51: 5724 | E51: 13 | F51: 5730 | K51: 0 | L51: 211
A52: 22 | B52: 5832 | C52: 14 | D52: 5841 | E52: 13 | F52: 5847 | K52: 0 | L52: 211
A53: 22 | B53: 5944 | C53: 14 | D53: 5959 | E53: 24 | F53: 5976 | K53: 0 | L53: 212
A54: 22 | B54: 6072 | C54: 23 | D54: 6082 | E54: 13 | F54: 6093 | K54: 0 | L54: 221
A55: 22 | B55: 6189 | C55: 23 | D55: 6194 | E55: 13 | F55: 6205 | K55: 0 | L55: 221
A56: 22 | B56: 6302 | C56: 23 | D56: 6306 | E56: 13 | F56: 6315 | K56: 0 | L56: 221
A57: 22 | B57: 6412 | C57: 23 | D57: 6416 | E57: 13 | F57: 6426 | K57: 0 | L57: 221
A58: 22 | B58: 6522 | C58: 23 | D58: 6527 | E58: 13 | F58: 6537 | K58: 0 | L58: 221
A59: 22 | B59: 6633 | C59: 14 | D59: 6648 | E59: 13 | F59: 6655 | K59: 0 | L59: 211
A60: 22 | B60: 6750 | C60: 23 | D60: 6755 | E60: 13 | F60: 6765 | K60: 0 | L60: 221
A61: 22 | B61: 6863 | C61: 23 | D61: 6868 | E61: 13 | F61: 6879 | K61: 0 | L61: 221
A62: 22 | B62: 6978 | C62: 23 | D62: 6982 | E62: 13 | F62: 6993 | K62: 0 | L62: 221
A63: 22 | B63: 7091 | C63: 23 | D63: 7095 | E63: 24 | F63: 7102 | K63: 0 | L63: 222
A64: 22 | B64: 7199 | C64: 14 | D64: 7220 | E64: 13 | F64: 7227 | K64: 0 | L64: 211
A65: 22 | B65: 7325 | C65: 23 | D65: 7330 | E65: 13 | F65: 7342 | K65: 0 | L65: 221
A66: 22 | B66: 7442 | C66: 14 | D66: 7450 | E66: 13 | F66: 7457 | K66: 0 | L66: 211
A67: 22 | B67: 7670 | C67: 23 | D67: 7674 | E67: 24 | F67: 7680 | K67: 0 | L67: 222
A68: 22 | B68: 7779 | C68: 23 | D68: 7788 | E68: 13 | F68: 7796 | K68: 0 | L68: 221
A69: 22 | B69: 7899 | C69: 14 | D69: 7915 | E69: 13 | F69: 7921 | K69: 0 | L69: 211
A70: 22 | B70: 8039 | C70: 14 | D70: 8049 | E70: 13 | F70: 8055 | K70: 0 | L70: 211
A71: 22 | B71: 8154 | C71: 14 | D71: 8171 | E71: 13 | F71: 8178 | K71: 0 | L71: 211
A72: 22 | B72: 8277 | C72: 14 | D72: 8289 | E72: 13 | F72: 8295 | K72: 0 | L72: 211
A73: 22 | B73: 8392 | C73: 23 | D73: 8396 | E73: 13 | F73: 8406 | K73: 0 | L73: 221
A74: 22 | B74: 8621 | C74: 23 | D74: 8627 | E74: 24 | F74: 8633 | K74: 0 | L74: 222
A75: 22 | B75: 8733 | C75: 14 | D75: 8744 | E75: 13 | F75: 8752 | K75: 0 | L75: 211
A76: 22 | B76: 8850 | C76: 14 | D76: 8867 | E76: 13 | F76: 8875 | K76: 0 | L76: 211
A77: 22 | B77: 8973 | C77: 23 | D77: 8977 | E77: 13 | F77: 8990 | K77: 0 | L77: 221
A78: 22 | B78: 9089 | C78: 14 | D78: 9102 | E78: 13 | F78: 9108 | K78: 0 | L78: 211
A79: 11 | B79: 9210 | C79: 21 | D79: 9221 | E79: 22 | F79: 9227 | K79: 0 | L79: 122
A80: 22 | B80: 9350 | C80: 23 | D80: 9361 | E80: 13 | F80: 9370 | K80: 0 | L80: 221
A81: 22 | B81: 9466 | C81: 23 | D81: 9470 | E81: 13 | F81: 9478 | K81: 0 | L81: 221
A82: 22 | B82: 9576 | C82: 23 | D82: 9580 | E82: 13 | F82: 9591 | K82: 0 | L82: 221
A83: 22 | B83: 9689 | C83: 23 | D83: 9694 | E83: 13 | F83: 9705 | K83: 0 | L83: 221
A84: 22 | B84: 9916 | C84: 14 | D84: 9925 | E84: 13 | F84: 9930 | K84: 0 | L84: 211
A85: 22 | B85: 10027 | C85: 14 | D85: 10040 | E85: 13 | F85: 10045 | K85: 0 | L85: 211
A86: 11 | B86: 10199 | C86: 12 | D86: 10205 | E86: 24 | F86: 10220 | K86: 0 | L86: 112
A87: 22 | B87: 10316 | C87: 23 | D87: 10324 | E87: 13 | F87: 10332 | K87: 0 | L87: 221
A88: 22 | B88: 10429 | C88: 14 | D88: 10440 | E88: 13 | F88: 10446 | K88: 0 | L88: 211
A89: 22 | B89: 10587 | C89: 23 | D89: 10595 | E89: 13 | F89: 10604 | K89: 0 | L89: 221
A90: 22 | B90: 10702 | C90: 23 | D90: 10708 | E90: 13 | F90: 10721 | K90: 0 | L90: 221
A91: 22 | B91: 10818 | C91: 23 | D91: 10827 | E91: 13 | F91: 10834 | K91: 0 | L91: 221
A92: 22 | B92: 11027 | C92: 23 | D92: 11032 | E92: 24 | F92: 11038 | K92: 0 | L92: 222
A93: 22 | B93: 11139 | C93: 14 | D93: 11149 | E93: 13 | F93: 11154 | K93: 0 | L93: 211
A94: 22 | B94: 11252 | C94: 14 | D94: 11266 | E94: 13 | F94: 11272 | K94: 0 | L94: 211
A95: 22 | B95: 11372 | C95: 14 | D95: 11386 | E95: 13 | F95: 11393 | K95: 0 | L95: 211
A96: 22 | B96: 11490 | C96: 23 | D96: 11496 | E96: 13 | F96: 11505 | K96: 0 | L96: 221
A97: 22 | B97: 11604 | C97: 14 | D97: 11619 | E97: 13 | F97: 11624 | K97: 0 | L97: 211
A98: 22 | B98: 11724 | C98: 14 | D98: 11737 | E98: 13 | F98: 11742 | K98: 0 | L98: 211
A99: 22 | B99: 11841 | C99: 23 | D99: 11849 | E99: 13 | F99: 11860 | K99: 0 | L99: 221
A100: 22 | B100: 11957 | C100: 23 | D100: 11962 | E100: 13 | F100: 11974 | K100: 0 | L100: 221
A101: 22 | B101: 12167 | C101: 23 | D101: 12172 | E101: 24 | F101: 12179 | K101: 0 | L101: 222
A102: 22 | B102: 12283 | C102: 14 | D102: 12291 | E102: 13 | F102: 12298 | K102: 0 | L102: 211
A103: 22 | B103: 12395 | C103: 23 | D103: 12398 | E103: 24 | F103: 12404 | K103: 0 | L103: 222
A104: 22 | B104: 12500 | C104: 23 | D104: 12504 | E104: 13 | F104: 12514 | K104: 0 | L104: 221
A105: 22 | B105: 12766 | C105: 23 | D105: 12770 | E105: 24 | F105: 12776 | K105: 0 | L105: 222
A106: 22 | B106: 12875 | C106: 14 | D106: 12885 | E106: 13 | F106: 12889 | K106: 0 | L106: 211
A107: 22 | B107: 12988 | C107: 23 | D107: 12995 | E107: 24 | F107: 13001 | K107: 0 | L107: 222
A108: 22 | B108: 13098 | C108: 23 | D108: 13102 | E108: 13 | F108: 13111 | K108: 0 | L108: 221
A109: 22 | B109: 13208 | C109: 14 | D109: 13222 | E109: 13 | F109: 13227 | K109: 0 | L109: 211
A110: 11 | B110: 13344 | C110: 12 | D110: 13346 | E110: 24 | F110: 13358 | K110: 0 | L110: 112
A111: 22 | B111: 13457 | C111: 23 | D111: 13460 | E111: 13 | F111: 13469 | K111: 0 | L111: 221
A112: 22 | B112: 13564 | C112: 23 | D112: 13568 | E112: 24 | F112: 13573 | K112: 0 | L112: 222
A113: 22 | B113: 13671 | C113: 14 | D113: 13689 | E113: 13 | F113: 13696 | K113: 0 | L113: 211
A114: 22 | B114: 13793 | C114: 23 | D114: 13799 | E114: 13 | F114: 13807 | K114: 0 | L114: 221
A115: 22 | B115: 13904 | C115: 23 | D115: 13909 | E115: 13 | F115: 13919 | K115: 0 | L115: 221
A116: 22 | B116: 14115 | C116: 23 | D116: 14120 | E116: 24 | F116: 14124 | K116: 0 | L116: 222
A117: 22 | B117: 14224 | C117: 23 | D117: 14229 | E117: 13 | F117: 14239 | K117: 0 | L117: 221
A118: 22 | B118: 14341 | C118: 14 | D118: 14351 | E118: 13 | F118: 14357 | K118: 0 | L118: 211
A119: 11 | B119: 14468 | C119: 21 | D119: 14483 | E119: 22 | F119: 14489 | K119: 0 | L119: 122
A120: 22 | B120: 14589 | C120: 14 | D120: 14598 | E120: 13 | F120: 14603 | K120: 0 | L120: 211
A121: 22 | B121: 14702 | C121: 23 | D121: 14707 | E121: 13 | F121: 14715 | K121: 0 | L121: 221
A122: 22 | B122: 14834 | C122: 14 | D122: 14843 | E122: 24 | F122: 14868 | K122: 0 | L122: 212
A123: 22 | B123: 14967 | C123: 23 | D123: 14974 | E123: 13 | F123: 14982 | K123: 0 | L123: 221
A124: 22 | B124: 15081 | C124: 23 | D124: 15087 | E124: 13 | F124: 15097 | K124: 0 | L124: 221
A125: 22 | B125: 15316 | C125: 14 | D125: 15325 | E125: 13 | F125: 15328 | K125: 0 | L125: 211
A126: 11 | B126: 15439 | C126: 12 | D126: 15444 | E126: 13 | F126: 15449 | K126: 0 | L126: 111
A127: 11 | B127: 15789 | C127: 12 | D127: 15794 | E127: 24 | F127: 15806 | K127: 0 | L127: 112
A128: 11 | B128: 15914 | C128: 12 | D128: 15919 | E128: 13 | F128: 15924 | K128: 0 | L128: 111
A129: 22 | B129: 16021 | C129: 14 | D129: 16036 | E129: 13 | F129: 16041 | K129: 0 | L129: 211
A130: 22 | B130: 16138 | C130: 14 | D130: 16148 | E130: 13 | F130: 16152 | K130: 0 | L130: 211
A131: 22 | B131: 16250 | C131: 23 | D131: 16255 | E131: 13 | F131: 16263 | K131: 0 | L131: 221
A132: 11 | B132: 16382 | C132: 21 | D132: 16409 | E132: 22 | F132: 16415 | K132: 0 | L132: 122
A133: 22 | B133: 16512 | C133: 23 | D133: 16519 | E133: 13 | F133: 16527 | K133: 0 | L133: 221
A134: 22 | B134: 16624 | C134: 23 | D134: 16635 | E134: 24 | F134: 16641 | K134: 0 | L134: 222
A135: 22 | B135: 16782 | C135: 14 | D135: 16791 | E135: 13 | F135: 16795 | K135: 0 | L135: 211
A136: 22 | B136: 16891 | C136: 23 | D136: 16900 | E136: 13 | F136: 16910 | K136: 0 | L136: 221
A137: 22 | B137: 17006 | C137: 23 | D137: 17010 | E137: 13 | F137: 17022 | K137: 0 | L137: 221
A138: 22 | B138: 17118 | C138: 23 | D138: 17123 | E138: 13 | F138: 17132 | K138: 0 | L138: 221
A139: 22 | B139: 17229 | C139: 14 | D139: 17241 | E139: 13 | F139: 17248 | K139: 0 | L139: 211
A140: 22 | B140: 17343 | C140: 23 | D140: 17348 | E140: 13 | F140: 17357 | K140: 0 | L140: 221
A141: 22 | B141: 17454 | C141: 23 | D141: 17462 | E141: 13 | F141: 17471 | K141: 0 | L141: 221
A142: 22 | B142: 17568 | C142: 23 | D142: 17572 | E142: 13 | F142: 17581 | K142: 0 | L142: 221
A143: 22 | B143: 17678 | C143: 23 | D143: 17685 | E143: 13 | F143: 17696 | K143: 0 | L143: 221
A144: 22 | B144: 17790 | C144: 23 | D144: 17794 | E144: 24 | F144: 17805 | K144: 0 | L144: 222
A145: 22 | B145: 17900 | C145: 23 | D145: 17904 | E145: 13 | F145: 17913 | K145: 0 | L145: 221
A146: 22 | B146: 18012 | C146: 23 | D146: 18016 | E146: 13 | F146: 18026 | K146: 0 | L146: 221
A147: 22 | B147: 18216 | C147: 23 | D147: 18223 | E147: 24 | F147: 18229 | K147: 0 | L147: 222
A148: 22 | B148: 18326 | C148: 23 | D148: 18331 | E148: 13 | F148: 18340 | K148: 0 | L148: 221
A149: 22 | B149: 18440 | C149: 14 | D149: 18449 | E149: 13 | F149: 18455 | K149: 0 | L149: 211
A150: 22 | B150: 18553 | C150: 23 | D150: 18561 | E150: 13 | F150: 18570 | K150: 0 | L150: 221
A151: 22 | B151: 18667 | C151: 23 | D151: 18674 | E151: 13 | F151: 18683 | K151: 0 | L151: 221
A152: 22 | B152: 18783 | C152: 23 | D152: 18788 | E152: 13 | F152: 18797 | K152: 0 | L152: 221
A153: 22 | B153: 18895 | C153: 23 | D153: 18900 | E153: 13 | F153: 18909 | K153: 0 | L153: 221
A154: 22 | B154: 19008 | C154: 23 | D154: 19016 | E154: 13 | F154: 19024 | K154: 0 | L154: 221
A155: 22 | B155: 19123 | C155: 14 | D155: 19132 | E155: 13 | F155: 19139 | K155: 0 | L155: 211
A156: 22 | B156: 19236 | C156: 14 | D156: 19246 | E156: 13 | F156: 19251 | K156: 0 | L156: 211
A157: 22 | B157: 19351 | C157: 14 | D157: 19362 | E157: 13 | F157: 19368 | K157: 0 | L157: 211
A158: 22 | B158: 19466 | C158: 23 | D158: 19470 | E158: 13 | F158: 19479 | K158: 0 | L158: 221
A159: 22 | B159: 19676 | C159: 23 | D159: 19680 | E159: 24 | F159: 19684 | K159: 0 | L159: 222
A160: 22 | B160: 19782 | C160: 14 | D160: 19800 | E160: 13 | F160: 19807 | K160: 0 | L160: 211
A161: 22 | B161: 19906 | C161: 14 | D161: 19917 | E161: 13 | F161: 19921 | K161: 0 | L161: 211
A162: 22 | B162: 20013 | C162: 23 | D162: 20018 | E162: 13 | F162: 20029 | K162: 0 | L162: 221
A163: 22 | B163: 20191 | C163: 14 | D163: 20201 | E163: 13 | F163: 20206 | K163: 0 | L163: 211
A164: 11 | B164: 20317 | C164: 12 | D164: 20323 | E164: 13 | F164: 20328 | K164: 0 | L164: 111
A165: 22 | B165: 20424 | C165: 23 | D165: 20429 | E165: 13 | F165: 20437 | K165: 0 | L165: 221
A166: 22 | B166: 20551 | C166: 23 | D166: 20555 | E166: 24 | F166: 20563 | K166: 0 | L166: 222
A167: 22 | B167: 20659 | C167: 14 | D167: 20670 | E167: 13 | F167: 20675 | K167: 0 | L167: 211
A168: 11 | B168: 20786 | C168: 12 | D168: 20790 | E168: 13 | F168: 20796 | K168: 0 | L168: 111
A169: 22 | B169: 20893 | C169: 14 | D169: 20906 | E169: 13 | F169: 20913 | K169: 0 | L169: 211
A170: 22 | B170: 21009 | C170: 23 | D170: 21013 | E170: 13 | F170: 21021 | K170: 0 | L170: 221
A171: 22 | B171: 21119 | C171: 23 | D171: 21124 | E171: 13 | F171: 21132 | K171: 0 | L171: 221
A172: 11 | B172: 21243 | C172: 12 | D172: 21247 | E172: 24 | F172: 21266 | K172: 0 | L172: 112
A173: 22 | B173: 21365 | C173: 23 | D173: 21374 | E173: 13 | F173: 21383 | K173: 0 | L173: 221
A174: 22 | B174: 21484 | C174: 14 | D174: 21493 | E174: 13 | F174: 21498 | K174: 0 | L174: 211
A175: 22 | B175: 21594 | C175: 23 | D175: 21596 | E175: 24 | F175: 21602 | K175: 0 | L175: 222
A176: 22 | B176: 21717 | C176: 23 | D176: 21723 | E176: 24 | F176: 21732 | K176: 0 | L176: 222
A177: 22 | B177: 21828 | C177: 23 | D177: 21833 | E177: 24 | F177: 21839 | K177: 0 | L177: 222
A178: 22 | B178: 21938 | C178: 23 | D178: 21942 | E178: 13 | F178: 21953 | K178: 0 | L178: 221
A179: 22 | B179: 22049 | C179: 14 | D179: 22061 | E179: 13 | F179: 22070 | K179: 0 | L179: 211
A180: 11 | B180: 22176 | C180: 12 | D180: 22181 | E180: 24 | F180: 22204 | K180: 0 | L180: 112
A181: 22 | B181: 22302 | C181: 14 | D181: 22314 | E181: 13 | F181: 22323 | K181: 0 | L181: 211
A182: 11 | B182: 22432 | C182: 12 | D182: 22437 | E182: 24 | F182: 22455 | K182: 0 | L182: 112
A183: 22 | B183: 22649 | C183: 14 | D183: 22660 | E183: 24 | F183: 22682 | K183: 0 | L183: 212
A184: 22 | B184: 22781 | C184: 14 | D184: 22794 | E184: 13 | F184: 22799 | K184: 0 | L184: 211
A185: 22 | B185: 22908 | C185: 23 | D185: 22913 | E185: 13 | F185: 22921 | K185: 0 | L185: 221
A186: 22 | B186: 23019 | C186: 14 | D186: 23033 | E186: 13 | F186: 23039 | K186: 0 | L186: 211
A187: 22 | B187: 23141 | C187: 14 | D187: 23149 | E187: 13 | F187: 23154 | K187: 0 | L187: 211
A188: 22 | B188: 23253 | C188: 14 | D188: 23262 | E188: 13 | F188: 23267 | K188: 0 | L188: 211
A189: 22 | B189: 23363 | C189: 23 | D189: 23371 | E189: 24 | F189: 23378 | K189: 0 | L189: 222
A190: 11 | B190: 23483 | C190: 12 | D190: 23489 | E190: 24 | F190: 23510 | K190: 0 | L190: 112
A191: 11 | B191: 23695 | C191: 21 | D191: 23723 | E191: 22 | F191: 23727 | K191: 0 | L191: 122
A192: 22 | B192: 23827 | C192: 14 | D192: 23840 | E192: 13 | F192: 23845 | K192: 0 | L192: 211
A193: 22 | B193: 23948 | C193: 14 | D193: 23958 | E193: 13 | F193: 23965 | L193: 211

Sheet !M213B3I.sha
A1: Report for:!M213B3I.sha
A2: Date: | B2: <date>
A3: Hen: | B3: <hen> | F3: Correct Sequence | G3: =Start!J2 -> 121 | P3: Total Sequences in Data | Q3: =4994-COUNTBLANK(L7:L5000) -> 175 | V3: Total Sequences in Block Data | W3: =COUNTA(L7:L35) -> 29 | AA3: Total Sequences in Block Data | AB3: =COUNTA(L36:L64) -> 29 | AF3: Total Sequences in Block Data | AG3: =COUNTA(L65:L94) -> 30 | AK3: Total Sequences in Block Data | AL3: =COUNTA(L95:L123) -> 29 | AP3: Total Sequences in Block Data | AQ3: =COUNTA(L124:L152) -> 29 | AU3: Total Sequences in Block Data | AV3: =COUNTA(L153:L181) -> 29
P4: Total Sequences in Summary | Q4: =SUM(O7:O14) -> 175 | V4: Total Sequences in Block Summary | W4: =SUM(U7:U14) -> 29 | AA4: Total Sequences in Block Summary | AB4: =SUM(Z7:Z14) -> 29 | AF4: Total Sequences in Block Summary | AG4: =SUM(AE7:AE14) -> 30 | AK4: Total Sequences in Block Summary | AL4: =SUM(AJ7:AJ14) -> 29 | AP4: Total Sequences in Block Summary | AQ4: =SUM(AO7:AO14) -> 29 | AU4: Total Sequences in Block Summary | AV4: =SUM(AT7:AT14) -> 29
T5: Block 1 | Y5: Block 2 | AD5: Block 3 | AI5: Block 4 | AN5: Block 5 | AS5: Block 6
A6: Sequence Component 1 | B6: Time 1 | C6: Sequence Component 2 | D6: Time 2 | E6: Sequence Component 3 | F6: Time 3 | G6: Sequence Component 4 | H6: Time 4 | I6: Sequence Component 5 | J6: Time 5 | K6: Correct? 0=No 1=Yes | L6: Sequence | N6: Frequency | P6: Relative Frequency | Q6: Variability | T6: Frequency | V6: Relative Frequency | W6: Variability | Y6: Frequency | AA6: Relative Frequency | AB6: Variability | AD6: Frequency | AF6: Relative Frequency | AG6: Variability | AI6: Frequency | AK6: Relative Frequency | AL6: Variability | AN6: Frequency | AP6: Relative Frequency | AQ6: Variability | AS6: Frequency | AU6: Relative Frequency | AV6: Variability
A7: 22 | B7: 32 | C7: 23 | D7: 38 | E7: 24 | F7: 44 | K7: 0 | L7: 222 | N7: 111 | O7: =COUNTIF($L$7:$L$500,N7) -> 7 | P7: =O7/$Q$4 -> 0.04 | Q7: =IF(P7=0,0,(P7*((LOG(P7))/LOG(2)))) -> -0.1857542476 | T7: =N7 -> 111 | U7: =COUNTIF(L7:L35,T7) -> 1 | V7: =U7/(W4-U9) -> 0.03448275862 | W7: =IF(V7=0,0,(V7*((LOG(V7))/LOG(2)))) -> -0.167516586 | Y7: =N7 -> 111 | Z7: =COUNTIF(L36:L64,Y7) -> 2 | AA7: =Z7/(AB4-Z9) -> 0.06896551724 | AB7: =IF(AA7=0,0,(AA7*((LOG(AA7))/LOG(2)))) -> -0.2660676548 | AD7: =N7 -> 111 | AE7: =COUNTIF(L65:L94,AD7) -> 0 | AF7: =AE7/(AG4-AE9) -> 0 | AG7: =IF(AF7=0,0,(AF7*((LOG(AF7))/LOG(2)))) -> 0 | AI7: =N7 -> 111 | AJ7: =COUNTIF(L95:L123,AI7) -> 0 | AK7: =AJ7/(AL4-AJ9) -> 0 | AL7: =IF(AK7=0,0,(AK7*((LOG(AK7))/LOG(2)))) -> 0 | AN7: =N7 -> 111 | AO7: =COUNTIF(L124:L152,AN7) -> 0 | AP7: =AO7/(AQ4-AO9) -> 0 | AQ7: =IF(AP7=0,0,(AP7*((LOG(AP7))/LOG(2)))) -> 0 | AS7: =N7 -> 111 | AT7: =COUNTIF(L153:L181,AS7) -> 4 | AU7: =AT7/(AV4-AT9) -> 0.1379310345 | AV7: =IF(AU7=0,0,(AU7*((LOG(AU7))/LOG(2)))) -> -0.3942042752
A8: 22 | B8: 142 | C8: 23 | D8: 151 | E8: 13 | F8: 160 | K8: 0 | L8: 221 | N8: 112 | O8: =COUNTIF($L$7:$L$500,N8) -> 7 | P8: =O8/$Q$4 -> 0.04 | Q8: =IF(P8=0,0,(P8*((LOG(P8))/LOG(2)))) -> -0.1857542476 | T8: =N8 -> 112 | U8: =COUNTIF(L7:L35,T8) -> 1 | V8: =U8/(W4-U9) -> 0.03448275862 | W8: =IF(V8=0,0,(V8*((LOG(V8))/LOG(2)))) -> -0.167516586 | Y8: =N8 -> 112 | Z8: =COUNTIF(L36:L64,Y8) -> 1 | AA8: =Z8/(AB4-Z9) -> 0.03448275862 | AB8: =IF(AA8=0,0,(AA8*((LOG(AA8))/LOG(2)))) -> -0.167516586 | AD8: =N8 -> 112 | AE8: =COUNTIF(L65:L94,AD8) -> 0 | AF8: =AE8/(AG4-AE9) -> 0 | AG8: =IF(AF8=0,0,(AF8*((LOG(AF8))/LOG(2)))) -> 0 | AI8: =N8 -> 112 | AJ8: =COUNTIF(L95:L123,AI8) -> 2 | AK8: =AJ8/(AL4-AJ9) -> 0.06896551724 | AL8: =IF(AK8=0,0,(AK8*((LOG(AK8))/LOG(2)))) -> -0.2660676548 | AN8: =N8 -> 112 | AO8: =COUNTIF(L124:L152,AN8) -> 2 | AP8: =AO8/(AQ4-AO9) -> 0.06896551724 | AQ8: =IF(AP8=0,0,(AP8*((LOG(AP8))/LOG(2)))) -> -0.2660676548 | AS8: =N8 -> 112 | AT8: =COUNTIF(L153:L181,AS8) -> 1 | AU8: =AT8/(AV4-AT9) -> 0.03448275862 | AV8: =IF(AU8=0,0,(AU8*((LOG(AU8))/LOG(2)))) -> -0.167516586
A9: 22 | B9: 323 | C9: 14 | D9: 334 | E9: 13 | F9: 342 | K9: 0 | L9: 211 | N9: 121 | O9: =COUNTIF($L$7:$L$500,N9) -> 0 | P9: =O9/$Q$4 -> 0 | Q9: =IF(P9=0,0,(P9*((LOG(P9))/LOG(2)))) -> 0 | T9: =N9 -> 121 | U9: =COUNTIF(L7:L35,T9) -> 0 | Y9: =N9 -> 121 | Z9: =COUNTIF(L36:L64,Y9) -> 0 | AD9: =N9 -> 121 | AE9: =COUNTIF(L65:L94,AD9) -> 0 | AI9: =N9 -> 121 | AJ9: =COUNTIF(L95:L123,AI9) -> 0 | AN9: =N9 -> 121 | AO9: =COUNTIF(L124:L152,AN9) -> 0 | AS9: =N9 -> 121 | AT9: =COUNTIF(L153:L181,AS9) -> 0
A10: 11 | B10: 453 | C10: 12 | D10: 461 | E10: 13 | F10: 468 | K10: 0 | L10: 111 | N10: 122 | O10: =COUNTIF($L$7:$L$500,N10) -> 9 | P10: =O10/$Q$4 -> 0.05142857143 | Q10: =IF(P10=0,0,(P10*((LOG(P10))/LOG(2)))) -> -0.2201804285 | T10: =N10 -> 122 | U10: =COUNTIF(L7:L35,T10) -> 0 | V10: =U10/(W4-U9) -> 0 | W10: =IF(V10=0,0,(V10*((LOG(V10))/LOG(2)))) -> 0 | Y10: =N10 -> 122 | Z10: =COUNTIF(L36:L64,Y10) -> 0 | AA10: =Z10/(AB4-Z9) -> 0 | AB10: =IF(AA10=0,0,(AA10*((LOG(AA10))/LOG(2)))) -> 0 | AD10: =N10 -> 122 | AE10: =COUNTIF(L65:L94,AD10) -> 0 | AF10: =AE10/(AG4-AE9) -> 0 | AG10: =IF(AF10=0,0,(AF10*((LOG(AF10))/LOG(2)))) -> 0 | AI10: =N10 -> 122 | AJ10: =COUNTIF(L95:L123,AI10) -> 0 | AK10: =AJ10/(AL4-AJ9) -> 0 | AL10: =IF(AK10=0,0,(AK10*((LOG(AK10))/LOG(2)))) -> 0 | AN10: =N10 -> 122 | AO10: =COUNTIF(L124:L152,AN10) -> 5 | AP10: =AO10/(AQ4-AO9) -> 0.1724137931 | AQ10: =IF(AP10=0,0,(AP10*((LOG(AP10))/LOG(2)))) -> -0.4372505 | AS10: =N10 -> 122 | AT10: =COUNTIF(L153:L181,AS10) -> 4 | AU10: =AT10/(AV4-AT9) -> 0.1379310345 | AV10: =IF(AU10=0,0,(AU10*((LOG(AU10))/LOG(2)))) -> -0.3942042752
A11: 11 | B11: 578 | C11: 12 | D11: 584 | E11: 24 | F11: 602 | K11: 0 | L11: 112 | N11: 211 | O11: =COUNTIF($L$7:$L$500,N11) -> 37 | P11: =O11/$Q$4 -> 0.2114285714 | Q11: =IF(P11=0,0,(P11*((LOG(P11))/LOG(2)))) -> -0.4739716378 | T11: =N11 -> 211 | U11: =COUNTIF(L7:L35,T11) -> 5 | V11: =U11/(W4-U9) -> 0.1724137931 | W11: =IF(V11=0,0,(V11*((LOG(V11))/LOG(2)))) -> -0.4372505 | Y11: =N11 -> 211 | Z11: =COUNTIF(L36:L64,Y11) -> 4 | AA11: =Z11/(AB4-Z9) -> 0.1379310345 | AB11: =IF(AA11=0,0,(AA11*((LOG(AA11))/LOG(2)))) -> -0.3942042752 | AD11: =N11 -> 211 | AE11: =COUNTIF(L65:L94,AD11) -> 7 | AF11: =AE11/(AG4-AE9) -> 0.2333333333 | AG11: =IF(AF11=0,0,(AF11*((LOG(AF11))/LOG(2)))) -> -0.4898916572 | AI11: =N11 -> 211 | AJ11: =COUNTIF(L95:L123,AI11) -> 7 | AK11: =AJ11/(AL4-AJ9) -> 0.2413793103 | AL11: =IF(AK11=0,0,(AK11*((LOG(AK11))/LOG(2)))) -> -0.4949787073 | AN11: =N11 -> 211 | AO11: =COUNTIF(L124:L152,AN11) -> 7 | AP11: =AO11/(AQ4-AO9) -> 0.2413793103 | AQ11: =IF(AP11=0,0,(AP11*((LOG(AP11))/LOG(2)))) -> -0.4949787073 | AS11: =N11 -> 211 | AT11: =COUNTIF(L153:L181,AS11) -> 7 | AU11: =AT11/(AV4-AT9) -> 0.2413793103 | AV11: =IF(AU11=0,0,(AU11*((LOG(AU11))/LOG(2)))) -> -0.4949787073
A12: 22 | B12: 780 | C12: 23 | D12: 787 | E12: 13 | F12: 796 | K12: 0 | L12: 221 | N12: 212 | O12: =COUNTIF($L$7:$L$500,N12) -> 17 | P12: =O12/$Q$4 -> 0.09714285714 | Q12: =IF(P12=0,0,(P12*((LOG(P12))/LOG(2)))) -> -0.3267641177 | T12: =N12 -> 212 | U12: =COUNTIF(L7:L35,T12) -> 1 | V12: =U12/(W4-U9) -> 0.03448275862 | W12: =IF(V12=0,0,(V12*((LOG(V12))/LOG(2)))) -> -0.167516586 | Y12: =N12 -> 212 | Z12: =COUNTIF(L36:L64,Y12) -> 1 | AA12: =Z12/(AB4-Z9) -> 0.03448275862 | AB12: =IF(AA12=0,0,(AA12*((LOG(AA12))/LOG(2)))) -> -0.167516586 | AD12: =N12 -> 212 | AE12: =COUNTIF(L65:L94,AD12) -> 4 | AF12: =AE12/(AG4-AE9) -> 0.1333333333 | AG12: =IF(AF12=0,0,(AF12*((LOG(AF12))/LOG(2)))) -> -0.3875854127 | AI12: =N12 -> 212 | AJ12: =COUNTIF(L95:L123,AI12) -> 5 | AK12: =AJ12/(AL4-AJ9) -> 0.1724137931 | AL12: =IF(AK12=0,0,(AK12*((LOG(AK12))/LOG(2)))) -> -0.4372505 | AN12: =N12 -> 212 | AO12: =COUNTIF(L124:L152,AN12) -> 4 | AP12: =AO12/(AQ4-AO9) -> 0.1379310345 | AQ12: =IF(AP12=0,0,(AP12*((LOG(AP12))/LOG(2)))) -> -0.3942042752 | AS12: =N12 -> 212 | AT12: =COUNTIF(L153:L181,AS12) -> 2 | AU12: =AT12/(AV4-AT9) -> 0.06896551724 | AV12: =IF(AU12=0,0,(AU12*((LOG(AU12))/LOG(2)))) -> -0.2660676548
A13: 22 | B13: 894 | C13: 23 | D13: 905 | E13: 13 | F13: 914 | K13: 0 | L13: 221 | N13: 221 | O13: =COUNTIF($L$7:$L$500,N13) -> 67 | P13: =O13/$Q$4 -> 0.3828571429 | Q13: =IF(P13=0,0,(P13*((LOG(P13))/LOG(2)))) -> -0.5303038213 | T13: =N13 -> 221 | U13: =COUNTIF(L7:L35,T13) -> 15 | V13: =U13/(W4-U9) -> 0.5172413793 | W13: =IF(V13=0,0,(V13*((LOG(V13))/LOG(2)))) -> -0.4919433101 | Y13: =N13 -> 221 | Z13: =COUNTIF(L36:L64,Y13) -> 13 | AA13: =Z13/(AB4-Z9) -> 0.4482758621 | AB13: =IF(AA13=0,0,(AA13*((LOG(AA13))/LOG(2)))) -> -0.5188978138 | AD13: =N13 -> 221 | AE13: =COUNTIF(L65:L94,AD13) -> 12 | AF13: =AE13/(AG4-AE9) -> 0.4 | AG13: =IF(AF13=0,0,(AF13*((LOG(AF13))/LOG(2)))) -> -0.528771238 | AI13: =N13 -> 221 | AJ13: =COUNTIF(L95:L123,AI13) -> 10 | AK13: =AJ13/(AL4-AJ9) -> 0.3448275862 | AL13: =IF(AK13=0,0,(AK13*((LOG(AK13))/LOG(2)))) -> -0.5296734139 | AN13: =N13 -> 221 | AO13: =COUNTIF(L124:L152,AN13) -> 7 | AP13: =AO13/(AQ4-AO9) -> 0.2413793103 | AQ13: =IF(AP13=0,0,(AP13*((LOG(AP13))/LOG(2)))) -> -0.4949787073 | AS13: =N13 -> 221 | AT13: =COUNTIF(L153:L181,AS13) -> 10 | AU13: =AT13/(AV4-AT9) -> 0.3448275862 | AV13: =IF(AU13=0,0,(AU13*((LOG(AU13))/LOG(2)))) -> -0.5296734139
A14: 22 | B14: 1021 | C14: 23 | D14: 1027 | E14: 13 | F14: 1037 | K14: 0 | L14: 221 | N14: 222 | O14: =COUNTIF($L$7:$L$500,N14) -> 31 | P14: =O14/$Q$4 -> 0.1771428571 | Q14: =IF(P14=0,0,(P14*((LOG(P14))/LOG(2)))) -> -0.4423283363 | T14: =N14 -> 222 | U14: =COUNTIF(L7:L35,T14) -> 6 | V14: =U14/(W4-U9) -> 0.2068965517 | W14: =IF(V14=0,0,(V14*((LOG(V14))/LOG(2)))) -> -0.4702796885 | Y14: =N14 -> 222 | Z14: =COUNTIF(L36:L64,Y14) -> 8 | AA14: =Z14/(AB4-Z9) -> 0.275862069 | AB14: =IF(AA14=0,0,(AA14*((LOG(AA14))/LOG(2)))) -> -0.5125464814 | AD14: =N14 -> 222 | AE14: =COUNTIF(L65:L94,AD14) -> 7 | AF14: =AE14/(AG4-AE9) -> 0.2333333333 | AG14: =IF(AF14=0,0,(AF14*((LOG(AF14))/LOG(2)))) -> -0.4898916572 | AI14: =N14 -> 222 | AJ14: =COUNTIF(L95:L123,AI14) -> 5 | AK14: =AJ14/(AL4-AJ9) -> 0.1724137931 | AL14: =IF(AK14=0,0,(AK14*((LOG(AK14))/LOG(2)))) -> -0.4372505 | AN14: =N14 -> 222 | AO14: =COUNTIF(L124:L152,AN14) -> 4 | AP14: =AO14/(AQ4-AO9) -> 0.1379310345 | AQ14: =IF(AP14=0,0,(AP14*((LOG(AP14))/LOG(2)))) -> -0.3942042752 | AS14: =N14 -> 222 | AT14: =COUNTIF(L153:L181,AS14) -> 1 | AU14: =AT14/(AV4-AT9) -> 0.03448275862 | AV14: =IF(AU14=0,0,(AU14*((LOG(AU14))/LOG(2)))) -> -0.167516586
A15: 22 | B15: 1135 | C15: 14 | D15: 1163 | E15: 13 | F15: 1170 | K15: 0 | L15: 211 | P15: =SUM(P7:P14) -> 1 | Q15: =-SUM(Q7:Q14) -> 2.365056837 | V15: =SUM(V7:V14) -> 1 | W15: =-SUM(W7:W14) -> 1.902023257 | AA15: =SUM(AA7:AA14) -> 1 | AB15: =-SUM(AB7:AB14) -> 2.026749397 | AF15: =SUM(AF7:AF14) -> 1 | AG15: =-SUM(AG7:AG14) -> 1.896139965 | AK15: =SUM(AK7:AK14) -> 1 | AL15: =-SUM(AL7:AL14) -> 2.165220776 | AP15: =SUM(AP7:AP14) -> 1 | AQ15: =-SUM(AQ7:AQ14) -> 2.48168412 | AU15: =SUM(AU7:AU14) -> 1 | AV15: =-SUM(AV7:AV14) -> 2.414161498
A16: 22 | B16: 1269 | C16: 23 | D16: 1274 | E16: 13 | F16: 1289 | K16: 0 | L16: 221 | P16: U= | Q16: =Q15/(LOG(Q4)/LOG(2)) -> 0.3174056944 | V16: U1= | W16: =W15/(LOG(W4)/LOG(2)) -> 0.3915254627 | AA16: U2= | AB16: =AB15/(LOG(AB4)/LOG(2)) -> 0.4171999436 | AF16: U3= | AG16: =AG15/(LOG(AG4)/LOG(2)) -> 0.3864239335 | AK16: U4= | AL16: =AL15/(LOG(AL4)/LOG(2)) -> 0.4457038383 | AP16: U5= | AQ16: =AQ15/(LOG(AQ4)/LOG(2)) -> 0.5108468152 | AU16: U6= | AV16: =AV15/(LOG(AV4)/LOG(2)) -> 0.4969474975
A17: 22 | B17: 1386 | C17: 23 | D17: 1393 | E17: 13 | F17: 1401 | K17: 0 | L17: 221
A18: 22 | B18: 1501 | C18: 14 | D18: 1514 | E18: 24 | F18: 1527 | K18: 0 | L18: 212
A19: 22 | B19: 1624 | C19: 23 | D19: 1627 | E19: 24 | F19: 1635 | K19: 0 | L19: 222 | N19: Total Target Seq
A20: 22 | B20: 1734 | C20: 23 | D20: 1740 | E20: 13 | F20: 1754 | K20: 0 | L20: 221 | N20: =COUNTIF(L7:L181,G3) -> 0 | P20: 29 | Q20: 29 | R20: 30 | S20: 29 | T20: 29 | U20: 29
A21: 22 | B21: 1853 | C21: 23 | D21: 1858 | E21: 13 | F21: 1868 | K21: 0 | L21: 221 | P21: % of reinforcement given in 6 equal intervals based on number of trials
A22: 22 | B22: 1967 | C22: 23 | D22: 1970 | E22: 24 | F22: 1976 | K22: 0 | L22: 222 | P22: %_1 | Q22: %_2 | R22: %_3 | S22: %_4 | T22: %_5 | U22: %_6
A23: 22 | B23: 2076 | C23: 14 | D23: 2085 | E23: 13 | F23: 2089 | K23: 0 | L23: 211 | O23: target sequence | P23: =$G$3 -> 121 | Q23: =$G$3 -> 121 | R23: =$G$3 -> 121 | S23: =$G$3 -> 121 | T23: =$G$3 -> 121 | U23: =$G$3 -> 121
A24: 22 | B24: 2186 | C24: 23 | D24: 2192 | E24: 24 | F24: 2198 | K24: 0 | L24: 222 | O24: total reinforcement | P24: =U9 -> 0 | Q24: =Z9 -> 0 | R24: =AE9 -> 0 | S24: =AJ9 -> 0 | T24: =AO9 -> 0 | U24: =AT9 -> 0
A25: 22 | B25: 2296 | C25: 23 | D25: 2301 | E25: 13 | F25: 2311 | K25: 0 | L25: 221 | O25: % target
A26: 22 | B26: 2410 | C26: 14 | D26: 2420 | E26: 13 | F26: 2426 | K26: 0 | L26: 211 | O26: CCRF
A27: 22 | B27: 2525 | C27: 23 | D27: 2530 | E27: 13 | F27: 2539 | K27: 0 | L27: 221 | O27: % CCRf
A28: 22 | B28: 2637 | C28: 23 | D28: 2645 | E28: 13 | F28: 2656 | K28: 0 | L28: 221 | O28: average response rate | P28: =F35/P20 -> 118.5517241 | Q28: =(F64-F35)/Q20 -> 125.0689655 | R28: =(F94-F64)/R20 -> 174.8666667 | S28: =(F123-F94)/S20 -> 131.9310345 | T28: =(F152-F123)/T20 -> 139 | U28: =(F181-F152)/U20 -> 126.0344828
A29: 22 | B29: 2752 | C29: 23 | D29: 2755 | E29: 13 | F29: 2765 | K29: 0 | L29: 221
A30: 22 | B30: 2862 | C30: 23 | D30: 2866 | E30: 24 | F30: 2872 | K30: 0 | L30: 222
A31: 22 | B31: 2968 | C31: 14 | D31: 2984 | E31: 13 | F31: 2989 | K31: 0 | L31: 211
A32: 22 | B32: 3090 | C32: 23 | D32: 3094 | E32: 13 | F32: 3104 | K32: 0 | L32: 221
A33: 22 | B33: 3199 | C33: 23 | D33: 3202 | E33: 13 | F33: 3213 | K33: 0 | L33: 221
A34: 22 | B34: 3322 | C34: 23 | D34: 3326 | E34: 24 | F34: 3330 | K34: 0 | L34: 222
A35: 22 | B35: 3425 | C35: 23 | D35: 3429 | E35: 13 | F35: 3438 | K35: 0 | L35: 221
A36: 22 | B36: 3533 | C36: 23 | D36: 3539 | E36: 24 | F36: 3546 | K36: 0 | L36: 222
A37: 22 | B37: 3642 | C37: 14 | D37: 3658 | E37: 13 | F37: 3664 | K37: 0 | L37: 211
A38: 22 | B38: 3801 | C38: 23 | D38: 3807 | E38: 13 | F38: 3816 | K38: 0 | L38: 221
A39: 22 | B39: 3912 | C39: 14 | D39: 3928 | E39: 13 | F39: 3931 | K39: 0 | L39: 211
A40: 11 | B40: 4041 | C40: 12 | D40: 4046 | E40: 13 | F40: 4053 | K40: 0 | L40: 111
A41: 22 | B41: 4151 | C41: 23 | D41: 4157 | E41: 13 | F41: 4168 | K41: 0 | L41: 221
A42: 22 | B42: 4275 | C42: 23 | D42: 4280 | E42: 13 | F42: 4289 | K42: 0 | L42: 221
A43: 22 | B43: 4387 | C43: 23 | D43: 4391 | E43: 13 | F43: 4400 | K43: 0 | L43: 221
A44: 22 | B44: 4504 | C44: 23 | D44: 4508 | E44: 13 | F44: 4516 | K44: 0 | L44: 221
A45: 22 | B45: 4612 | C45: 23 | D45: 4618 | E45: 24 | F45: 4628 | K45: 0 | L45: 222
A46: 22 | B46: 4728 | C46: 23 | D46: 4735 | E46: 24 | F46: 4741 | K46: 0 | L46: 222
A47: 22 | B47: 4844 | C47: 23 | D47: 4849 | E47: 13 | F47: 4859 | K47: 0 | L47: 221
A48: 22 | B48: 5046 | C48: 23 | D48: 5051 | E48: 24 | F48: 5057 | K48: 0 | L48: 222
A49: 22 | B49: 5155 | C49: 14 | D49: 5170 | E49: 13 | F49: 5175 | K49: 0 | L49: 211
A50: 22 | B50: 5273 | C50: 23 | D50: 5282 | E50: 13 | F50: 5291 | K50: 0 | L50: 221
A51: 22 | B51: 5387 | C51: 23 | D51: 5391 | E51: 13 | F51: 5402 | K51: 0 | L51: 221
A52: 22 | B52: 5508 | C52: 23 | D52: 5512 | E52: 24 | F52: 5518 | K52: 0 | L52: 222
A53: 22 | B53: 5615 | C53: 23 | D53: 5621 | E53: 13 | F53: 5645 | K53: 0 | L53: 221
A54: 22 | B54: 5780 | C54: 23 | D54: 5786 | E54: 24 | F54: 5792 | K54: 0 | L54: 222
A55: 22 | B55: 5887 | C55: 23 | D55: 5891 | E55: 13 | F55: 5908 | K55: 0 | L55: 221
A56: 11 | B56: 6019 | C56: 12 | D56: 6024 | E56: 13 | F56: 6030 | K56: 0 | L56: 111
A57: 22 | B57: 6131 | C57: 23 | D57: 6135 | E57: 13 | F57: 6145 | K57: 0 | L57: 221
A58: 22 | B58: 6243 | C58: 23 | D58: 6253 | E58: 13 | F58: 6262 | K58: 0 | L58: 221
A59: 22 | B59: 6423 | C59: 14 | D59: 6435 | E59: 24 | F59: 6459 | K59: 0 | L59: 212
A60: 11 | B60: 6574 | C60: 12 | D60: 6581 | E60: 24 | F60: 6606 | K60: 0 | L60: 112
A61: 22 | B61: 6711 | C61: 23 | D61: 6714 | E61: 24 | F61: 6720 | K61: 0 | L61: 222
A62: 22 | B62: 6817 | C62: 14 | D62: 6834 | E62: 13 | F62: 6840 | K62: 0 | L62: 211
A63: 22 | B63: 6936 | C63: 23 | D63: 6941 | E63: 24 | F63: 6947 | K63: 0 | L63: 222
A64: 22 | B64: 7047 | C64: 23 | D64: 7055 | E64: 13 | F64: 7065 | K64: 0 | L64: 221
A65: 22 | B65: 7228 | C65: 23 | D65: 7231 | E65: 24 | F65: 7236 | K65: 0 | L65: 222
A66: 22 | B66: 7437 | C66: 23 | D66: 7442 | E66: 13 | F66: 7457 | K66: 0 | L66: 221
A67: 22 | B67: 7553 | C67: 14 | D67: 7564 | E67: 24 | F67: 7588 | K67: 0 | L67: 212
A68: 22 | B68: 7685 | C68: 23 | D68: 7690 | E68: 13 | F68: 7701 | K68: 0 | L68: 221
A69: 22 | B69: 7799 | C69: 23 | D69: 7806 | E69: 13 | F69: 7818 | K69: 0 | L69: 221
A70: 22 | B70: 7914 | C70: 23 | D70: 7918 | E70: 24 | F70: 7926 | K70: 0 | L70: 222
A71: 22 | B71: 8025 | C71: 23 | D71: 8034 | E71: 13 | F71: 8050 | K71: 0 | L71: 221
A72: 22 | B72: 8161 | C72: 14 | D72: 8170 | E72: 13 | F72: 8176 | K72: 0 | L72: 211
A73: 22 | B73: 8274 | C73: 14 | D73: 8285 | E73: 13 | F73: 8292 | K73: 0 | L73: 211
A74: 22 | B74: 8391 | C74: 23 | D74: 8395 | E74: 13 | F74: 8405 | K74: 0 | L74: 221
A75: 22 | B75: 8511 | C75: 23 | D75: 8516 | E75: 24 | F75: 8522 | K75: 0 | L75: 222
A76: 22 | B76: 8619 | C76: 23 | D76: 8622 | E76: 24 | F76: 8627 | K76: 0 | L76: 222
A77: 22 | B77: 10137 | C77: 23 | D77: 10140 | E77: 24 | F77: 10153 | K77: 0 | L77: 222
A78: 22 | B78: 10250 | C78: 14 | D78: 10267 | E78: 13 | F78: 10274 | K78: 0 | L78: 211
A79: 22 | B79: 10373 | C79: 14 | D79: 10392 | E79: 13 | F79: 10397 | K79: 0 | L79: 211
A80: 22 | B80: 10494 | C80: 14 | D80: 10510 | E80: 13 | F80: 10515 | K80: 0 | L80: 211
A81: 22 | B81: 10613 | C81: 23 | D81: 10618 | E81: 13 | F81: 10628 | K81: 0 | L81: 221
A82: 22 | B82: 10724 | C82: 23 | D82: 10727 | E82: 24 | F82: 10732 | K82: 0 | L82: 222
A83: 22 | B83: 10846 | C83: 14 | D83: 10865 | E83: 13 | F83: 10871 | K83: 0 | L83: 211
A84: 22 | B84: 10971 | C84: 23 | D84: 10977 | E84: 13 | F84: 10986 | K84: 0 | L84: 221
A85: 22 | B85: 11086 | C85: 23 | D85: 11091 | E85: 13 | F85: 11099 | K85: 0 | L85: 221
A86: 22 | B86: 11285 | C86: 23 | D86: 11290 | E86: 24 | F86: 11296 | K86: 0 | L86: 222
A87: 22 | B87: 11395 | C87: 23 | D87: 11399 | E87: 13 | F87: 11408 | K87: 0 | L87: 221
A88: 22 | B88: 11511 | C88: 14 | D88: 11521 | E88: 13 | F88: 11527 | K88: 0 | L88: 211
A89: 22 | B89: 11624 | C89: 23 | D89: 11631 | E89: 13 | F89: 11645 | K89: 0 | L89: 221
A90: 22 | B90: 11810 | C90: 14 | D90: 11812 | E90: 24 | F90: 11838 | K90: 0 | L90: 212
A91: 22 | B91: 11937 | C91: 23 | D91: 11941 | E91: 13 | F91: 11950 | K91: 0 | L91: 221
A92: 22 | B92: 12045 | C92: 23 | D92: 12048 | E92: 13 | F92: 12057 | K92: 0 | L92: 221
A93: 22 | B93: 12154 | C93: 14 | D93: 12169 | E93: 24 | F93: 12186 | K93: 0 | L93: 212
A94: 22 | B94: 12285 | C94: 14 | D94: 12295 | E94: 24 | F94: 12311 | K94: 0 | L94: 212
A95: 22 | B95: 12410 | C95: 23 | D95: 12415 | E95: 24 | F95: 12422 | K95: 0 | L95: 222
A96: 22 | B96: 12522 | C96: 23 | D96: 12526 | E96: 13 | F96: 12535 | K96: 0 | L96: 221
A97: 22 | B97: 12857 | C97: 23 | D97: 12862 | E97: 24 | F97: 12869 | K97: 0 | L97: 222
A98: 22 | B98: 12967 | C98: 14 | D98: 12977 | E98: 13 | F98: 12981 | K98: 0 | L98: 211
A99: 22 | B99: 13081 | C99: 14 | D99: 13089 | E99: 24 | F99: 13115 | K99: 0 | L99: 212
A100: 22 | B100: 13213 | C100: 14 | D100: 13228 | E100: 24 | F100: 13246 | K100: 0 | L100: 212
A101: 22 | B101: 13344 | C101: 23 | D101: 13346 | E101: 13 | F101: 13355 | K101: 0 | L101: 221
A102: 22 | B102: 13454 | C102: 23 | D102: 13459 | E102: 13 | F102: 13468 | K102: 0 | L102: 221
A103: 22 | B103: 13566 | C103: 14 | D103: 13580 | E103: 13 | F103: 13583 | K103: 0 | L103: 211
A104: 22 | B104: 13679 | C104: 14 | D104: 13691 | E104: 13 | F104: 13696 | K104: 0 | L104: 211
A105: 22 | B105: 13794 | C105: 14 | D105: 13806 | E105: 13 | F105: 13810 | K105: 0 | L105: 211
A106: 11 | B106: 13934 | C106: 12 | D106: 13940 | E106: 24 | F106: 13949 | K106: 0 | L106: 112
A107: 22 | B107: 14046 | C107: 23 | D107: 14048 | E107: 13 | F107: 14058 | K107: 0 | L107: 221
A108: 22 | B108: 14248 | C108: 23 | D108: 14273 | E108: 24 | F108: 14277 | K108: 0 | L108: 222
A109: 22 | B109: 14374 | C109: 14 | D109: 14386 | E109: 24 | F109: 14404 | K109: 0 | L109: 212
A110: 22 | B110: 14499 | C110: 23 | D110: 14504 | E110: 13 | F110: 14513 | K110: 0 | L110: 221
A111: 22 | B111: 14610 | C111: 23 | D111: 14615 | E111: 13 | F111: 14623 | K111: 0 | L111: 221
A112: 22 | B112: 14719 | C112: 14 | D112: 14730 | E112: 13 | F112: 14733 | K112: 0 | L112: 211
A113: 22 | B113: 14832 | C113: 23 | D113: 14836 | E113: 13 | F113: 14845 | K113: 0 | L113: 221
A114: 22 | B114: 14945 | C114: 23 | D114: 14948 | E114: 24 | F114: 14953 | K114: 0 | L114: 222
A115: 22 | B115: 15170 | C115: 23 | D115: 15174 | E115: 24 | F115: 15180 | K115: 0 | L115: 222
A116: 22 | B116: 15279 | C116: 23 | D116: 15284 | E116: 13 | F116: 15294 | K116: 0 | L116: 221
A117: 22 | B117: 15392 | C117: 14 | D117: 15404 | E117: 13 | F117: 15412 | K117: 0 | L117: 211
A118: 11 | B118: 15518 | C118: 12 | D118: 15522 | E118: 24 | F118: 15536 | K118: 0 | L118: 112
A119: 22 | B119: 15637 | C119: 14 | D119: 15646 | E119: 24 | F119: 15665 | K119: 0 | L119: 212
A120: 22 | B120: 15761 | C120: 23 | D120: 15765 | E120: 13 | F120: 15773 | K120: 0 | L120: 221
A121: 22 | B121: 15869 | C121: 14 | D121: 15881 | E121: 13 | F121: 15895 | K121: 0 | L121: 211
A122: 22 | B122: 15994 | C122: 14 | D122: 16005 | E122: 24 | F122: 16017 | K122: 0 | L122: 212
A123: 22 | B123: 16121 | C123: 23 | D123: 16128 | E123: 13 | F123: 16137 | K123: 0 | L123: 221
A124: 22 | B124: 16233 | C124: 14 | D124: 16248 | E124: 24 | F124: 16268 | K124: 0 | L124: 212
A125: 22 | B125: 16367 | C125: 14 | D125: 16376 | E125: 13 | F125: 16383 | K125: 0 | L125: 211
A126: 22 | B126: 16478 | C126: 23 | D126: 16482 | E126: 13 | F126: 16490 | K126: 0 | L126: 221
A127: 22 | B127: 16589 | C127: 14 | D127: 16600 | E127: 13 | F127: 16606 | K127: 0 | L127: 211
A128: 22 | B128: 16702 | C128: 14 | D128: 16715 | E128: 24 | F128: 16732 | K128: 0 | L128: 212
A129: 22 | B129: 16830 | C129: 23 | D129: 16835 | E129: 13 | F129: 16843 | K129: 0 | L129: 221
A130: 22 | B130: 17025 | C130: 23 | D130: 17085 | E130: 13 | F130: 17095 | K130: 0 | L130: 221
A131: 22 | B131: 17193 | C131: 23 | D131: 17198 | E131: 13 | F131: 17206 | K131: 0 | L131: 221
A132: 22 | B132: 17303 | C132: 14 | D132: 17320 | E132: 13 | F132: 17325 | K132: 0 | L132: 211
A133: 22 | B133: 17730 | C133: 14 | D133: 17739 | E133: 13 | F133: 17744 | K133: 0 | L133: 211
A134: 11 | B134: 17882 | C134: 12 | D134: 17886 | E134: 24 | F134: 17901 | K134: 0 | L134: 112
A135: 22 | B135: 18000 | C135: 14 | D135: 18013 | E135: 13 | F135: 18016 | K135: 0 | L135: 211
A136: 22 | B136: 18115 | C136: 14 | D136: 18124 | E136: 13 | F136: 18129 | K136: 0 | L136: 211
A137: 11 | B137: 18240 | C137: 21 | D137: 18257 | E137: 22 | F137: 18263 | K137: 0 | L137: 122
A138: 22 | B138: 18273 | C138: 23 | D138: 18278 | E138: 24 | F138: 18301 | K138: 0 | L138: 222
A139: 11 | B139: 18410 | C139: 21 | D139: 18427 | E139: 22 | F139: 18433 | K139: 0 | L139: 122
A140: 11 | B140: 18541 | C140: 21 | D140: 18561 | E140: 22 | F140: 18569 | K140: 0 | L140: 122
A141: 11 | B141: 18678 | C141: 21 | D141: 18695 | E141: 22 | F141: 18701 | K141: 0 | L141: 122
A142: 22 | B142: 18798 | C142: 14 | D142: 18809 | E142: 13 | F142: 18814 | K142: 0 | L142: 211
A143: 22 | B143: 18988 | C143: 14 | D143: 19006 | E143: 24 | F143: 19025 | K143: 0 | L143: 212
A144: 22 | B144: 19122 | C144: 23 | D144: 19126 | E144: 13 | F144: 19137 | K144: 0 | L144: 221
A145: 22 | B145: 19236 | C145: 23 | D145: 19241 | E145: 13 | F145: 19250 | K145: 0 | L145: 221
A146: 22 | B146: 19343 | C146: 23 | D146: 19347 | E146: 24 | F146: 19351 | K146: 0 | L146: 222
A147: 22 | B147: 19446 | C147: 23 | D147: 19450 | E147: 24 | F147: 19478 | K147: 0 | L147: 222
A148: 11 | B148: 19586 | C148: 21 | D148: 19601 | E148: 22 | F148: 19610 | K148: 0 | L148: 122
A149: 22 | B149: 19710 | C149: 14 | D149: 19720 | E149: 24 | F149: 19732 | K149: 0 | L149: 212
A150: 22 | B150: 19827 | C150: 23 | D150: 19830 | E150: 13 | F150: 19838 | K150: 0 | L150: 221
A151: 22 | B151: 20006 | C151: 23 | D151: 20011 | E151: 24 | F151: 20017 | K151: 0 | L151: 222
A152: 11 | B152: 20153 | C152: 12 | D152: 20158 | E152: 24 | F152: 20168 | K152: 0 | L152: 112
A153: 22 | B153: 20264 | C153: 14 | D153: 20283 | E153: 24 | F153: 20301 | K153: 0 | L153: 212
A154: 22 | B154: 20396 | C154: 23 | D154: 20400 | E154: 13 | F154: 20416 | K154: 0 | L154: 221
A155: 22 | B155: 20513 | C155: 14 | D155: 20530 | E155: 13 | F155: 20541 | K155: 0 | L155: 211
A156: 22 | B156: 20636 | C156: 23 | D156: 20641 | E156: 13 | F156: 20650 | K156: 0 | L156: 221
A157: 11 | B157: 20763 | C157: 21 | D157: 20782 | E157: 22 | F157: 20789 | K157: 0 | L157: 122
A158: 11 | B158: 20899 | C158: 12 | D158: 20903 | E158: 13 | F158: 20913 | K158: 0 | L158: 111
A159: 22 | B159: 21009 | C159: 23 | D159: 21020 | E159: 13 | F159: 21029 | K159: 0 | L159: 221
A160: 11 | B160: 21130 | C160: 21 | D160: 21139 | E160: 22 | F160: 21144 | K160: 0 | L160: 122
A161: 22 | B161: 21239 | C161: 23 | D161: 21245 | E161: 13 | F161: 21253 | K161: 0 | L161: 221
A162: 22 | B162: 21351 | C162: 14 | D162: 21361 | E162: 24 | F162: 21377 | K162: 0 | L162: 212
A163: 11 | B163: 21502 | C163: 21 | D163: 21513 | E163: 22 | F163: 21515 | K163: 0 | L163: 122
A164: 22 | B164: 21614 | C164: 14 | D164: 21624 | E164: 13 | F164: 21630 | K164: 0 | L164: 211
A165: 22 | B165: 21726 | C165: 23 | D165: 21731 | E165: 13 | F165: 21738 | K165: 0 | L165: 221
A166: 22 | B166: 21840 | C166: 14 | D166: 21854 | E166: 13 | F166: 21857 | K166: 0 | L166: 211
A167: 22 | B167: 22041 | C167: 23 | D167: 22047 | E167: 13 | F167: 22054 | K167: 0 | L167: 221
A168: 22 | B168: 22150 | C168: 23 | D168: 22155 | E168: 13 | F168: 22164 | K168: 0 | L168: 221
A169: 22 | B169: 22262 | C169: 23 | D169: 22267 | E169: 13 | F169: 22275 | K169: 0 | L169: 221
A170: 22 | B170: 22467 | C170: 23 | D170: 22492 | E170: 24 | F170: 22496 | K170: 0 | L170: 222
A171: 22 | B171: 22593 | C171: 23 | D171: 22597 | E171: 13 | F171: 22606 | K171: 0 | L171: 221
A172: 22 | B172: 22704 | C172: 14 | D172: 22716 | E172: 13 | F172: 22722 | K172: 0 | L172: 211
A173: 11 | B173: 22827 | C173: 12 | D173: 22839 | E173: 24 | F173: 22850 | K173: 0 | L173: 112
A174: 22 | B174: 22949 | C174: 14 | D174: 22961 | E174: 13 | F174: 22964 | K174: 0 | L174: 211
A175: 11 | B175: 23073 | C175: 12 | D175: 23075 | E175: 13 | F175: 23090 | K175: 0 | L175: 111
A176: 22 | B176: 23189 | C176: 14 | D176: 23199 | E176: 13 | F176: 23205 | K176: 0 | L176: 211
A177: 11 | B177: 23316 | C177: 21 | D177: 23325 | E177: 22 | F177: 23330 | K177: 0 | L177: 122
A178: 11 | B178: 23459 | C178: 12 | D178: 23466 | E178: 13 | F178: 23470 | K178: 0 | L178: 111
A179: 11 | B179: 23579 | C179: 12 | D179: 23584 | E179: 13 | F179: 23590 | K179: 0 | L179: 111
A180: 22 | B180: 23690 | C180: 23 | D180: 23696 | E180: 13 | F180: 23707 | K180: 0 | L180: 221
A181: 22 | B181: 23806 | C181: 14 | D181: 23817 | E181: 13 | F181: 23823 | K181: 0 | L181: 211

Sheet !M214A3I.sha
A1: Report for:!M214A3I.sha
A2: Date: | B2: <date>
A3: Hen: | B3: <hen> | F3: Correct Sequence | G3: =Start!J2 -> 121 | P3: Total Sequences in Data | Q3: =4994-COUNTBLANK(L7:L5000) -> 162 | V3: Total Sequences in Block Data | W3: =COUNTA(L7:L33) -> 27 | AA3: Total Sequences in Block Data | AB3: =COUNTA(L34:L60) -> 27 | AF3: Total Sequences in Block Data | AG3: =COUNTA(L61:L87) -> 27 | AK3: Total Sequences in Block Data | AL3: =COUNTA(L88:L114) -> 27 | AP3: Total Sequences in Block Data | AQ3: =COUNTA(L115:L141) -> 27 | AU3: Total Sequences in Block Data | AV3: =COUNTA(L142:L168) -> 27
P4: Total Sequences in Summary | Q4: =SUM(O7:O14) -> 162 | V4: Total Sequences in Block Summary | W4: =SUM(U7:U14) -> 27 | AA4: Total Sequences in Block Summary | AB4: =SUM(Z7:Z14) -> 27 | AF4: Total Sequences in Block Summary | AG4: =SUM(AE7:AE14) -> 27 | AK4: Total Sequences in Block Summary | AL4: =SUM(AJ7:AJ14) -> 27 | AP4: Total Sequences in Block Summary | AQ4: =SUM(AO7:AO14) -> 27 | AU4: Total Sequences in Block Summary | AV4: =SUM(AT7:AT14) -> 27
T5: Block 1 | Y5: Block 2 | AD5: Block 3 | AI5: Block 4 | AN5: Block 5 | AS5: Block 6
A6: Sequence Component 1 | B6: Time 1 | C6: Sequence Component 2 | D6: Time 2 | E6: Sequence Component 3 | F6: Time 3 | G6: Sequence Component 4 | H6: Time 4 | I6: Sequence Component 5 | J6: Time 5 | K6: Correct? 0=No 1=Yes | L6: Sequence | N6: Frequency | P6: Relative Frequency | Q6: Variability | T6: Frequency | V6: Relative Frequency | W6: Variability | Y6: Frequency | AA6: Relative Frequency | AB6: Variability | AD6: Frequency | AF6: Relative Frequency | AG6: Variability | AI6: Frequency | AK6: Relative Frequency | AL6: Variability | AN6: Frequency | AP6: Relative Frequency | AQ6: Variability | AS6: Frequency | AU6: Relative Frequency | AV6: Variability
A7: 22 | B7: 9 | C7: 23 | D7: 14 | E7: 24 | F7: 49 | K7: 0 | L7: 222 | N7: 111 | O7: =COUNTIF($L$7:$L$500,N7) -> 8 | P7: =O7/$Q$4 -> 0.04938271605 | Q7: =IF(P7=0,0,(P7*((LOG(P7))/LOG(2)))) -> -0.2143135804 | T7: =N7 -> 111 | U7: =COUNTIF(L7:L33,T7) -> 2 | V7: =U7/(W4-U9) -> 0.07407407407 | W7: =IF(V7=0,0,(V7*((LOG(V7))/LOG(2)))) -> -0.278139815 | Y7: =N7 -> 111 | Z7: =COUNTIF(L34:L60,Y7) -> 1 | AA7: =Z7/(AB4-Z9) -> 0.03703703704 | AB7: =IF(AA7=0,0,(AA7*((LOG(AA7))/LOG(2)))) -> -0.1761069445 | AD7: =N7 -> 111 | AE7: =COUNTIF(L61:L87,AD7) -> 4 | AF7: =AE7/(AG4-AE9) -> 0.1481481481 | AG7: =IF(AF7=0,0,(AF7*((LOG(AF7))/LOG(2)))) -> -0.4081314818 | AI7: =N7 -> 111 | AJ7: =COUNTIF(L88:L114,AI7) -> 0 | AK7: =AJ7/(AL4-AJ9) -> 0 | AL7: =IF(AK7=0,0,(AK7*((LOG(AK7))/LOG(2)))) -> 0 | AN7: =N7 -> 111 | AO7: =COUNTIF(L115:L141,AN7) -> 1 | AP7: =AO7/(AQ4-AO9) -> 0.03703703704 | AQ7: =IF(AP7=0,0,(AP7*((LOG(AP7))/LOG(2)))) -> -0.1761069445 | AS7: =N7 -> 111 | AT7: =COUNTIF(L142:L168,AS7) -> 0 | AU7: =AT7/(AV4-AT9) -> 0 | AV7: =IF(AU7=0,0,(AU7*((LOG(AU7))/LOG(2)))) -> 0
A8: 22 | B8: 178 | C8: 23 | D8: 186 | E8: 24 | F8: 193 | K8: 0 | L8: 222 | N8: 112 | O8: =COUNTIF($L$7:$L$500,N8) -> 8 | P8: =O8/$Q$4 -> 0.04938271605 | Q8: =IF(P8=0,0,(P8*((LOG(P8))/LOG(2)))) -> -0.2143135804 | T8: =N8 -> 112 | U8: =COUNTIF(L7:L33,T8) -> 1 | V8: =U8/(W4-U9) -> 0.03703703704 | W8: =IF(V8=0,0,(V8*((LOG(V8))/LOG(2)))) -> -0.1761069445 | Y8: =N8 -> 112 | Z8: =COUNTIF(L34:L60,Y8) -> 1 | AA8: =Z8/(AB4-Z9) -> 0.03703703704 | AB8: =IF(AA8=0,0,(AA8*((LOG(AA8))/LOG(2)))) -> -0.1761069445 | AD8: =N8 -> 112 | AE8: =COUNTIF(L61:L87,AD8) -> 2 | AF8: =AE8/(AG4-AE9) -> 0.07407407407 | AG8: =IF(AF8=0,0,(AF8*((LOG(AF8))/LOG(2)))) -> -0.278139815 | AI8: =N8 -> 112 | AJ8: =COUNTIF(L88:L114,AI8) -> 1 | AK8: =AJ8/(AL4-AJ9) -> 0.03703703704 | AL8: =IF(AK8=0,0,(AK8*((LOG(AK8))/LOG(2)))) -> -0.1761069445 | AN8: =N8 -> 112 | AO8: =COUNTIF(L115:L141,AN8) -> 1 | AP8: =AO8/(AQ4-AO9) -> 0.03703703704 | AQ8: =IF(AP8=0,0,(AP8*((LOG(AP8))/LOG(2)))) -> -0.1761069445 | AS8: =N8 -> 112 | AT8: =COUNTIF(L142:L168,AS8) -> 2 | AU8: =AT8/(AV4-AT9) -> 0.07407407407 | AV8: =IF(AU8=0,0,(AU8*((LOG(AU8))/LOG(2)))) -> -0.278139815
A9: 22 | B9: 292 | C9: 23 | D9: 297 | E9: 13 | F9: 306 | K9: 0 | L9: 221 | N9: 121 | O9: =COUNTIF($L$7:$L$500,N9) -> 0 | P9: =O9/$Q$4 -> 0 | Q9: =IF(P9=0,0,(P9*((LOG(P9))/LOG(2)))) -> 0 | T9: =N9 -> 121 | U9: =COUNTIF(L7:L33,T9) -> 0 | Y9: =N9 -> 121 | Z9: =COUNTIF(L34:L60,Y9) -> 0 | AD9: =N9 -> 121 | AE9: =COUNTIF(L61:L87,AD9) -> 0 | AI9: =N9 -> 121 | AJ9: =COUNTIF(L88:L114,AI9) -> 0 | AN9: =N9 -> 121 | AO9: =COUNTIF(L115:L141,AN9) -> 0 | AS9: =N9 -> 121 | AT9: =COUNTIF(L142:L168,AS9) -> 0
A10: 22 | B10: 560 | C10: 14 | D10: 570 | E10: 13 | F10: 578 | K10: 0 | L10: 211 | N10: 122 | O10: =COUNTIF($L$7:$L$500,N10) -> 6 | P10: =O10/$Q$4 -> 0.03703703704 | Q10: =IF(P10=0,0,(P10*((LOG(P10))/LOG(2)))) -> -0.1761069445 | T10: =N10 -> 122 | U10: =COUNTIF(L7:L33,T10) -> 2 | V10: =U10/(W4-U9) -> 0.07407407407 | W10: =IF(V10=0,0,(V10*((LOG(V10))/LOG(2)))) -> -0.278139815 | Y10: =N10 -> 122 | Z10: =COUNTIF(L34:L60,Y10) -> 2 | AA10: =Z10/(AB4-Z9) -> 0.07407407407 | AB10: =IF(AA10=0,0,(AA10*((LOG(AA10))/LOG(2)))) -> -0.278139815 | AD10: =N10 -> 122 | AE10: =COUNTIF(L61:L87,AD10) -> 0 | AF10: =AE10/(AG4-AE9) -> 0 | AG10: =IF(AF10=0,0,(AF10*((LOG(AF10))/LOG(2)))) -> 0 | AI10: =N10 -> 122 | AJ10: =COUNTIF(L88:L114,AI10) -> 2 | AK10: =AJ10/(AL4-AJ9) -> 0.07407407407 | AL10: =IF(AK10=0,0,(AK10*((LOG(AK10))/LOG(2)))) -> -0.278139815 | AN10: =N10 -> 122 | AO10: =COUNTIF(L115:L141,AN10) -> 0 | AP10: =AO10/(AQ4-AO9) -> 0 | AQ10: =IF(AP10=0,0,(AP10*((LOG(AP10))/LOG(2)))) -> 0 | AS10: =N10 -> 122 | AT10: =COUNTIF(L142:L168,AS10) -> 0 | AU10: =AT10/(AV4-AT9) -> 0 | AV10: =IF(AU10=0,0,(AU10*((LOG(AU10))/LOG(2)))) -> 0
A11: 22 | B11: 678 | C11: 14 | D11: 689 | E11: 13 | F11: 698 | K11: 0 | L11: 211 | N11: 211 | O11: =COUNTIF($L$7:$L$500,N11) -> 47 | P11: =O11/$Q$4 -> 0.2901234568 | Q11: =IF(P11=0,0,(P11*((LOG(P11))/LOG(2)))) -> -0.5179461365 | T11: =N11 -> 211 | U11: =COUNTIF(L7:L33,T11) -> 8 | V11: =U11/(W4-U9) -> 0.2962962963 | W11: =IF(V11=0,0,(V11*((LOG(V11))/LOG(2)))) -> -0.5199666673 | Y11: =N11 -> 211 | Z11: =COUNTIF(L34:L60,Y11) -> 9 | AA11: =Z11/(AB4-Z9) -> 0.3333333333 | AB11: =IF(AA11=0,0,(AA11*((LOG(AA11))/LOG(2)))) -> -0.5283208336 | AD11: =N11 -> 211 | AE11: =COUNTIF(L61:L87,AD11) -> 7 | AF11: =AE11/(AG4-AE9) -> 0.2592592593 | AG11: =IF(AF11=0,0,(AF11*((LOG(AF11))/LOG(2)))) -> -0.5049158541 | AI11: =N11 -> 211 | AJ11: =COUNTIF(L88:L114,AI11) -> 6 | AK11: =AJ11/(AL4-AJ9) -> 0.2222222222 | AL11: =IF(AK11=0,0,(AK11*((LOG(AK11))/LOG(2)))) -> -0.4822055559 | AN11: =N11 -> 211 | AO11: =COUNTIF(L115:L141,AN11) -> 8 | AP11: =AO11/(AQ4-AO9) -> 0.2962962963 | AQ11: =IF(AP11=0,0,(AP11*((LOG(AP11))/LOG(2)))) -> -0.5199666673 | AS11: =N11 -> 211 | AT11: =COUNTIF(L142:L168,AS11) -> 9 | AU11: =AT11/(AV4-AT9) -> 0.3333333333 | AV11: =IF(AU11=0,0,(AU11*((LOG(AU11))/LOG(2)))) -> -0.5283208336
A12: 22 | B12: 830 | C12: 14 | D12: 849 | E12: 24 | F12: 867 | K12: 0 | L12: 212 | N12: 212 | O12: =COUNTIF($L$7:$L$500,N12) -> 8 | P12: =O12/$Q$4 -> 0.04938271605 | Q12: =IF(P12=0,0,(P12*((LOG(P12))/LOG(2)))) -> -0.2143135804 | T12: =N12 -> 212 | U12: =COUNTIF(L7:L33,T12) -> 2 | V12: =U12/(W4-U9) -> 0.07407407407 | W12: =IF(V12=0,0,(V12*((LOG(V12))/LOG(2)))) -> -0.278139815 | Y12: =N12 -> 212 | Z12: =COUNTIF(L34:L60,Y12) -> 0 | AA12: =Z12/(AB4-Z9) -> 0 | AB12: =IF(AA12=0,0,(AA12*((LOG(AA12))/LOG(2)))) -> 0 | AD12: =N12 -> 212 | AE12: =COUNTIF(L61:L87,AD12) -> 0 | AF12: =AE12/(AG4-AE9) -> 0 | AG12: =IF(AF12=0,0,(AF12*((LOG(AF12))/LOG(2)))) -> 0 | AI12: =N12 -> 212 | AJ12: =COUNTIF(L88:L114,AI12) -> 1 | AK12: =AJ12/(AL4-AJ9) -> 0.03703703704 | AL12: =IF(AK12=0,0,(AK12*((LOG(AK12))/LOG(2)))) -> -0.1761069445 | AN12: =N12 -> 212 | AO12: =COUNTIF(L115:L141,AN12) -> 3 | AP12: =AO12/(AQ4-AO9) -> 0.1111111111 | AQ12: =IF(AP12=0,0,(AP12*((LOG(AP12))/LOG(2)))) -> -0.352213889 | AS12: =N12 -> 212 | AT12: =COUNTIF(L142:L168,AS12) -> 2 | AU12: =AT12/(AV4-AT9) -> 0.07407407407 | AV12: =IF(AU12=0,0,(AU12*((LOG(AU12))/LOG(2)))) -> -0.278139815
A13: 11 | B13: 980 | C13: 12 | D13: 986 | E13: 13 | F13: 992 | K13: 0 | L13: 111 | N13: 221 | O13: =COUNTIF($L$7:$L$500,N13) -> 59 | P13: =O13/$Q$4 -> 0.3641975309 | Q13: =IF(P13=0,0,(P13*((LOG(P13))/LOG(2)))) -> -0.5307111744 | T13: =N13 -> 221 | U13: =COUNTIF(L7:L33,T13) -> 6 | V13: =U13/(W4-U9) -> 0.2222222222 | W13: =IF(V13=0,0,(V13*((LOG(V13))/LOG(2)))) -> -0.4822055559 | Y13: =N13 -> 221 | Z13: =COUNTIF(L34:L60,Y13) -> 12 | AA13: =Z13/(AB4-Z9) -> 0.4444444444 | AB13: =IF(AA13=0,0,(AA13*((LOG(AA13))/LOG(2)))) -> -0.5199666673 | AD13: =N13 -> 221 | AE13: =COUNTIF(L61:L87,AD13) -> 12 | AF13: =AE13/(AG4-AE9) -> 0.4444444444 | AG13: =IF(AF13=0,0,(AF13*((LOG(AF13))/LOG(2)))) -> -0.5199666673 | AI13: =N13 -> 221 | AJ13: =COUNTIF(L88:L114,AI13) -> 9 | AK13: =AJ13/(AL4-AJ9) -> 0.3333333333 | AL13: =IF(AK13=0,0,(AK13*((LOG(AK13))/LOG(2)))) -> -0.5283208336 | AN13: =N13 -> 221 | AO13: =COUNTIF(L115:L141,AN13) -> 9 | AP13: =AO13/(AQ4-AO9) -> 0.3333333333 | AQ13: =IF(AP13=0,0,(AP13*((LOG(AP13))/LOG(2)))) -> -0.5283208336 | AS13: =N13 -> 221 | AT13: =COUNTIF(L142:L168,AS13) -> 11 | AU13: =AT13/(AV4-AT9) -> 0.4074074074 | AV13: =IF(AU13=0,0,(AU13*((LOG(AU13))/LOG(2)))) -> -0.5277783229
A14: 11 | B14: 1167 | C14: 12 | D14: 1173 | E14: 13 | F14: 1180 | K14: 0 | L14: 111 | N14: 222 | O14: =COUNTIF($L$7:$L$500,N14) -> 26 | P14: =O14/$Q$4 -> 0.1604938272 | Q14: =IF(P14=0,0,(P14*((LOG(P14))/LOG(2)))) -> -0.423609058 | T14: =N14 -> 222 | U14: =COUNTIF(L7:L33,T14) -> 6 | V14: =U14/(W4-U9) -> 0.2222222222 | W14: =IF(V14=0,0,(V14*((LOG(V14))/LOG(2)))) -> -0.4822055559 | Y14: =N14 -> 222 | Z14: =COUNTIF(L34:L60,Y14) -> 2 | AA14: =Z14/(AB4-Z9) -> 0.07407407407 | AB14: =IF(AA14=0,0,(AA14*((LOG(AA14))/LOG(2)))) -> -0.278139815 | AD14: =N14 -> 222 | AE14: =COUNTIF(L61:L87,AD14) -> 2 | AF14: =AE14/(AG4-AE9) -> 0.07407407407 | AG14: =IF(AF14=0,0,(AF14*((LOG(AF14))/LOG(2)))) -> -0.278139815 | AI14: =N14 -> 222 | AJ14: =COUNTIF(L88:L114,AI14) -> 8 | AK14: =AJ14/(AL4-AJ9) -> 0.2962962963 | AL14: =IF(AK14=0,0,(AK14*((LOG(AK14))/LOG(2)))) -> -0.5199666673 | AN14: =N14 -> 222 | AO14: =COUNTIF(L115:L141,AN14) -> 5 | AP14: =AO14/(AQ4-AO9) -> 0.1851851852 | AQ14: =IF(AP14=0,0,(AP14*((LOG(AP14))/LOG(2)))) -> -0.4505480384 | AS14: =N14 -> 222 | AT14: =COUNTIF(L142:L168,AS14) -> 3 | AU14: =AT14/(AV4-AT9) -> 0.1111111111 | AV14: =IF(AU14=0,0,(AU14*((LOG(AU14))/LOG(2)))) -> -0.352213889
A15: 22 | B15: 1275 | C15: 14 | D15: 1301 | E15: 13 | F15: 1308 | K15: 0 | L15: 211 | P15: =SUM(P7:P14) -> 1 | Q15: =-SUM(Q7:Q14) -> 2.291314055 | V15: =SUM(V7:V14) -> 1 | W15: =-SUM(W7:W14) -> 2.494904169 | AA15: =SUM(AA7:AA14) -> 1 | AB15: =-SUM(AB7:AB14) -> 1.95678102 | AF15: =SUM(AF7:AF14) -> 1 | AG15: =-SUM(AG7:AG14) -> 1.989293633 | AK15: =SUM(AK7:AK14) -> 1 | AL15: =-SUM(AL7:AL14) -> 2.160846761 | AP15: =SUM(AP7:AP14) -> 1 | AQ15: =-SUM(AQ7:AQ14) -> 2.203263317 | AU15: =SUM(AU7:AU14) -> 1 | AV15: =-SUM(AV7:AV14) -> 1.964592675
A16: 22 | B16: 1404 | C16: 23 | D16: 1412 | E16: 13 | F16: 1421 | K16: 0 | L16: 221 | P16: U= | Q16: =Q15/(LOG(Q4)/LOG(2)) -> 0.3121745068 | V16: U1= | W16: =W15/(LOG(W4)/LOG(2)) -> 0.5247030907 | AA16: U2= | AB16: =AB15/(LOG(AB4)/LOG(2)) -> 0.4115304556 | AF16: U3= | AG16: =AG15/(LOG(AG4)/LOG(2)) -> 0.4183681806 | AK16: U4= | AL16: =AL15/(LOG(AL4)/LOG(2)) -> 0.4544475048 | AP16: U5= | AQ16: =AQ15/(LOG(AQ4)/LOG(2)) -> 0.4633681273 | AU16: U6= | AV16: =AV15/(LOG(AV4)/LOG(2)) -> 0.4131733242
A17: 22 | B17: 1517 | C17: 23 | D17: 1522 | E17: 13 | F17: 1542 | K17: 0 | L17: 221
A18: 22 | B18: 1640 | C18: 23 | D18: 1650 | E18: 13 | F18: 1661 | K18: 0 | L18: 221
A19: 22 | B19: 1760 | C19: 23 | D19: 1765 | E19: 24 | F19: 1771 | K19: 0 | L19: 222 | N19: Total Target Seq
A20: 22 | B20: 1871 | C20: 14 | D20: 1882 | E20: 13 | F20: 1888 | K20: 0 | L20: 211 | N20: =COUNTIF(L7:L168,G3) -> 0 | P20: 27 | Q20: 27 | R20: 27 | S20: 27 | T20: 27 | U20: 27
A21: 11 | B21: 1997 | C21: 12 | D21: 2002 | E21: 24 | F21: 2018 | K21: 0 | L21: 112 | P21: % of reinforcement given in 6 equal intervals based on number of trials
A22: 22 | B22: 2114 | C22: 14 | D22: 2128 | E22: 13 | F22: 2134 | K22: 0 | L22: 211 | P22: %_1 | Q22: %_2 | R22: %_3 | S22: %_4 | T22: %_5 | U22: %_6
A23: 22 | B23: 2231 | C23: 14 | D23: 2256 | E23: 13 | F23: 2263 | K23: 0 | L23: 211 | O23: target sequence | P23: =$G$3 -> 121 | Q23: =$G$3 -> 121 | R23: =$G$3 -> 121 | S23: =$G$3 -> 121 | T23: =$G$3 -> 121 | U23: =$G$3 -> 121
A24: 22 | B24: 2360 | C24: 23 | D24: 2365 | E24: 13 | F24: 2374 | K24: 0 | L24: 221 | O24: total reinforcement | P24: =U9 -> 0 | Q24: =Z9 -> 0 | R24: =AE9 -> 0 | S24: =AJ9 -> 0 | T24: =AO9 -> 0 | U24: =AT9 -> 0
A25: 22 | B25: 2479 | C25: 14 | D25: 2493 | E25: 13 | F25: 2499 | K25: 0 | L25: 211 | O25: % target
A26: 11 | B26: 2609 | C26: 21 | D26: 2632 | E26: 22 | F26: 2640 | K26: 0 | L26: 122 | O26: CCRF
A27: 22 | B27: 2649 | C27: 23 | D27: 2653 | E27: 24 | F27: 2657 | K27: 0 | L27: 222 | O27: % CCRf
A28: 22 | B28: 2780 | C28: 23 | D28: 2787 | E28: 24 | F28: 2796 | K28: 0 | L28: 222 | O28: average response rate | P28: =F33/P20 -> 160.1481481 | Q28: =(F60-F33)/Q20 -> 165.3333333 | R28: =(F87-F60)/R20 -> 131.2222222 | S28: =(F114-F87)/S20 -> 142.3333333 | T28: =(F141-F114)/T20 -> 131.037037 | U28: =(F168-F141)/U20 -> 152.4074074
A29: 22 | B29: 3809 | C29: 23 | D29: 3814 | E29: 24 | F29: 3820 | K29: 0 | L29: 222
A30: 11 | B30: 3928 | C30: 21 | D30: 3960 | E30: 22 | F30: 3967 | K30: 0 | L30: 122
A31: 22 | B31: 4065 | C31: 23 | D31: 4068 | E31: 13 | F31: 4077 | K31: 0 | L31: 221
A32: 22 | B32: 4175 | C32: 14 | D32: 4189 | E32: 24 | F32: 4204 | K32: 0 | L32: 212
A33: 22 | B33: 4304 | C33: 14 | D33: 4319 | E33: 13 | F33: 4324 | K33: 0 | L33: 211
A34: 22 | B34: 4425 | C34: 23 | D34: 4430 | E34: 13 | F34: 4438 | K34: 0 | L34: 221
A35: 11 | B35: 4579 | C35: 12 | D35: 4586 | E35: 24 | F35: 4603 | K35: 0 | L35: 112
A36: 22 | B36: 4701 | C36: 23 | D36: 4706 | E36: 13 | F36: 4716 | K36: 0 | L36: 221
A37: 22 | B37: 4813 | C37: 14 | D37: 4822 | E37: 13 | F37: 4829 | K37: 0 | L37: 211
A38: 22 | B38: 4929 | C38: 23 | D38: 4938 | E38: 13 | F38: 4949 | K38: 0 | L38: 221
A39: 22 | B39: 5046 | C39: 23 | D39: 5052 | E39: 24 | F39: 5059 | K39: 0 | L39: 222
A40: 22 | B40: 6252 | C40: 23 | D40: 6258 | E40: 24 | F40: 6264 | K40: 0 | L40: 222
A41: 11 | B41: 6373 | C41: 21 | D41: 6390 | E41: 22 | F41: 6394 | K41: 0 | L41: 122
A42: 22 | B42: 6490 | C42: 23 | D42: 6494 | E42: 13 | F42: 6504 | K42: 0 | L42: 221
A43: 22 | B43: 6600 | C43: 14 | D43: 6612 | E43: 13 | F43: 6622 | K43: 0 | L43: 211
A44: 22 | B44: 6721 | C44: 23 | D44: 6724 | E44: 13 | F44: 6734 | K44: 0 | L44: 221
A45: 22 | B45: 6829 | C45: 14 | D45: 6845 | E45: 13 | F45: 6858 | K45: 0 | L45: 211
A46: 22 | B46: 6969 | C46: 14 | D46: 6986 | E46: 13 | F46: 6991 | K46: 0 | L46: 211
A47: 22 | B47: 7089 | C47: 23 | D47: 7098 | E47: 13 | F47: 7107 | K47: 0 | L47: 221
A48: 22 | B48: 7205 | C48: 14 | D48: 7223 | E48: 13 | F48: 7230 | K48: 0 | L48: 211
A49: 22 | B49: 7340 | C49: 23 | D49: 7351 | E49: 13 | F49: 7362 | K49: 0 | L49: 221
A50: 22 | B50: 7461 | C50: 23 | D50: 7467 | E50: 13 | F50: 7478 | K50: 0 | L50: 221
A51: 11 | B51: 7576 | C51: 12 | D51: 7587 | E51: 13 | F51: 7596 | K51: 0 | L51: 111
A52: 22 | B52: 7693 | C52: 14 | D52: 7706 | E52: 13 | F52: 7711 | K52: 0 | L52: 211
A53: 22 | B53: 7812 | C53: 23 | D53: 7817 | E53: 13 | F53: 7827 | K53: 0 | L53: 221
A54: 22 | B54: 7957 | C54: 23 | D54: 7964 | E54: 13 | F54: 7978 | K54: 0 | L54: 221
A55: 22 | B55: 8077 | C55: 23 | D55: 8082 | E55: 13 | F55: 8093 | K55: 0 | L55: 221
A56: 22 | B56: 8192 | C56: 23 | D56: 8197 | E56: 13 | F56: 8207 | K56: 0 | L56: 221
A57: 22 | B57: 8399 | C57: 14 | D57: 8413 | E57: 13 | F57: 8420 | K57: 0 | L57: 211
A58: 11 | B58: 8530 | C58: 21 | D58: 8551 | E58: 22 | F58: 8555 | K58: 0 | L58: 122
A59: 22 | B59: 8656 | C59: 14 | D59: 8669 | E59: 13 | F59: 8675 | K59: 0 | L59: 211
A60: 22 | B60: 8774 | C60: 14 | D60: 8783 | E60: 13 | F60: 8788 | K60: 0 | L60: 211
A61: 22 | B61: 8888 | C61: 23 | D61: 8894 | E61: 13 | F61: 8905 | K61: 0 | L61: 221
A62: 22 | B62: 9003 | C62: 14 | D62: 9012 | E62: 13 | F62: 9018 | K62: 0 | L62: 211
A63: 22 | B63: 9117 | C63: 14 | D63: 9130 | E63: 13 | F63: 9136 | K63: 0 | L63: 211
A64: 22 | B64: 9233 | C64: 23 | D64: 9242 | E64: 13 | F64: 9250 | K64: 0 | L64: 221
A65: 22 | B65: 9440 | C65: 14 | D65: 9447 | E65: 13 | F65: 9451 | K65: 0 | L65: 211
A66: 22 | B66: 9550 | C66: 23 | D66: 9561 | E66: 13 | F66: 9571 | K66: 0 | L66: 221
A67: 22 | B67: 9668 | C67: 23 | D67: 9674 | E67: 13 | F67: 9683 | K67: 0 | L67: 221
A68: 22 | B68: 9793 | C68: 14 | D68: 9803 | E68: 13 | F68: 9808 | K68: 0 | L68: 211
A69: 22 | B69: 9908 | C69: 23 | D69: 9921 | E69: 13 | F69: 9938 | K69: 0 | L69: 221
A70: 11 | B70: 10047 | C70: 12 | D70: 10050 | E70: 13 | F70: 10067 | K70: 0 | L70: 111
A71: 11 | B71: 10175 | C71: 12 | D71: 10180 | E71: 13 | F71: 10186 | K71: 0 | L71: 111
A72: 22 | B72: 10349 | C72: 23 | D72: 10382 | E72: 13 | F72: 10391 | K72: 0 | L72: 221
A73: 11 | B73: 10499 | C73: 12 | D73: 10503 | E73: 24 | F73: 10531 | K73: 0 | L73: 112
A74: 11 | B74: 10638 | C74: 12 | D74: 10643 | E74: 13 | F74: 10650 | K74: 0 | L74: 111
A75: 11 | B75: 10757 | C75: 12 | D75: 10763 | E75: 13 | F75: 10768 | K75: 0 | L75: 111
A76: 22 | B76: 10868 | C76: 23 | D76: 10871 | E76: 13 | F76: 10882 | K76: 0 | L76: 221
A77: 22 | B77: 11027 | C77: 23 | D77: 11033 | E77: 13 | F77: 11040 | K77: 0 | L77: 221
A78: 11 | B78: 11152 | C78: 12 | D78: 11158 | E78: 24 | F78: 11176 | K78: 0 | L78: 112
A79: 22 | B79: 11276 | C79: 23 | D79: 11282 | E79: 24 | F79: 11293 | K79: 0 | L79: 222
A80: 22 | B80: 11391 | C80: 14 | D80: 11405 | E80: 13 | F80: 11410 | K80: 0 | L80: 211
A81: 22 | B81: 11508 | C81: 23 | D81: 11516 | E81: 13 | F81: 11525 | K81: 0 | L81: 221
A82: 22 | B82: 11625 | C82: 23 | D82: 11633 | E82: 13 | F82: 11643 | K82: 0 | L82: 221
A83: 22 | B83: 11742 | C83: 23 | D83: 11746 | E83: 13 | F83: 11755 | K83: 0 | L83: 221
A84: 22 | B84: 11878 | C84: 14 | D84: 11893 | E84: 13 | F84: 11899 | K84: 0 | L84: 211
A85: 22 | B85: 11996 | C85: 23 | D85: 12000 | E85: 13 | F85: 12018 | K85: 0 | L85: 221
A86: 22 | B86: 12117 | C86: 14 | D86: 12134 | E86: 13 | F86: 12139 | K86: 0 | L86: 211
A87: 22 | B87: 12321 | C87: 23 | D87: 12325 | E87: 24 | F87: 12331 | K87: 0 | L87: 222
A88: 22 | B88: 12427 | C88: 23 | D88: 12432 | E88: 13 | F88: 12444 | K88: 0 | L88: 221
A89: 22 | B89: 12544 | C89: 23 | D89: 12550 | E89: 24 | F89: 12556 | K89: 0 | L89: 222
A90: 22 | B90: 12655 | C90: 14 | D90: 12666 | E90: 13 | F90: 12670 | K90: 0 | L90: 211
A91: 22 | B91: 12768 | C91: 14 | D91: 12780 | E91: 13 | F91: 12784 | K91: 0 | L91: 211
A92: 22 | B92: 12880 | C92: 23 | D92: 12883 | E92: 13 | F92: 12892 | K92: 0 | L92: 221
A93: 22 | B93: 12992 | C93: 14 | D93: 13006 | E93: 13 | F93: 13012 | K93: 0 | L93: 211
A94: 22 | B94: 13108 | C94: 23 | D94: 13115 | E94: 13 | F94: 13124 | K94: 0 | L94: 221
A95: 22 | B95: 13606 | C95: 23 | D95: 13610 | E95: 24 | F95: 13616 | K95: 0 | L95: 222
A96: 22 | B96: 13717 | C96: 23 | D96: 13724 | E96: 13 | F96: 13732 | K96: 0 | L96: 221
A97: 22 | B97: 13832 | C97: 23 | D97: 13837 | E97: 24 | F97: 13841 | K97: 0 | L97: 222
A98: 22 | B98: 13938 | C98: 23 | D98: 13946 | E98: 24 | F98: 13952 | K98: 0 | L98: 222
A99: 22 | B99: 14052 | C99: 23 | D99: 14056 | E99: 24 | F99: 14062 | K99: 0 | L99: 222
A100: 22 | B100: 14157 | C100: 23 | D100: 14162 | E100: 13 | F100: 14171 | K100: 0 | L100: 221
A101: 22 | B101: 14267 | C101: 23 | D101: 14271 | E101: 13 | F101: 14282 | K101: 0 | L101: 221
A102: 22 | B102: 14382 | C102: 14 | D102: 14394 | E102: 24 | F102: 14408 | K102: 0 | L102: 212
A103: 22 | B103: 14504 | C103: 23 | D103: 14509 | E103: 13 | F103: 14519 | K103: 0 | L103: 221
A104: 22 | B104: 14614 | C104: 23 | D104: 14616 | E104: 24 | F104: 14622 | K104: 0 | L104: 222
A105: 22 | B105: 14718 | C105: 23 | D105: 14724 | E105: 13 | F105: 14734 | K105: 0 | L105: 221
A106: 22 | B106: 14830 | C106: 23 | D106: 14834 | E106: 13 | F106: 14841 | K106: 0 | L106: 221
A107: 22 | B107: 14992 | C107: 23 | D107: 14998 | E107: 24 | F107: 15005 | K107: 0 | L107: 222
A108: 22 | B108: 15101 | C108: 14 | D108: 15117 | E108: 13 | F108: 15122 | K108: 0 | L108: 211
A109: 11 | B109: 15229 | C109: 21 | D109: 15257 | E109: 22 | F109: 15265 | K109: 0 | L109: 122
A110: 22 | B110: 15363 | C110: 23 | D110: 15370 | E110: 24 | F110: 15379 | K110: 0 | L110: 222
A111: 22 | B111: 15474 | C111: 14 | D111: 15484 | E111: 13 | F111: 15489 | K111: 0 | L111: 211
A112: 22 | B112: 15884 | C112: 14 | D112: 15904 | E112: 13 | F112: 15909 | K112: 0 | L112: 211
A113: 11 | B113: 16023 | C113: 21 | D113: 16036 | E113: 22 | F113: 16042 | K113: 0 | L113: 122
A114: 11 | B114: 16149 | C114: 12 | D114: 16161 | E114: 24 | F114: 16174 | K114: 0 | L114: 112
A115: 22 | B115: 16274 | C115: 23 | D115: 16277 | E115: 24 | F115: 16282 | K115: 0 | L115: 222
A116: 22 | B116: 16383 | C116: 23 | D116: 16388 | E116: 24 | F116: 16394 | K116: 0 | L116: 222
A117: 22 | B117: 16490 | C117: 23 | D117: 16507 | E117: 13 | F117: 16517 | K117: 0 | L117: 221
A118: 22 | B118: 16615 | C118: 23 | D118: 16621 | E118: 13 | F118: 16629 | K118: 0 | L118: 221
A119: 11 | B119: 16740 | C119: 12 | D119: 16745 | E119: 13 | F119: 16752 | K119: 0 | L119: 111
A120: 22 | B120: 16851 | C120: 14 | D120: 16864 | E120: 24 | F120: 16882 | K120: 0 | L120: 212
A121: 22 | B121: 16981 | C121: 14 | D121: 16994 | E121: 13 | F121: 16999 | K121: 0 | L121: 211
A122: 22 | B122: 17096 | C122: 23 | D122: 17102 | E122: 13 | F122: 17112 | K122: 0 | L122: 221
A123: 22 | B123: 17210 | C123: 14 | D123: 17224 | E123: 13 | F123: 17230 | K123: 0 | L123: 211
A124: 22 | B124: 17328 | C124: 23 | D124: 17335 | E124: 13 | F124: 17344 | K124: 0 | L124: 221
A125: 11 | B125: 17450 | C125: 12 | D125: 17456 | E125: 24 | F125: 17471 | K125: 0 | L125: 112
A126: 22 | B126: 17570 | C126: 14 | D126: 17589 | E126: 13 | F126: 17599 | K126: 0 | L126: 211
A127: 22 | B127: 17698 | C127: 23 | D127: 17702 | E127: 13 | F127: 17714 | K127: 0 | L127: 221
A128: 22 | B128: 17850 | C128: 14 | D128: 17862 | E128: 13 | F128: 17865 | K128: 0 | L128: 211
A129: 22 | B129: 18000 | C129: 14 | D129: 18020 | E129: 24 | F129: 18036 | K129: 0 | L129: 212
A130: 22 | B130: 18137 | C130: 23 | D130: 18141 | E130: 13 | F130: 18150 | K130: 0 | L130: 221
A131: 22 | B131: 18270 | C131: 14 | D131: 18287 | E131: 13 | F131: 18295 | K131: 0 | L131: 211
A132: 22 | B132: 18401 | C132: 23 | D132: 18407 | E132: 13 | F132: 18415 | K132: 0 | L132: 221
A133: 22 | B133: 18544 | C133: 14 | D133: 18558 | E133: 13 | F133: 18568 | K133: 0 | L133: 211
A134: 22 | B134: 18695 | C134: 14 | D134: 18720 | E134: 24 | F134: 18735 | K134: 0 | L134: 212
A135: 22 | B135: 18834 | C135: 23 | D135: 18838 | E135: 13 | F135: 18856 | K135: 0 | L135: 221
A136: 22 | B136: 18978 | C136: 23 | D136: 18983 | E136: 24 | F136: 18989 | K136: 0 | L136: 222
A137: 22 | B137: 19098 | C137: 14 | D137: 19122 | E137: 13 | F137: 19131 | K137: 0 | L137: 211
A138: 22 | B138: 19230 | C138: 23 | D138: 19236 | E138: 24 | F138: 19242 | K138: 0 | L138: 222
A139: 22 | B139: 19411 | C139: 23 | D139: 19418 | E139: 13 | F139: 19435 | K139: 0 | L139: 221
A140: 22 | B140: 19584 | C140: 23 | D140: 19590 | E140: 24 | F140: 19597 | K140: 0 | L140: 222
A141: 22 | B141: 19695 | C141: 14 | D141: 19705 | E141: 13 | F141: 19712 | K141: 0 | L141: 211
A142: 22 | B142: 19811 | C142: 14 | D142: 19823 | E142: 13 | F142: 19830 | K142: 0 | L142: 211
A143: 22 | B143: 19950 | C143: 14 | D143: 19959 | E143: 13 | F143: 19962 | K143: 0 | L143: 211
A144: 22 | B144: 20061 | C144: 23 | D144: 20065 | E144: 13 | F144: 20083 | K144: 0 | L144: 221
A145: 22 | B145: 20180 | C145: 14 | D145: 20191 | E145: 13 | F145: 20200 | K145: 0 | L145: 211
A146: 22 | B146: 20335 | C146: 14 | D146: 20348 | E146: 13 | F146: 20362 | K146: 0 | L146: 211
A147: 22 | B147: 20461 | C147: 23 | D147: 20467 | E147: 13 | F147: 20482 | K147: 0 | L147: 221
A148: 22 | B148: 20616 | C148: 14 | D148: 20642 | E148: 13 | F148: 20671 | K148: 0 | L148: 211
A149: 22 | B149: 20768 | C149: 23 | D149: 20774 | E149: 24 | F149: 20800 | K149: 0 | L149: 222
A150: 22 | B150: 20950 | C150: 14 | D150: 20975 | E150: 13 | F150: 20983 | K150: 0 | L150: 211
A151: 22 | B151: 21347 | C151: 23 | D151: 21351 | E151: 24 | F151: 21357 | K151: 0 | L151: 222
A152: 11 | B152: 21475 | C152: 12 | D152: 21481 | E152: 24 | F152: 21493 | K152: 0 | L152: 112
A153: 22 | B153: 21621 | C153: 23 | D153: 21627 | E153: 13 | F153: 21641 | K153: 0 | L153: 221
A154: 11 | B154: 21753 | C154: 12 | D154: 21767 | E154: 24 | F154: 21779 | K154: 0 | L154: 112
A155: 22 | B155: 21879 | C155: 23 | D155: 21885 | E155: 24 | F155: 21894 | K155: 0 | L155: 222
A156: 22 | B156: 22010 | C156: 14 | D156: 22037 | E156: 13 | F156: 22042 | K156: 0 | L156: 211
A157: 22 | B157: 22145 | C157: 23 | D157: 22158 | E157: 13 | F157: 22166 | K157: 0 | L157: 221
A158: 22 | B158: 22295 | C158: 23 | D158: 22304 | E158: 13 | F158: 22321 | K158: 0 | L158: 221
A159: 22 | B159: 22432 | C159: 14 | D159: 22458 | E159: 13 | F159: 22466 | K159: 0 | L159: 211
A160: 22 | B160: 22566 | C160: 23 | D160: 22574 | E160: 13 | F160: 22582 | K160: 0 | L160: 221
A161: 22 | B161: 22680 | C161: 23 | D161: 22685 | E161: 13 | F161: 22693 | K161: 0 | L161: 221
A162: 22 | B162: 22809 | C162: 14 | D162: 22816 | E162: 13 | F162: 22820 | K162: 0 | L162: 211
A163: 22 | B163: 22924 | C163: 14 | D163: 22957 | E163: 24 | F163: 22974 | K163: 0 | L163: 212
A164: 22 | B164: 23203 | C164: 14 | D164: 23211 | E164: 24 | F164: 23235 | K164: 0 | L164: 212
A165: 22 | B165: 23367 | C165: 23 | D165: 23372 | E165: 13 | F165: 23382 | K165: 0 | L165: 221
A166: 22 | B166: 23481 | C166: 23 | D166: 23484 | E166: 13 | F166: 23493 | K166: 0 | L166: 221
A167: 22 | B167: 23609 | C167: 23 | D167: 23624 | E167: 13 | F167: 23632 | K167: 0 | L167: 221
A168: 22 | B168: 23808 | C168: 23 | D168: 23818 | E168: 13 | F168: 23827 | K168: 0 | L168: 221

Sheet !M215A3I.sha
A1: Report for:!M215A3I.sha
A2: Date: | B2: <date>
A3: Hen: | B3: <hen> | F3: Correct Sequence | G3: =Start!J2 -> 121 | P3: Total Sequences in Data | Q3: =4994-COUNTBLANK(L7:L5000) -> 169 | V3: Total Sequences in Block Data | W3: =COUNTA(L7:L34) -> 28 | AA3: Total Sequences in Block Data | AB3: =COUNTA(L35:L62) -> 28 | AF3: Total Sequences in Block Data | AG3: =COUNTA(L63:L91) -> 29 | AK3: Total Sequences in Block Data | AL3: =COUNTA(L92:L119) -> 28 | AP3: Total Sequences in Block Data | AQ3: =COUNTA(L120:L147) -> 28 | AU3: Total Sequences in Block Data | AV3: =COUNTA(L148:L175) -> 28
P4: Total Sequences in Summary | Q4: =SUM(O7:O14) -> 169 | V4: Total Sequences in Block Summary | W4: =SUM(U7:U14) -> 28 | AA4: Total Sequences in Block Summary | AB4: =SUM(Z7:Z14) -> 28 | AF4: Total Sequences in Block Summary | AG4: =SUM(AE7:AE14) -> 29 | AK4: Total Sequences in Block Summary | AL4: =SUM(AJ7:AJ14) -> 28 | AP4: Total Sequences in Block Summary | AQ4: =SUM(AO7:AO14) -> 28 | AU4: Total Sequences in Block Summary | AV4: =SUM(AT7:AT14) -> 28
T5: Block 1 | Y5: Block 2 | AD5: Block 3 | AI5: Block 4 | AN5: Block 5 | AS5: Block 6
A6: Sequence Component 1 | B6: Time 1 | C6: Sequence Component 2 | D6: Time 2 | E6: Sequence Component 3 | F6: Time 3 | G6: Sequence Component 4 | H6: Time 4 | I6: Sequence Component 5 | J6: Time 5 | K6: Correct? 0=No 1=Yes | L6: Sequence | N6: Frequency | P6: Relative Frequency | Q6: Variability | T6: Frequency | V6: Relative Frequency | W6: Variability | Y6: Frequency | AA6: Relative Frequency | AB6: Variability | AD6: Frequency | AF6: Relative Frequency | AG6: Variability | AI6: Frequency | AK6: Relative Frequency | AL6: Variability | AN6: Frequency | AP6: Relative Frequency | AQ6: Variability | AS6: Frequency | AU6: Relative Frequency | AV6: Variability
A7: 22 | B7: 7 | C7: 23 | D7: 31 | E7: 24 | F7: 36 | K7: 0 | L7: 222 | N7: 111 | O7: =COUNTIF($L$7:$L$500,N7) -> 5 | P7: =O7/$Q$4 -> 0.02958579882 | Q7: =IF(P7=0,0,(P7*((LOG(P7))/LOG(2)))) -> -0.1502648326 | T7: =N7 -> 111 | U7: =COUNTIF(L7:L34,T7) -> 2 | V7: =U7/(W4-U9) -> 0.07142857143 | W7: =IF(V7=0,0,(V7*((LOG(V7))/LOG(2)))) -> -0.271953923 | Y7: =N7 -> 111 | Z7: =COUNTIF(L35:L62,Y7) -> 0 | AA7: =Z7/(AB4-Z9) -> 0 | AB7: =IF(AA7=0,0,(AA7*((LOG(AA7))/LOG(2)))) -> 0 | AD7: =N7 -> 111 | AE7: =COUNTIF(L63:L91,AD7) -> 0 | AF7: =AE7/(AG4-AE9) -> 0 | AG7: =IF(AF7=0,0,(AF7*((LOG(AF7))/LOG(2)))) -> 0 | AI7: =N7 -> 111 | AJ7: =COUNTIF(L92:L119,AI7) -> 0 | AK7: =AJ7/(AL4-AJ9) -> 0 | AL7: =IF(AK7=0,0,(AK7*((LOG(AK7))/LOG(2)))) -> 0 | AN7: =N7 -> 111 | AO7: =COUNTIF(L120:L147,AN7) -> 1 | AP7: =AO7/(AQ4-AO9) -> 0.03571428571 | AQ7: =IF(AP7=0,0,(AP7*((LOG(AP7))/LOG(2)))) -> -0.1716912472 | AS7: =N7 -> 111 | AT7: =COUNTIF(L148:L175,AS7) -> 2 | AU7: =AT7/(AV4-AT9) -> 0.07692307692 | AV7: =IF(AU7=0,0,(AU7*((LOG(AU7))/LOG(2)))) -> -0.2846492091
A8: 22 | B8: 136 | C8: 14 | D8: 146 | E8: 13 | F8: 153 | K8: 0 | L8: 211 | N8: 112 | O8: =COUNTIF($L$7:$L$500,N8) -> 17 | P8: =O8/$Q$4 -> 0.100591716 | Q8: =IF(P8=0,0,(P8*((LOG(P8))/LOG(2)))) -> -0.333302261 | T8: =N8 -> 112 | U8: =COUNTIF(L7:L34,T8) -> 4 | V8: =U8/(W4-U9) -> 0.1428571429 | W8: =IF(V8=0,0,(V8*((LOG(V8))/LOG(2)))) -> -0.4010507032 | Y8: =N8 -> 112 | Z8: =COUNTIF(L35:L62,Y8) -> 3 | AA8: =Z8/(AB4-Z9) -> 0.1071428571 | AB8: =IF(AA8=0,0,(AA8*((LOG(AA8))/LOG(2)))) -> -0.3452563309 | AD8: =N8 -> 112 | AE8: =COUNTIF(L63:L91,AD8) -> 5 | AF8: =AE8/(AG4-AE9) -> 0.1724137931 | AG8: =IF(AF8=0,0,(AF8*((LOG(AF8))/LOG(2)))) -> -0.4372505 | AI8: =N8 -> 112 | AJ8: =COUNTIF(L92:L119,AI8) -> 0 | AK8: =AJ8/(AL4-AJ9) -> 0 | AL8: =IF(AK8=0,0,(AK8*((LOG(AK8))/LOG(2)))) -> 0 | AN8: =N8 -> 112 | AO8: =COUNTIF(L120:L147,AN8) -> 3 | AP8: =AO8/(AQ4-AO9) -> 0.1071428571 | AQ8: =IF(AP8=0,0,(AP8*((LOG(AP8))/LOG(2)))) -> -0.3452563309 | AS8: =N8 -> 112 | AT8: =COUNTIF(L148:L175,AS8) -> 2 | AU8: =AT8/(AV4-AT9) -> 0.07692307692 | AV8: =IF(AU8=0,0,(AU8*((LOG(AU8))/LOG(2)))) -> -0.2846492091
A9: 11 | B9: 263 | C9: 12 | D9: 265 | E9: 13 | F9: 270 | K9: 0 | L9: 111 | N9: 121 | O9: =COUNTIF($L$7:$L$500,N9) -> 2 | P9: =O9/$Q$4 -> 0.01183431953 | Q9: =IF(P9=0,0,(P9*((LOG(P9))/LOG(2)))) -> -0.0757500525 | T9: =N9 -> 121 | U9: =COUNTIF(L7:L34,T9) -> 0 | Y9: =N9 -> 121 | Z9: =COUNTIF(L35:L62,Y9) -> 0 | AD9: =N9 -> 121 | AE9: =COUNTIF(L63:L91,AD9) -> 0 | AI9: =N9 -> 121 | AJ9: =COUNTIF(L92:L119,AI9) -> 0 | AN9: =N9 -> 121 | AO9: =COUNTIF(L120:L147,AN9) -> 0 | AS9: =N9 -> 121 | AT9: =COUNTIF(L148:L175,AS9) -> 2
A10: 22 | B10: 371 | C10: 14 | D10: 379 | E10: 24 | F10: 399 | K10: 0 | L10: 212 | N10: 122 | O10: =COUNTIF($L$7:$L$500,N10) -> 10 | P10: =O10/$Q$4 -> 0.05917159763 | Q10: =IF(P10=0,0,(P10*((LOG(P10))/LOG(2)))) -> -0.2413580675 | T10: =N10 -> 122 | U10: =COUNTIF(L7:L34,T10) -> 2 | V10: =U10/(W4-U9) -> 0.07142857143 | W10: =IF(V10=0,0,(V10*((LOG(V10))/LOG(2)))) -> -0.271953923 | Y10: =N10 -> 122 | Z10: =COUNTIF(L35:L62,Y10) -> 0 | AA10: =Z10/(AB4-Z9) -> 0 | AB10: =IF(AA10=0,0,(AA10*((LOG(AA10))/LOG(2)))) -> 0 | AD10: =N10 -> 122 | AE10: =COUNTIF(L63:L91,AD10) -> 0 | AF10: =AE10/(AG4-AE9) -> 0 | AG10: =IF(AF10=0,0,(AF10*((LOG(AF10))/LOG(2)))) -> 0 | AI10: =N10 -> 122 | AJ10: =COUNTIF(L92:L119,AI10) -> 3 | AK10: =AJ10/(AL4-AJ9) -> 0.1071428571 | AL10: =IF(AK10=0,0,(AK10*((LOG(AK10))/LOG(2)))) -> -0.3452563309 | AN10: =N10 -> 122 | AO10: =COUNTIF(L120:L147,AN10) -> 3 | AP10: =AO10/(AQ4-AO9) -> 0.1071428571 | AQ10: =IF(AP10=0,0,(AP10*((LOG(AP10))/LOG(2)))) -> -0.3452563309 | AS10: =N10 -> 122 | AT10: =COUNTIF(L148:L175,AS10) -> 2 | AU10: =AT10/(AV4-AT9) -> 0.07692307692 | AV10: =IF(AU10=0,0,(AU10*((LOG(AU10))/LOG(2)))) -> -0.2846492091
A11: 11 | B11: 502 | C11: 12 | D11: 507 | E11: 24 | F11: 516 | K11: 0 | L11: 112 | N11: 211 | O11: =COUNTIF($L$7:$L$500,N11) -> 47 | P11: =O11/$Q$4 -> 0.2781065089 | Q11: =IF(P11=0,0,(P11*((LOG(P11))/LOG(2)))) -> -0.5134654289 | T11: =N11 -> 211 | U11: =COUNTIF(L7:L34,T11) -> 12 | V11: =U11/(W4-U9) -> 0.4285714286 | W11: =IF(V11=0,0,(V11*((LOG(V11))/LOG(2)))) -> -0.5238824663 | Y11: =N11 -> 211 | Z11: =COUNTIF(L35:L62,Y11) -> 9 | AA11: =Z11/(AB4-Z9) -> 0.3214285714 | AB11: =IF(AA11=0,0,(AA11*((LOG(AA11))/LOG(2)))) -> -0.5263167602 | AD11: =N11 -> 211 | AE11: =COUNTIF(L63:L91,AD11) -> 9 | AF11: =AE11/(AG4-AE9) -> 0.3103448276 | AG11: =IF(AF11=0,0,(AF11*((LOG(AF11))/LOG(2)))) -> -0.5238794463 | AI11: =N11 -> 211 | AJ11: =COUNTIF(L92:L119,AI11) -> 8 | AK11: =AJ11/(AL4-AJ9) -> 0.2857142857 | AL11: =IF(AK11=0,0,(AK11*((LOG(AK11))/LOG(2)))) -> -0.5163871206 | AN11: =N11 -> 211 | AO11: =COUNTIF(L120:L147,AN11) -> 1 | AP11: =AO11/(AQ4-AO9) -> 0.03571428571 | AQ11: =IF(AP11=0,0,(AP11*((LOG(AP11))/LOG(2)))) -> -0.1716912472 | AS11: =N11 -> 211 | AT11: =COUNTIF(L148:L175,AS11) -> 8 | AU11: =AT11/(AV4-AT9) -> 0.3076923077 | AV11: =IF(AU11=0,0,(AU11*((LOG(AU11))/LOG(2)))) -> -0.523212221
A12: 22 | B12: 617 | C12: 14 | D12: 626 | E12: 13 | F12: 632 | K12: 0 | L12: 211 | N12: 212 | O12: =COUNTIF($L$7:$L$500,N12) -> 16 | P12: =O12/$Q$4 -> 0.09467455621 | Q12: =IF(P12=0,0,(P12*((LOG(P12))/LOG(2)))) -> -0.3219767514 | T12: =N12 -> 212 | U12: =COUNTIF(L7:L34,T12) -> 2 | V12: =U12/(W4-U9) -> 0.07142857143 | W12: =IF(V12=0,0,(V12*((LOG(V12))/LOG(2)))) -> -0.271953923 | Y12: =N12 -> 212 | Z12: =COUNTIF(L35:L62,Y12) -> 3 | AA12: =Z12/(AB4-Z9) -> 0.1071428571 | AB12: =IF(AA12=0,0,(AA12*((LOG(AA12))/LOG(2)))) -> -0.3452563309 | AD12: =N12 -> 212 | AE12: =COUNTIF(L63:L91,AD12) -> 3 | AF12: =AE12/(AG4-AE9) -> 0.1034482759 | AG12: =IF(AF12=0,0,(AF12*((LOG(AF12))/LOG(2)))) -> -0.3385881201 | AI12: =N12 -> 212 | AJ12: =COUNTIF(L92:L119,AI12) -> 2 | AK12: =AJ12/(AL4-AJ9) -> 0.07142857143 | AL12: =IF(AK12=0,0,(AK12*((LOG(AK12))/LOG(2)))) -> -0.271953923 | AN12: =N12 -> 212 | AO12: =COUNTIF(L120:L147,AN12) -> 5 | AP12: =AO12/(AQ4-AO9) -> 0.1785714286 | AQ12: =IF(AP12=0,0,(AP12*((LOG(AP12))/LOG(2)))) -> -0.4438262191 | AS12: =N12 -> 212 | AT12: =COUNTIF(L148:L175,AS12) -> 1 | AU12: =AT12/(AV4-AT9) -> 0.03846153846 | AV12: =IF(AU12=0,0,(AU12*((LOG(AU12))/LOG(2)))) -> -0.180786143
A13: 22 | B13: 733 | C13: 14 | D13: 745 | E13: 13 | F13: 752 | K13: 0 | L13: 211 | N13: 221 | O13: =COUNTIF($L$7:$L$500,N13) -> 39 | P13: =O13/$Q$4 -> 0.2307692308 | Q13: =IF(P13=0,0,(P13*((LOG(P13))/LOG(2)))) -> -0.4881870502 | T13: =N13 -> 221 | U13: =COUNTIF(L7:L34,T13) -> 4 | V13: =U13/(W4-U9) -> 0.1428571429 | W13: =IF(V13=0,0,(V13*((LOG(V13))/LOG(2)))) -> -0.4010507032 | Y13: =N13 -> 221 | Z13: =COUNTIF(L35:L62,Y13) -> 9 | AA13: =Z13/(AB4-Z9) -> 0.3214285714 | AB13: =IF(AA13=0,0,(AA13*((LOG(AA13))/LOG(2)))) -> -0.5263167602 | AD13: =N13 -> 221 | AE13: =COUNTIF(L63:L91,AD13) -> 6 | AF13: =AE13/(AG4-AE9) -> 0.2068965517 | AG13: =IF(AF13=0,0,(AF13*((LOG(AF13))/LOG(2)))) -> -0.4702796885 | AI13: =N13 -> 221 | AJ13: =COUNTIF(L92:L119,AI13) -> 7 | AK13: =AJ13/(AL4-AJ9) -> 0.25 | AL13: =IF(AK13=0,0,(AK13*((LOG(AK13))/LOG(2)))) -> -0.5 | AN13: =N13 -> 221 | AO13: =COUNTIF(L120:L147,AN13) -> 8 | AP13: =AO13/(AQ4-AO9) -> 0.2857142857 | AQ13: =IF(AP13=0,0,(AP13*((LOG(AP13))/LOG(2)))) -> -0.5163871206 | AS13: =N13 -> 221 | AT13: =COUNTIF(L148:L175,AS13) -> 5 | AU13: =AT13/(AV4-AT9) -> 0.1923076923 | AV13: =IF(AU13=0,0,(AU13*((LOG(AU13))/LOG(2)))) -> -0.4574060814
A14: 22 | B14: 850 | C14: 23 | D14: 859 | E14: 13 | F14: 868 | K14: 0 | L14: 221 | N14: 222 | O14: =COUNTIF($L$7:$L$500,N14) -> 33 | P14: =O14/$Q$4 -> 0.1952662722 | Q14: =IF(P14=0,0,(P14*((LOG(P14))/LOG(2)))) -> -0.4601421033 | T14: =N14 -> 222 | U14: =COUNTIF(L7:L34,T14) -> 2 | V14: =U14/(W4-U9) -> 0.07142857143 | W14: =IF(V14=0,0,(V14*((LOG(V14))/LOG(2)))) -> -0.271953923 | Y14: =N14 -> 222 | Z14: =COUNTIF(L35:L62,Y14) -> 4 | AA14: =Z14/(AB4-Z9) -> 0.1428571429 | AB14: =IF(AA14=0,0,(AA14*((LOG(AA14))/LOG(2)))) -> -0.4010507032 | AD14: =N14 -> 222 | AE14: =COUNTIF(L63:L91,AD14) -> 6 | AF14: =AE14/(AG4-AE9) -> 0.2068965517 | AG14: =IF(AF14=0,0,(AF14*((LOG(AF14))/LOG(2)))) -> -0.4702796885 | AI14: =N14 -> 222 | AJ14: =COUNTIF(L92:L119,AI14) -> 8 | AK14: =AJ14/(AL4-AJ9) -> 0.2857142857 | AL14: =IF(AK14=0,0,(AK14*((LOG(AK14))/LOG(2)))) -> -0.5163871206 | AN14: =N14 -> 222 | AO14: =COUNTIF(L120:L147,AN14) -> 7 | AP14: =AO14/(AQ4-AO9) -> 0.25 | AQ14: =IF(AP14=0,0,(AP14*((LOG(AP14))/LOG(2)))) -> -0.5 | AS14: =N14 -> 222 | AT14: =COUNTIF(L148:L175,AS14) -> 6 | AU14: =AT14/(AV4-AT9) -> 0.2307692308 | AV14: =IF(AU14=0,0,(AU14*((LOG(AU14))/LOG(2)))) -> -0.4881870502
A15: 22 | B15: 965 | C15: 23 | D15: 968 | E15: 24 | F15: 984 | K15: 0 | L15: 222 | P15: =SUM(P7:P14) -> 1 | Q15: =-SUM(Q7:Q14) -> 2.584446547 | V15: =SUM(V7:V14) -> 1 | W15: =-SUM(W7:W14) -> 2.413799565 | AA15: =SUM(AA7:AA14) -> 1 | AB15: =-SUM(AB7:AB14) -> 2.144196885 | AF15: =SUM(AF7:AF14) -> 1 | AG15: =-SUM(AG7:AG14) -> 2.240277443 | AK15: =SUM(AK7:AK14) -> 1 | AL15: =-SUM(AL7:AL14) -> 2.149984495 | AP15: =SUM(AP7:AP14) -> 1 | AQ15: =-SUM(AQ7:AQ14) -> 2.494108496 | AU15: =SUM(AU7:AU14) -> 1 | AV15: =-SUM(AV7:AV14) -> 2.503539123
A16: 22 | B16: 1082 | C16: 14 | D16: 1092 | E16: 13 | F16: 1096 | K16: 0 | L16: 211 | P16: U= | Q16: =Q15/(LOG(Q4)/LOG(2)) -> 0.3492080326 | V16: U1= | W16: =W15/(LOG(W4)/LOG(2)) -> 0.5021055453 | AA16: U2= | AB16: =AB15/(LOG(AB4)/LOG(2)) -> 0.4460242524 | AF16: U3= | AG16: =AG15/(LOG(AG4)/LOG(2)) -> 0.4611540156 | AK16: U4= | AL16: =AL15/(LOG(AL4)/LOG(2)) -> 0.4472281597 | AP16: U5= | AQ16: =AQ15/(LOG(AQ4)/LOG(2)) -> 0.5188109753 | AU16: U6= | AV16: =AV15/(LOG(AV4)/LOG(2)) -> 0.5207726834
A17: 22 | B17: 1194 | C17: 14 | D17: 1205 | E17: 13 | F17: 1210 | K17: 0 | L17: 211
A18: 22 | B18: 1308 | C18: 23 | D18: 1315 | E18: 13 | F18: 1324 | K18: 0 | L18: 221
A19: 22 | B19: 1483 | C19: 23 | D19: 1488 | E19: 13 | F19: 1499 | K19: 0 | L19: 221 | N19: Total Target Seq
A20: 22 | B20: 1599 | C20: 14 | D20: 1607 | E20: 13 | F20: 1610 | K20: 0 | L20: 211 | N20: =COUNTIF(L7:L175,G3) -> 2 | P20: 28 | Q20: 28 | R20: 29 | S20: 28 | T20: 28 | U20: 28
A21: 11 | B21: 1724 | C21: 12 | D21: 1729 | E21: 24 | F21: 1745 | K21: 0 | L21: 112 | P21: % of reinforcement given in 6 equal intervals based on number of trials
A22: 22 | B22: 1845 | C22: 14 | D22: 1860 | E22: 13 | F22: 1866 | K22: 0 | L22: 211 | P22: %_1 | Q22: %_2 | R22: %_3 | S22: %_4 | T22: %_5 | U22: %_6
A23: 11 | B23: 1970 | C23: 12 | D23: 1974 | E23: 24 | F23: 1984 | K23: 0 | L23: 112 | O23: target sequence | P23: =$G$3 -> 121 | Q23: =$G$3 -> 121 | R23: =$G$3 -> 121 | S23: =$G$3 -> 121 | T23: =$G$3 -> 121 | U23: =$G$3 -> 121
A24: 22 | B24: 2082 | C24: 14 | D24: 2092 | E24: 13 | F24: 2099 | K24: 0 | L24: 211 | O24: total reinforcement | P24: =U9 -> 0 | Q24: =Z9 -> 0 | R24: =AE9 -> 0 | S24: =AJ9 -> 0 | T24: =AO9 -> 0 | U24: =AT9 -> 2
A25: 22 | B25: 2201 | C25: 14 | D25: 2209 | E25: 13 | F25: 2212 | K25: 0 | L25: 211 | O25: % target
A26: 22 | B26: 2310 | C26: 23 | D26: 2313 | E26: 13 | F26: 2320 | K26: 0 | L26: 221 | O26: CCRF
A27: 11 | B27: 2483 | C27: 12 | D27: 2488 | E27: 24 | F27: 2501 | K27: 0 | L27: 112 | O27: % CCRf
A28: 22 | B28: 2600 | C28: 14 | D28: 2618 | E28: 13 | F28: 2624 | K28: 0 | L28: 211 | O28: average response rate | P28: =F34/P20 -> 118.8928571 | Q28: =(F62-F34)/Q20 -> 140.4285714 | R28: =(F91-F62)/R20 -> 129.2068966 | S28: =(F119-F91)/S20 -> 145.8214286 | T28: =(F147-F119)/T20 -> 138.9285714 | U28: =(F175-F147)/U20 -> 178.4285714
A29: 22 | B29: 2723 | C29: 14 | D29: 2732 | E29: 13 | F29: 2737 | K29: 0 | L29: 211
A30: 11 | B30: 2843 | C30: 12 | D30: 2845 | E30: 13 | F30: 2850 | K30: 0 | L30: 111
A31: 22 | B31: 3019 | C31: 14 | D31: 3027 | E31: 13 | F31: 3031 | K31: 0 | L31: 211
A32: 11 | B32: 3141 | C32: 21 | D32: 3157 | E32: 22 | F32: 3162 | K32: 0 | L32: 122
A33: 22 | B33: 3169 | C33: 14 | D33: 3178 | E33: 24 | F33: 3192 | K33: 0 | L33: 212
A34: 11 | B34: 3303 | C34: 21 | D34: 3323 | E34: 22 | F34: 3329 | K34: 0 | L34: 122
A35: 11 | B35: 3465 | C35: 12 | D35: 3469 | E35: 24 | F35: 3488 | K35: 0 | L35: 112
A36: 11 | B36: 3598 | C36: 12 | D36: 3602 | E36: 24 | F36: 3621 | K36: 0 | L36: 112
A37: 22 | B37: 3733 | C37: 14 | D37: 3748 | E37: 13 | F37: 3763 | K37: 0 | L37: 211
A38: 22 | B38: 3860 | C38: 23 | D38: 3865 | E38: 13 | F38: 3873 | K38: 0 | L38: 221
A39: 22 | B39: 3972 | C39: 23 | D39: 3974 | E39: 24 | F39: 3981 | K39: 0 | L39: 222
A40: 22 | B40: 4080 | C40: 14 | D40: 4089 | E40: 13 | F40: 4096 | K40: 0 | L40: 211
A41: 22 | B41: 4194 | C41: 14 | D41: 4205 | E41: 13 | F41: 4212 | K41: 0 | L41: 211
A42: 11 | B42: 4312 | C42: 12 | D42: 4316 | E42: 24 | F42: 4326 | K42: 0 | L42: 112
A43: 22 | B43: 4420 | C43: 14 | D43: 4433 | E43: 13 | F43: 4436 | K43: 0 | L43: 211
A44: 22 | B44: 4869 | C44: 23 | D44: 4875 | E44: 24 | F44: 4881 | K44: 0 | L44: 222
A45: 22 | B45: 4980 | C45: 14 | D45: 4995 | E45: 13 | F45: 5004 | K45: 0 | L45: 211
A46: 22 | B46: 5103 | C46: 23 | D46: 5108 | E46: 13 | F46: 5115 | K46: 0 | L46: 221
A47: 22 | B47: 5211 | C47: 14 | D47: 5237 | E47: 24 | F47: 5256 | K47: 0 | L47: 212
A48: 22 | B48: 5355 | C48: 23 | D48: 5359 | E48: 13 | F48: 5385 | K48: 0 | L48: 221
A49: 22 | B49: 5485 | C49: 23 | D49: 5489 | E49: 24 | F49: 5495 | K49: 0 | L49: 222
A50: 22 | B50: 5671 | C50: 14 | D50: 5684 | E50: 24 | F50: 5709 | K50: 0 | L50: 212
A51: 22 | B51: 5809 | C51: 23 | D51: 5814 | E51: 24 | F51: 5819 | K51: 0 | L51: 222
A52: 22 | B52: 5915 | C52: 14 | D52: 5928 | E52: 13 | F52: 5932 | K52: 0 | L52: 211
A53: 22 | B53: 6033 | C53: 23 | D53: 6037 | E53: 13 | F53: 6047 | K53: 0 | L53: 221
A54: 22 | B54: 6145 | C54: 14 | D54: 6154 | E54: 13 | F54: 6161 | K54: 0 | L54: 211
A55: 22 | B55: 6267 | C55: 23 | D55: 6273 | E55: 13 | F55: 6281 | K55: 0 | L55: 221
A56: 22 | B56: 6378 | C56: 14 | D56: 6392 | E56: 24 | F56: 6409 | K56: 0 | L56: 212
A57: 22 | B57: 6508 | C57: 23 | D57: 6512 | E57: 13 | F57: 6521 | K57: 0 | L57: 221
A58: 22 | B58: 6620 | C58: 23 | D58: 6625 | E58: 13 | F58: 6636 | K58: 0 | L58: 221
A59: 22 | B59: 6825 | C59: 23 | D59: 6864 | E59: 13 | F59: 6881 | K59: 0 | L59: 221
A60: 22 | B60: 6981 | C60: 14 | D60: 6994 | E60: 13 | F60: 7000 | K60: 0 | L60: 211
A61: 22 | B61: 7098 | C61: 23 | D61: 7103 | E61: 13 | F61: 7115 | K61: 0 | L61: 221
A62: 22 | B62: 7245 | C62: 14 | D62: 7255 | E62: 13 | F62: 7261 | K62: 0 | L62: 211
A63: 22 | B63: 7356 | C63: 23 | D63: 7362 | E63: 13 | F63: 7370 | K63: 0 | L63: 221
A64: 22 | B64: 7608 | C64: 23 | D64: 7613 | E64: 13 | F64: 7622 | K64: 0 | L64: 221
A65: 22 | B65: 7717 | C65: 23 | D65: 7723 | E65: 24 | F65: 7731 | K65: 0 | L65: 222
A66: 22 | B66: 7829 | C66: 14 | D66: 7840 | E66: 24 | F66: 7859 | K66: 0 | L66: 212
A67: 22 | B67: 7959 | C67: 14 | D67: 7971 | E67: 13 | F67: 7976 | K67: 0 | L67: 211
A68: 22 | B68: 8070 | C68: 23 | D68: 8074 | E68: 24 | F68: 8088 | K68: 0 | L68: 222
A69: 11 | B69: 8195 | C69: 12 | D69: 8198 | E69: 24 | F69: 8218 | K69: 0 | L69: 112
A70: 11 | B70: 8325 | C70: 12 | D70: 8328 | E70: 24 | F70: 8346 | K70: 0 | L70: 112
A71: 22 | B71: 8442 | C71: 23 | D71: 8446 | E71: 13 | F71: 8455 | K71: 0 | L71: 221
A72: 11 | B72: 8573 | C72: 12 | D72: 8579 | E72: 24 | F72: 8590 | K72: 0 | L72: 112
A73: 22 | B73: 8688 | C73: 14 | D73: 8706 | E73: 13 | F73: 8712 | K73: 0 | L73: 211
A74: 11 | B74: 8819 | C74: 12 | D74: 8823 | E74: 24 | F74: 8837 | K74: 0 | L74: 112
A75: 22 | B75: 8928 | C75: 14 | D75: 8945 | E75: 13 | F75: 8950 | K75: 0 | L75: 211
A76: 22 | B76: 9046 | C76: 14 | D76: 9061 | E76: 13 | F76: 9068 | K76: 0 | L76: 211
A77: 22 | B77: 9164 | C77: 23 | D77: 9168 | E77: 24 | F77: 9175 | K77: 0 | L77: 222
A78: 22 | B78: 9267 | C78: 23 | D78: 9269 | E78: 13 | F78: 9283 | K78: 0 | L78: 221
A79: 22 | B79: 9379 | C79: 23 | D79: 9383 | E79: 24 | F79: 9387 | K79: 0 | L79: 222
A80: 22 | B80: 9484 | C80: 14 | D80: 9497 | E80: 24 | F80: 9512 | K80: 0 | L80: 212
A81: 22 | B81: 9731 | C81: 23 | D81: 9737 | E81: 24 | F81: 9748 | K81: 0 | L81: 222
A82: 22 | B82: 9848 | C82: 23 | D82: 9859 | E82: 13 | F82: 9868 | K82: 0 | L82: 221
A83: 22 | B83: 9963 | C83: 23 | D83: 9974 | E83: 13 | F83: 9983 | K83: 0 | L83: 221
A84: 22 | B84: 10082 | C84: 14 | D84: 10091 | E84: 13 | F84: 10097 | K84: 0 | L84: 211
A85: 11 | B85: 10206 | C85: 12 | D85: 10213 | E85: 24 | F85: 10224 | K85: 0 | L85: 112
A86: 22 | B86: 10322 | C86: 14 | D86: 10333 | E86: 13 | F86: 10337 | K86: 0 | L86: 211
A87: 22 | B87: 10440 | C87: 14 | D87: 10450 | E87: 13 | F87: 10461 | K87: 0 | L87: 211
A88: 22 | B88: 10560 | C88: 23 | D88: 10568 | E88: 24 | F88: 10575 | K88: 0 | L88: 222
A89: 22 | B89: 10743 | C89: 14 | D89: 10765 | E89: 13 | F89: 10772 | K89: 0 | L89: 211
A90: 22 | B90: 10869 | C90: 14 | D90: 10882 | E90: 24 | F90: 10897 | K90: 0 | L90: 212
A91: 22 | B91: 10994 | C91: 14 | D91: 11004 | E91: 13 | F91: 11008 | K91: 0 | L91: 211
A92: 22 | B92: 11106 | C92: 23 | D92: 11108 | E92: 24 | F92: 11115 | K92: 0 | L92: 222
A93: 22 | B93: 11215 | C93: 14 | D93: 11224 | E93: 13 | F93: 11227 | K93: 0 | L93: 211
A94: 22 | B94: 11327 | C94: 23 | D94: 11337 | E94: 24 | F94: 11343 | K94: 0 | L94: 222
A95: 22 | B95: 11438 | C95: 23 | D95: 11443 | E95: 13 | F95: 11451 | K95: 0 | L95: 221
A96: 22 | B96: 11552 | C96: 23 | D96: 11559 | E96: 13 | F96: 11578 | K96: 0 | L96: 221
A97: 22 | B97: 11675 | C97: 23 | D97: 11680 | E97: 24 | F97: 11685 | K97: 0 | L97: 222
A98: 11 | B98: 11782 | C98: 21 | D98: 11787 | E98: 22 | F98: 11793 | K98: 0 | L98: 122
A99: 22 | B99: 11891 | C99: 14 | D99: 11908 | E99: 24 | F99: 11922 | K99: 0 | L99: 212
A100: 11 | B100: 12035 | C100: 21 | D100: 12055 | E100: 22 | F100: 12060 | K100: 0 | L100: 122
A101: 22 | B101: 12157 | C101: 14 | D101: 12170 | E101: 13 | F101: 12174 | K101: 0 | L101: 211
A102: 22 | B102: 12346 | C102: 14 | D102: 12362 | E102: 13 | F102: 12368 | K102: 0 | L102: 211
A103: 22 | B103: 12466 | C103: 14 | D103: 12478 | E103: 13 | F103: 12481 | K103: 0 | L103: 211
A104: 22 | B104: 12581 | C104: 14 | D104: 12591 | E104: 13 | F104: 12596 | K104: 0 | L104: 211
A105: 22 | B105: 12700 | C105: 14 | D105: 12711 | E105: 24 | F105: 12731 | K105: 0 | L105: 212
A106: 22 | B106: 12856 | C106: 23 | D106: 12860 | E106: 24 | F106: 12867 | K106: 0 | L106: 222
A107: 22 | B107: 12964 | C107: 14 | D107: 12974 | E107: 13 | F107: 12981 | K107: 0 | L107: 211
A108: 22 | B108: 13076 | C108: 14 | D108: 13098 | E108: 13 | F108: 13110 | K108: 0 | L108: 211
A109: 22 | B109: 13206 | C109: 23 | D109: 13214 | E109: 13 | F109: 13238 | K109: 0 | L109: 221
A110: 22 | B110: 13335 | C110: 23 | D110: 13365 | E110: 24 | F110: 13369 | K110: 0 | L110: 222
A111: 22 | B111: 13470 | C111: 14 | D111: 13490 | E111: 13 | F111: 13497 | K111: 0 | L111: 211
A112: 11 | B112: 13612 | C112: 21 | D112: 13628 | E112: 22 | F112: 13631 | K112: 0 | L112: 122
A113: 22 | B113: 13727 | C113: 23 | D113: 13732 | E113: 13 | F113: 13745 | K113: 0 | L113: 221
A114: 22 | B114: 13846 | C114: 23 | D114: 13850 | E114: 13 | F114: 13857 | K114: 0 | L114: 221
A115: 22 | B115: 13954 | C115: 23 | D115: 13960 | E115: 24 | F115: 13972 | K115: 0 | L115: 222
A116: 22 | B116: 14083 | C116: 23 | D116: 14089 | E116: 13 | F116: 14108 | K116: 0 | L116: 221
A117: 22 | B117: 14209 | C117: 23 | D117: 14213 | E117: 24 | F117: 14220 | K117: 0 | L117: 222
A118: 22 | B118: 14962 | C118: 23 | D118: 14967 | E118: 24 | F118: 14972 | K118: 0 | L118: 222
A119: 22 | B119: 15069 | C119: 23 | D119: 15079 | E119: 13 | F119: 15091 | K119: 0 | L119: 221
A120: 22 | B120: 15188 | C120: 14 | D120: 15199 | E120: 24 | F120: 15215 | K120: 0 | L120: 212
A121: 22 | B121: 15314 | C121: 14 | D121: 15326 | E121: 24 | F121: 15342 | K121: 0 | L121: 212
A122: 22 | B122: 15439 | C122: 23 | D122: 15445 | E122: 24 | F122: 15452 | K122: 0 | L122: 222
A123: 22 | B123: 15554 | C123: 23 | D123: 15557 | E123: 24 | F123: 15563 | K123: 0 | L123: 222
A124: 22 | B124: 15660 | C124: 23 | D124: 15664 | E124: 13 | F124: 15672 | K124: 0 | L124: 221
A125: 22 | B125: 15777 | C125: 23 | D125: 15782 | E125: 13 | F125: 15792 | K125: 0 | L125: 221
A126: 22 | B126: 15887 | C126: 23 | D126: 15892 | E126: 24 | F126: 15897 | K126: 0 | L126: 222
A127: 22 | B127: 16076 | C127: 23 | D127: 16111 | E127: 13 | F127: 16121 | K127: 0 | L127: 221
A128: 11 | B128: 16220 | C128: 12 | D128: 16225 | E128: 24 | F128: 16234 | K128: 0 | L128: 112
A129: 22 | B129: 16328 | C129: 23 | D129: 16333 | E129: 24 | F129: 16336 | K129: 0 | L129: 222
A130: 22 | B130: 16436 | C130: 23 | D130: 16460 | E130: 24 | F130: 16465 | K130: 0 | L130: 222
A131: 11 | B131: 16576 | C131: 12 | D131: 16584 | E131: 24 | F131: 16595 | K131: 0 | L131: 112
A132: 22 | B132: 16713 | C132: 23 | D132: 16722 | E132: 13 | F132: 16737 | K132: 0 | L132: 221
A133: 22 | B133: 16834 | C133: 14 | D133: 16848 | E133: 24 | F133: 16861 | K133: 0 | L133: 212
A134: 22 | B134: 16958 | C134: 14 | D134: 16969 | E134: 13 | F134: 16973 | K134: 0 | L134: 211
A135: 22 | B135: 17074 | C135: 23 | D135: 17080 | E135: 13 | F135: 17086 | K135: 0 | L135: 221
A136: 22 | B136: 17185 | C136: 23 | D136: 17192 | E136: 13 | F136: 17201 | K136: 0 | L136: 221
A137: 11 | B137: 17312 | C137: 12 | D137: 17329 | E137: 24 | F137: 17342 | K137: 0 | L137: 112
A138: 11 | B138: 17749 | C138: 21 | D138: 17772 | E138: 22 | F138: 17775 | K138: 0 | L138: 122
A139: 22 | B139: 17875 | C139: 23 | D139: 17880 | E139: 13 | F139: 17888 | K139: 0 | L139: 221
A140: 22 | B140: 17986 | C140: 14 | D140: 17997 | E140: 24 | F140: 18017 | K140: 0 | L140: 212
A141: 22 | B141: 18114 | C141: 23 | D141: 18119 | E141: 24 | F141: 18124 | K141: 0 | L141: 222
A142: 11 | B142: 18220 | C142: 12 | D142: 18224 | E142: 13 | F142: 18228 | K142: 0 | L142: 111
A143: 11 | B143: 18338 | C143: 21 | D143: 18354 | E143: 22 | F143: 18358 | K143: 0 | L143: 122
A144: 22 | B144: 18475 | C144: 14 | D144: 18491 | E144: 24 | F144: 18507 | K144: 0 | L144: 212
A145: 22 | B145: 18604 | C145: 23 | D145: 18609 | E145: 13 | F145: 18619 | K145: 0 | L145: 221
A146: 22 | B146: 18837 | C146: 23 | D146: 18843 | E146: 24 | F146: 18848 | K146: 0 | L146: 222
A147: 11 | B147: 18966 | C147: 21 | D147: 18977 | E147: 22 | F147: 18981 | K147: 0 | L147: 122
A148: 22 | B148: 19077 | C148: 14 | D148: 19090 | E148: 13 | F148: 19099 | K148: 0 | L148: 211
A149: 22 | B149: 19198 | C149: 14 | D149: 19209 | E149: 24 | F149: 19228 | K149: 0 | L149: 212
A150: 11 | B150: 19335 | C150: 12 | D150: 19339 | E150: 13 | F150: 19344 | K150: 0 | L150: 111
A151: 22 | B151: 19473 | C151: 23 | D151: 19490 | E151: 24 | F151: 19493 | K151: 0 | L151: 222
A152: 22 | B152: 19594 | C152: 14 | D152: 19604 | E152: 13 | F152: 19610 | K152: 0 | L152: 211
A153: 22 | B153: 19706 | C153: 23 | D153: 19710 | E153: 13 | F153: 19729 | K153: 0 | L153: 221
A154: 22 | B154: 19827 | C154: 23 | D154: 19833 | E154: 13 | F154: 19844 | K154: 0 | L154: 221
A155: 22 | B155: 19943 | C155: 14 | D155: 19953 | E155: 13 | F155: 19956 | K155: 0 | L155: 211
A156: 22 | B156: 20057 | C156: 23 | D156: 20065 | E156: 13 | F156: 20075 | K156: 0 | L156: 221
A157: 22 | B157: 20176 | C157: 23 | D157: 20184 | E157: 24 | F157: 20191 | K157: 0 | L157: 222
A158: 22 | B158: 21533 | C158: 23 | D158: 21632 | E158: 24 | F158: 21639 | K158: 0 | L158: 222
A159: 11 | B159: 21849 | C159: 21 | D159: 21912 | E159: 11 | F159: 21924 | K159: 0 | L159: 121
A160: 22 | B160: 22069 | C160: 23 | D160: 22073 | E160: 13 | F160: 22093 | K160: 0 | L160: 221
A161: 22 | B161: 22194 | C161: 23 | D161: 22198 | E161: 24 | F161: 22203 | K161: 0 | L161: 222
A162: 22 | B162: 22297 | C162: 14 | D162: 22312 | E162: 13 | F162: 22316 | K162: 0 | L162: 211
A163: 22 | B163: 22416 | C163: 14 | D163: 22429 | E163: 13 | F163: 22433 | K163: 0 | L163: 211
A164: 22 | B164: 22556 | C164: 14 | D164: 22573 | E164: 13 | F164: 22576 | K164: 0 | L164: 211
A165: 22 | B165: 22674 | C165: 23 | D165: 22685 | E165: 13 | F165: 22697 | K165: 0 | L165: 221
A166: 22 | B166: 22832 | C166: 23 | D166: 22838 | E166: 24 | F166: 22843 | K166: 0 | L166: 222
A167: 11 | B167: 22939 | C167: 12 | D167: 22942 | E167: 13 | F167: 22953 | K167: 0 | L167: 111
A168: 22 | B168: 23125 | C168: 14 | D168: 23143 | E168: 13 | F168: 23154 | K168: 0 | L168: 211
A169: 11 | B169: 23255 | C169: 12 | D169: 23259 | E169: 24 | F169: 23273 | K169: 0 | L169: 112
A170: 11 | B170: 23372 | C170: 21 | D170: 23381 | E170: 22 | F170: 23385 | K170: 0 | L170: 122
A171: 11 | B171: 23490 | C171: 12 | D171: 23496 | E171: 24 | F171: 23511 | K171: 0 | L171: 112
A172: 22 | B172: 23629 | C172: 23 | D172: 23632 | E172: 24 | F172: 23638 | K172: 0 | L172: 222
A173: 11 | B173: 23744 | C173: 21 | D173: 23754 | E173: 22 | F173: 23759 | K173: 0 | L173: 122
A174: 22 | B174: 23858 | C174: 14 | D174: 23867 | E174: 13 | F174: 23870 | K174: 0 | L174: 211
A175: 11 | B175: 23963 | C175: 21 | D175: 23965 | E175: 11 | F175: 23977 | K175: 1 | L175: 121

Sheet !M216A0I.sha
A1: Report for:!M216A0I.sha
A2: Date: | B2: <date>
A3: Hen: | B3: <hen> | F3: Correct Sequence | G3: =Start!J2 -> 121 | P3: Total Sequences in Data | Q3: =4994-COUNTBLANK(L7:L5000) -> 179 | V3: Total Sequences in Block Data | W3: =COUNTA(L7:L36) -> 30 | AA3: Total Sequences in Block Data | AB3: =COUNTA(L37:L66) -> 30 | AF3: Total Sequences in Block Data | AG3: =COUNTA(L67:L95) -> 29 | AK3: Total Sequences in Block Data | AL3: =COUNTA(L96:L125) -> 30 | AP3: Total Sequences in Block Data | AQ3: =COUNTA(L126:L155) -> 30 | AU3: Total Sequences in Block Data | AV3: =COUNTA(L156:L185) -> 30
P4: Total Sequences in Summary | Q4: =SUM(O7:O14) -> 179 | V4: Total Sequences in Block Summary | W4: =SUM(U7:U14) -> 30 | AA4: Total Sequences in Block Summary | AB4: =SUM(Z7:Z14) -> 30 | AF4: Total Sequences in Block Summary | AG4: =SUM(AE7:AE14) -> 29 | AK4: Total Sequences in Block Summary | AL4: =SUM(AJ7:AJ14) -> 30 | AP4: Total Sequences in Block Summary | AQ4: =SUM(AO7:AO14) -> 30 | AU4: Total Sequences in Block Summary | AV4: =SUM(AT7:AT14) -> 30
T5: Block 1 | Y5: Block 2 | AD5: Block 3 | AI5: Block 4 | AN5: Block 5 | AS5: Block 6
A6: Sequence Component 1 | B6: Time 1 | C6: Sequence Component 2 | D6: Time 2 | E6: Sequence Component 3 | F6: Time 3 | G6: Sequence Component 4 | H6: Time 4 | I6: Sequence Component 5 | J6: Time 5 | K6: Correct? 0=No 1=Yes | L6: Sequence | N6: Frequency | P6: Relative Frequency | Q6: Variability | T6: Frequency | V6: Relative Frequency | W6: Variability | Y6: Frequency | AA6: Relative Frequency | AB6: Variability | AD6: Frequency | AF6: Relative Frequency | AG6: Variability | AI6: Frequency | AK6: Relative Frequency | AL6: Variability | AN6: Frequency | AP6: Relative Frequency | AQ6: Variability | AS6: Frequency | AU6: Relative Frequency | AV6: Variability
A7: 22 | B7: 49 | C7: 23 | D7: 53 | E7: 24 | F7: 59 | K7: 0 | L7: 222 | N7: 111 | O7: =COUNTIF($L$7:$L$500,N7) -> 36 | P7: =O7/$Q$4 -> 0.2011173184 | Q7: =IF(P7=0,0,(P7*((LOG(P7))/LOG(2)))) -> -0.465363508 | T7: =N7 -> 111 | U7: =COUNTIF(L7:L36,T7) -> 6 | V7: =U7/(W4-U9) -> 0.2 | W7: =IF(V7=0,0,(V7*((LOG(V7))/LOG(2)))) -> -0.464385619 | Y7: =N7 -> 111 | Z7: =COUNTIF(L37:L66,Y7) -> 8 | AA7: =Z7/(AB4-Z9) -> 0.2666666667 | AB7: =IF(AA7=0,0,(AA7*((LOG(AA7))/LOG(2)))) -> -0.5085041588 | AD7: =N7 -> 111 | AE7: =COUNTIF(L67:L95,AD7) -> 7 | AF7: =AE7/(AG4-AE9) -> 0.2413793103 | AG7: =IF(AF7=0,0,(AF7*((LOG(AF7))/LOG(2)))) -> -0.4949787073 | AI7: =N7 -> 111 | AJ7: =COUNTIF(L96:L125,AI7) -> 5 | AK7: =AJ7/(AL4-AJ9) -> 0.1666666667 | AL7: =IF(AK7=0,0,(AK7*((LOG(AK7))/LOG(2)))) -> -0.4308270835 | AN7: =N7 -> 111 | AO7: =COUNTIF(L126:L155,AN7) -> 4 | AP7: =AO7/(AQ4-AO9) -> 0.1333333333 | AQ7: =IF(AP7=0,0,(AP7*((LOG(AP7))/LOG(2)))) -> -0.3875854127 | AS7: =N7 -> 111 | AT7: =COUNTIF(L156:L185,AS7) -> 6 | AU7: =AT7/(AV4-AT9) -> 0.2 | AV7: =IF(AU7=0,0,(AU7*((LOG(AU7))/LOG(2)))) -> -0.464385619
A8: 22 | B8: 247 | C8: 23 | D8: 254 | E8: 13 | F8: 264 | K8: 0 | L8: 221 | N8: 112 | O8: =COUNTIF($L$7:$L$500,N8) -> 24 | P8: =O8/$Q$4 -> 0.1340782123 | Q8: =IF(P8=0,0,(P8*((LOG(P8))/LOG(2)))) -> -0.388673065 | T8: =N8 -> 112 | U8: =COUNTIF(L7:L36,T8) -> 3 | V8: =U8/(W4-U9) -> 0.1 | W8: =IF(V8=0,0,(V8*((LOG(V8))/LOG(2)))) -> -0.3321928095 | Y8: =N8 -> 112 | Z8: =COUNTIF(L37:L66,Y8) -> 6 | AA8: =Z8/(AB4-Z9) -> 0.2 | AB8: =IF(AA8=0,0,(AA8*((LOG(AA8))/LOG(2)))) -> -0.464385619 | AD8: =N8 -> 112 | AE8: =COUNTIF(L67:L95,AD8) -> 5 | AF8: =AE8/(AG4-AE9) -> 0.1724137931 | AG8: =IF(AF8=0,0,(AF8*((LOG(AF8))/LOG(2)))) -> -0.4372505 | AI8: =N8 -> 112 | AJ8: =COUNTIF(L96:L125,AI8) -> 2 | AK8: =AJ8/(AL4-AJ9) -> 0.06666666667 | AL8: =IF(AK8=0,0,(AK8*((LOG(AK8))/LOG(2)))) -> -0.260459373 | AN8: =N8 -> 112 | AO8: =COUNTIF(L126:L155,AN8) -> 3 | AP8: =AO8/(AQ4-AO9) -> 0.1 | AQ8: =IF(AP8=0,0,(AP8*((LOG(AP8))/LOG(2)))) -> -0.3321928095 | AS8: =N8 -> 112 | AT8: =COUNTIF(L156:L185,AS8) -> 5 | AU8: =AT8/(AV4-AT9) -> 0.1666666667 | AV8: =IF(AU8=0,0,(AU8*((LOG(AU8))/LOG(2)))) -> -0.4308270835
A9: 22 | B9: 388 | C9: 14 | D9: 401 | E9: 13 | F9: 408 | K9: 0 | L9: 211 | N9: 121 | O9: =COUNTIF($L$7:$L$500,N9) -> 0 | P9: =O9/$Q$4 -> 0 | Q9: =IF(P9=0,0,(P9*((LOG(P9))/LOG(2)))) -> 0 | T9: =N9 -> 121 | U9: =COUNTIF(L7:L36,T9) -> 0 | Y9: =N9 -> 121 | Z9: =COUNTIF(L37:L66,Y9) -> 0 | AD9: =N9 -> 121 | AE9: =COUNTIF(L67:L95,AD9) -> 0 | AI9: =N9 -> 121 | AJ9: =COUNTIF(L96:L125,AI9) -> 0 | AN9: =N9 -> 121 | AO9: =COUNTIF(L126:L155,AN9) -> 0 | AS9: =N9 -> 121 | AT9: =COUNTIF(L156:L185,AS9) -> 0
A10: 22 | B10: 502 | C10: 14 | D10: 519 | E10: 24 | F10: 543 | K10: 0 | L10: 212 | N10: 122 | O10: =COUNTIF($L$7:$L$500,N10) -> 18 | P10: =O10/$Q$4 -> 0.1005586592 | Q10: =IF(P10=0,0,(P10*((LOG(P10))/LOG(2)))) -> -0.3332404132 | T10: =N10 -> 122 | U10: =COUNTIF(L7:L36,T10) -> 3 | V10: =U10/(W4-U9) -> 0.1 | W10: =IF(V10=0,0,(V10*((LOG(V10))/LOG(2)))) -> -0.3321928095 | Y10: =N10 -> 122 | Z10: =COUNTIF(L37:L66,Y10) -> 5 | AA10: =Z10/(AB4-Z9) -> 0.1666666667 | AB10: =IF(AA10=0,0,(AA10*((LOG(AA10))/LOG(2)))) -> -0.4308270835 | AD10: =N10 -> 122 | AE10: =COUNTIF(L67:L95,AD10) -> 2 | AF10: =AE10/(AG4-AE9) -> 0.06896551724 | AG10: =IF(AF10=0,0,(AF10*((LOG(AF10))/LOG(2)))) -> -0.2660676548 | AI10: =N10 -> 122 | AJ10: =COUNTIF(L96:L125,AI10) -> 3 | AK10: =AJ10/(AL4-AJ9) -> 0.1 | AL10: =IF(AK10=0,0,(AK10*((LOG(AK10))/LOG(2)))) -> -0.3321928095 | AN10: =N10 -> 122 | AO10: =COUNTIF(L126:L155,AN10) -> 1 | AP10: =AO10/(AQ4-AO9) -> 0.03333333333 | AQ10: =IF(AP10=0,0,(AP10*((LOG(AP10))/LOG(2)))) -> -0.1635630199 | AS10: =N10 -> 122 | AT10: =COUNTIF(L156:L185,AS10) -> 4 | AU10: =AT10/(AV4-AT9) -> 0.1333333333 | AV10: =IF(AU10=0,0,(AU10*((LOG(AU10))/LOG(2)))) -> -0.3875854127
A11: 22 | B11: 662 | C11: 14 | D11: 688 | E11: 13 | F11: 696 | K11: 0 | L11: 211 | N11: 211 | O11: =COUNTIF($L$7:$L$500,N11) -> 63 | P11: =O11/$Q$4 -> 0.3519553073 | Q11: =IF(P11=0,0,(P11*((LOG(P11))/LOG(2)))) -> -0.5302332893 | T11: =N11 -> 211 | U11: =COUNTIF(L7:L36,T11) -> 8 | V11: =U11/(W4-U9) -> 0.2666666667 | W11: =IF(V11=0,0,(V11*((LOG(V11))/LOG(2)))) -> -0.5085041588 | Y11: =N11 -> 211 | Z11: =COUNTIF(L37:L66,Y11) -> 7 | AA11: =Z11/(AB4-Z9) -> 0.2333333333 | AB11: =IF(AA11=0,0,(AA11*((LOG(AA11))/LOG(2)))) -> -0.4898916572 | AD11: =N11 -> 211 | AE11: =COUNTIF(L67:L95,AD11) -> 11 | AF11: =AE11/(AG4-AE9) -> 0.3793103448 | AG11: =IF(AF11=0,0,(AF11*((LOG(AF11))/LOG(2)))) -> -0.5304842463 | AI11: =N11 -> 211 | AJ11: =COUNTIF(L96:L125,AI11) -> 12 | AK11: =AJ11/(AL4-AJ9) -> 0.4 | AL11: =IF(AK11=0,0,(AK11*((LOG(AK11))/LOG(2)))) -> -0.528771238 | AN11: =N11 -> 211 | AO11: =COUNTIF(L126:L155,AN11) -> 15 | AP11: =AO11/(AQ4-AO9) -> 0.5 | AQ11: =IF(AP11=0,0,(AP11*((LOG(AP11))/LOG(2)))) -> -0.5 | AS11: =N11 -> 211 | AT11: =COUNTIF(L156:L185,AS11) -> 10 | AU11: =AT11/(AV4-AT9) -> 0.3333333333 | AV11: =IF(AU11=0,0,(AU11*((LOG(AU11))/LOG(2)))) -> -0.5283208336
A12: 22 | B12: 793 | C12: 14 | D12: 804 | E12: 13 | F12: 816 | K12: 0 | L12: 211 | N12: 212 | O12: =COUNTIF($L$7:$L$500,N12) -> 8 | P12: =O12/$Q$4 -> 0.04469273743 | Q12: =IF(P12=0,0,(P12*((LOG(P12))/LOG(2)))) -> -0.2003940012 | T12: =N12 -> 212 | U12: =COUNTIF(L7:L36,T12) -> 4 | V12: =U12/(W4-U9) -> 0.1333333333 | W12: =IF(V12=0,0,(V12*((LOG(V12))/LOG(2)))) -> -0.3875854127 | Y12: =N12 -> 212 | Z12: =COUNTIF(L37:L66,Y12) -> 0 | AA12: =Z12/(AB4-Z9) -> 0 | AB12: =IF(AA12=0,0,(AA12*((LOG(AA12))/LOG(2)))) -> 0 | AD12: =N12 -> 212 | AE12: =COUNTIF(L67:L95,AD12) -> 1 | AF12: =AE12/(AG4-AE9) -> 0.03448275862 | AG12: =IF(AF12=0,0,(AF12*((LOG(AF12))/LOG(2)))) -> -0.167516586 | AI12: =N12 -> 212 | AJ12: =COUNTIF(L96:L125,AI12) -> 1 | AK12: =AJ12/(AL4-AJ9) -> 0.03333333333 | AL12: =IF(AK12=0,0,(AK12*((LOG(AK12))/LOG(2)))) -> -0.1635630199 | AN12: =N12 -> 212 | AO12: =COUNTIF(L126:L155,AN12) -> 1 | AP12: =AO12/(AQ4-AO9) -> 0.03333333333 | AQ12: =IF(AP12=0,0,(AP12*((LOG(AP12))/LOG(2)))) -> -0.1635630199 | AS12: =N12 -> 212 | AT12: =COUNTIF(L156:L185,AS12) -> 1 | AU12: =AT12/(AV4-AT9) -> 0.03333333333 | AV12: =IF(AU12=0,0,(AU12*((LOG(AU12))/LOG(2)))) -> -0.1635630199
A13: 11 | B13: 923 | C13: 21 | D13: 942 | E13: 22 | F13: 954 | K13: 0 | L13: 122 | N13: 221 | O13: =COUNTIF($L$7:$L$500,N13) -> 20 | P13: =O13/$Q$4 -> 0.1117318436 | Q13: =IF(P13=0,0,(P13*((LOG(P13))/LOG(2)))) -> -0.3532835399 | T13: =N13 -> 221 | U13: =COUNTIF(L7:L36,T13) -> 2 | V13: =U13/(W4-U9) -> 0.06666666667 | W13: =IF(V13=0,0,(V13*((LOG(V13))/LOG(2)))) -> -0.260459373 | Y13: =N13 -> 221 | Z13: =COUNTIF(L37:L66,Y13) -> 4 | AA13: =Z13/(AB4-Z9) -> 0.1333333333 | AB13: =IF(AA13=0,0,(AA13*((LOG(AA13))/LOG(2)))) -> -0.3875854127 | AD13: =N13 -> 221 | AE13: =COUNTIF(L67:L95,AD13) -> 2 | AF13: =AE13/(AG4-AE9) -> 0.06896551724 | AG13: =IF(AF13=0,0,(AF13*((LOG(AF13))/LOG(2)))) -> -0.2660676548 | AI13: =N13 -> 221 | AJ13: =COUNTIF(L96:L125,AI13) -> 6 | AK13: =AJ13/(AL4-AJ9) -> 0.2 | AL13: =IF(AK13=0,0,(AK13*((LOG(AK13))/LOG(2)))) -> -0.464385619 | AN13: =N13 -> 221 | AO13: =COUNTIF(L126:L155,AN13) -> 5 | AP13: =AO13/(AQ4-AO9) -> 0.1666666667 | AQ13: =IF(AP13=0,0,(AP13*((LOG(AP13))/LOG(2)))) -> -0.4308270835 | AS13: =N13 -> 221 | AT13: =COUNTIF(L156:L185,AS13) -> 1 | AU13: =AT13/(AV4-AT9) -> 0.03333333333 | AV13: =IF(AU13=0,0,(AU13*((LOG(AU13))/LOG(2)))) -> -0.1635630199
A14: 22 | B14: 964 | C14: 14 | D14: 978 | E14: 24 | F14: 995 | K14: 0 | L14: 212 | N14: 222 | O14: =COUNTIF($L$7:$L$500,N14) -> 10 | P14: =O14/$Q$4 -> 0.05586592179 | Q14: =IF(P14=0,0,(P14*((LOG(P14))/LOG(2)))) -> -0.2325076918 | T14: =N14 -> 222 | U14: =COUNTIF(L7:L36,T14) -> 4 | V14: =U14/(W4-U9) -> 0.1333333333 | W14: =IF(V14=0,0,(V14*((LOG(V14))/LOG(2)))) -> -0.3875854127 | Y14: =N14 -> 222 | Z14: =COUNTIF(L37:L66,Y14) -> 0 | AA14: =Z14/(AB4-Z9) -> 0 | AB14: =IF(AA14=0,0,(AA14*((LOG(AA14))/LOG(2)))) -> 0 | AD14: =N14 -> 222 | AE14: =COUNTIF(L67:L95,AD14) -> 1 | AF14: =AE14/(AG4-AE9) -> 0.03448275862 | AG14: =IF(AF14=0,0,(AF14*((LOG(AF14))/LOG(2)))) -> -0.167516586 | AI14: =N14 -> 222 | AJ14: =COUNTIF(L96:L125,AI14) -> 1 | AK14: =AJ14/(AL4-AJ9) -> 0.03333333333 | AL14: =IF(AK14=0,0,(AK14*((LOG(AK14))/LOG(2)))) -> -0.1635630199 | AN14: =N14 -> 222 | AO14: =COUNTIF(L126:L155,AN14) -> 1 | AP14: =AO14/(AQ4-AO9) -> 0.03333333333 | AQ14: =IF(AP14=0,0,(AP14*((LOG(AP14))/LOG(2)))) -> -0.1635630199 | AS14: =N14 -> 222 | AT14: =COUNTIF(L156:L185,AS14) -> 3 | AU14: =AT14/(AV4-AT9) -> 0.1 | AV14: =IF(AU14=0,0,(AU14*((LOG(AU14))/LOG(2)))) -> -0.3321928095
A15: 22 | B15: 1094 | C15: 23 | D15: 1098 | E15: 24 | F15: 1107 | K15: 0 | L15: 222 | P15: =SUM(P7:P14) -> 1 | Q15: =-SUM(Q7:Q14) -> 2.503695508 | V15: =SUM(V7:V14) -> 1 | W15: =-SUM(W7:W14) -> 2.672905595 | AA15: =SUM(AA7:AA14) -> 1 | AB15: =-SUM(AB7:AB14) -> 2.281193931 | AF15: =SUM(AF7:AF14) -> 1 | AG15: =-SUM(AG7:AG14) -> 2.329881935 | AK15: =SUM(AK7:AK14) -> 1 | AL15: =-SUM(AL7:AL14) -> 2.343762163 | AP15: =SUM(AP7:AP14) -> 1 | AQ15: =-SUM(AQ7:AQ14) -> 2.141294365 | AU15: =SUM(AU7:AU14) -> 1 | AV15: =-SUM(AV7:AV14) -> 2.470437798
A16: 22 | B16: 1203 | C16: 23 | D16: 1206 | E16: 13 | F16: 1235 | K16: 0 | L16: 221 | P16: U= | Q16: =Q15/(LOG(Q4)/LOG(2)) -> 0.3345479877 | V16: U1= | W16: =W15/(LOG(W4)/LOG(2)) -> 0.5447249217 | AA16: U2= | AB16: =AB15/(LOG(AB4)/LOG(2)) -> 0.4648960246 | AF16: U3= | AG16: =AG15/(LOG(AG4)/LOG(2)) -> 0.4795988164 | AK16: U4= | AL16: =AL15/(LOG(AL4)/LOG(2)) -> 0.4776471203 | AP16: U5= | AQ16: =AQ15/(LOG(AQ4)/LOG(2)) -> 0.436385186 | AU16: U6= | AV16: =AV15/(LOG(AV4)/LOG(2)) -> 0.5034629874
A17: 22 | B17: 1334 | C17: 14 | D17: 1360 | E17: 13 | F17: 1364 | K17: 0 | L17: 211
A18: 11 | B18: 1963 | C18: 21 | D18: 1976 | E18: 22 | F18: 1980 | K18: 0 | L18: 122
A19: 11 | B19: 2087 | C19: 12 | D19: 2091 | E19: 24 | F19: 2107 | K19: 0 | L19: 112 | N19: Total Target Seq
A20: 11 | B20: 2296 | C20: 21 | D20: 2312 | E20: 22 | F20: 2316 | K20: 0 | L20: 122 | N20: =COUNTIF(L7:L185,G3) -> 0 | P20: 30 | Q20: 30 | R20: 29 | S20: 30 | T20: 30 | U20: 30
A21: 22 | B21: 2413 | C21: 23 | D21: 2417 | E21: 24 | F21: 2421 | K21: 0 | L21: 222 | P21: % of reinforcement given in 6 equal intervals based on number of trials
A22: 11 | B22: 2543 | C22: 12 | D22: 2557 | E22: 24 | F22: 2575 | K22: 0 | L22: 112 | P22: %_1 | Q22: %_2 | R22: %_3 | S22: %_4 | T22: %_5 | U22: %_6
A23: 11 | B23: 2671 | C23: 12 | D23: 2679 | E23: 24 | F23: 2690 | K23: 0 | L23: 112 | O23: target sequence | P23: =$G$3 -> 121 | Q23: =$G$3 -> 121 | R23: =$G$3 -> 121 | S23: =$G$3 -> 121 | T23: =$G$3 -> 121 | U23: =$G$3 -> 121
A24: 11 | B24: 2791 | C24: 12 | D24: 2796 | E24: 13 | F24: 2802 | K24: 0 | L24: 111 | O24: total reinforcement | P24: =U9 -> 0 | Q24: =Z9 -> 0 | R24: =AE9 -> 0 | S24: =AJ9 -> 0 | T24: =AO9 -> 0 | U24: =AT9 -> 0
A25: 22 | B25: 2910 | C25: 14 | D25: 2919 | E25: 13 | F25: 2925 | K25: 0 | L25: 211 | O25: % target
A26: 22 | B26: 3022 | C26: 14 | D26: 3033 | E26: 13 | F26: 3039 | K26: 0 | L26: 211 | O26: CCRF
A27: 11 | B27: 3144 | C27: 12 | D27: 3151 | E27: 13 | F27: 3163 | K27: 0 | L27: 111 | O27: % CCRf
A28: 11 | B28: 3261 | C28: 12 | D28: 3267 | E28: 13 | F28: 3269 | K28: 0 | L28: 111 | O28: average response rate | P28: =F36/P20 -> 140.6333333 | Q28: =(F66-F36)/Q20 -> 127.8333333 | R28: =(F95-F66)/R20 -> 130.3793103 | S28: =(F125-F95)/S20 -> 133.5666667 | T28: =(F155-F125)/T20 -> 132.4 | U28: =(F185-F155)/U20 -> 132.5
A29: 11 | B29: 3366 | C29: 12 | D29: 3371 | E29: 13 | F29: 3377 | K29: 0 | L29: 111
A30: 22 | B30: 3476 | C30: 14 | D30: 3492 | E30: 24 | F30: 3515 | K30: 0 | L30: 212
A31: 11 | B31: 3610 | C31: 12 | D31: 3615 | E31: 13 | F31: 3621 | K31: 0 | L31: 111
A32: 22 | B32: 3720 | C32: 23 | D32: 3726 | E32: 24 | F32: 3732 | K32: 0 | L32: 222
A33: 22 | B33: 3830 | C33: 14 | D33: 3845 | E33: 24 | F33: 3868 | K33: 0 | L33: 212
A34: 11 | B34: 3973 | C34: 12 | D34: 3978 | E34: 13 | F34: 3984 | K34: 0 | L34: 111
A35: 22 | B35: 4081 | C35: 14 | D35: 4092 | E35: 13 | F35: 4100 | K35: 0 | L35: 211
A36: 22 | B36: 4197 | C36: 14 | D36: 4211 | E36: 13 | F36: 4219 | K36: 0 | L36: 211
A37: 22 | B37: 4388 | C37: 14 | D37: 4399 | E37: 13 | F37: 4406 | K37: 0 | L37: 211
A38: 11 | B38: 4513 | C38: 12 | D38: 4519 | E38: 24 | F38: 4535 | K38: 0 | L38: 112
A39: 22 | B39: 4633 | C39: 23 | D39: 4636 | E39: 13 | F39: 4649 | K39: 0 | L39: 221
A40: 22 | B40: 4747 | C40: 23 | D40: 4751 | E40: 13 | F40: 4762 | K40: 0 | L40: 221
A41: 11 | B41: 4864 | C41: 12 | D41: 4881 | E41: 13 | F41: 4888 | K41: 0 | L41: 111
A42: 11 | B42: 4989 | C42: 12 | D42: 4994 | E42: 13 | F42: 4997 | K42: 0 | L42: 111
A43: 22 | B43: 5094 | C43: 14 | D43: 5105 | E43: 13 | F43: 5112 | K43: 0 | L43: 211
A44: 11 | B44: 5229 | C44: 21 | D44: 5248 | E44: 22 | F44: 5262 | K44: 0 | L44: 122
A45: 22 | B45: 5361 | C45: 14 | D45: 5373 | E45: 13 | F45: 5382 | K45: 0 | L45: 211
A46: 11 | B46: 5489 | C46: 21 | D46: 5514 | E46: 22 | F46: 5522 | K46: 0 | L46: 122
A47: 11 | B47: 5631 | C47: 12 | D47: 5638 | E47: 13 | F47: 5647 | K47: 0 | L47: 111
A48: 11 | B48: 5745 | C48: 12 | D48: 5750 | E48: 13 | F48: 5757 | K48: 0 | L48: 111
A49: 11 | B49: 5865 | C49: 21 | D49: 5887 | E49: 22 | F49: 5895 | K49: 0 | L49: 122
A50: 11 | B50: 5988 | C50: 12 | D50: 6001 | E50: 13 | F50: 6004 | K50: 0 | L50: 111
A51: 11 | B51: 6100 | C51: 12 | D51: 6108 | E51: 24 | F51: 6118 | K51: 0 | L51: 112
A52: 11 | B52: 6226 | C52: 21 | D52: 6240 | E52: 22 | F52: 6245 | K52: 0 | L52: 122
A53: 11 | B53: 6341 | C53: 12 | D53: 6345 | E53: 24 | F53: 6363 | K53: 0 | L53: 112
A54: 11 | B54: 6486 | C54: 21 | D54: 6500 | E54: 22 | F54: 6506 | K54: 0 | L54: 122
A55: 22 | B55: 6603 | C55: 23 | D55: 6607 | E55: 13 | F55: 6615 | K55: 0 | L55: 221
A56: 11 | B56: 6714 | C56: 12 | D56: 6720 | E56: 13 | F56: 6746 | K56: 0 | L56: 111
A57: 11 | B57: 6853 | C57: 12 | D57: 6867 | E57: 24 | F57: 6878 | K57: 0 | L57: 112
A58: 11 | B58: 6979 | C58: 12 | D58: 6984 | E58: 13 | F58: 6993 | K58: 0 | L58: 111
A59: 22 | B59: 7091 | C59: 14 | D59: 7106 | E59: 13 | F59: 7117 | K59: 0 | L59: 211
A60: 22 | B60: 7215 | C60: 14 | D60: 7225 | E60: 13 | F60: 7232 | K60: 0 | L60: 211
A61: 11 | B61: 7337 | C61: 12 | D61: 7340 | E61: 24 | F61: 7355 | K61: 0 | L61: 112
A62: 11 | B62: 7578 | C62: 12 | D62: 7584 | E62: 13 | F62: 7595 | K62: 0 | L62: 111
A63: 22 | B63: 7696 | C63: 14 | D63: 7707 | E63: 13 | F63: 7715 | K63: 0 | L63: 211
A64: 11 | B64: 7813 | C64: 12 | D64: 7820 | E64: 24 | F64: 7831 | K64: 0 | L64: 112
A65: 22 | B65: 7929 | C65: 14 | D65: 7939 | E65: 13 | F65: 7946 | K65: 0 | L65: 211
A66: 22 | B66: 8042 | C66: 23 | D66: 8047 | E66: 13 | F66: 8054 | K66: 0 | L66: 221
A67: 22 | B67: 8152 | C67: 14 | D67: 8161 | E67: 13 | F67: 8167 | K67: 0 | L67: 211
A68: 11 | B68: 8275 | C68: 12 | D68: 8281 | E68: 24 | F68: 8300 | K68: 0 | L68: 112
A69: 11 | B69: 8397 | C69: 12 | D69: 8402 | E69: 13 | F69: 8408 | K69: 0 | L69: 111
A70: 22 | B70: 8504 | C70: 14 | D70: 8518 | E70: 13 | F70: 8529 | K70: 0 | L70: 211
A71: 22 | B71: 8627 | C71: 14 | D71: 8640 | E71: 24 | F71: 8655 | K71: 0 | L71: 212
A72: 22 | B72: 8751 | C72: 14 | D72: 8762 | E72: 13 | F72: 8770 | K72: 0 | L72: 211
A73: 11 | B73: 8871 | C73: 12 | D73: 8882 | E73: 24 | F73: 8909 | K73: 0 | L73: 112
A74: 11 | B74: 9017 | C74: 12 | D74: 9024 | E74: 13 | F74: 9032 | K74: 0 | L74: 111
A75: 11 | B75: 9144 | C75: 12 | D75: 9151 | E75: 13 | F75: 9163 | K75: 0 | L75: 111
A76: 22 | B76: 9260 | C76: 14 | D76: 9270 | E76: 13 | F76: 9274 | K76: 0 | L76: 211
A77: 22 | B77: 9376 | C77: 14 | D77: 9388 | E77: 13 | F77: 9397 | K77: 0 | L77: 211
A78: 22 | B78: 9494 | C78: 23 | D78: 9498 | E78: 24 | F78: 9504 | K78: 0 | L78: 222
A79: 11 | B79: 9602 | C79: 12 | D79: 9612 | E79: 24 | F79: 9629 | K79: 0 | L79: 112
A80: 22 | B80: 9728 | C80: 14 | D80: 9738 | E80: 13 | F80: 9743 | K80: 0 | L80: 211
A81: 11 | B81: 9849 | C81: 12 | D81: 9855 | E81: 13 | F81: 9862 | K81: 0 | L81: 111
A82: 11 | B82: 9968 | C82: 12 | D82: 9972 | E82: 13 | F82: 9980 | K82: 0 | L82: 111
A83: 22 | B83: 10362 | C83: 23 | D83: 10368 | E83: 13 | F83: 10380 | K83: 0 | L83: 221
A84: 22 | B84: 10482 | C84: 14 | D84: 10491 | E84: 13 | F84: 10498 | K84: 0 | L84: 211
A85: 11 | B85: 10600 | C85: 21 | D85: 10615 | E85: 22 | F85: 10619 | K85: 0 | L85: 122
A86: 11 | B86: 10732 | C86: 12 | D86: 10740 | E86: 24 | F86: 10752 | K86: 0 | L86: 112
A87: 22 | B87: 10848 | C87: 14 | D87: 10860 | E87: 13 | F87: 10866 | K87: 0 | L87: 211
A88: 22 | B88: 10963 | C88: 23 | D88: 10973 | E88: 13 | F88: 10980 | K88: 0 | L88: 221
A89: 11 | B89: 11083 | C89: 21 | D89: 11095 | E89: 22 | F89: 11100 | K89: 0 | L89: 122
A90: 11 | B90: 11209 | C90: 12 | D90: 11213 | E90: 13 | F90: 11217 | K90: 0 | L90: 111
A91: 22 | B91: 11313 | C91: 14 | D91: 11323 | E91: 13 | F91: 11326 | K91: 0 | L91: 211
A92: 11 | B92: 11439 | C92: 12 | D92: 11456 | E92: 24 | F92: 11469 | K92: 0 | L92: 112
A93: 22 | B93: 11573 | C93: 14 | D93: 11581 | E93: 13 | F93: 11587 | K93: 0 | L93: 211
A94: 22 | B94: 11689 | C94: 14 | D94: 11699 | E94: 13 | F94: 11709 | K94: 0 | L94: 211
A95: 11 | B95: 11822 | C95: 12 | D95: 11829 | E95: 13 | F95: 11835 | K95: 0 | L95: 111
A96: 22 | B96: 11936 | C96: 14 | D96: 11946 | E96: 13 | F96: 11953 | K96: 0 | L96: 211
A97: 11 | B97: 12062 | C97: 12 | D97: 12065 | E97: 13 | F97: 12073 | K97: 0 | L97: 111
A98: 22 | B98: 12171 | C98: 14 | D98: 12180 | E98: 13 | F98: 12187 | K98: 0 | L98: 211
A99: 22 | B99: 12286 | C99: 23 | D99: 12290 | E99: 13 | F99: 12302 | K99: 0 | L99: 221
A100: 22 | B100: 12401 | C100: 14 | D100: 12412 | E100: 13 | F100: 12421 | K100: 0 | L100: 211
A101: 22 | B101: 12523 | C101: 23 | D101: 12527 | E101: 13 | F101: 12538 | K101: 0 | L101: 221
A102: 11 | B102: 12644 | C102: 12 | D102: 12651 | E102: 13 | F102: 12668 | K102: 0 | L102: 111
A103: 11 | B103: 12807 | C103: 21 | D103: 12819 | E103: 22 | F103: 12823 | K103: 0 | L103: 122
A104: 22 | B104: 12921 | C104: 14 | D104: 12930 | E104: 13 | F104: 12935 | K104: 0 | L104: 211
A105: 11 | B105: 13066 | C105: 12 | D105: 13075 | E105: 13 | F105: 13089 | K105: 0 | L105: 111
A106: 11 | B106: 13195 | C106: 21 | D106: 13214 | E106: 22 | F106: 13218 | K106: 0 | L106: 122
A107: 22 | B107: 13314 | C107: 14 | D107: 13323 | E107: 13 | F107: 13330 | K107: 0 | L107: 211
A108: 22 | B108: 13427 | C108: 14 | D108: 13445 | E108: 13 | F108: 13453 | K108: 0 | L108: 211
A109: 11 | B109: 13564 | C109: 21 | D109: 13579 | E109: 22 | F109: 13583 | K109: 0 | L109: 122
A110: 22 | B110: 13685 | C110: 14 | D110: 13699 | E110: 13 | F110: 13702 | K110: 0 | L110: 211
A111: 22 | B111: 13803 | C111: 14 | D111: 13818 | E111: 24 | F111: 13837 | K111: 0 | L111: 212
A112: 22 | B112: 14095 | C112: 23 | D112: 14102 | E112: 13 | F112: 14111 | K112: 0 | L112: 221
A113: 22 | B113: 14207 | C113: 14 | D113: 14218 | E113: 13 | F113: 14234 | K113: 0 | L113: 211
A114: 22 | B114: 14330 | C114: 23 | D114: 14338 | E114: 13 | F114: 14347 | K114: 0 | L114: 221
A115: 22 | B115: 14448 | C115: 23 | D115: 14453 | E115: 13 | F115: 14468 | K115: 0 | L115: 221
A116: 11 | B116: 14573 | C116: 12 | D116: 14579 | E116: 13 | F116: 14588 | K116: 0 | L116: 111
A117: 22 | B117: 14687 | C117: 14 | D117: 14696 | E117: 13 | F117: 14702 | K117: 0 | L117: 211
A118: 22 | B118: 14915 | C118: 23 | D118: 14921 | E118: 24 | F118: 14925 | K118: 0 | L118: 222
A119: 22 | B119: 15025 | C119: 23 | D119: 15031 | E119: 13 | F119: 15043 | K119: 0 | L119: 221
A120: 22 | B120: 15189 | C120: 14 | D120: 15198 | E120: 13 | F120: 15204 | K120: 0 | L120: 211
A121: 11 | B121: 15313 | C121: 12 | D121: 15321 | E121: 13 | F121: 15338 | K121: 0 | L121: 111
A122: 11 | B122: 15452 | C122: 12 | D122: 15467 | E122: 24 | F122: 15478 | K122: 0 | L122: 112
A123: 22 | B123: 15576 | C123: 14 | D123: 15588 | E123: 13 | F123: 15592 | K123: 0 | L123: 211
A124: 11 | B124: 15703 | C124: 12 | D124: 15712 | E124: 24 | F124: 15725 | K124: 0 | L124: 112
A125: 22 | B125: 15822 | C125: 14 | D125: 15834 | E125: 13 | F125: 15842 | K125: 0 | L125: 211
A126: 22 | B126: 15940 | C126: 14 | D126: 15952 | E126: 13 | F126: 15959 | K126: 0 | L126: 211
A127: 22 | B127: 16057 | C127: 14 | D127: 16075 | E127: 13 | F127: 16083 | K127: 0 | L127: 211
A128: 22 | B128: 16186 | C128: 14 | D128: 16194 | E128: 13 | F128: 16202 | K128: 0 | L128: 211
A129: 22 | B129: 16298 | C129: 23 | D129: 16302 | E129: 13 | F129: 16312 | K129: 0 | L129: 221
A130: 22 | B130: 16423 | C130: 23 | D130: 16427 | E130: 24 | F130: 16433 | K130: 0 | L130: 222
A131: 11 | B131: 16534 | C131: 12 | D131: 16540 | E131: 24 | F131: 16554 | K131: 0 | L131: 112
A132: 22 | B132: 16650 | C132: 23 | D132: 16657 | E132: 13 | F132: 16666 | K132: 0 | L132: 221
A133: 22 | B133: 16762 | C133: 14 | D133: 16773 | E133: 13 | F133: 16783 | K133: 0 | L133: 211
A134: 22 | B134: 16956 | C134: 14 | D134: 16965 | E134: 24 | F134: 16987 | K134: 0 | L134: 212
A135: 22 | B135: 17087 | C135: 14 | D135: 17098 | E135: 13 | F135: 17105 | K135: 0 | L135: 211
A136: 22 | B136: 17203 | C136: 14 | D136: 17219 | E136: 13 | F136: 17226 | K136: 0 | L136: 211
A137: 11 | B137: 17328 | C137: 12 | D137: 17335 | E137: 24 | F137: 17348 | K137: 0 | L137: 112
A138: 22 | B138: 17446 | C138: 14 | D138: 17457 | E138: 13 | F138: 17463 | K138: 0 | L138: 211
A139: 22 | B139: 17570 | C139: 14 | D139: 17579 | E139: 13 | F139: 17583 | K139: 0 | L139: 211
A140: 22 | B140: 17681 | C140: 14 | D140: 17695 | E140: 13 | F140: 17707 | K140: 0 | L140: 211
A141: 11 | B141: 17820 | C141: 12 | D141: 17829 | E141: 13 | F141: 17843 | K141: 0 | L141: 111
A142: 11 | B142: 17959 | C142: 12 | D142: 17968 | E142: 13 | F142: 17980 | K142: 0 | L142: 111
A143: 22 | B143: 18081 | C143: 23 | D143: 18085 | E143: 13 | F143: 18092 | K143: 0 | L143: 221
A144: 22 | B144: 18215 | C144: 23 | D144: 18223 | E144: 13 | F144: 18235 | K144: 0 | L144: 221
A145: 22 | B145: 18368 | C145: 14 | D145: 18381 | E145: 13 | F145: 18389 | K145: 0 | L145: 211
A146: 22 | B146: 18529 | C146: 14 | D146: 18544 | E146: 13 | F146: 18553 | K146: 0 | L146: 211
A147: 11 | B147: 18867 | C147: 21 | D147: 18876 | E147: 22 | F147: 18881 | K147: 0 | L147: 122
A148: 22 | B148: 18979 | C148: 14 | D148: 18988 | E148: 13 | F148: 18994 | K148: 0 | L148: 211
A149: 11 | B149: 19090 | C149: 12 | D149: 19094 | E149: 13 | F149: 19100 | K149: 0 | L149: 111
A150: 11 | B150: 19193 | C150: 12 | D150: 19205 | E150: 24 | F150: 19214 | K150: 0 | L150: 112
A151: 22 | B151: 19313 | C151: 14 | D151: 19322 | E151: 13 | F151: 19327 | K151: 0 | L151: 211
A152: 22 | B152: 19425 | C152: 14 | D152: 19436 | E152: 13 | F152: 19442 | K152: 0 | L152: 211
A153: 11 | B153: 19553 | C153: 12 | D153: 19557 | E153: 13 | F153: 19567 | K153: 0 | L153: 111
A154: 22 | B154: 19667 | C154: 14 | D154: 19680 | E154: 13 | F154: 19690 | K154: 0 | L154: 211
A155: 22 | B155: 19791 | C155: 23 | D155: 19798 | E155: 13 | F155: 19814 | K155: 0 | L155: 221
A156: 11 | B156: 19914 | C156: 12 | D156: 19919 | E156: 13 | F156: 19925 | K156: 0 | L156: 111
A157: 22 | B157: 20021 | C157: 14 | D157: 20031 | E157: 13 | F157: 20038 | K157: 0 | L157: 211
A158: 11 | B158: 20135 | C158: 21 | D158: 20144 | E158: 22 | F158: 20148 | K158: 0 | L158: 122
A159: 22 | B159: 20270 | C159: 14 | D159: 20277 | E159: 13 | F159: 20289 | K159: 0 | L159: 211
A160: 11 | B160: 20385 | C160: 12 | D160: 20399 | E160: 24 | F160: 20414 | K160: 0 | L160: 112
A161: 11 | B161: 20528 | C161: 12 | D161: 20535 | E161: 13 | F161: 20541 | K161: 0 | L161: 111
A162: 11 | B162: 20727 | C162: 21 | D162: 20746 | E162: 22 | F162: 20751 | K162: 0 | L162: 122
A163: 11 | B163: 20851 | C163: 12 | D163: 20855 | E163: 24 | F163: 20865 | K163: 0 | L163: 112
A164: 11 | B164: 20970 | C164: 12 | D164: 20976 | E164: 13 | F164: 20984 | K164: 0 | L164: 111
A165: 22 | B165: 21085 | C165: 14 | D165: 21093 | E165: 13 | F165: 21099 | K165: 0 | L165: 211
A166: 11 | B166: 21240 | C166: 12 | D166: 21248 | E166: 24 | F166: 21262 | K166: 0 | L166: 112
A167: 22 | B167: 21362 | C167: 14 | D167: 21369 | E167: 13 | F167: 21375 | K167: 0 | L167: 211
A168: 22 | B168: 21473 | C168: 14 | D168: 21484 | E168: 13 | F168: 21490 | K168: 0 | L168: 211
A169: 22 | B169: 21587 | C169: 14 | D169: 21594 | E169: 13 | F169: 21597 | K169: 0 | L169: 211
A170: 22 | B170: 21695 | C170: 14 | D170: 21704 | E170: 13 | F170: 21708 | K170: 0 | L170: 211
A171: 22 | B171: 21804 | C171: 23 | D171: 21808 | E171: 13 | F171: 21819 | K171: 0 | L171: 221
A172: 11 | B172: 21950 | C172: 21 | D172: 21958 | E172: 22 | F172: 21963 | K172: 0 | L172: 122
A173: 22 | B173: 22180 | C173: 14 | D173: 22186 | E173: 24 | F173: 22235 | K173: 0 | L173: 212
A174: 11 | B174: 22333 | C174: 12 | D174: 22337 | E174: 13 | F174: 22343 | K174: 0 | L174: 111
A175: 22 | B175: 22442 | C175: 14 | D175: 22456 | E175: 13 | F175: 22464 | K175: 0 | L175: 211
A176: 11 | B176: 22575 | C176: 21 | D176: 22583 | E176: 22 | F176: 22588 | K176: 0 | L176: 122
A177: 22 | B177: 22720 | C177: 23 | D177: 22724 | E177: 24 | F177: 22730 | K177: 0 | L177: 222
A178: 22 | B178: 22829 | C178: 23 | D178: 22835 | E178: 24 | F178: 22841 | K178: 0 | L178: 222
A179: 11 | B179: 22942 | C179: 12 | D179: 22950 | E179: 24 | F179: 22968 | K179: 0 | L179: 112
A180: 22 | B180: 23068 | C180: 23 | D180: 23080 | E180: 24 | F180: 23089 | K180: 0 | L180: 222
A181: 11 | B181: 23188 | C181: 12 | D181: 23200 | E181: 13 | F181: 23206 | K181: 0 | L181: 111
A182: 11 | B182: 23314 | C182: 12 | D182: 23329 | E182: 24 | F182: 23342 | K182: 0 | L182: 112
A183: 22 | B183: 23441 | C183: 14 | D183: 23451 | E183: 13 | F183: 23455 | K183: 0 | L183: 211
A184: 22 | B184: 23555 | C184: 14 | D184: 23565 | E184: 13 | F184: 23573 | K184: 0 | L184: 211
A185: 11 | B185: 23779 | C185: 12 | D185: 23782 | E185: 13 | F185: 23789 | K185: 0 | L185: 111

Sheet !M217B1I.sha
A1: Report for:!M217B1I.sha
A2: Date: | B2: <date>
A3: Hen: | B3: <hen> | F3: Correct Sequence | G3: =Start!J2 -> 121 | P3: Total Sequences in Data | Q3: =4994-COUNTBLANK(L7:L5000) -> 148 | V3: Total Sequences in Block Data | W3: =COUNTA(L7:L31) -> 25 | AA3: Total Sequences in Block Data | AB3: =COUNTA(L32:L55) -> 24 | AF3: Total Sequences in Block Data | AG3: =COUNTA(L56:L80) -> 25 | AK3: Total Sequences in Block Data | AL3: =COUNTA(L81:L105) -> 25 | AP3: Total Sequences in Block Data | AQ3: =COUNTA(L106:L129) -> 24 | AU3: Total Sequences in Block Data | AV3: =COUNTA(L130:L154) -> 25
P4: Total Sequences in Summary | Q4: =SUM(O7:O14) -> 147 | V4: Total Sequences in Block Summary | W4: =SUM(U7:U14) -> 25 | AA4: Total Sequences in Block Summary | AB4: =SUM(Z7:Z14) -> 24 | AF4: Total Sequences in Block Summary | AG4: =SUM(AE7:AE14) -> 25 | AK4: Total Sequences in Block Summary | AL4: =SUM(AJ7:AJ14) -> 25 | AP4: Total Sequences in Block Summary | AQ4: =SUM(AO7:AO14) -> 24 | AU4: Total Sequences in Block Summary | AV4: =SUM(AT7:AT14) -> 24
T5: Block 1 | Y5: Block 2 | AD5: Block 3 | AI5: Block 4 | AN5: Block 5 | AS5: Block 6
A6: Sequence Component 1 | B6: Time 1 | C6: Sequence Component 2 | D6: Time 2 | E6: Sequence Component 3 | F6: Time 3 | G6: Sequence Component 4 | H6: Time 4 | I6: Sequence Component 5 | J6: Time 5 | K6: Correct? 0=No 1=Yes | L6: Sequence | N6: Frequency | P6: Relative Frequency | Q6: Variability | T6: Frequency | V6: Relative Frequency | W6: Variability | Y6: Frequency | AA6: Relative Frequency | AB6: Variability | AD6: Frequency | AF6: Relative Frequency | AG6: Variability | AI6: Frequency | AK6: Relative Frequency | AL6: Variability | AN6: Frequency | AP6: Relative Frequency | AQ6: Variability | AS6: Frequency | AU6: Relative Frequency | AV6: Variability
A7: 22 | B7: 33 | C7: 23 | D7: 36 | E7: 24 | F7: 42 | K7: 0 | L7: 222 | N7: 111 | O7: =COUNTIF($L$7:$L$500,N7) -> 28 | P7: =O7/$Q$4 -> 0.1904761905 | Q7: =IF(P7=0,0,(P7*((LOG(P7))/LOG(2)))) -> -0.4556795091 | T7: =N7 -> 111 | U7: =COUNTIF(L7:L31,T7) -> 10 | V7: =U7/(W4-U9) -> 0.4 | W7: =IF(V7=0,0,(V7*((LOG(V7))/LOG(2)))) -> -0.528771238 | Y7: =N7 -> 111 | Z7: =COUNTIF(L32:L55,Y7) -> 6 | AA7: =Z7/(AB4-Z9) -> 0.25 | AB7: =IF(AA7=0,0,(AA7*((LOG(AA7))/LOG(2)))) -> -0.5 | AD7: =N7 -> 111 | AE7: =COUNTIF(L56:L80,AD7) -> 0 | AF7: =AE7/(AG4-AE9) -> 0 | AG7: =IF(AF7=0,0,(AF7*((LOG(AF7))/LOG(2)))) -> 0 | AI7: =N7 -> 111 | AJ7: =COUNTIF(L81:L105,AI7) -> 2 | AK7: =AJ7/(AL4-AJ9) -> 0.08 | AL7: =IF(AK7=0,0,(AK7*((LOG(AK7))/LOG(2)))) -> -0.2915084952 | AN7: =N7 -> 111 | AO7: =COUNTIF(L106:L129,AN7) -> 4 | AP7: =AO7/(AQ4-AO9) -> 0.1666666667 | AQ7: =IF(AP7=0,0,(AP7*((LOG(AP7))/LOG(2)))) -> -0.4308270835 | AS7: =N7 -> 111 | AT7: =COUNTIF(L130:L154,AS7) -> 6 | AU7: =AT7/(AV4-AT9) -> 0.2608695652 | AV7: =IF(AU7=0,0,(AU7*((LOG(AU7))/LOG(2)))) -> -0.505721597
A8: 22 | B8: 138 | C8: 14 | D8: 151 | E8: 13 | F8: 159 | K8: 0 | L8: 211 | N8: 112 | O8: =COUNTIF($L$7:$L$500,N8) -> 22 | P8: =O8/$Q$4 -> 0.1496598639 | Q8: =IF(P8=0,0,(P8*((LOG(P8))/LOG(2)))) -> -0.4101040543 | T8: =N8 -> 112 | U8: =COUNTIF(L7:L31,T8) -> 5 | V8: =U8/(W4-U9) -> 0.2 | W8: =IF(V8=0,0,(V8*((LOG(V8))/LOG(2)))) -> -0.464385619 | Y8: =N8 -> 112 | Z8: =COUNTIF(L32:L55,Y8) -> 4 | AA8: =Z8/(AB4-Z9) -> 0.1666666667 | AB8: =IF(AA8=0,0,(AA8*((LOG(AA8))/LOG(2)))) -> -0.4308270835 | AD8: =N8 -> 112 | AE8: =COUNTIF(L56:L80,AD8) -> 1 | AF8: =AE8/(AG4-AE9) -> 0.04 | AG8: =IF(AF8=0,0,(AF8*((LOG(AF8))/LOG(2)))) -> -0.1857542476 | AI8: =N8 -> 112 | AJ8: =COUNTIF(L81:L105,AI8) -> 3 | AK8: =AJ8/(AL4-AJ9) -> 0.12 | AL8: =IF(AK8=0,0,(AK8*((LOG(AK8))/LOG(2)))) -> -0.3670672427 | AN8: =N8 -> 112 | AO8: =COUNTIF(L106:L129,AN8) -> 4 | AP8: =AO8/(AQ4-AO9) -> 0.1666666667 | AQ8: =IF(AP8=0,0,(AP8*((LOG(AP8))/LOG(2)))) -> -0.4308270835 | AS8: =N8 -> 112 | AT8: =COUNTIF(L130:L154,AS8) -> 5 | AU8: =AT8/(AV4-AT9) -> 0.2173913043 | AV8: =IF(AU8=0,0,(AU8*((LOG(AU8))/LOG(2)))) -> -0.4786160568
A9: 11 | B9: 262 | C9: 12 | D9: 274 | E9: 24 | F9: 286 | K9: 0 | L9: 112 | N9: 121 | O9: =COUNTIF($L$7:$L$500,N9) -> 1 | P9: =O9/$Q$4 -> 0.006802721088 | Q9: =IF(P9=0,0,(P9*((LOG(P9))/LOG(2)))) -> -0.04897736289 | T9: =N9 -> 121 | U9: =COUNTIF(L7:L31,T9) -> 0 | Y9: =N9 -> 121 | Z9: =COUNTIF(L32:L55,Y9) -> 0 | AD9: =N9 -> 121 | AE9: =COUNTIF(L56:L80,AD9) -> 0 | AI9: =N9 -> 121 | AJ9: =COUNTIF(L81:L105,AI9) -> 0 | AN9: =N9 -> 121 | AO9: =COUNTIF(L106:L129,AN9) -> 0 | AS9: =N9 -> 121 | AT9: =COUNTIF(L130:L154,AS9) -> 1
A10: 11 | B10: 397 | C10: 12 | D10: 402 | E10: 13 | F10: 409 | K10: 0 | L10: 111 | N10: 122 | O10: =COUNTIF($L$7:$L$500,N10) -> 16 | P10: =O10/$Q$4 -> 0.1088435374 | Q10: =IF(P10=0,0,(P10*((LOG(P10))/LOG(2)))) -> -0.3482636566 | T10: =N10 -> 122 | U10: =COUNTIF(L7:L31,T10) -> 3 | V10: =U10/(W4-U9) -> 0.12 | W10: =IF(V10=0,0,(V10*((LOG(V10))/LOG(2)))) -> -0.3670672427 | Y10: =N10 -> 122 | Z10: =COUNTIF(L32:L55,Y10) -> 1 | AA10: =Z10/(AB4-Z9) -> 0.04166666667 | AB10: =IF(AA10=0,0,(AA10*((LOG(AA10))/LOG(2)))) -> -0.1910401042 | AD10: =N10 -> 122 | AE10: =COUNTIF(L56:L80,AD10) -> 5 | AF10: =AE10/(AG4-AE9) -> 0.2 | AG10: =IF(AF10=0,0,(AF10*((LOG(AF10))/LOG(2)))) -> -0.464385619 | AI10: =N10 -> 122 | AJ10: =COUNTIF(L81:L105,AI10) -> 1 | AK10: =AJ10/(AL4-AJ9) -> 0.04 | AL10: =IF(AK10=0,0,(AK10*((LOG(AK10))/LOG(2)))) -> -0.1857542476 | AN10: =N10 -> 122 | AO10: =COUNTIF(L106:L129,AN10) -> 1 | AP10: =AO10/(AQ4-AO9) -> 0.04166666667 | AQ10: =IF(AP10=0,0,(AP10*((LOG(AP10))/LOG(2)))) -> -0.1910401042 | AS10: =N10 -> 122 | AT10: =COUNTIF(L130:L154,AS10) -> 5 | AU10: =AT10/(AV4-AT9) -> 0.2173913043 | AV10: =IF(AU10=0,0,(AU10*((LOG(AU10))/LOG(2)))) -> -0.4786160568
A11: 11 | B11: 513 | C11: 12 | D11: 517 | E11: 13 | F11: 522 | K11: 0 | L11: 111 | N11: 211 | O11: =COUNTIF($L$7:$L$500,N11) -> 44 | P11: =O11/$Q$4 -> 0.2993197279 | Q11: =IF(P11=0,0,(P11*((LOG(P11))/LOG(2)))) -> -0.5208883806 | T11: =N11 -> 211 | U11: =COUNTIF(L7:L31,T11) -> 2 | V11: =U11/(W4-U9) -> 0.08 | W11: =IF(V11=0,0,(V11*((LOG(V11))/LOG(2)))) -> -0.2915084952 | Y11: =N11 -> 211 | Z11: =COUNTIF(L32:L55,Y11) -> 8 | AA11: =Z11/(AB4-Z9) -> 0.3333333333 | AB11: =IF(AA11=0,0,(AA11*((LOG(AA11))/LOG(2)))) -> -0.5283208336 | AD11: =N11 -> 211 | AE11: =COUNTIF(L56:L80,AD11) -> 11 | AF11: =AE11/(AG4-AE9) -> 0.44 | AG11: =IF(AF11=0,0,(AF11*((LOG(AF11))/LOG(2)))) -> -0.5211468113 | AI11: =N11 -> 211 | AJ11: =COUNTIF(L81:L105,AI11) -> 9 | AK11: =AJ11/(AL4-AJ9) -> 0.36 | AL11: =IF(AK11=0,0,(AK11*((LOG(AK11))/LOG(2)))) -> -0.5306152278 | AN11: =N11 -> 211 | AO11: =COUNTIF(L106:L129,AN11) -> 7 | AP11: =AO11/(AQ4-AO9) -> 0.2916666667 | AQ11: =IF(AP11=0,0,(AP11*((LOG(AP11))/LOG(2)))) -> -0.5184688771 | AS11: =N11 -> 211 | AT11: =COUNTIF(L130:L154,AS11) -> 7 | AU11: =AT11/(AV4-AT9) -> 0.3043478261 | AV11: =IF(AU11=0,0,(AU11*((LOG(AU11))/LOG(2)))) -> -0.5223238799
A12: 11 | B12: 627 | C12: 21 | D12: 645 | E12: 22 | F12: 649 | K12: 0 | L12: 122 | N12: 212 | O12: =COUNTIF($L$7:$L$500,N12) -> 0 | P12: =O12/$Q$4 -> 0 | Q12: =IF(P12=0,0,(P12*((LOG(P12))/LOG(2)))) -> 0 | T12: =N12 -> 212 | U12: =COUNTIF(L7:L31,T12) -> 0 | V12: =U12/(W4-U9) -> 0 | W12: =IF(V12=0,0,(V12*((LOG(V12))/LOG(2)))) -> 0 | Y12: =N12 -> 212 | Z12: =COUNTIF(L32:L55,Y12) -> 0 | AA12: =Z12/(AB4-Z9) -> 0 | AB12: =IF(AA12=0,0,(AA12*((LOG(AA12))/LOG(2)))) -> 0 | AD12: =N12 -> 212 | AE12: =COUNTIF(L56:L80,AD12) -> 0 | AF12: =AE12/(AG4-AE9) -> 0 | AG12: =IF(AF12=0,0,(AF12*((LOG(AF12))/LOG(2)))) -> 0 | AI12: =N12 -> 212 | AJ12: =COUNTIF(L81:L105,AI12) -> 0 | AK12: =AJ12/(AL4-AJ9) -> 0 | AL12: =IF(AK12=0,0,(AK12*((LOG(AK12))/LOG(2)))) -> 0 | AN12: =N12 -> 212 | AO12: =COUNTIF(L106:L129,AN12) -> 0 | AP12: =AO12/(AQ4-AO9) -> 0 | AQ12: =IF(AP12=0,0,(AP12*((LOG(AP12))/LOG(2)))) -> 0 | AS12: =N12 -> 212 | AT12: =COUNTIF(L130:L154,AS12) -> 0 | AU12: =AT12/(AV4-AT9) -> 0 | AV12: =IF(AU12=0,0,(AU12*((LOG(AU12))/LOG(2)))) -> 0
A13: 22 | B13: 746 | C13: 23 | D13: 748 | E13: 24 | F13: 754 | K13: 0 | L13: 222 | N13: 221 | O13: =COUNTIF($L$7:$L$500,N13) -> 24 | P13: =O13/$Q$4 -> 0.1632653061 | Q13: =IF(P13=0,0,(P13*((LOG(P13))/LOG(2)))) -> -0.4268914031 | T13: =N13 -> 221 | U13: =COUNTIF(L7:L31,T13) -> 1 | V13: =U13/(W4-U9) -> 0.04 | W13: =IF(V13=0,0,(V13*((LOG(V13))/LOG(2)))) -> -0.1857542476 | Y13: =N13 -> 221 | Z13: =COUNTIF(L32:L55,Y13) -> 4 | AA13: =Z13/(AB4-Z9) -> 0.1666666667 | AB13: =IF(AA13=0,0,(AA13*((LOG(AA13))/LOG(2)))) -> -0.4308270835 | AD13: =N13 -> 221 | AE13: =COUNTIF(L56:L80,AD13) -> 5 | AF13: =AE13/(AG4-AE9) -> 0.2 | AG13: =IF(AF13=0,0,(AF13*((LOG(AF13))/LOG(2)))) -> -0.464385619 | AI13: =N13 -> 221 | AJ13: =COUNTIF(L81:L105,AI13) -> 6 | AK13: =AJ13/(AL4-AJ9) -> 0.24 | AL13: =IF(AK13=0,0,(AK13*((LOG(AK13))/LOG(2)))) -> -0.4941344854 | AN13: =N13 -> 221 | AO13: =COUNTIF(L106:L129,AN13) -> 8 | AP13: =AO13/(AQ4-AO9) -> 0.3333333333 | AQ13: =IF(AP13=0,0,(AP13*((LOG(AP13))/LOG(2)))) -> -0.5283208336 | AS13: =N13 -> 221 | AT13: =COUNTIF(L130:L154,AS13) -> 0 | AU13: =AT13/(AV4-AT9) -> 0 | AV13: =IF(AU13=0,0,(AU13*((LOG(AU13))/LOG(2)))) -> 0
A14: 11 | B14: 850 | C14: 12 | D14: 856 | E14: 13 | F14: 861 | K14: 0 | L14: 111 | N14: 222 | O14: =COUNTIF($L$7:$L$500,N14) -> 12 | P14: =O14/$Q$4 -> 0.08163265306 | Q14: =IF(P14=0,0,(P14*((LOG(P14))/LOG(2)))) -> -0.2950783546 | T14: =N14 -> 222 | U14: =COUNTIF(L7:L31,T14) -> 4 | V14: =U14/(W4-U9) -> 0.16 | W14: =IF(V14=0,0,(V14*((LOG(V14))/LOG(2)))) -> -0.4230169904 | Y14: =N14 -> 222 | Z14: =COUNTIF(L32:L55,Y14) -> 1 | AA14: =Z14/(AB4-Z9) -> 0.04166666667 | AB14: =IF(AA14=0,0,(AA14*((LOG(AA14))/LOG(2)))) -> -0.1910401042 | AD14: =N14 -> 222 | AE14: =COUNTIF(L56:L80,AD14) -> 3 | AF14: =AE14/(AG4-AE9) -> 0.12 | AG14: =IF(AF14=0,0,(AF14*((LOG(AF14))/LOG(2)))) -> -0.3670672427 | AI14: =N14 -> 222 | AJ14: =COUNTIF(L81:L105,AI14) -> 4 | AK14: =AJ14/(AL4-AJ9) -> 0.16 | AL14: =IF(AK14=0,0,(AK14*((LOG(AK14))/LOG(2)))) -> -0.4230169904 | AN14: =N14 -> 222 | AO14: =COUNTIF(L106:L129,AN14) -> 0 | AP14: =AO14/(AQ4-AO9) -> 0 | AQ14: =IF(AP14=0,0,(AP14*((LOG(AP14))/LOG(2)))) -> 0 | AS14: =N14 -> 222 | AT14: =COUNTIF(L130:L154,AS14) -> 0 | AU14: =AT14/(AV4-AT9) -> 0 | AV14: =IF(AU14=0,0,(AU14*((LOG(AU14))/LOG(2)))) -> 0
A15: 11 | B15: 973 | C15: 12 | D15: 990 | E15: 24 | F15: 1001 | K15: 0 | L15: 112 | P15: =SUM(P7:P14) -> 1 | Q15: =-SUM(Q7:Q14) -> 2.505882721 | V15: =SUM(V7:V14) -> 1 | W15: =-SUM(W7:W14) -> 2.260503833 | AA15: =SUM(AA7:AA14) -> 1 | AB15: =-SUM(AB7:AB14) -> 2.272055209 | AF15: =SUM(AF7:AF14) -> 1 | AG15: =-SUM(AG7:AG14) -> 2.00273954 | AK15: =SUM(AK7:AK14) -> 1 | AL15: =-SUM(AL7:AL14) -> 2.292096689 | AP15: =SUM(AP7:AP14) -> 1 | AQ15: =-SUM(AQ7:AQ14) -> 2.099483982 | AU15: =SUM(AU7:AU14) -> 1 | AV15: =-SUM(AV7:AV14) -> 1.985277591
A16: 22 | B16: 1101 | C16: 23 | D16: 1105 | E16: 24 | F16: 1110 | K16: 0 | L16: 222 | P16: U= | Q16: =Q15/(LOG(Q4)/LOG(2)) -> 0.348055106 | V16: U1= | W16: =W15/(LOG(W4)/LOG(2)) -> 0.4867730051 | AA16: U2= | AB16: =AB15/(LOG(AB4)/LOG(2)) -> 0.4955449927 | AF16: U3= | AG16: =AG15/(LOG(AG4)/LOG(2)) -> 0.4312664858 | AK16: U4= | AL16: =AL15/(LOG(AL4)/LOG(2)) -> 0.4935761564 | AP16: U5= | AQ16: =AQ15/(LOG(AQ4)/LOG(2)) -> 0.4579064674 | AU16: U6= | AV16: =AV15/(LOG(AV4)/LOG(2)) -> 0.4329975633
A17: 11 | B17: 1206 | C17: 12 | D17: 1210 | E17: 13 | F17: 1216 | K17: 0 | L17: 111
A18: 11 | B18: 1327 | C18: 21 | D18: 1342 | E18: 22 | F18: 1347 | K18: 0 | L18: 122
A19: 22 | B19: 1446 | C19: 23 | D19: 1450 | E19: 13 | F19: 1471 | K19: 0 | L19: 221 | N19: Total Target Seq
A20: 11 | B20: 1759 | C20: 12 | D20: 1764 | E20: 13 | F20: 1768 | K20: 0 | L20: 111 | N20: =COUNTIF(L7:L154,G3) -> 1 | P20: 25 | Q20: 24 | R20: 25 | S20: 25 | T20: 24 | U20: 25
A21: 11 | B21: 1867 | C21: 12 | D21: 1872 | E21: 13 | F21: 1880 | K21: 0 | L21: 111 | P21: % of reinforcement given in 6 equal intervals based on number of trials
A22: 11 | B22: 2012 | C22: 12 | D22: 2017 | E22: 24 | F22: 2033 | K22: 0 | L22: 112 | P22: %_1 | Q22: %_2 | R22: %_3 | S22: %_4 | T22: %_5 | U22: %_6
A23: 11 | B23: 2133 | C23: 12 | D23: 2138 | E23: 13 | F23: 2143 | K23: 0 | L23: 111 | O23: target sequence | P23: =$G$3 -> 121 | Q23: =$G$3 -> 121 | R23: =$G$3 -> 121 | S23: =$G$3 -> 121 | T23: =$G$3 -> 121 | U23: =$G$3 -> 121
A24: 11 | B24: 2248 | C24: 12 | D24: 2253 | E24: 24 | F24: 2273 | K24: 0 | L24: 112 | O24: total reinforcement | P24: =U9 -> 0 | Q24: =Z9 -> 0 | R24: =AE9 -> 0 | S24: =AJ9 -> 0 | T24: =AO9 -> 0 | U24: =AT9 -> 1
A25: 22 | B25: 2371 | C25: 14 | D25: 2382 | E25: 13 | F25: 2385 | K25: 0 | L25: 211 | O25: % target
A26: 11 | B26: 2483 | C26: 12 | D26: 2492 | E26: 24 | F26: 2506 | K26: 0 | L26: 112 | O26: CCRF
A27: 11 | B27: 2604 | C27: 12 | D27: 2609 | E27: 13 | F27: 2614 | K27: 0 | L27: 111 | O27: % CCRf
A28: 11 | B28: 2713 | C28: 21 | D28: 2729 | E28: 22 | F28: 2733 | K28: 0 | L28: 122 | O28: average response rate | P28: =F31/P20 -> 126.16 | Q28: =(F55-F31)/Q20 -> 119.5833333 | R28: =(F80-F55)/R20 -> 167.08 | S28: =(F105-F80)/S20 -> 140 | T28: =(F129-F105)/T20 -> 200.625 | U28: =(F154-F129)/U20 -> -740.64
A29: 11 | B29: 2831 | C29: 12 | D29: 2838 | E29: 13 | F29: 2842 | K29: 0 | L29: 111
A30: 22 | B30: 2952 | C30: 23 | D30: 2958 | E30: 24 | F30: 2963 | K30: 0 | L30: 222
A31: 11 | B31: 3147 | C31: 12 | D31: 3151 | E31: 13 | F31: 3154 | K31: 0 | L31: 111
A32: 11 | B32: 3250 | C32: 12 | D32: 3255 | E32: 13 | F32: 3263 | K32: 0 | L32: 111
A33: 22 | B33: 3359 | C33: 23 | D33: 3364 | E33: 13 | F33: 3379 | K33: 0 | L33: 221
A34: 22 | B34: 3485 | C34: 14 | D34: 3494 | E34: 13 | F34: 3501 | K34: 0 | L34: 211
A35: 22 | B35: 3599 | C35: 14 | D35: 3611 | E35: 13 | F35: 3618 | K35: 0 | L35: 211
A36: 11 | B36: 3724 | C36: 12 | D36: 3729 | E36: 13 | F36: 3738 | K36: 0 | L36: 111
A37: 22 | B37: 3836 | C37: 14 | D37: 3845 | E37: 13 | F37: 3852 | K37: 0 | L37: 211
A38: 11 | B38: 3963 | C38: 12 | D38: 3967 | E38: 13 | F38: 3980 | K38: 0 | L38: 111
A39: 22 | B39: 4082 | C39: 14 | D39: 4090 | E39: 13 | F39: 4096 | K39: 0 | L39: 211
A40: 22 | B40: 4194 | C40: 14 | D40: 4203 | E40: 13 | F40: 4210 | K40: 0 | L40: 211
A41: 11 | B41: 4305 | C41: 12 | D41: 4309 | E41: 24 | F41: 4318 | K41: 0 | L41: 112
A42: 22 | B42: 4417 | C42: 14 | D42: 4428 | E42: 13 | F42: 4437 | K42: 0 | L42: 211
A43: 11 | B43: 4533 | C43: 12 | D43: 4537 | E43: 24 | F43: 4548 | K43: 0 | L43: 112
A44: 22 | B44: 4645 | C44: 23 | D44: 4647 | E44: 13 | F44: 4656 | K44: 0 | L44: 221
A45: 22 | B45: 4752 | C45: 23 | D45: 4762 | E45: 13 | F45: 4773 | K45: 0 | L45: 221
A46: 22 | B46: 4884 | C46: 14 | D46: 4892 | E46: 13 | F46: 4900 | K46: 0 | L46: 211
A47: 22 | B47: 4999 | C47: 23 | D47: 5004 | E47: 24 | F47: 5011 | K47: 0 | L47: 222
A48: 11 | B48: 5109 | C48: 12 | D48: 5111 | E48: 13 | F48: 5116 | K48: 0 | L48: 111
A49: 11 | B49: 5225 | C49: 12 | D49: 5230 | E49: 24 | F49: 5242 | K49: 0 | L49: 112
A50: 11 | B50: 5344 | C50: 12 | D50: 5348 | E50: 13 | F50: 5353 | K50: 0 | L50: 111
A51: 22 | B51: 5451 | C51: 23 | D51: 5454 | E51: 13 | F51: 5462 | K51: 0 | L51: 221
A52: 11 | B52: 5572 | C52: 12 | D52: 5578 | E52: 13 | F52: 5583 | K52: 0 | L52: 111
A53: 11 | B53: 5694 | C53: 21 | D53: 5713 | E53: 22 | F53: 5716 | K53: 0 | L53: 122
A54: 11 | B54: 5895 | C54: 12 | D54: 5901 | E54: 24 | F54: 5910 | K54: 0 | L54: 112
A55: 22 | B55: 6011 | C55: 14 | D55: 6020 | E55: 13 | F55: 6024 | K55: 0 | L55: 211
A56: 22 | B56: 6122 | C56: 14 | D56: 6131 | E56: 13 | F56: 6137 | K56: 0 | L56: 211
A57: 11 | B57: 6247 | C57: 21 | D57: 6265 | E57: 22 | F57: 6270 | K57: 0 | L57: 122
A58: 11 | B58: 6381 | C58: 21 | D58: 6396 | E58: 22 | F58: 6402 | K58: 0 | L58: 122
A59: 22 | B59: 6526 | C59: 14 | D59: 6542 | E59: 13 | F59: 6546 | K59: 0 | L59: 211
A60: 22 | B60: 6697 | C60: 14 | D60: 6713 | E60: 13 | F60: 6721 | K60: 0 | L60: 211
A61: 22 | B61: 6818 | C61: 14 | D61: 6837 | E61: 13 | F61: 6841 | K61: 0 | L61: 211
A62: 11 | B62: 6939 | C62: 12 | D62: 6947 | E62: 24 | F62: 6958 | K62: 0 | L62: 112
A63: 22 | B63: 7056 | C63: 14 | D63: 7070 | E63: 13 | F63: 7073 | K63: 0 | L63: 211
A64: 22 | B64: 7167 | C64: 23 | D64: 7172 | E64: 13 | F64: 7188 | K64: 0 | L64: 221
A65: 22 | B65: 7293 | C65: 23 | D65: 7299 | E65: 13 | F65: 7310 | K65: 0 | L65: 221
A66: 22 | B66: 8384 | C66: 23 | D66: 8389 | E66: 24 | F66: 8412 | K66: 0 | L66: 222
A67: 22 | B67: 8521 | C67: 14 | D67: 8529 | E67: 13 | F67: 8533 | K67: 0 | L67: 211
A68: 11 | B68: 8630 | C68: 21 | D68: 8642 | E68: 22 | F68: 8646 | K68: 0 | L68: 122
A69: 22 | B69: 8744 | C69: 14 | D69: 8758 | E69: 13 | F69: 8769 | K69: 0 | L69: 211
A70: 11 | B70: 8868 | C70: 21 | D70: 8879 | E70: 22 | F70: 8883 | K70: 0 | L70: 122
A71: 11 | B71: 8994 | C71: 21 | D71: 9009 | E71: 22 | F71: 9012 | K71: 0 | L71: 122
A72: 22 | B72: 9118 | C72: 14 | D72: 9128 | E72: 13 | F72: 9133 | K72: 0 | L72: 211
A73: 22 | B73: 9230 | C73: 23 | D73: 9238 | E73: 13 | F73: 9248 | K73: 0 | L73: 221
A74: 22 | B74: 9394 | C74: 23 | D74: 9408 | E74: 13 | F74: 9419 | K74: 0 | L74: 221
A75: 22 | B75: 9516 | C75: 23 | D75: 9521 | E75: 24 | F75: 9527 | K75: 0 | L75: 222
A76: 22 | B76: 9623 | C76: 23 | D76: 9627 | E76: 24 | F76: 9631 | K76: 0 | L76: 222
A77: 22 | B77: 9733 | C77: 14 | D77: 9748 | E77: 13 | F77: 9751 | K77: 0 | L77: 211
A78: 22 | B78: 9871 | C78: 14 | D78: 9880 | E78: 13 | F78: 9888 | K78: 0 | L78: 211
A79: 22 | B79: 9983 | C79: 14 | D79: 9998 | E79: 13 | F79: 10003 | K79: 0 | L79: 211
A80: 22 | B80: 10186 | C80: 23 | D80: 10191 | E80: 13 | F80: 10201 | K80: 0 | L80: 221
A81: 11 | B81: 10297 | C81: 21 | D81: 10308 | E81: 22 | F81: 10317 | K81: 0 | L81: 122
A82: 22 | B82: 10413 | C82: 14 | D82: 10422 | E82: 13 | F82: 10429 | K82: 0 | L82: 211
A83: 11 | B83: 10533 | C83: 12 | D83: 10538 | E83: 24 | F83: 10555 | K83: 0 | L83: 112
A84: 22 | B84: 10663 | C84: 23 | D84: 10667 | E84: 24 | F84: 10671 | K84: 0 | L84: 222
A85: 22 | B85: 10800 | C85: 14 | D85: 10811 | E85: 13 | F85: 10816 | K85: 0 | L85: 211
A86: 22 | B86: 10943 | C86: 14 | D86: 10952 | E86: 13 | F86: 10957 | K86: 0 | L86: 211
A87: 22 | B87: 11172 | C87: 23 | D87: 11179 | E87: 13 | F87: 11189 | K87: 0 | L87: 221
A88: 11 | B88: 11284 | C88: 12 | D88: 11289 | E88: 13 | F88: 11293 | K88: 0 | L88: 111
A89: 22 | B89: 11389 | C89: 14 | D89: 11398 | E89: 13 | F89: 11404 | K89: 0 | L89: 211
A90: 22 | B90: 11506 | C90: 23 | D90: 11510 | E90: 24 | F90: 11516 | K90: 0 | L90: 222
A91: 22 | B91: 11750 | C91: 23 | D91: 11756 | E91: 13 | F91: 11766 | K91: 0 | L91: 221
A92: 11 | B92: 11864 | C92: 12 | D92: 11869 | E92: 24 | F92: 11878 | K92: 0 | L92: 112
A93: 11 | B93: 11990 | C93: 12 | D93: 11995 | E93: 13 | F93: 12000 | K93: 0 | L93: 111
A94: 22 | B94: 12096 | C94: 23 | D94: 12099 | E94: 24 | F94: 12104 | K94: 0 | L94: 222
A95: 22 | B95: 12199 | C95: 23 | D95: 12202 | E95: 24 | F95: 12207 | K95: 0 | L95: 222
A96: 22 | B96: 12462 | C96: 14 | D96: 12472 | E96: 13 | F96: 12476 | K96: 0 | L96: 211
A97: 22 | B97: 12637 | C97: 14 | D97: 12654 | E97: 13 | F97: 12663 | K97: 0 | L97: 211
A98: 22 | B98: 12770 | C98: 23 | D98: 12780 | E98: 13 | F98: 12798 | K98: 0 | L98: 221
A99: 22 | B99: 12893 | C99: 23 | D99: 12896 | E99: 13 | F99: 12907 | K99: 0 | L99: 221
A100: 22 | B100: 13021 | C100: 23 | D100: 13032 | E100: 13 | F100: 13042 | K100: 0 | L100: 221
A101: 11 | B101: 13149 | C101: 12 | D101: 13155 | E101: 24 | F101: 13165 | K101: 0 | L101: 112
A102: 22 | B102: 13265 | C102: 14 | D102: 13277 | E102: 13 | F102: 13284 | K102: 0 | L102: 211
A103: 22 | B103: 13387 | C103: 23 | D103: 13395 | E103: 13 | F103: 13407 | K103: 0 | L103: 221
A104: 22 | B104: 13507 | C104: 14 | D104: 13526 | E104: 13 | F104: 13533 | K104: 0 | L104: 211
A105: 22 | B105: 13689 | C105: 14 | D105: 13698 | E105: 13 | F105: 13701 | K105: 0 | L105: 211
A106: 11 | B106: 13797 | C106: 12 | D106: 13801 | E106: 13 | F106: 13813 | K106: 0 | L106: 111
A107: 22 | B107: 14149 | C107: 14 | D107: 14163 | E107: 13 | F107: 14169 | K107: 0 | L107: 211
A108: 22 | B108: 14265 | C108: 23 | D108: 14268 | E108: 13 | F108: 14289 | K108: 0 | L108: 221
A109: 22 | B109: 14385 | C109: 23 | D109: 14389 | E109: 13 | F109: 14403 | K109: 0 | L109: 221
A110: 11 | B110: 14505 | C110: 12 | D110: 14519 | E110: 13 | F110: 14528 | K110: 0 | L110: 111
A111: 11 | B111: 14636 | C111: 12 | D111: 14642 | E111: 13 | F111: 14649 | K111: 0 | L111: 111
A112: 22 | B112: 14761 | C112: 14 | D112: 14785 | E112: 13 | F112: 14792 | K112: 0 | L112: 211
A113: 11 | B113: 14907 | C113: 12 | D113: 14918 | E113: 24 | F113: 14927 | K113: 0 | L113: 112
A114: 22 | B114: 15029 | C114: 14 | D114: 15038 | E114: 13 | F114: 15042 | K114: 0 | L114: 211
A115: 22 | B115: 15139 | C115: 23 | D115: 15153 | E115: 13 | F115: 15181 | K115: 0 | L115: 221
A116: 22 | B116: 15280 | C116: 23 | D116: 15286 | E116: 13 | F116: 15295 | K116: 0 | L116: 221
A117: 22 | B117: 15396 | C117: 14 | D117: 15405 | E117: 13 | F117: 15412 | K117: 0 | L117: 211
A118: 22 | B118: 15611 | C118: 14 | D118: 15619 | E118: 13 | F118: 15625 | K118: 0 | L118: 211
A119: 22 | B119: 15720 | C119: 23 | D119: 15727 | E119: 13 | F119: 15739 | K119: 0 | L119: 221
A120: 22 | B120: 15835 | C120: 23 | D120: 15840 | E120: 13 | F120: 15851 | K120: 0 | L120: 221
A121: 22 | B121: 16034 | C121: 23 | D121: 16040 | E121: 13 | F121: 16058 | K121: 0 | L121: 221
A122: 22 | B122: 16546 | C122: 14 | D122: 16556 | E122: 13 | F122: 16564 | K122: 0 | L122: 211
A123: 22 | B123: 16668 | C123: 14 | D123: 16679 | E123: 13 | F123: 16685 | K123: 0 | L123: 211
A124: 11 | B124: 17434 | C124: 12 | D124: 17438 | E124: 13 | F124: 17444 | K124: 0 | L124: 111
A125: 22 | B125: 17731 | C125: 23 | D125: 17743 | E125: 13 | F125: 17755 | K125: 0 | L125: 221
A126: 11 | B126: 17868 | C126: 21 | D126: 17878 | E126: 22 | F126: 17882 | K126: 0 | L126: 122
A127: 11 | B127: 17996 | C127: 12 | D127: 18002 | E127: 24 | F127: 18010 | K127: 0 | L127: 112
A128: 11 | B128: 18339 | C128: 12 | D128: 18346 | E128: 24 | F128: 18354 | K128: 0 | L128: 112
A129: 11 | B129: 18487 | C129: 12 | D129: 18500 | E129: 24 | F129: 18516 | K129: 0 | L129: 112
A130: 11 | B130: 18739 | C130: 12 | D130: 18743 | E130: 13 | F130: 18749 | K130: 0 | L130: 111
A131: 11 | B131: 18852 | C131: 12 | D131: 18862 | E131: 24 | F131: 18876 | K131: 0 | L131: 112
A132: 11 | B132: 19010 | C132: 12 | D132: 19016 | E132: 24 | F132: 19025 | K132: 0 | L132: 112
A133: 22 | B133: 19920 | C133: 14 | D133: 19930 | E133: 13 | F133: 19937 | K133: 0 | L133: 211
A134: 22 | B134: 20045 | C134: 14 | D134: 20053 | E134: 13 | F134: 20058 | K134: 0 | L134: 211
A135: 11 | B135: 20220 | C135: 21 | D135: 20237 | E135: 22 | F135: 20242 | K135: 0 | L135: 122
A136: 22 | B136: 20412 | C136: 14 | D136: 20432 | E136: 13 | F136: 20435 | K136: 0 | L136: 211
A137: 22 | B137: 20539 | C137: 14 | D137: 20554 | E137: 13 | F137: 20593 | K137: 0 | L137: 211
A138: 11 | B138: 20829 | C138: 12 | D138: 20832 | E138: 13 | F138: 20841 | K138: 0 | L138: 111
A139: 11 | B139: 21093 | C139: 21 | D139: 21100 | E139: 22 | F139: 21114 | K139: 0 | L139: 122
A140: 11 | B140: 21280 | C140: 12 | D140: 21286 | E140: 24 | F140: 21306 | K140: 0 | L140: 112
A141: 11 | B141: 21722 | C141: 21 | D141: 21739 | E141: 22 | F141: 21744 | K141: 0 | L141: 122
A142: 11 | B142: 22108 | C142: 21 | D142: 22123 | E142: 22 | F142: 22126 | K142: 0 | L142: 122
A143: 11 | B143: 22257 | C143: 21 | D143: 22283 | E143: 11 | F143: 22318 | K143: 0 | L143: 121
A144: 11 | B144: 22460 | C144: 21 | D144: 22469 | E144: 22 | F144: 22474 | K144: 0 | L144: 122
A145: 11 | B145: 22576 | C145: 12 | D145: 22579 | E145: 13 | F145: 22583 | K145: 0 | L145: 111
A146: 22 | B146: 22679 | C146: 14 | D146: 22699 | E146: 13 | F146: 22702 | K146: 0 | L146: 211
A147: 11 | B147: 22798 | C147: 12 | D147: 22805 | E147: 13 | F147: 22815 | K147: 0 | L147: 111
A148: 22 | B148: 22915 | C148: 14 | D148: 22922 | E148: 13 | F148: 22925 | K148: 0 | L148: 211
A149: 11 | B149: 23030 | C149: 12 | D149: 23037 | E149: 24 | F149: 23051 | K149: 0 | L149: 112
A150: 22 | B150: 23158 | C150: 14 | D150: 23174 | E150: 13 | F150: 23177 | K150: 0 | L150: 211
A151: 11 | B151: 23319 | C151: 12 | D151: 23325 | E151: 13 | F151: 23331 | K151: 0 | L151: 111
A152: 11 | B152: 23568 | C152: 12 | D152: 23574 | E152: 24 | F152: 23583 | K152: 0 | L152: 112
A153: 11 | B153: 23743 | C153: 12 | D153: 23747 | E153: 13 | F153: 23752 | K153: 0 | L153: 111
A154: 22 | B154: 23997 | L154: 2

Sheet !M218A4I.sha
A1: Report for:!M218A4I.sha
A2: Date: | B2: <date>
A3: Hen: | B3: <hen> | F3: Correct Sequence | G3: =Start!J2 -> 121 | P3: Total Sequences in Data | Q3: =4994-COUNTBLANK(L7:L5000) -> 176 | V3: Total Sequences in Block Data | W3: =COUNTA(L7:L35) -> 29 | AA3: Total Sequences in Block Data | AB3: =COUNTA(L36:L65) -> 30 | AF3: Total Sequences in Block Data | AG3: =COUNTA(L66:L94) -> 29 | AK3: Total Sequences in Block Data | AL3: =COUNTA(L95:L123) -> 29 | AP3: Total Sequences in Block Data | AQ3: =COUNTA(L124:L153) -> 30 | AU3: Total Sequences in Block Data | AV3: =COUNTA(L154:L182) -> 29
P4: Total Sequences in Summary | Q4: =SUM(O7:O14) -> 176 | V4: Total Sequences in Block Summary | W4: =SUM(U7:U14) -> 29 | AA4: Total Sequences in Block Summary | AB4: =SUM(Z7:Z14) -> 30 | AF4: Total Sequences in Block Summary | AG4: =SUM(AE7:AE14) -> 29 | AK4: Total Sequences in Block Summary | AL4: =SUM(AJ7:AJ14) -> 29 | AP4: Total Sequences in Block Summary | AQ4: =SUM(AO7:AO14) -> 30 | AU4: Total Sequences in Block Summary | AV4: =SUM(AT7:AT14) -> 29
T5: Block 1 | Y5: Block 2 | AD5: Block 3 | AI5: Block 4 | AN5: Block 5 | AS5: Block 6
A6: Sequence Component 1 | B6: Time 1 | C6: Sequence Component 2 | D6: Time 2 | E6: Sequence Component 3 | F6: Time 3 | G6: Sequence Component 4 | H6: Time 4 | I6: Sequence Component 5 | J6: Time 5 | K6: Correct? 0=No 1=Yes | L6: Sequence | N6: Frequency | P6: Relative Frequency | Q6: Variability | T6: Frequency | V6: Relative Frequency | W6: Variability | Y6: Frequency | AA6: Relative Frequency | AB6: Variability | AD6: Frequency | AF6: Relative Frequency | AG6: Variability | AI6: Frequency | AK6: Relative Frequency | AL6: Variability | AN6: Frequency | AP6: Relative Frequency | AQ6: Variability | AS6: Frequency | AU6: Relative Frequency | AV6: Variability
A7: 11 | B7: 15 | C7: 12 | D7: 24 | E7: 24 | F7: 36 | K7: 0 | L7: 112 | N7: 111 | O7: =COUNTIF($L$7:$L$500,N7) -> 35 | P7: =O7/$Q$4 -> 0.1988636364 | Q7: =IF(P7=0,0,(P7*((LOG(P7))/LOG(2)))) -> -0.4633818242 | T7: =N7 -> 111 | U7: =COUNTIF(L7:L35,T7) -> 2 | V7: =U7/(W4-U9) -> 0.06896551724 | W7: =IF(V7=0,0,(V7*((LOG(V7))/LOG(2)))) -> -0.2660676548 | Y7: =N7 -> 111 | Z7: =COUNTIF(L36:L65,Y7) -> 5 | AA7: =Z7/(AB4-Z9) -> 0.1666666667 | AB7: =IF(AA7=0,0,(AA7*((LOG(AA7))/LOG(2)))) -> -0.4308270835 | AD7: =N7 -> 111 | AE7: =COUNTIF(L66:L94,AD7) -> 3 | AF7: =AE7/(AG4-AE9) -> 0.1071428571 | AG7: =IF(AF7=0,0,(AF7*((LOG(AF7))/LOG(2)))) -> -0.3452563309 | AI7: =N7 -> 111 | AJ7: =COUNTIF(L95:L123,AI7) -> 6 | AK7: =AJ7/(AL4-AJ9) -> 0.2068965517 | AL7: =IF(AK7=0,0,(AK7*((LOG(AK7))/LOG(2)))) -> -0.4702796885 | AN7: =N7 -> 111 | AO7: =COUNTIF(L124:L153,AN7) -> 10 | AP7: =AO7/(AQ4-AO9) -> 0.3333333333 | AQ7: =IF(AP7=0,0,(AP7*((LOG(AP7))/LOG(2)))) -> -0.5283208336 | AS7: =N7 -> 111 | AT7: =COUNTIF(L154:L182,AS7) -> 9 | AU7: =AT7/(AV4-AT9) -> 0.3103448276 | AV7: =IF(AU7=0,0,(AU7*((LOG(AU7))/LOG(2)))) -> -0.5238794463
A8: 11 | B8: 149 | C8: 12 | D8: 158 | E8: 24 | F8: 169 | K8: 0 | L8: 112 | N8: 112 | O8: =COUNTIF($L$7:$L$500,N8) -> 24 | P8: =O8/$Q$4 -> 0.1363636364 | Q8: =IF(P8=0,0,(P8*((LOG(P8))/LOG(2)))) -> -0.3919730615 | T8: =N8 -> 112 | U8: =COUNTIF(L7:L35,T8) -> 7 | V8: =U8/(W4-U9) -> 0.2413793103 | W8: =IF(V8=0,0,(V8*((LOG(V8))/LOG(2)))) -> -0.4949787073 | Y8: =N8 -> 112 | Z8: =COUNTIF(L36:L65,Y8) -> 6 | AA8: =Z8/(AB4-Z9) -> 0.2 | AB8: =IF(AA8=0,0,(AA8*((LOG(AA8))/LOG(2)))) -> -0.464385619 | AD8: =N8 -> 112 | AE8: =COUNTIF(L66:L94,AD8) -> 5 | AF8: =AE8/(AG4-AE9) -> 0.1785714286 | AG8: =IF(AF8=0,0,(AF8*((LOG(AF8))/LOG(2)))) -> -0.4438262191 | AI8: =N8 -> 112 | AJ8: =COUNTIF(L95:L123,AI8) -> 2 | AK8: =AJ8/(AL4-AJ9) -> 0.06896551724 | AL8: =IF(AK8=0,0,(AK8*((LOG(AK8))/LOG(2)))) -> -0.2660676548 | AN8: =N8 -> 112 | AO8: =COUNTIF(L124:L153,AN8) -> 3 | AP8: =AO8/(AQ4-AO9) -> 0.1 | AQ8: =IF(AP8=0,0,(AP8*((LOG(AP8))/LOG(2)))) -> -0.3321928095 | AS8: =N8 -> 112 | AT8: =COUNTIF(L154:L182,AS8) -> 1 | AU8: =AT8/(AV4-AT9) -> 0.03448275862 | AV8: =IF(AU8=0,0,(AU8*((LOG(AU8))/LOG(2)))) -> -0.167516586
A9: 11 | B9: 284 | C9: 12 | D9: 290 | E9: 24 | F9: 300 | K9: 0 | L9: 112 | N9: 121 | O9: =COUNTIF($L$7:$L$500,N9) -> 1 | P9: =O9/$Q$4 -> 0.005681818182 | Q9: =IF(P9=0,0,(P9*((LOG(P9))/LOG(2)))) -> -0.0423831342 | T9: =N9 -> 121 | U9: =COUNTIF(L7:L35,T9) -> 0 | Y9: =N9 -> 121 | Z9: =COUNTIF(L36:L65,Y9) -> 0 | AD9: =N9 -> 121 | AE9: =COUNTIF(L66:L94,AD9) -> 1 | AI9: =N9 -> 121 | AJ9: =COUNTIF(L95:L123,AI9) -> 0 | AN9: =N9 -> 121 | AO9: =COUNTIF(L124:L153,AN9) -> 0 | AS9: =N9 -> 121 | AT9: =COUNTIF(L154:L182,AS9) -> 0
A10: 11 | B10: 399 | C10: 12 | D10: 406 | E10: 24 | F10: 415 | K10: 0 | L10: 112 | N10: 122 | O10: =COUNTIF($L$7:$L$500,N10) -> 10 | P10: =O10/$Q$4 -> 0.05681818182 | Q10: =IF(P10=0,0,(P10*((LOG(P10))/LOG(2)))) -> -0.2350854275 | T10: =N10 -> 122 | U10: =COUNTIF(L7:L35,T10) -> 3 | V10: =U10/(W4-U9) -> 0.1034482759 | W10: =IF(V10=0,0,(V10*((LOG(V10))/LOG(2)))) -> -0.3385881201 | Y10: =N10 -> 122 | Z10: =COUNTIF(L36:L65,Y10) -> 1 | AA10: =Z10/(AB4-Z9) -> 0.03333333333 | AB10: =IF(AA10=0,0,(AA10*((LOG(AA10))/LOG(2)))) -> -0.1635630199 | AD10: =N10 -> 122 | AE10: =COUNTIF(L66:L94,AD10) -> 1 | AF10: =AE10/(AG4-AE9) -> 0.03571428571 | AG10: =IF(AF10=0,0,(AF10*((LOG(AF10))/LOG(2)))) -> -0.1716912472 | AI10: =N10 -> 122 | AJ10: =COUNTIF(L95:L123,AI10) -> 3 | AK10: =AJ10/(AL4-AJ9) -> 0.1034482759 | AL10: =IF(AK10=0,0,(AK10*((LOG(AK10))/LOG(2)))) -> -0.3385881201 | AN10: =N10 -> 122 | AO10: =COUNTIF(L124:L153,AN10) -> 2 | AP10: =AO10/(AQ4-AO9) -> 0.06666666667 | AQ10: =IF(AP10=0,0,(AP10*((LOG(AP10))/LOG(2)))) -> -0.260459373 | AS10: =N10 -> 122 | AT10: =COUNTIF(L154:L182,AS10) -> 0 | AU10: =AT10/(AV4-AT9) -> 0 | AV10: =IF(AU10=0,0,(AU10*((LOG(AU10))/LOG(2)))) -> 0
A11: 22 | B11: 517 | C11: 14 | D11: 529 | E11: 13 | F11: 534 | K11: 0 | L11: 211 | N11: 211 | O11: =COUNTIF($L$7:$L$500,N11) -> 35 | P11: =O11/$Q$4 -> 0.1988636364 | Q11: =IF(P11=0,0,(P11*((LOG(P11))/LOG(2)))) -> -0.4633818242 | T11: =N11 -> 211 | U11: =COUNTIF(L7:L35,T11) -> 8 | V11: =U11/(W4-U9) -> 0.275862069 | W11: =IF(V11=0,0,(V11*((LOG(V11))/LOG(2)))) -> -0.5125464814 | Y11: =N11 -> 211 | Z11: =COUNTIF(L36:L65,Y11) -> 3 | AA11: =Z11/(AB4-Z9) -> 0.1 | AB11: =IF(AA11=0,0,(AA11*((LOG(AA11))/LOG(2)))) -> -0.3321928095 | AD11: =N11 -> 211 | AE11: =COUNTIF(L66:L94,AD11) -> 6 | AF11: =AE11/(AG4-AE9) -> 0.2142857143 | AG11: =IF(AF11=0,0,(AF11*((LOG(AF11))/LOG(2)))) -> -0.4762269474 | AI11: =N11 -> 211 | AJ11: =COUNTIF(L95:L123,AI11) -> 5 | AK11: =AJ11/(AL4-AJ9) -> 0.1724137931 | AL11: =IF(AK11=0,0,(AK11*((LOG(AK11))/LOG(2)))) -> -0.4372505 | AN11: =N11 -> 211 | AO11: =COUNTIF(L124:L153,AN11) -> 6 | AP11: =AO11/(AQ4-AO9) -> 0.2 | AQ11: =IF(AP11=0,0,(AP11*((LOG(AP11))/LOG(2)))) -> -0.464385619 | AS11: =N11 -> 211 | AT11: =COUNTIF(L154:L182,AS11) -> 7 | AU11: =AT11/(AV4-AT9) -> 0.2413793103 | AV11: =IF(AU11=0,0,(AU11*((LOG(AU11))/LOG(2)))) -> -0.4949787073
A12: 22 | B12: 631 | C12: 14 | D12: 640 | E12: 13 | F12: 645 | K12: 0 | L12: 211 | N12: 212 | O12: =COUNTIF($L$7:$L$500,N12) -> 3 | P12: =O12/$Q$4 -> 0.01704545455 | Q12: =IF(P12=0,0,(P12*((LOG(P12))/LOG(2)))) -> -0.1001329963 | T12: =N12 -> 212 | U12: =COUNTIF(L7:L35,T12) -> 2 | V12: =U12/(W4-U9) -> 0.06896551724 | W12: =IF(V12=0,0,(V12*((LOG(V12))/LOG(2)))) -> -0.2660676548 | Y12: =N12 -> 212 | Z12: =COUNTIF(L36:L65,Y12) -> 0 | AA12: =Z12/(AB4-Z9) -> 0 | AB12: =IF(AA12=0,0,(AA12*((LOG(AA12))/LOG(2)))) -> 0 | AD12: =N12 -> 212 | AE12: =COUNTIF(L66:L94,AD12) -> 1 | AF12: =AE12/(AG4-AE9) -> 0.03571428571 | AG12: =IF(AF12=0,0,(AF12*((LOG(AF12))/LOG(2)))) -> -0.1716912472 | AI12: =N12 -> 212 | AJ12: =COUNTIF(L95:L123,AI12) -> 0 | AK12: =AJ12/(AL4-AJ9) -> 0 | AL12: =IF(AK12=0,0,(AK12*((LOG(AK12))/LOG(2)))) -> 0 | AN12: =N12 -> 212 | AO12: =COUNTIF(L124:L153,AN12) -> 0 | AP12: =AO12/(AQ4-AO9) -> 0 | AQ12: =IF(AP12=0,0,(AP12*((LOG(AP12))/LOG(2)))) -> 0 | AS12: =N12 -> 212 | AT12: =COUNTIF(L154:L182,AS12) -> 0 | AU12: =AT12/(AV4-AT9) -> 0 | AV12: =IF(AU12=0,0,(AU12*((LOG(AU12))/LOG(2)))) -> 0
A13: 22 | B13: 741 | C13: 14 | D13: 752 | E13: 13 | F13: 756 | K13: 0 | L13: 211 | N13: 221 | O13: =COUNTIF($L$7:$L$500,N13) -> 22 | P13: =O13/$Q$4 -> 0.125 | Q13: =IF(P13=0,0,(P13*((LOG(P13))/LOG(2)))) -> -0.375 | T13: =N13 -> 221 | U13: =COUNTIF(L7:L35,T13) -> 3 | V13: =U13/(W4-U9) -> 0.1034482759 | W13: =IF(V13=0,0,(V13*((LOG(V13))/LOG(2)))) -> -0.3385881201 | Y13: =N13 -> 221 | Z13: =COUNTIF(L36:L65,Y13) -> 7 | AA13: =Z13/(AB4-Z9) -> 0.2333333333 | AB13: =IF(AA13=0,0,(AA13*((LOG(AA13))/LOG(2)))) -> -0.4898916572 | AD13: =N13 -> 221 | AE13: =COUNTIF(L66:L94,AD13) -> 5 | AF13: =AE13/(AG4-AE9) -> 0.1785714286 | AG13: =IF(AF13=0,0,(AF13*((LOG(AF13))/LOG(2)))) -> -0.4438262191 | AI13: =N13 -> 221 | AJ13: =COUNTIF(L95:L123,AI13) -> 1 | AK13: =AJ13/(AL4-AJ9) -> 0.03448275862 | AL13: =IF(AK13=0,0,(AK13*((LOG(AK13))/LOG(2)))) -> -0.167516586 | AN13: =N13 -> 221 | AO13: =COUNTIF(L124:L153,AN13) -> 3 | AP13: =AO13/(AQ4-AO9) -> 0.1 | AQ13: =IF(AP13=0,0,(AP13*((LOG(AP13))/LOG(2)))) -> -0.3321928095 | AS13: =N13 -> 221 | AT13: =COUNTIF(L154:L182,AS13) -> 3 | AU13: =AT13/(AV4-AT9) -> 0.1034482759 | AV13: =IF(AU13=0,0,(AU13*((LOG(AU13))/LOG(2)))) -> -0.3385881201
A14: 22 | B14: 856 | C14: 23 | D14: 860 | E14: 13 | F14: 869 | K14: 0 | L14: 221 | N14: 222 | O14: =COUNTIF($L$7:$L$500,N14) -> 46 | P14: =O14/$Q$4 -> 0.2613636364 | Q14: =IF(P14=0,0,(P14*((LOG(P14))/LOG(2)))) -> -0.5059659345 | T14: =N14 -> 222 | U14: =COUNTIF(L7:L35,T14) -> 4 | V14: =U14/(W4-U9) -> 0.1379310345 | W14: =IF(V14=0,0,(V14*((LOG(V14))/LOG(2)))) -> -0.3942042752 | Y14: =N14 -> 222 | Z14: =COUNTIF(L36:L65,Y14) -> 8 | AA14: =Z14/(AB4-Z9) -> 0.2666666667 | AB14: =IF(AA14=0,0,(AA14*((LOG(AA14))/LOG(2)))) -> -0.5085041588 | AD14: =N14 -> 222 | AE14: =COUNTIF(L66:L94,AD14) -> 7 | AF14: =AE14/(AG4-AE9) -> 0.25 | AG14: =IF(AF14=0,0,(AF14*((LOG(AF14))/LOG(2)))) -> -0.5 | AI14: =N14 -> 222 | AJ14: =COUNTIF(L95:L123,AI14) -> 12 | AK14: =AJ14/(AL4-AJ9) -> 0.4137931034 | AL14: =IF(AK14=0,0,(AK14*((LOG(AK14))/LOG(2)))) -> -0.5267662735 | AN14: =N14 -> 222 | AO14: =COUNTIF(L124:L153,AN14) -> 6 | AP14: =AO14/(AQ4-AO9) -> 0.2 | AQ14: =IF(AP14=0,0,(AP14*((LOG(AP14))/LOG(2)))) -> -0.464385619 | AS14: =N14 -> 222 | AT14: =COUNTIF(L154:L182,AS14) -> 9 | AU14: =AT14/(AV4-AT9) -> 0.3103448276 | AV14: =IF(AU14=0,0,(AU14*((LOG(AU14))/LOG(2)))) -> -0.5238794463
A15: 22 | B15: 966 | C15: 23 | D15: 972 | E15: 13 | F15: 985 | K15: 0 | L15: 221 | P15: =SUM(P7:P14) -> 1 | Q15: =-SUM(Q7:Q14) -> 2.577304202 | V15: =SUM(V7:V14) -> 1 | W15: =-SUM(W7:W14) -> 2.611041014 | AA15: =SUM(AA7:AA14) -> 1 | AB15: =-SUM(AB7:AB14) -> 2.389364348 | AF15: =SUM(AF7:AF14) -> 1 | AG15: =-SUM(AG7:AG14) -> 2.552518211 | AK15: =SUM(AK7:AK14) -> 1 | AL15: =-SUM(AL7:AL14) -> 2.206468823 | AP15: =SUM(AP7:AP14) -> 1 | AQ15: =-SUM(AQ7:AQ14) -> 2.381937064 | AU15: =SUM(AU7:AU14) -> 1 | AV15: =-SUM(AV7:AV14) -> 2.048842306
A16: 22 | B16: 1115 | C16: 23 | D16: 1128 | E16: 13 | F16: 1136 | K16: 0 | L16: 221 | P16: U= | Q16: =Q15/(LOG(Q4)/LOG(2)) -> 0.3455094616 | V16: U1= | W16: =W15/(LOG(W4)/LOG(2)) -> 0.5374745221 | AA16: U2= | AB16: =AB15/(LOG(AB4)/LOG(2)) -> 0.4869406198 | AF16: U3= | AG16: =AG15/(LOG(AG4)/LOG(2)) -> 0.5254277885 | AK16: U4= | AL16: =AL15/(LOG(AL4)/LOG(2)) -> 0.4541946182 | AP16: U5= | AQ16: =AQ15/(LOG(AQ4)/LOG(2)) -> 0.485426976 | AU16: U6= | AV16: =AV15/(LOG(AV4)/LOG(2)) -> 0.4217476989
A17: 22 | B17: 1235 | C17: 14 | D17: 1246 | E17: 13 | F17: 1250 | K17: 0 | L17: 211
A18: 22 | B18: 1348 | C18: 23 | D18: 1355 | E18: 24 | F18: 1359 | K18: 0 | L18: 222
A19: 22 | B19: 1454 | C19: 23 | D19: 1458 | E19: 24 | F19: 1462 | K19: 0 | L19: 222 | N19: Total Target Seq
A20: 11 | B20: 1559 | C20: 21 | D20: 1573 | E20: 22 | F20: 1578 | K20: 0 | L20: 122 | N20: =COUNTIF(L7:L182,G3) -> 1 | P20: 29 | Q20: 30 | R20: 29 | S20: 29 | T20: 30 | U20: 29
A21: 22 | B21: 1585 | C21: 14 | D21: 1601 | E21: 24 | F21: 1611 | K21: 0 | L21: 212 | P21: % of reinforcement given in 6 equal intervals based on number of trials
A22: 22 | B22: 1714 | C22: 14 | D22: 1725 | E22: 24 | F22: 1740 | K22: 0 | L22: 212 | P22: %_1 | Q22: %_2 | R22: %_3 | S22: %_4 | T22: %_5 | U22: %_6
A23: 22 | B23: 1841 | C23: 23 | D23: 1845 | E23: 24 | F23: 1852 | K23: 0 | L23: 222 | O23: target sequence | P23: =$G$3 -> 121 | Q23: =$G$3 -> 121 | R23: =$G$3 -> 121 | S23: =$G$3 -> 121 | T23: =$G$3 -> 121 | U23: =$G$3 -> 121
A24: 11 | B24: 1956 | C24: 12 | D24: 1960 | E24: 13 | F24: 1965 | K24: 0 | L24: 111 | O24: total reinforcement | P24: =U9 -> 0 | Q24: =Z9 -> 0 | R24: =AE9 -> 1 | S24: =AJ9 -> 0 | T24: =AO9 -> 0 | U24: =AT9 -> 0
A25: 22 | B25: 2063 | C25: 14 | D25: 2077 | E25: 13 | F25: 2083 | K25: 0 | L25: 211 | O25: % target
A26: 22 | B26: 2181 | C26: 14 | D26: 2189 | E26: 13 | F26: 2194 | K26: 0 | L26: 211 | O26: CCRF
A27: 11 | B27: 2300 | C27: 12 | D27: 2306 | E27: 13 | F27: 2313 | K27: 0 | L27: 111 | O27: % CCRf
A28: 11 | B28: 2406 | C28: 21 | D28: 2412 | E28: 22 | F28: 2424 | K28: 0 | L28: 122 | O28: average response rate | P28: =F35/P20 -> 111.7241379 | Q28: =(F65-F35)/Q20 -> 180.2333333 | R28: =(F94-F65)/R20 -> 141.4137931 | S28: =(F123-F94)/S20 -> 140.6206897 | T28: =(F153-F123)/T20 -> 114.8333333 | U28: =(F182-F153)/U20 -> 127.1034483
A29: 22 | B29: 2519 | C29: 23 | D29: 2523 | E29: 24 | F29: 2527 | K29: 0 | L29: 222
A30: 11 | B30: 2624 | C30: 12 | D30: 2628 | E30: 24 | F30: 2646 | K30: 0 | L30: 112
A31: 11 | B31: 2765 | C31: 12 | D31: 2771 | E31: 24 | F31: 2781 | K31: 0 | L31: 112
A32: 22 | B32: 2877 | C32: 14 | D32: 2890 | E32: 13 | F32: 2895 | K32: 0 | L32: 211
A33: 11 | B33: 2997 | C33: 12 | D33: 3000 | E33: 24 | F33: 3013 | K33: 0 | L33: 112
A34: 22 | B34: 3109 | C34: 14 | D34: 3120 | E34: 13 | F34: 3127 | K34: 0 | L34: 211
A35: 11 | B35: 3223 | C35: 21 | D35: 3237 | E35: 22 | F35: 3240 | K35: 0 | L35: 122
A36: 22 | B36: 3338 | C36: 23 | D36: 3347 | E36: 24 | F36: 3353 | K36: 0 | L36: 222
A37: 11 | B37: 3449 | C37: 12 | D37: 3453 | E37: 24 | F37: 3465 | K37: 0 | L37: 112
A38: 22 | B38: 3565 | C38: 23 | D38: 3569 | E38: 13 | F38: 3580 | K38: 0 | L38: 221
A39: 11 | B39: 3671 | C39: 12 | D39: 3680 | E39: 24 | F39: 3692 | K39: 0 | L39: 112
A40: 22 | B40: 3794 | C40: 23 | D40: 3799 | E40: 24 | F40: 3804 | K40: 0 | L40: 222
A41: 11 | B41: 3898 | C41: 12 | D41: 3903 | E41: 24 | F41: 3920 | K41: 0 | L41: 112
A42: 11 | B42: 4015 | C42: 12 | D42: 4020 | E42: 24 | F42: 4026 | K42: 0 | L42: 112
A43: 22 | B43: 4122 | C43: 23 | D43: 4128 | E43: 13 | F43: 4139 | K43: 0 | L43: 221
A44: 11 | B44: 4248 | C44: 12 | D44: 4251 | E44: 13 | F44: 4253 | K44: 0 | L44: 111
A45: 22 | B45: 4348 | C45: 23 | D45: 4354 | E45: 13 | F45: 4365 | K45: 0 | L45: 221
A46: 22 | B46: 4463 | C46: 14 | D46: 4475 | E46: 13 | F46: 4480 | K46: 0 | L46: 211
A47: 22 | B47: 4655 | C47: 14 | D47: 4663 | E47: 13 | F47: 4666 | K47: 0 | L47: 211
A48: 22 | B48: 4762 | C48: 23 | D48: 4766 | E48: 24 | F48: 4772 | K48: 0 | L48: 222
A49: 22 | B49: 4872 | C49: 23 | D49: 4876 | E49: 24 | F49: 4882 | K49: 0 | L49: 222
A50: 22 | B50: 6884 | C50: 23 | D50: 6892 | E50: 24 | F50: 6897 | K50: 0 | L50: 222
A51: 11 | B51: 6999 | C51: 12 | D51: 7003 | E51: 24 | F51: 7018 | K51: 0 | L51: 112
A52: 22 | B52: 7116 | C52: 14 | D52: 7130 | E52: 13 | F52: 7137 | K52: 0 | L52: 211
A53: 22 | B53: 7232 | C53: 23 | D53: 7236 | E53: 24 | F53: 7242 | K53: 0 | L53: 222
A54: 11 | B54: 7352 | C54: 12 | D54: 7355 | E54: 13 | F54: 7366 | K54: 0 | L54: 111
A55: 22 | B55: 7464 | C55: 23 | D55: 7472 | E55: 13 | F55: 7496 | K55: 0 | L55: 221
A56: 22 | B56: 7595 | C56: 23 | D56: 7600 | E56: 13 | F56: 7611 | K56: 0 | L56: 221
A57: 22 | B57: 7706 | C57: 23 | D57: 7711 | E57: 13 | F57: 7723 | K57: 0 | L57: 221
A58: 11 | B58: 7816 | C58: 12 | D58: 7819 | E58: 13 | F58: 7827 | K58: 0 | L58: 111
A59: 22 | B59: 7926 | C59: 23 | D59: 7935 | E59: 13 | F59: 7948 | K59: 0 | L59: 221
A60: 11 | B60: 8051 | C60: 21 | D60: 8054 | E60: 22 | F60: 8064 | K60: 0 | L60: 122
A61: 11 | B61: 8170 | C61: 12 | D61: 8174 | E61: 24 | F61: 8187 | K61: 0 | L61: 112
A62: 11 | B62: 8294 | C62: 12 | D62: 8301 | E62: 13 | F62: 8307 | K62: 0 | L62: 111
A63: 22 | B63: 8402 | C63: 23 | D63: 8409 | E63: 24 | F63: 8415 | K63: 0 | L63: 222
A64: 11 | B64: 8517 | C64: 12 | D64: 8522 | E64: 13 | F64: 8527 | K64: 0 | L64: 111
A65: 22 | B65: 8623 | C65: 23 | D65: 8629 | E65: 24 | F65: 8647 | K65: 0 | L65: 222
A66: 22 | B66: 8747 | C66: 23 | D66: 8751 | E66: 24 | F66: 8758 | K66: 0 | L66: 222
A67: 22 | B67: 8857 | C67: 14 | D67: 8867 | E67: 13 | F67: 8872 | K67: 0 | L67: 211
A68: 22 | B68: 9092 | C68: 23 | D68: 9098 | E68: 13 | F68: 9111 | K68: 0 | L68: 221
A69: 22 | B69: 9212 | C69: 14 | D69: 9222 | E69: 13 | F69: 9227 | K69: 0 | L69: 211
A70: 11 | B70: 9342 | C70: 12 | D70: 9352 | E70: 24 | F70: 9363 | K70: 0 | L70: 112
A71: 11 | B71: 9455 | C71: 21 | D71: 9463 | E71: 22 | F71: 9466 | K71: 0 | L71: 122
A72: 11 | B72: 9561 | C72: 12 | D72: 9569 | E72: 24 | F72: 9581 | K72: 0 | L72: 112
A73: 22 | B73: 9682 | C73: 23 | D73: 9687 | E73: 24 | F73: 9698 | K73: 0 | L73: 222
A74: 22 | B74: 9794 | C74: 14 | D74: 9806 | E74: 13 | F74: 9812 | K74: 0 | L74: 211
A75: 11 | B75: 9921 | C75: 12 | D75: 9926 | E75: 24 | F75: 9938 | K75: 0 | L75: 112
A76: 11 | B76: 10048 | C76: 12 | D76: 10052 | E76: 13 | F76: 10057 | K76: 0 | L76: 111
A77: 11 | B77: 10155 | C77: 12 | D77: 10161 | E77: 24 | F77: 10174 | K77: 0 | L77: 112
A78: 11 | B78: 10273 | C78: 12 | D78: 10276 | E78: 13 | F78: 10280 | K78: 0 | L78: 111
A79: 22 | B79: 10378 | C79: 23 | D79: 10385 | E79: 13 | F79: 10396 | K79: 0 | L79: 221
A80: 22 | B80: 10497 | C80: 23 | D80: 10503 | E80: 24 | F80: 10510 | K80: 0 | L80: 222
A81: 22 | B81: 10607 | C81: 23 | D81: 10609 | E81: 13 | F81: 10630 | K81: 0 | L81: 221
A82: 22 | B82: 10728 | C82: 23 | D82: 10735 | E82: 13 | F82: 10747 | K82: 0 | L82: 221
A83: 22 | B83: 10845 | C83: 23 | D83: 10851 | E83: 13 | F83: 10872 | K83: 0 | L83: 221
A84: 22 | B84: 10969 | C84: 23 | D84: 10973 | E84: 24 | F84: 10978 | K84: 0 | L84: 222
A85: 11 | B85: 11120 | C85: 12 | D85: 11125 | E85: 24 | F85: 11135 | K85: 0 | L85: 112
A86: 22 | B86: 11537 | C86: 14 | D86: 11550 | E86: 13 | F86: 11557 | K86: 0 | L86: 211
A87: 22 | B87: 11666 | C87: 14 | D87: 11679 | E87: 13 | F87: 11685 | K87: 0 | L87: 211
A88: 22 | B88: 11796 | C88: 23 | D88: 11801 | E88: 24 | F88: 11807 | K88: 0 | L88: 222
A89: 22 | B89: 12037 | C89: 14 | D89: 12052 | E89: 24 | F89: 12063 | K89: 0 | L89: 212
A90: 11 | B90: 12160 | C90: 12 | D90: 12168 | E90: 13 | F90: 12173 | K90: 0 | L90: 111
A91: 22 | B91: 12274 | C91: 23 | D91: 12276 | E91: 24 | F91: 12281 | K91: 0 | L91: 222
A92: 22 | B92: 12379 | C92: 14 | D92: 12396 | E92: 13 | F92: 12400 | K92: 0 | L92: 211
A93: 11 | B93: 12502 | C93: 21 | D93: 12504 | E93: 11 | F93: 12506 | K93: 0 | L93: 121
A94: 22 | B94: 12737 | C94: 23 | D94: 12743 | E94: 24 | F94: 12748 | K94: 0 | L94: 222
A95: 22 | B95: 12861 | C95: 14 | D95: 12871 | E95: 13 | F95: 12875 | K95: 0 | L95: 211
A96: 22 | B96: 13067 | C96: 14 | D96: 13077 | E96: 13 | F96: 13083 | K96: 0 | L96: 211
A97: 22 | B97: 13178 | C97: 23 | D97: 13182 | E97: 24 | F97: 13187 | K97: 0 | L97: 222
A98: 11 | B98: 13286 | C98: 21 | D98: 13304 | E98: 22 | F98: 13308 | K98: 0 | L98: 122
A99: 11 | B99: 13759 | C99: 12 | D99: 13768 | E99: 24 | F99: 13778 | K99: 0 | L99: 112
A100: 22 | B100: 13874 | C100: 23 | D100: 13879 | E100: 24 | F100: 13885 | K100: 0 | L100: 222
A101: 22 | B101: 13982 | C101: 23 | D101: 13988 | E101: 24 | F101: 13994 | K101: 0 | L101: 222
A102: 22 | B102: 14095 | C102: 14 | D102: 14107 | E102: 13 | F102: 14113 | K102: 0 | L102: 211
A103: 22 | B103: 14206 | C103: 23 | D103: 14211 | E103: 24 | F103: 14216 | K103: 0 | L103: 222
A104: 11 | B104: 14310 | C104: 12 | D104: 14315 | E104: 24 | F104: 14325 | K104: 0 | L104: 112
A105: 22 | B105: 14417 | C105: 23 | D105: 14421 | E105: 24 | F105: 14427 | K105: 0 | L105: 222
A106: 11 | B106: 14522 | C106: 21 | D106: 14536 | E106: 22 | F106: 14539 | K106: 0 | L106: 122
A107: 22 | B107: 14638 | C107: 23 | D107: 14642 | E107: 24 | F107: 14647 | K107: 0 | L107: 222
A108: 22 | B108: 14748 | C108: 23 | D108: 14751 | E108: 24 | F108: 14755 | K108: 0 | L108: 222
A109: 11 | B109: 14854 | C109: 12 | D109: 14859 | E109: 13 | F109: 14863 | K109: 0 | L109: 111
A110: 11 | B110: 15173 | C110: 12 | D110: 15180 | E110: 13 | F110: 15187 | K110: 0 | L110: 111
A111: 11 | B111: 15320 | C111: 21 | D111: 15335 | E111: 22 | F111: 15339 | K111: 0 | L111: 122
A112: 22 | B112: 15435 | C112: 23 | D112: 15441 | E112: 24 | F112: 15445 | K112: 0 | L112: 222
A113: 22 | B113: 15537 | C113: 23 | D113: 15543 | E113: 24 | F113: 15547 | K113: 0 | L113: 222
A114: 22 | B114: 15645 | C114: 23 | D114: 15649 | E114: 24 | F114: 15656 | K114: 0 | L114: 222
A115: 11 | B115: 15751 | C115: 12 | D115: 15756 | E115: 13 | F115: 15760 | K115: 0 | L115: 111
A116: 22 | B116: 15859 | C116: 14 | D116: 15868 | E116: 13 | F116: 15871 | K116: 0 | L116: 211
A117: 22 | B117: 15969 | C117: 23 | D117: 15977 | E117: 13 | F117: 15987 | K117: 0 | L117: 221
A118: 11 | B118: 16263 | C118: 12 | D118: 16267 | E118: 13 | F118: 16273 | K118: 0 | L118: 111
A119: 22 | B119: 16376 | C119: 14 | D119: 16390 | E119: 13 | F119: 16398 | K119: 0 | L119: 211
A120: 22 | B120: 16496 | C120: 23 | D120: 16500 | E120: 24 | F120: 16506 | K120: 0 | L120: 222
A121: 22 | B121: 16607 | C121: 23 | D121: 16610 | E121: 24 | F121: 16614 | K121: 0 | L121: 222
A122: 11 | B122: 16709 | C122: 12 | D122: 16713 | E122: 13 | F122: 16717 | K122: 0 | L122: 111
A123: 11 | B123: 16815 | C123: 12 | D123: 16819 | E123: 13 | F123: 16826 | K123: 0 | L123: 111
A124: 22 | B124: 16925 | C124: 14 | D124: 16934 | E124: 13 | F124: 16938 | K124: 0 | L124: 211
A125: 11 | B125: 17037 | C125: 12 | D125: 17042 | E125: 13 | F125: 17050 | K125: 0 | L125: 111
A126: 22 | B126: 17145 | C126: 23 | D126: 17149 | E126: 24 | F126: 17153 | K126: 0 | L126: 222
A127: 22 | B127: 17250 | C127: 14 | D127: 17260 | E127: 13 | F127: 17268 | K127: 0 | L127: 211
A128: 11 | B128: 17364 | C128: 12 | D128: 17366 | E128: 13 | F128: 17372 | K128: 0 | L128: 111
A129: 22 | B129: 17473 | C129: 23 | D129: 17478 | E129: 13 | F129: 17487 | K129: 0 | L129: 221
A130: 22 | B130: 17586 | C130: 23 | D130: 17592 | E130: 24 | F130: 17598 | K130: 0 | L130: 222
A131: 22 | B131: 17697 | C131: 23 | D131: 17701 | E131: 24 | F131: 17707 | K131: 0 | L131: 222
A132: 11 | B132: 17809 | C132: 12 | D132: 17812 | E132: 13 | F132: 17817 | K132: 0 | L132: 111
A133: 22 | B133: 17915 | C133: 23 | D133: 17920 | E133: 24 | F133: 17924 | K133: 0 | L133: 222
A134: 11 | B134: 18022 | C134: 12 | D134: 18027 | E134: 13 | F134: 18031 | K134: 0 | L134: 111
A135: 22 | B135: 18128 | C135: 23 | D135: 18133 | E135: 24 | F135: 18136 | K135: 0 | L135: 222
A136: 22 | B136: 18249 | C136: 23 | D136: 18257 | E136: 13 | F136: 18267 | K136: 0 | L136: 221
A137: 22 | B137: 18369 | C137: 23 | D137: 18374 | E137: 13 | F137: 18384 | K137: 0 | L137: 221
A138: 22 | B138: 18501 | C138: 14 | D138: 18513 | E138: 13 | F138: 18518 | K138: 0 | L138: 211
A139: 11 | B139: 18639 | C139: 12 | D139: 18643 | E139: 13 | F139: 18649 | K139: 0 | L139: 111
A140: 22 | B140: 18747 | C140: 23 | D140: 18751 | E140: 24 | F140: 18755 | K140: 0 | L140: 222
A141: 22 | B141: 18855 | C141: 14 | D141: 18866 | E141: 13 | F141: 18871 | K141: 0 | L141: 211
A142: 11 | B142: 18968 | C142: 21 | D142: 18982 | E142: 22 | F142: 18985 | K142: 0 | L142: 122
A143: 11 | B143: 19084 | C143: 12 | D143: 19088 | E143: 13 | F143: 19093 | K143: 0 | L143: 111
A144: 11 | B144: 19189 | C144: 12 | D144: 19195 | E144: 13 | F144: 19199 | K144: 0 | L144: 111
A145: 11 | B145: 19294 | C145: 12 | D145: 19298 | E145: 24 | F145: 19307 | K145: 0 | L145: 112
A146: 11 | B146: 19433 | C146: 12 | D146: 19437 | E146: 24 | F146: 19457 | K146: 0 | L146: 112
A147: 11 | B147: 19568 | C147: 12 | D147: 19575 | E147: 13 | F147: 19581 | K147: 0 | L147: 111
A148: 22 | B148: 19678 | C148: 14 | D148: 19697 | E148: 13 | F148: 19703 | K148: 0 | L148: 211
A149: 11 | B149: 19801 | C149: 12 | D149: 19807 | E149: 24 | F149: 19818 | K149: 0 | L149: 112
A150: 11 | B150: 19914 | C150: 12 | D150: 19918 | E150: 13 | F150: 19923 | K150: 0 | L150: 111
A151: 11 | B151: 20030 | C151: 12 | D151: 20033 | E151: 13 | F151: 20035 | K151: 0 | L151: 111
A152: 22 | B152: 20135 | C152: 14 | D152: 20145 | E152: 13 | F152: 20150 | K152: 0 | L152: 211
A153: 11 | B153: 20252 | C153: 21 | D153: 20266 | E153: 22 | F153: 20271 | K153: 0 | L153: 122
A154: 22 | B154: 20371 | C154: 14 | D154: 20381 | E154: 13 | F154: 20386 | K154: 0 | L154: 211
A155: 11 | B155: 20501 | C155: 12 | D155: 20514 | E155: 13 | F155: 20520 | K155: 0 | L155: 111
A156: 22 | B156: 20619 | C156: 23 | D156: 20623 | E156: 24 | F156: 20627 | K156: 0 | L156: 222
A157: 11 | B157: 20723 | C157: 12 | D157: 20726 | E157: 13 | F157: 20731 | K157: 0 | L157: 111
A158: 22 | B158: 20834 | C158: 23 | D158: 20838 | E158: 13 | F158: 20851 | K158: 0 | L158: 221
A159: 22 | B159: 21078 | C159: 14 | D159: 21087 | E159: 13 | F159: 21092 | K159: 0 | L159: 211
A160: 22 | B160: 21192 | C160: 14 | D160: 21203 | E160: 13 | F160: 21208 | K160: 0 | L160: 211
A161: 11 | B161: 21399 | C161: 12 | D161: 21404 | E161: 13 | F161: 21413 | K161: 0 | L161: 111
A162: 11 | B162: 21514 | C162: 12 | D162: 21519 | E162: 13 | F162: 21525 | K162: 0 | L162: 111
A163: 22 | B163: 21626 | C163: 14 | D163: 21639 | E163: 13 | F163: 21644 | K163: 0 | L163: 211
A164: 22 | B164: 21833 | C164: 23 | D164: 21841 | E164: 13 | F164: 21850 | K164: 0 | L164: 221
A165: 11 | B165: 21947 | C165: 12 | D165: 21952 | E165: 13 | F165: 21958 | K165: 0 | L165: 111
A166: 22 | B166: 22054 | C166: 23 | D166: 22058 | E166: 24 | F166: 22064 | K166: 0 | L166: 222
A167: 22 | B167: 22163 | C167: 23 | D167: 22167 | E167: 24 | F167: 22173 | K167: 0 | L167: 222
A168: 11 | B168: 22267 | C168: 12 | D168: 22272 | E168: 13 | F168: 22276 | K168: 0 | L168: 111
A169: 11 | B169: 22371 | C169: 12 | D169: 22379 | E169: 13 | F169: 22385 | K169: 0 | L169: 111
A170: 22 | B170: 22486 | C170: 14 | D170: 22494 | E170: 13 | F170: 22497 | K170: 0 | L170: 211
A171: 22 | B171: 22595 | C171: 23 | D171: 22605 | E171: 24 | F171: 22610 | K171: 0 | L171: 222
A172: 22 | B172: 22709 | C172: 23 | D172: 22713 | E172: 24 | F172: 22718 | K172: 0 | L172: 222
A173: 11 | B173: 22810 | C173: 12 | D173: 22814 | E173: 13 | F173: 22818 | K173: 0 | L173: 111
A174: 22 | B174: 22923 | C174: 23 | D174: 22927 | E174: 24 | F174: 22931 | K174: 0 | L174: 222
A175: 11 | B175: 23027 | C175: 12 | D175: 23032 | E175: 24 | F175: 23043 | K175: 0 | L175: 112
A176: 22 | B176: 23143 | C176: 14 | D176: 23156 | E176: 13 | F176: 23161 | K176: 0 | L176: 211
A177: 11 | B177: 23258 | C177: 12 | D177: 23265 | E177: 13 | F177: 23270 | K177: 0 | L177: 111
A178: 22 | B178: 23505 | C178: 23 | D178: 23511 | E178: 24 | F178: 23515 | K178: 0 | L178: 222
A179: 22 | B179: 23611 | C179: 23 | D179: 23616 | E179: 13 | F179: 23632 | K179: 0 | L179: 221
A180: 22 | B180: 23726 | C180: 23 | D180: 23730 | E180: 24 | F180: 23734 | K180: 0 | L180: 222
A181: 22 | B181: 23830 | C181: 23 | D181: 23835 | E181: 24 | F181: 23841 | K181: 0 | L181: 222
A182: 22 | B182: 23939 | C182: 14 | D182: 23952 | E182: 13 | F182: 23957 | L182: 211

Sheet !M219B2I.sha
A1: Report for:!M219B2I.sha
A2: Date: | B2: <date>
A3: Hen: | B3: <hen> | F3: Correct Sequence | G3: =Start!J2 -> 121 | P3: Total Sequences in Data | Q3: =4994-COUNTBLANK(L7:L5000) -> 173 | V3: Total Sequences in Block Data | W3: =COUNTA(L7:L35) -> 29 | AA3: Total Sequences in Block Data | AB3: =COUNTA(L36:L64) -> 29 | AF3: Total Sequences in Block Data | AG3: =COUNTA(L65:L92) -> 28 | AK3: Total Sequences in Block Data | AL3: =COUNTA(L93:L121) -> 29 | AP3: Total Sequences in Block Data | AQ3: =COUNTA(L122:L150) -> 29 | AU3: Total Sequences in Block Data | AV3: =COUNTA(L151:L179) -> 29
P4: Total Sequences in Summary | Q4: =SUM(O7:O14) -> 173 | V4: Total Sequences in Block Summary | W4: =SUM(U7:U14) -> 29 | AA4: Total Sequences in Block Summary | AB4: =SUM(Z7:Z14) -> 29 | AF4: Total Sequences in Block Summary | AG4: =SUM(AE7:AE14) -> 28 | AK4: Total Sequences in Block Summary | AL4: =SUM(AJ7:AJ14) -> 29 | AP4: Total Sequences in Block Summary | AQ4: =SUM(AO7:AO14) -> 29 | AU4: Total Sequences in Block Summary | AV4: =SUM(AT7:AT14) -> 29
T5: Block 1 | Y5: Block 2 | AD5: Block 3 | AI5: Block 4 | AN5: Block 5 | AS5: Block 6
A6: Sequence Component 1 | B6: Time 1 | C6: Sequence Component 2 | D6: Time 2 | E6: Sequence Component 3 | F6: Time 3 | G6: Sequence Component 4 | H6: Time 4 | I6: Sequence Component 5 | J6: Time 5 | K6: Correct? 0=No 1=Yes | L6: Sequence | N6: Frequency | P6: Relative Frequency | Q6: Variability | T6: Frequency | V6: Relative Frequency | W6: Variability | Y6: Frequency | AA6: Relative Frequency | AB6: Variability | AD6: Frequency | AF6: Relative Frequency | AG6: Variability | AI6: Frequency | AK6: Relative Frequency | AL6: Variability | AN6: Frequency | AP6: Relative Frequency | AQ6: Variability | AS6: Frequency | AU6: Relative Frequency | AV6: Variability
A7: 11 | B7: 21 | C7: 21 | D7: 34 | E7: 22 | F7: 39 | K7: 0 | L7: 122 | N7: 111 | O7: =COUNTIF($L$7:$L$500,N7) -> 56 | P7: =O7/$Q$4 -> 0.323699422 | Q7: =IF(P7=0,0,(P7*((LOG(P7))/LOG(2)))) -> -0.5267474284 | T7: =N7 -> 111 | U7: =COUNTIF(L7:L35,T7) -> 7 | V7: =U7/(W4-U9) -> 0.2413793103 | W7: =IF(V7=0,0,(V7*((LOG(V7))/LOG(2)))) -> -0.4949787073 | Y7: =N7 -> 111 | Z7: =COUNTIF(L36:L64,Y7) -> 7 | AA7: =Z7/(AB4-Z9) -> 0.2413793103 | AB7: =IF(AA7=0,0,(AA7*((LOG(AA7))/LOG(2)))) -> -0.4949787073 | AD7: =N7 -> 111 | AE7: =COUNTIF(L65:L92,AD7) -> 8 | AF7: =AE7/(AG4-AE9) -> 0.2857142857 | AG7: =IF(AF7=0,0,(AF7*((LOG(AF7))/LOG(2)))) -> -0.5163871206 | AI7: =N7 -> 111 | AJ7: =COUNTIF(L93:L121,AI7) -> 8 | AK7: =AJ7/(AL4-AJ9) -> 0.2857142857 | AL7: =IF(AK7=0,0,(AK7*((LOG(AK7))/LOG(2)))) -> -0.5163871206 | AN7: =N7 -> 111 | AO7: =COUNTIF(L122:L150,AN7) -> 12 | AP7: =AO7/(AQ4-AO9) -> 0.4444444444 | AQ7: =IF(AP7=0,0,(AP7*((LOG(AP7))/LOG(2)))) -> -0.5199666673 | AS7: =N7 -> 111 | AT7: =COUNTIF(L151:L179,AS7) -> 14 | AU7: =AT7/(AV4-AT9) -> 0.4827586207 | AV7: =IF(AU7=0,0,(AU7*((LOG(AU7))/LOG(2)))) -> -0.5071987939
A8: 11 | B8: 141 | C8: 12 | D8: 148 | E8: 24 | F8: 163 | K8: 0 | L8: 112 | N8: 112 | O8: =COUNTIF($L$7:$L$500,N8) -> 17 | P8: =O8/$Q$4 -> 0.09826589595 | Q8: =IF(P8=0,0,(P8*((LOG(P8))/LOG(2)))) -> -0.3289122056 | T8: =N8 -> 112 | U8: =COUNTIF(L7:L35,T8) -> 7 | V8: =U8/(W4-U9) -> 0.2413793103 | W8: =IF(V8=0,0,(V8*((LOG(V8))/LOG(2)))) -> -0.4949787073 | Y8: =N8 -> 112 | Z8: =COUNTIF(L36:L64,Y8) -> 1 | AA8: =Z8/(AB4-Z9) -> 0.03448275862 | AB8: =IF(AA8=0,0,(AA8*((LOG(AA8))/LOG(2)))) -> -0.167516586 | AD8: =N8 -> 112 | AE8: =COUNTIF(L65:L92,AD8) -> 3 | AF8: =AE8/(AG4-AE9) -> 0.1071428571 | AG8: =IF(AF8=0,0,(AF8*((LOG(AF8))/LOG(2)))) -> -0.3452563309 | AI8: =N8 -> 112 | AJ8: =COUNTIF(L93:L121,AI8) -> 5 | AK8: =AJ8/(AL4-AJ9) -> 0.1785714286 | AL8: =IF(AK8=0,0,(AK8*((LOG(AK8))/LOG(2)))) -> -0.4438262191 | AN8: =N8 -> 112 | AO8: =COUNTIF(L122:L150,AN8) -> 0 | AP8: =AO8/(AQ4-AO9) -> 0 | AQ8: =IF(AP8=0,0,(AP8*((LOG(AP8))/LOG(2)))) -> 0 | AS8: =N8 -> 112 | AT8: =COUNTIF(L151:L179,AS8) -> 1 | AU8: =AT8/(AV4-AT9) -> 0.03448275862 | AV8: =IF(AU8=0,0,(AU8*((LOG(AU8))/LOG(2)))) -> -0.167516586
A9: 11 | B9: 259 | C9: 12 | D9: 269 | E9: 24 | F9: 279 | K9: 0 | L9: 112 | N9: 121 | O9: =COUNTIF($L$7:$L$500,N9) -> 3 | P9: =O9/$Q$4 -> 0.01734104046 | Q9: =IF(P9=0,0,(P9*((LOG(P9))/LOG(2)))) -> -0.1014392901 | T9: =N9 -> 121 | U9: =COUNTIF(L7:L35,T9) -> 0 | Y9: =N9 -> 121 | Z9: =COUNTIF(L36:L64,Y9) -> 0 | AD9: =N9 -> 121 | AE9: =COUNTIF(L65:L92,AD9) -> 0 | AI9: =N9 -> 121 | AJ9: =COUNTIF(L93:L121,AI9) -> 1 | AN9: =N9 -> 121 | AO9: =COUNTIF(L122:L150,AN9) -> 2 | AS9: =N9 -> 121 | AT9: =COUNTIF(L151:L179,AS9) -> 0
A10: 11 | B10: 381 | C10: 12 | D10: 384 | E10: 24 | F10: 399 | K10: 0 | L10: 112 | N10: 122 | O10: =COUNTIF($L$7:$L$500,N10) -> 7 | P10: =O10/$Q$4 -> 0.04046242775 | Q10: =IF(P10=0,0,(P10*((LOG(P10))/LOG(2)))) -> -0.1872307118 | T10: =N10 -> 122 | U10: =COUNTIF(L7:L35,T10) -> 3 | V10: =U10/(W4-U9) -> 0.1034482759 | W10: =IF(V10=0,0,(V10*((LOG(V10))/LOG(2)))) -> -0.3385881201 | Y10: =N10 -> 122 | Z10: =COUNTIF(L36:L64,Y10) -> 2 | AA10: =Z10/(AB4-Z9) -> 0.06896551724 | AB10: =IF(AA10=0,0,(AA10*((LOG(AA10))/LOG(2)))) -> -0.2660676548 | AD10: =N10 -> 122 | AE10: =COUNTIF(L65:L92,AD10) -> 2 | AF10: =AE10/(AG4-AE9) -> 0.07142857143 | AG10: =IF(AF10=0,0,(AF10*((LOG(AF10))/LOG(2)))) -> -0.271953923 | AI10: =N10 -> 122 | AJ10: =COUNTIF(L93:L121,AI10) -> 0 | AK10: =AJ10/(AL4-AJ9) -> 0 | AL10: =IF(AK10=0,0,(AK10*((LOG(AK10))/LOG(2)))) -> 0 | AN10: =N10 -> 122 | AO10: =COUNTIF(L122:L150,AN10) -> 0 | AP10: =AO10/(AQ4-AO9) -> 0 | AQ10: =IF(AP10=0,0,(AP10*((LOG(AP10))/LOG(2)))) -> 0 | AS10: =N10 -> 122 | AT10: =COUNTIF(L151:L179,AS10) -> 0 | AU10: =AT10/(AV4-AT9) -> 0 | AV10: =IF(AU10=0,0,(AU10*((LOG(AU10))/LOG(2)))) -> 0
A11: 22 | B11: 496 | C11: 23 | D11: 500 | E11: 24 | F11: 505 | K11: 0 | L11: 222 | N11: 211 | O11: =COUNTIF($L$7:$L$500,N11) -> 34 | P11: =O11/$Q$4 -> 0.1965317919 | Q11: =IF(P11=0,0,(P11*((LOG(P11))/LOG(2)))) -> -0.4612926193 | T11: =N11 -> 211 | U11: =COUNTIF(L7:L35,T11) -> 5 | V11: =U11/(W4-U9) -> 0.1724137931 | W11: =IF(V11=0,0,(V11*((LOG(V11))/LOG(2)))) -> -0.4372505 | Y11: =N11 -> 211 | Z11: =COUNTIF(L36:L64,Y11) -> 7 | AA11: =Z11/(AB4-Z9) -> 0.2413793103 | AB11: =IF(AA11=0,0,(AA11*((LOG(AA11))/LOG(2)))) -> -0.4949787073 | AD11: =N11 -> 211 | AE11: =COUNTIF(L65:L92,AD11) -> 6 | AF11: =AE11/(AG4-AE9) -> 0.2142857143 | AG11: =IF(AF11=0,0,(AF11*((LOG(AF11))/LOG(2)))) -> -0.4762269474 | AI11: =N11 -> 211 | AJ11: =COUNTIF(L93:L121,AI11) -> 7 | AK11: =AJ11/(AL4-AJ9) -> 0.25 | AL11: =IF(AK11=0,0,(AK11*((LOG(AK11))/LOG(2)))) -> -0.5 | AN11: =N11 -> 211 | AO11: =COUNTIF(L122:L150,AN11) -> 6 | AP11: =AO11/(AQ4-AO9) -> 0.2222222222 | AQ11: =IF(AP11=0,0,(AP11*((LOG(AP11))/LOG(2)))) -> -0.4822055559 | AS11: =N11 -> 211 | AT11: =COUNTIF(L151:L179,AS11) -> 3 | AU11: =AT11/(AV4-AT9) -> 0.1034482759 | AV11: =IF(AU11=0,0,(AU11*((LOG(AU11))/LOG(2)))) -> -0.3385881201
A12: 22 | B12: 608 | C12: 23 | D12: 611 | E12: 24 | F12: 617 | K12: 0 | L12: 222 | N12: 212 | O12: =COUNTIF($L$7:$L$500,N12) -> 3 | P12: =O12/$Q$4 -> 0.01734104046 | Q12: =IF(P12=0,0,(P12*((LOG(P12))/LOG(2)))) -> -0.1014392901 | T12: =N12 -> 212 | U12: =COUNTIF(L7:L35,T12) -> 0 | V12: =U12/(W4-U9) -> 0 | W12: =IF(V12=0,0,(V12*((LOG(V12))/LOG(2)))) -> 0 | Y12: =N12 -> 212 | Z12: =COUNTIF(L36:L64,Y12) -> 0 | AA12: =Z12/(AB4-Z9) -> 0 | AB12: =IF(AA12=0,0,(AA12*((LOG(AA12))/LOG(2)))) -> 0 | AD12: =N12 -> 212 | AE12: =COUNTIF(L65:L92,AD12) -> 0 | AF12: =AE12/(AG4-AE9) -> 0 | AG12: =IF(AF12=0,0,(AF12*((LOG(AF12))/LOG(2)))) -> 0 | AI12: =N12 -> 212 | AJ12: =COUNTIF(L93:L121,AI12) -> 3 | AK12: =AJ12/(AL4-AJ9) -> 0.1071428571 | AL12: =IF(AK12=0,0,(AK12*((LOG(AK12))/LOG(2)))) -> -0.3452563309 | AN12: =N12 -> 212 | AO12: =COUNTIF(L122:L150,AN12) -> 0 | AP12: =AO12/(AQ4-AO9) -> 0 | AQ12: =IF(AP12=0,0,(AP12*((LOG(AP12))/LOG(2)))) -> 0 | AS12: =N12 -> 212 | AT12: =COUNTIF(L151:L179,AS12) -> 0 | AU12: =AT12/(AV4-AT9) -> 0 | AV12: =IF(AU12=0,0,(AU12*((LOG(AU12))/LOG(2)))) -> 0
A13: 11 | B13: 720 | C13: 21 | D13: 730 | E13: 22 | F13: 734 | K13: 0 | L13: 122 | N13: 221 | O13: =COUNTIF($L$7:$L$500,N13) -> 16 | P13: =O13/$Q$4 -> 0.09248554913 | Q13: =IF(P13=0,0,(P13*((LOG(P13))/LOG(2)))) -> -0.3176534777 | T13: =N13 -> 221 | U13: =COUNTIF(L7:L35,T13) -> 2 | V13: =U13/(W4-U9) -> 0.06896551724 | W13: =IF(V13=0,0,(V13*((LOG(V13))/LOG(2)))) -> -0.2660676548 | Y13: =N13 -> 221 | Z13: =COUNTIF(L36:L64,Y13) -> 3 | AA13: =Z13/(AB4-Z9) -> 0.1034482759 | AB13: =IF(AA13=0,0,(AA13*((LOG(AA13))/LOG(2)))) -> -0.3385881201 | AD13: =N13 -> 221 | AE13: =COUNTIF(L65:L92,AD13) -> 7 | AF13: =AE13/(AG4-AE9) -> 0.25 | AG13: =IF(AF13=0,0,(AF13*((LOG(AF13))/LOG(2)))) -> -0.5 | AI13: =N13 -> 221 | AJ13: =COUNTIF(L93:L121,AI13) -> 1 | AK13: =AJ13/(AL4-AJ9) -> 0.03571428571 | AL13: =IF(AK13=0,0,(AK13*((LOG(AK13))/LOG(2)))) -> -0.1716912472 | AN13: =N13 -> 221 | AO13: =COUNTIF(L122:L150,AN13) -> 2 | AP13: =AO13/(AQ4-AO9) -> 0.07407407407 | AQ13: =IF(AP13=0,0,(AP13*((LOG(AP13))/LOG(2)))) -> -0.278139815 | AS13: =N13 -> 221 | AT13: =COUNTIF(L151:L179,AS13) -> 1 | AU13: =AT13/(AV4-AT9) -> 0.03448275862 | AV13: =IF(AU13=0,0,(AU13*((LOG(AU13))/LOG(2)))) -> -0.167516586
A14: 11 | B14: 835 | C14: 21 | D14: 849 | E14: 22 | F14: 853 | K14: 0 | L14: 122 | N14: 222 | O14: =COUNTIF($L$7:$L$500,N14) -> 37 | P14: =O14/$Q$4 -> 0.2138728324 | Q14: =IF(P14=0,0,(P14*((LOG(P14))/LOG(2)))) -> -0.4759044503 | T14: =N14 -> 222 | U14: =COUNTIF(L7:L35,T14) -> 5 | V14: =U14/(W4-U9) -> 0.1724137931 | W14: =IF(V14=0,0,(V14*((LOG(V14))/LOG(2)))) -> -0.4372505 | Y14: =N14 -> 222 | Z14: =COUNTIF(L36:L64,Y14) -> 9 | AA14: =Z14/(AB4-Z9) -> 0.3103448276 | AB14: =IF(AA14=0,0,(AA14*((LOG(AA14))/LOG(2)))) -> -0.5238794463 | AD14: =N14 -> 222 | AE14: =COUNTIF(L65:L92,AD14) -> 2 | AF14: =AE14/(AG4-AE9) -> 0.07142857143 | AG14: =IF(AF14=0,0,(AF14*((LOG(AF14))/LOG(2)))) -> -0.271953923 | AI14: =N14 -> 222 | AJ14: =COUNTIF(L93:L121,AI14) -> 4 | AK14: =AJ14/(AL4-AJ9) -> 0.1428571429 | AL14: =IF(AK14=0,0,(AK14*((LOG(AK14))/LOG(2)))) -> -0.4010507032 | AN14: =N14 -> 222 | AO14: =COUNTIF(L122:L150,AN14) -> 7 | AP14: =AO14/(AQ4-AO9) -> 0.2592592593 | AQ14: =IF(AP14=0,0,(AP14*((LOG(AP14))/LOG(2)))) -> -0.5049158541 | AS14: =N14 -> 222 | AT14: =COUNTIF(L151:L179,AS14) -> 10 | AU14: =AT14/(AV4-AT9) -> 0.3448275862 | AV14: =IF(AU14=0,0,(AU14*((LOG(AU14))/LOG(2)))) -> -0.5296734139
A15: 22 | B15: 953 | C15: 14 | D15: 964 | E15: 13 | F15: 969 | K15: 0 | L15: 211 | P15: =SUM(P7:P14) -> 1 | Q15: =-SUM(Q7:Q14) -> 2.500619473 | V15: =SUM(V7:V14) -> 1 | W15: =-SUM(W7:W14) -> 2.46911419 | AA15: =SUM(AA7:AA14) -> 1 | AB15: =-SUM(AB7:AB14) -> 2.286009222 | AF15: =SUM(AF7:AF14) -> 1 | AG15: =-SUM(AG7:AG14) -> 2.381778245 | AK15: =SUM(AK7:AK14) -> 1 | AL15: =-SUM(AL7:AL14) -> 2.378211621 | AP15: =SUM(AP7:AP14) -> 1 | AQ15: =-SUM(AQ7:AQ14) -> 1.785227892 | AU15: =SUM(AU7:AU14) -> 1 | AV15: =-SUM(AV7:AV14) -> 1.7104935
A16: 22 | B16: 1065 | C16: 23 | D16: 1070 | E16: 13 | F16: 1081 | K16: 0 | L16: 221 | P16: U= | Q16: =Q15/(LOG(Q4)/LOG(2)) -> 0.3363476151 | V16: U1= | W16: =W15/(LOG(W4)/LOG(2)) -> 0.5082593349 | AA16: U2= | AB16: =AB15/(LOG(AB4)/LOG(2)) -> 0.4705677573 | AF16: U3= | AG16: =AG15/(LOG(AG4)/LOG(2)) -> 0.4954446434 | AK16: U4= | AL16: =AL15/(LOG(AL4)/LOG(2)) -> 0.4895473291 | AP16: U5= | AQ16: =AQ15/(LOG(AQ4)/LOG(2)) -> 0.3674835068 | AU16: U6= | AV16: =AV15/(LOG(AV4)/LOG(2)) -> 0.3520996689
A17: 11 | B17: 1384 | C17: 12 | D17: 1389 | E17: 13 | F17: 1394 | K17: 0 | L17: 111
A18: 22 | B18: 1492 | C18: 14 | D18: 1504 | E18: 13 | F18: 1506 | K18: 0 | L18: 211
A19: 22 | B19: 1608 | C19: 14 | D19: 1622 | E19: 13 | F19: 1628 | K19: 0 | L19: 211 | N19: Total Target Seq
A20: 11 | B20: 1724 | C20: 12 | D20: 1732 | E20: 24 | F20: 1742 | K20: 0 | L20: 112 | N20: =COUNTIF(L7:L179,G3) -> 3 | P20: 29 | Q20: 29 | R20: 28 | S20: 29 | T20: 29 | U20: 29
A21: 11 | B21: 1838 | C21: 12 | D21: 1842 | E21: 13 | F21: 1849 | K21: 0 | L21: 111 | P21: % of reinforcement given in 6 equal intervals based on number of trials
A22: 22 | B22: 1947 | C22: 14 | D22: 1957 | E22: 13 | F22: 1963 | K22: 0 | L22: 211 | P22: %_1 | Q22: %_2 | R22: %_3 | S22: %_4 | T22: %_5 | U22: %_6
A23: 11 | B23: 2120 | C23: 12 | D23: 2126 | E23: 24 | F23: 2139 | K23: 0 | L23: 112 | O23: target sequence | P23: =$G$3 -> 121 | Q23: =$G$3 -> 121 | R23: =$G$3 -> 121 | S23: =$G$3 -> 121 | T23: =$G$3 -> 121 | U23: =$G$3 -> 121
A24: 22 | B24: 2247 | C24: 14 | D24: 2257 | E24: 13 | F24: 2264 | K24: 0 | L24: 211 | O24: total reinforcement | P24: =U9 -> 0 | Q24: =Z9 -> 0 | R24: =AE9 -> 0 | S24: =AJ9 -> 1 | T24: =AO9 -> 2 | U24: =AT9 -> 0
A25: 22 | B25: 2361 | C25: 23 | D25: 2365 | E25: 24 | F25: 2373 | K25: 0 | L25: 222 | O25: % target
A26: 11 | B26: 2470 | C26: 12 | D26: 2481 | E26: 24 | F26: 2492 | K26: 0 | L26: 112 | O26: CCRF
A27: 11 | B27: 2610 | C27: 12 | D27: 2615 | E27: 13 | F27: 2620 | K27: 0 | L27: 111 | O27: % CCRf
A28: 11 | B28: 2714 | C28: 12 | D28: 2720 | E28: 24 | F28: 2729 | K28: 0 | L28: 112 | O28: average response rate | P28: =F35/P20 -> 120.8275862 | Q28: =(F64-F35)/Q20 -> 177.3793103 | R28: =(F92-F64)/R20 -> 130.2142857 | S28: =(F121-F92)/S20 -> 159.0344828 | T28: =(F150-F121)/T20 -> 122.4482759 | U28: =(F179-F150)/U20 -> 119.4137931
A29: 11 | B29: 2828 | C29: 12 | D29: 2832 | E29: 13 | F29: 2841 | K29: 0 | L29: 111
A30: 22 | B30: 2939 | C30: 23 | D30: 2943 | E30: 13 | F30: 2953 | K30: 0 | L30: 221
A31: 11 | B31: 3047 | C31: 12 | D31: 3051 | E31: 13 | F31: 3055 | K31: 0 | L31: 111
A32: 11 | B32: 3154 | C32: 12 | D32: 3160 | E32: 13 | F32: 3165 | K32: 0 | L32: 111
A33: 22 | B33: 3262 | C33: 23 | D33: 3270 | E33: 24 | F33: 3275 | K33: 0 | L33: 222
A34: 22 | B34: 3374 | C34: 23 | D34: 3380 | E34: 24 | F34: 3386 | K34: 0 | L34: 222
A35: 11 | B35: 3494 | C35: 12 | D35: 3498 | E35: 13 | F35: 3504 | K35: 0 | L35: 111
A36: 22 | B36: 3600 | C36: 23 | D36: 3606 | E36: 24 | F36: 3611 | K36: 0 | L36: 222
A37: 11 | B37: 3710 | C37: 12 | D37: 3714 | E37: 13 | F37: 3719 | K37: 0 | L37: 111
A38: 22 | B38: 3821 | C38: 14 | D38: 3832 | E38: 13 | F38: 3836 | K38: 0 | L38: 211
A39: 22 | B39: 3935 | C39: 23 | D39: 3939 | E39: 24 | F39: 3944 | K39: 0 | L39: 222
A40: 11 | B40: 4055 | C40: 12 | D40: 4059 | E40: 13 | F40: 4063 | K40: 0 | L40: 111
A41: 22 | B41: 4161 | C41: 23 | D41: 4165 | E41: 13 | F41: 4176 | K41: 0 | L41: 221
A42: 22 | B42: 4277 | C42: 14 | D42: 4287 | E42: 13 | F42: 4292 | K42: 0 | L42: 211
A43: 11 | B43: 4396 | C43: 12 | D43: 4401 | E43: 13 | F43: 4407 | K43: 0 | L43: 111
A44: 22 | B44: 4502 | C44: 23 | D44: 4506 | E44: 24 | F44: 4512 | K44: 0 | L44: 222
A45: 11 | B45: 5517 | C45: 12 | D45: 5522 | E45: 13 | F45: 5530 | K45: 0 | L45: 111
A46: 11 | B46: 5636 | C46: 12 | D46: 5641 | E46: 13 | F46: 5647 | K46: 0 | L46: 111
A47: 22 | B47: 5742 | C47: 23 | D47: 5747 | E47: 24 | F47: 5752 | K47: 0 | L47: 222
A48: 11 | B48: 5848 | C48: 12 | D48: 5850 | E48: 24 | F48: 5862 | K48: 0 | L48: 112
A49: 22 | B49: 5958 | C49: 23 | D49: 5962 | E49: 24 | F49: 5967 | K49: 0 | L49: 222
A50: 22 | B50: 6066 | C50: 14 | D50: 6075 | E50: 13 | F50: 6079 | K50: 0 | L50: 211
A51: 11 | B51: 6180 | C51: 21 | D51: 6188 | E51: 22 | F51: 6192 | K51: 0 | L51: 122
A52: 22 | B52: 6289 | C52: 23 | D52: 6298 | E52: 13 | F52: 6309 | K52: 0 | L52: 221
A53: 22 | B53: 6407 | C53: 23 | D53: 6420 | E53: 24 | F53: 6425 | K53: 0 | L53: 222
A54: 22 | B54: 6525 | C54: 14 | D54: 6535 | E54: 13 | F54: 6542 | K54: 0 | L54: 211
A55: 11 | B55: 7512 | C55: 12 | D55: 7517 | E55: 13 | F55: 7526 | K55: 0 | L55: 111
A56: 22 | B56: 7623 | C56: 23 | D56: 7627 | E56: 24 | F56: 7634 | K56: 0 | L56: 222
A57: 22 | B57: 7734 | C57: 14 | D57: 7744 | E57: 13 | F57: 7751 | K57: 0 | L57: 211
A58: 22 | B58: 7849 | C58: 14 | D58: 7861 | E58: 13 | F58: 7864 | K58: 0 | L58: 211
A59: 22 | B59: 7966 | C59: 14 | D59: 7979 | E59: 13 | F59: 7985 | K59: 0 | L59: 211
A60: 11 | B60: 8173 | C60: 12 | D60: 8177 | E60: 13 | F60: 8183 | K60: 0 | L60: 111
A61: 11 | B61: 8285 | C61: 21 | D61: 8299 | E61: 22 | F61: 8307 | K61: 0 | L61: 122
A62: 22 | B62: 8406 | C62: 23 | D62: 8410 | E62: 13 | F62: 8420 | K62: 0 | L62: 221
A63: 22 | B63: 8526 | C63: 23 | D63: 8536 | E63: 24 | F63: 8541 | K63: 0 | L63: 222
A64: 22 | B64: 8639 | C64: 23 | D64: 8644 | E64: 24 | F64: 8648 | K64: 0 | L64: 222
A65: 11 | B65: 8763 | C65: 12 | D65: 8767 | E65: 13 | F65: 8772 | K65: 0 | L65: 111
A66: 11 | B66: 8911 | C66: 12 | D66: 8915 | E66: 24 | F66: 8930 | K66: 0 | L66: 112
A67: 22 | B67: 9029 | C67: 14 | D67: 9040 | E67: 13 | F67: 9044 | K67: 0 | L67: 211
A68: 11 | B68: 9170 | C68: 12 | D68: 9175 | E68: 24 | F68: 9198 | K68: 0 | L68: 112
A69: 11 | B69: 9299 | C69: 12 | D69: 9303 | E69: 24 | F69: 9315 | K69: 0 | L69: 112
A70: 22 | B70: 9417 | C70: 23 | D70: 9420 | E70: 13 | F70: 9428 | K70: 0 | L70: 221
A71: 11 | B71: 9529 | C71: 21 | D71: 9531 | E71: 22 | F71: 9541 | K71: 0 | L71: 122
A72: 22 | B72: 9638 | C72: 23 | D72: 9643 | E72: 24 | F72: 9655 | K72: 0 | L72: 222
A73: 22 | B73: 9753 | C73: 23 | D73: 9767 | E73: 13 | F73: 9778 | K73: 0 | L73: 221
A74: 22 | B74: 9910 | C74: 23 | D74: 9919 | E74: 13 | F74: 9927 | K74: 0 | L74: 221
A75: 11 | B75: 10035 | C75: 12 | D75: 10038 | E75: 13 | F75: 10044 | K75: 0 | L75: 111
A76: 11 | B76: 10160 | C76: 12 | D76: 10165 | E76: 13 | F76: 10171 | K76: 0 | L76: 111
A77: 11 | B77: 10270 | C77: 21 | D77: 10272 | E77: 22 | F77: 10284 | K77: 0 | L77: 122
A78: 22 | B78: 10408 | C78: 14 | D78: 10417 | E78: 13 | F78: 10422 | K78: 0 | L78: 211
A79: 22 | B79: 10597 | C79: 23 | D79: 10601 | E79: 13 | F79: 10614 | K79: 0 | L79: 221
A80: 22 | B80: 10721 | C80: 14 | D80: 10733 | E80: 13 | F80: 10740 | K80: 0 | L80: 211
A81: 11 | B81: 10863 | C81: 12 | D81: 10867 | E81: 13 | F81: 10871 | K81: 0 | L81: 111
A82: 22 | B82: 10971 | C82: 14 | D82: 10980 | E82: 13 | F82: 10986 | K82: 0 | L82: 211
A83: 11 | B83: 11084 | C83: 12 | D83: 11088 | E83: 13 | F83: 11094 | K83: 0 | L83: 111
A84: 22 | B84: 11191 | C84: 23 | D84: 11199 | E84: 13 | F84: 11209 | K84: 0 | L84: 221
A85: 22 | B85: 11306 | C85: 23 | D85: 11310 | E85: 13 | F85: 11328 | K85: 0 | L85: 221
A86: 22 | B86: 11426 | C86: 14 | D86: 11437 | E86: 13 | F86: 11441 | K86: 0 | L86: 211
A87: 22 | B87: 11539 | C87: 14 | D87: 11555 | E87: 13 | F87: 11558 | K87: 0 | L87: 211
A88: 11 | B88: 11667 | C88: 12 | D88: 11669 | E88: 13 | F88: 11672 | K88: 0 | L88: 111
A89: 11 | B89: 11765 | C89: 12 | D89: 11771 | E89: 13 | F89: 11775 | K89: 0 | L89: 111
A90: 22 | B90: 11875 | C90: 23 | D90: 11881 | E90: 24 | F90: 11891 | K90: 0 | L90: 222
A91: 22 | B91: 12153 | C91: 23 | D91: 12165 | E91: 13 | F91: 12176 | K91: 0 | L91: 221
A92: 11 | B92: 12284 | C92: 12 | D92: 12290 | E92: 13 | F92: 12294 | K92: 0 | L92: 111
A93: 11 | B93: 12441 | C93: 12 | D93: 12444 | E93: 24 | F93: 12458 | K93: 0 | L93: 112
A94: 22 | B94: 12836 | C94: 23 | D94: 12847 | E94: 24 | F94: 12853 | K94: 0 | L94: 222
A95: 22 | B95: 13045 | C95: 14 | D95: 13058 | E95: 13 | F95: 13065 | K95: 0 | L95: 211
A96: 11 | B96: 13251 | C96: 12 | D96: 13260 | E96: 24 | F96: 13272 | K96: 0 | L96: 112
A97: 11 | B97: 13459 | C97: 12 | D97: 13461 | E97: 24 | F97: 13473 | K97: 0 | L97: 112
A98: 22 | B98: 13665 | C98: 14 | D98: 13674 | E98: 24 | F98: 13688 | K98: 0 | L98: 212
A99: 11 | B99: 13796 | C99: 12 | D99: 13801 | E99: 13 | F99: 13808 | K99: 0 | L99: 111
A100: 11 | B100: 14024 | C100: 12 | D100: 14035 | E100: 24 | F100: 14043 | K100: 0 | L100: 112
A101: 22 | B101: 14143 | C101: 14 | D101: 14150 | E101: 13 | F101: 14153 | K101: 0 | L101: 211
A102: 22 | B102: 14247 | C102: 23 | D102: 14250 | E102: 24 | F102: 14251 | K102: 0 | L102: 222
A103: 11 | B103: 14386 | C103: 12 | D103: 14389 | E103: 13 | F103: 14395 | K103: 0 | L103: 111
A104: 11 | B104: 14587 | C104: 21 | D104: 14615 | E104: 11 | F104: 14626 | K104: 0 | L104: 121
A105: 11 | B105: 14858 | C105: 12 | D105: 14861 | E105: 13 | F105: 14865 | K105: 0 | L105: 111
A106: 22 | B106: 14965 | C106: 14 | D106: 14975 | E106: 13 | F106: 14983 | K106: 0 | L106: 211
A107: 11 | B107: 15084 | C107: 12 | D107: 15090 | E107: 13 | F107: 15095 | K107: 0 | L107: 111
A108: 22 | B108: 15195 | C108: 14 | D108: 15208 | E108: 13 | F108: 15215 | K108: 0 | L108: 211
A109: 22 | B109: 15312 | C109: 23 | D109: 15324 | E109: 24 | F109: 15335 | K109: 0 | L109: 222
A110: 11 | B110: 15441 | C110: 12 | D110: 15444 | E110: 13 | F110: 15455 | K110: 0 | L110: 111
A111: 22 | B111: 15554 | C111: 14 | D111: 15570 | E111: 24 | F111: 15590 | K111: 0 | L111: 212
A112: 22 | B112: 15688 | C112: 14 | D112: 15701 | E112: 24 | F112: 15721 | K112: 0 | L112: 212
A113: 22 | B113: 15816 | C113: 23 | D113: 15823 | E113: 13 | F113: 15834 | K113: 0 | L113: 221
A114: 22 | B114: 16109 | C114: 14 | D114: 16121 | E114: 13 | F114: 16128 | K114: 0 | L114: 211
A115: 22 | B115: 16227 | C115: 23 | D115: 16232 | E115: 24 | F115: 16237 | K115: 0 | L115: 222
A116: 11 | B116: 16338 | C116: 12 | D116: 16348 | E116: 24 | F116: 16355 | K116: 0 | L116: 112
A117: 11 | B117: 16450 | C117: 12 | D117: 16453 | E117: 13 | F117: 16460 | K117: 0 | L117: 111
A118: 11 | B118: 16558 | C118: 12 | D118: 16572 | E118: 13 | F118: 16578 | K118: 0 | L118: 111
A119: 22 | B119: 16674 | C119: 14 | D119: 16685 | E119: 13 | F119: 16690 | K119: 0 | L119: 211
A120: 22 | B120: 16784 | C120: 14 | D120: 16796 | E120: 13 | F120: 16801 | K120: 0 | L120: 211
A121: 11 | B121: 16897 | C121: 12 | D121: 16900 | E121: 13 | F121: 16906 | K121: 0 | L121: 111
A122: 11 | B122: 17000 | C122: 21 | D122: 17005 | E122: 11 | F122: 17017 | K122: 0 | L122: 121
A123: 22 | B123: 17221 | C123: 23 | D123: 17226 | E123: 24 | F123: 17230 | K123: 0 | L123: 222
A124: 22 | B124: 17326 | C124: 23 | D124: 17333 | E124: 24 | F124: 17338 | K124: 0 | L124: 222
A125: 22 | B125: 17436 | C125: 14 | D125: 17446 | E125: 13 | F125: 17452 | K125: 0 | L125: 211
A126: 11 | B126: 17548 | C126: 12 | D126: 17551 | E126: 13 | F126: 17561 | K126: 0 | L126: 111
A127: 11 | B127: 17659 | C127: 12 | D127: 17664 | E127: 13 | F127: 17671 | K127: 0 | L127: 111
A128: 22 | B128: 17769 | C128: 23 | D128: 17780 | E128: 24 | F128: 17784 | K128: 0 | L128: 222
A129: 11 | B129: 17884 | C129: 12 | D129: 17889 | E129: 13 | F129: 17895 | K129: 0 | L129: 111
A130: 22 | B130: 17994 | C130: 14 | D130: 18008 | E130: 13 | F130: 18016 | K130: 0 | L130: 211
A131: 11 | B131: 18108 | C131: 12 | D131: 18116 | E131: 13 | F131: 18121 | K131: 0 | L131: 111
A132: 22 | B132: 18220 | C132: 14 | D132: 18233 | E132: 13 | F132: 18239 | K132: 0 | L132: 211
A133: 11 | B133: 18333 | C133: 12 | D133: 18345 | E133: 13 | F133: 18351 | K133: 0 | L133: 111
A134: 11 | B134: 18447 | C134: 21 | D134: 18449 | E134: 11 | F134: 18461 | K134: 0 | L134: 121
A135: 22 | B135: 18616 | C135: 23 | D135: 18620 | E135: 13 | F135: 18633 | K135: 0 | L135: 221
A136: 22 | B136: 18730 | C136: 23 | D136: 18734 | E136: 24 | F136: 18739 | K136: 0 | L136: 222
A137: 11 | B137: 18833 | C137: 12 | D137: 18839 | E137: 13 | F137: 18845 | K137: 0 | L137: 111
A138: 11 | B138: 18944 | C138: 12 | D138: 18949 | E138: 13 | F138: 18956 | K138: 0 | L138: 111
A139: 22 | B139: 19054 | C139: 23 | D139: 19059 | E139: 24 | F139: 19066 | K139: 0 | L139: 222
A140: 11 | B140: 19160 | C140: 12 | D140: 19165 | E140: 13 | F140: 19172 | K140: 0 | L140: 111
A141: 11 | B141: 19271 | C141: 12 | D141: 19275 | E141: 13 | F141: 19281 | K141: 0 | L141: 111
A142: 11 | B142: 19376 | C142: 12 | D142: 19381 | E142: 13 | F142: 19389 | K142: 0 | L142: 111
A143: 22 | B143: 19488 | C143: 14 | D143: 19505 | E143: 13 | F143: 19510 | K143: 0 | L143: 211
A144: 22 | B144: 19607 | C144: 23 | D144: 19613 | E144: 24 | F144: 19619 | K144: 0 | L144: 222
A145: 22 | B145: 19715 | C145: 14 | D145: 19729 | E145: 13 | F145: 19735 | K145: 0 | L145: 211
A146: 22 | B146: 19827 | C146: 23 | D146: 19831 | E146: 24 | F146: 19835 | K146: 0 | L146: 222
A147: 11 | B147: 19930 | C147: 12 | D147: 19934 | E147: 13 | F147: 19939 | K147: 0 | L147: 111
A148: 22 | B148: 20036 | C148: 23 | D148: 20046 | E148: 13 | F148: 20059 | K148: 0 | L148: 221
A149: 22 | B149: 20331 | C149: 14 | D149: 20344 | E149: 13 | F149: 20352 | K149: 0 | L149: 211
A150: 11 | B150: 20448 | C150: 12 | D150: 20453 | E150: 13 | F150: 20457 | K150: 0 | L150: 111
A151: 22 | B151: 20553 | C151: 14 | D151: 20567 | E151: 13 | F151: 20573 | K151: 0 | L151: 211
A152: 11 | B152: 20680 | C152: 12 | D152: 20686 | E152: 13 | F152: 20694 | K152: 0 | L152: 111
A153: 22 | B153: 20791 | C153: 23 | D153: 20796 | E153: 13 | F153: 20809 | K153: 0 | L153: 221
A154: 22 | B154: 20916 | C154: 14 | D154: 20926 | E154: 13 | F154: 20932 | K154: 0 | L154: 211
A155: 11 | B155: 21029 | C155: 12 | D155: 21033 | E155: 13 | F155: 21045 | K155: 0 | L155: 111
A156: 22 | B156: 21141 | C156: 23 | D156: 21147 | E156: 24 | F156: 21151 | K156: 0 | L156: 222
A157: 22 | B157: 21252 | C157: 23 | D157: 21256 | E157: 24 | F157: 21262 | K157: 0 | L157: 222
A158: 11 | B158: 21367 | C158: 12 | D158: 21372 | E158: 13 | F158: 21378 | K158: 0 | L158: 111
A159: 22 | B159: 21469 | C159: 23 | D159: 21474 | E159: 24 | F159: 21479 | K159: 0 | L159: 222
A160: 11 | B160: 21576 | C160: 12 | D160: 21587 | E160: 13 | F160: 21594 | K160: 0 | L160: 111
A161: 22 | B161: 21690 | C161: 23 | D161: 21695 | E161: 24 | F161: 21702 | K161: 0 | L161: 222
A162: 22 | B162: 21795 | C162: 23 | D162: 21798 | E162: 24 | F162: 21804 | K162: 0 | L162: 222
A163: 22 | B163: 21902 | C163: 23 | D163: 21907 | E163: 24 | F163: 21914 | K163: 0 | L163: 222
A164: 11 | B164: 22123 | C164: 12 | D164: 22128 | E164: 24 | F164: 22148 | K164: 0 | L164: 112
A165: 22 | B165: 22245 | C165: 23 | D165: 22249 | E165: 24 | F165: 22254 | K165: 0 | L165: 222
A166: 11 | B166: 22350 | C166: 12 | D166: 22354 | E166: 13 | F166: 22359 | K166: 0 | L166: 111
A167: 11 | B167: 22454 | C167: 12 | D167: 22457 | E167: 13 | F167: 22462 | K167: 0 | L167: 111
A168: 11 | B168: 22557 | C168: 12 | D168: 22562 | E168: 13 | F168: 22567 | K168: 0 | L168: 111
A169: 11 | B169: 22666 | C169: 12 | D169: 22670 | E169: 13 | F169: 22676 | K169: 0 | L169: 111
A170: 22 | B170: 22773 | C170: 23 | D170: 22782 | E170: 24 | F170: 22788 | K170: 0 | L170: 222
A171: 11 | B171: 22884 | C171: 12 | D171: 22888 | E171: 13 | F171: 22893 | K171: 0 | L171: 111
A172: 22 | B172: 22990 | C172: 23 | D172: 23001 | E172: 24 | F172: 23008 | K172: 0 | L172: 222
A173: 11 | B173: 23106 | C173: 12 | D173: 23110 | E173: 13 | F173: 23116 | K173: 0 | L173: 111
A174: 22 | B174: 23213 | C174: 14 | D174: 23225 | E174: 13 | F174: 23228 | K174: 0 | L174: 211
A175: 22 | B175: 23326 | C175: 23 | D175: 23330 | E175: 24 | F175: 23336 | K175: 0 | L175: 222
A176: 11 | B176: 23536 | C176: 12 | D176: 23541 | E176: 13 | F176: 23546 | K176: 0 | L176: 111
A177: 11 | B177: 23681 | C177: 12 | D177: 23687 | E177: 13 | F177: 23694 | K177: 0 | L177: 111
A178: 11 | B178: 23804 | C178: 12 | D178: 23810 | E178: 13 | F178: 23816 | K178: 0 | L178: 111
A179: 11 | B179: 23912 | C179: 12 | D179: 23916 | E179: 13 | F179: 23920 | L179: 111

Sheet !M220B1I.sha
A1: Report for:!M220B1I.sha
A2: Date: | B2: <date>
A3: Hen: | B3: <hen> | F3: Correct Sequence | G3: =Start!J2 -> 121 | P3: Total Sequences in Data | Q3: =4994-COUNTBLANK(L7:L5000) -> 178 | V3: Total Sequences in Block Data | W3: =COUNTA(L7:L36) -> 30 | AA3: Total Sequences in Block Data | AB3: =COUNTA(L37:L65) -> 29 | AF3: Total Sequences in Block Data | AG3: =COUNTA(L66:L95) -> 30 | AK3: Total Sequences in Block Data | AL3: =COUNTA(L96:L125) -> 30 | AP3: Total Sequences in Block Data | AQ3: =COUNTA(L126:L154) -> 29 | AU3: Total Sequences in Block Data | AV3: =COUNTA(L155:L184) -> 30
P4: Total Sequences in Summary | Q4: =SUM(O7:O14) -> 178 | V4: Total Sequences in Block Summary | W4: =SUM(U7:U14) -> 30 | AA4: Total Sequences in Block Summary | AB4: =SUM(Z7:Z14) -> 29 | AF4: Total Sequences in Block Summary | AG4: =SUM(AE7:AE14) -> 30 | AK4: Total Sequences in Block Summary | AL4: =SUM(AJ7:AJ14) -> 30 | AP4: Total Sequences in Block Summary | AQ4: =SUM(AO7:AO14) -> 29 | AU4: Total Sequences in Block Summary | AV4: =SUM(AT7:AT14) -> 30
T5: Block 1 | Y5: Block 2 | AD5: Block 3 | AI5: Block 4 | AN5: Block 5 | AS5: Block 6
A6: Sequence Component 1 | B6: Time 1 | C6: Sequence Component 2 | D6: Time 2 | E6: Sequence Component 3 | F6: Time 3 | G6: Sequence Component 4 | H6: Time 4 | I6: Sequence Component 5 | J6: Time 5 | K6: Correct? 0=No 1=Yes | L6: Sequence | N6: Frequency | P6: Relative Frequency | Q6: Variability | T6: Frequency | V6: Relative Frequency | W6: Variability | Y6: Frequency | AA6: Relative Frequency | AB6: Variability | AD6: Frequency | AF6: Relative Frequency | AG6: Variability | AI6: Frequency | AK6: Relative Frequency | AL6: Variability | AN6: Frequency | AP6: Relative Frequency | AQ6: Variability | AS6: Frequency | AU6: Relative Frequency | AV6: Variability
A7: 11 | B7: 18 | C7: 21 | D7: 31 | E7: 22 | F7: 35 | K7: 0 | L7: 122 | N7: 111 | O7: =COUNTIF($L$7:$L$500,N7) -> 37 | P7: =O7/$Q$4 -> 0.2078651685 | Q7: =IF(P7=0,0,(P7*((LOG(P7))/LOG(2)))) -> -0.4710806877 | T7: =N7 -> 111 | U7: =COUNTIF(L7:L36,T7) -> 5 | V7: =U7/(W4-U9) -> 0.1666666667 | W7: =IF(V7=0,0,(V7*((LOG(V7))/LOG(2)))) -> -0.4308270835 | Y7: =N7 -> 111 | Z7: =COUNTIF(L37:L65,Y7) -> 9 | AA7: =Z7/(AB4-Z9) -> 0.3103448276 | AB7: =IF(AA7=0,0,(AA7*((LOG(AA7))/LOG(2)))) -> -0.5238794463 | AD7: =N7 -> 111 | AE7: =COUNTIF(L66:L95,AD7) -> 4 | AF7: =AE7/(AG4-AE9) -> 0.1333333333 | AG7: =IF(AF7=0,0,(AF7*((LOG(AF7))/LOG(2)))) -> -0.3875854127 | AI7: =N7 -> 111 | AJ7: =COUNTIF(L96:L125,AI7) -> 9 | AK7: =AJ7/(AL4-AJ9) -> 0.3 | AL7: =IF(AK7=0,0,(AK7*((LOG(AK7))/LOG(2)))) -> -0.5210896782 | AN7: =N7 -> 111 | AO7: =COUNTIF(L126:L154,AN7) -> 4 | AP7: =AO7/(AQ4-AO9) -> 0.1379310345 | AQ7: =IF(AP7=0,0,(AP7*((LOG(AP7))/LOG(2)))) -> -0.3942042752 | AS7: =N7 -> 111 | AT7: =COUNTIF(L155:L184,AS7) -> 6 | AU7: =AT7/(AV4-AT9) -> 0.2 | AV7: =IF(AU7=0,0,(AU7*((LOG(AU7))/LOG(2)))) -> -0.464385619
A8: 11 | B8: 132 | C8: 12 | D8: 141 | E8: 24 | F8: 154 | K8: 0 | L8: 112 | N8: 112 | O8: =COUNTIF($L$7:$L$500,N8) -> 24 | P8: =O8/$Q$4 -> 0.1348314607 | Q8: =IF(P8=0,0,(P8*((LOG(P8))/LOG(2)))) -> -0.389766867 | T8: =N8 -> 112 | U8: =COUNTIF(L7:L36,T8) -> 9 | V8: =U8/(W4-U9) -> 0.3 | W8: =IF(V8=0,0,(V8*((LOG(V8))/LOG(2)))) -> -0.5210896782 | Y8: =N8 -> 112 | Z8: =COUNTIF(L37:L65,Y8) -> 1 | AA8: =Z8/(AB4-Z9) -> 0.03448275862 | AB8: =IF(AA8=0,0,(AA8*((LOG(AA8))/LOG(2)))) -> -0.167516586 | AD8: =N8 -> 112 | AE8: =COUNTIF(L66:L95,AD8) -> 3 | AF8: =AE8/(AG4-AE9) -> 0.1 | AG8: =IF(AF8=0,0,(AF8*((LOG(AF8))/LOG(2)))) -> -0.3321928095 | AI8: =N8 -> 112 | AJ8: =COUNTIF(L96:L125,AI8) -> 1 | AK8: =AJ8/(AL4-AJ9) -> 0.03333333333 | AL8: =IF(AK8=0,0,(AK8*((LOG(AK8))/LOG(2)))) -> -0.1635630199 | AN8: =N8 -> 112 | AO8: =COUNTIF(L126:L154,AN8) -> 4 | AP8: =AO8/(AQ4-AO9) -> 0.1379310345 | AQ8: =IF(AP8=0,0,(AP8*((LOG(AP8))/LOG(2)))) -> -0.3942042752 | AS8: =N8 -> 112 | AT8: =COUNTIF(L155:L184,AS8) -> 6 | AU8: =AT8/(AV4-AT9) -> 0.2 | AV8: =IF(AU8=0,0,(AU8*((LOG(AU8))/LOG(2)))) -> -0.464385619
A9: 11 | B9: 252 | C9: 12 | D9: 255 | E9: 13 | F9: 262 | K9: 0 | L9: 111 | N9: 121 | O9: =COUNTIF($L$7:$L$500,N9) -> 0 | P9: =O9/$Q$4 -> 0 | Q9: =IF(P9=0,0,(P9*((LOG(P9))/LOG(2)))) -> 0 | T9: =N9 -> 121 | U9: =COUNTIF(L7:L36,T9) -> 0 | Y9: =N9 -> 121 | Z9: =COUNTIF(L37:L65,Y9) -> 0 | AD9: =N9 -> 121 | AE9: =COUNTIF(L66:L95,AD9) -> 0 | AI9: =N9 -> 121 | AJ9: =COUNTIF(L96:L125,AI9) -> 0 | AN9: =N9 -> 121 | AO9: =COUNTIF(L126:L154,AN9) -> 0 | AS9: =N9 -> 121 | AT9: =COUNTIF(L155:L184,AS9) -> 0
A10: 11 | B10: 359 | C10: 21 | D10: 371 | E10: 22 | F10: 373 | K10: 0 | L10: 122 | N10: 122 | O10: =COUNTIF($L$7:$L$500,N10) -> 12 | P10: =O10/$Q$4 -> 0.06741573034 | Q10: =IF(P10=0,0,(P10*((LOG(P10))/LOG(2)))) -> -0.2622991638 | T10: =N10 -> 122 | U10: =COUNTIF(L7:L36,T10) -> 2 | V10: =U10/(W4-U9) -> 0.06666666667 | W10: =IF(V10=0,0,(V10*((LOG(V10))/LOG(2)))) -> -0.260459373 | Y10: =N10 -> 122 | Z10: =COUNTIF(L37:L65,Y10) -> 2 | AA10: =Z10/(AB4-Z9) -> 0.06896551724 | AB10: =IF(AA10=0,0,(AA10*((LOG(AA10))/LOG(2)))) -> -0.2660676548 | AD10: =N10 -> 122 | AE10: =COUNTIF(L66:L95,AD10) -> 2 | AF10: =AE10/(AG4-AE9) -> 0.06666666667 | AG10: =IF(AF10=0,0,(AF10*((LOG(AF10))/LOG(2)))) -> -0.260459373 | AI10: =N10 -> 122 | AJ10: =COUNTIF(L96:L125,AI10) -> 0 | AK10: =AJ10/(AL4-AJ9) -> 0 | AL10: =IF(AK10=0,0,(AK10*((LOG(AK10))/LOG(2)))) -> 0 | AN10: =N10 -> 122 | AO10: =COUNTIF(L126:L154,AN10) -> 3 | AP10: =AO10/(AQ4-AO9) -> 0.1034482759 | AQ10: =IF(AP10=0,0,(AP10*((LOG(AP10))/LOG(2)))) -> -0.3385881201 | AS10: =N10 -> 122 | AT10: =COUNTIF(L155:L184,AS10) -> 3 | AU10: =AT10/(AV4-AT9) -> 0.1 | AV10: =IF(AU10=0,0,(AU10*((LOG(AU10))/LOG(2)))) -> -0.3321928095
A11: 11 | B11: 471 | C11: 12 | D11: 475 | E11: 24 | F11: 492 | K11: 0 | L11: 112 | N11: 211 | O11: =COUNTIF($L$7:$L$500,N11) -> 33 | P11: =O11/$Q$4 -> 0.1853932584 | Q11: =IF(P11=0,0,(P11*((LOG(P11))/LOG(2)))) -> -0.4507539173 | T11: =N11 -> 211 | U11: =COUNTIF(L7:L36,T11) -> 6 | V11: =U11/(W4-U9) -> 0.2 | W11: =IF(V11=0,0,(V11*((LOG(V11))/LOG(2)))) -> -0.464385619 | Y11: =N11 -> 211 | Z11: =COUNTIF(L37:L65,Y11) -> 3 | AA11: =Z11/(AB4-Z9) -> 0.1034482759 | AB11: =IF(AA11=0,0,(AA11*((LOG(AA11))/LOG(2)))) -> -0.3385881201 | AD11: =N11 -> 211 | AE11: =COUNTIF(L66:L95,AD11) -> 5 | AF11: =AE11/(AG4-AE9) -> 0.1666666667 | AG11: =IF(AF11=0,0,(AF11*((LOG(AF11))/LOG(2)))) -> -0.4308270835 | AI11: =N11 -> 211 | AJ11: =COUNTIF(L96:L125,AI11) -> 5 | AK11: =AJ11/(AL4-AJ9) -> 0.1666666667 | AL11: =IF(AK11=0,0,(AK11*((LOG(AK11))/LOG(2)))) -> -0.4308270835 | AN11: =N11 -> 211 | AO11: =COUNTIF(L126:L154,AN11) -> 7 | AP11: =AO11/(AQ4-AO9) -> 0.2413793103 | AQ11: =IF(AP11=0,0,(AP11*((LOG(AP11))/LOG(2)))) -> -0.4949787073 | AS11: =N11 -> 211 | AT11: =COUNTIF(L155:L184,AS11) -> 7 | AU11: =AT11/(AV4-AT9) -> 0.2333333333 | AV11: =IF(AU11=0,0,(AU11*((LOG(AU11))/LOG(2)))) -> -0.4898916572
A12: 11 | B12: 602 | C12: 12 | D12: 608 | E12: 24 | F12: 618 | K12: 0 | L12: 112 | N12: 212 | O12: =COUNTIF($L$7:$L$500,N12) -> 2 | P12: =O12/$Q$4 -> 0.01123595506 | Q12: =IF(P12=0,0,(P12*((LOG(P12))/LOG(2)))) -> -0.07276104979 | T12: =N12 -> 212 | U12: =COUNTIF(L7:L36,T12) -> 1 | V12: =U12/(W4-U9) -> 0.03333333333 | W12: =IF(V12=0,0,(V12*((LOG(V12))/LOG(2)))) -> -0.1635630199 | Y12: =N12 -> 212 | Z12: =COUNTIF(L37:L65,Y12) -> 0 | AA12: =Z12/(AB4-Z9) -> 0 | AB12: =IF(AA12=0,0,(AA12*((LOG(AA12))/LOG(2)))) -> 0 | AD12: =N12 -> 212 | AE12: =COUNTIF(L66:L95,AD12) -> 1 | AF12: =AE12/(AG4-AE9) -> 0.03333333333 | AG12: =IF(AF12=0,0,(AF12*((LOG(AF12))/LOG(2)))) -> -0.1635630199 | AI12: =N12 -> 212 | AJ12: =COUNTIF(L96:L125,AI12) -> 0 | AK12: =AJ12/(AL4-AJ9) -> 0 | AL12: =IF(AK12=0,0,(AK12*((LOG(AK12))/LOG(2)))) -> 0 | AN12: =N12 -> 212 | AO12: =COUNTIF(L126:L154,AN12) -> 0 | AP12: =AO12/(AQ4-AO9) -> 0 | AQ12: =IF(AP12=0,0,(AP12*((LOG(AP12))/LOG(2)))) -> 0 | AS12: =N12 -> 212 | AT12: =COUNTIF(L155:L184,AS12) -> 0 | AU12: =AT12/(AV4-AT9) -> 0 | AV12: =IF(AU12=0,0,(AU12*((LOG(AU12))/LOG(2)))) -> 0
A13: 11 | B13: 715 | C13: 12 | D13: 724 | E13: 24 | F13: 738 | K13: 0 | L13: 112 | N13: 221 | O13: =COUNTIF($L$7:$L$500,N13) -> 13 | P13: =O13/$Q$4 -> 0.07303370787 | Q13: =IF(P13=0,0,(P13*((LOG(P13))/LOG(2)))) -> -0.2757236981 | T13: =N13 -> 221 | U13: =COUNTIF(L7:L36,T13) -> 1 | V13: =U13/(W4-U9) -> 0.03333333333 | W13: =IF(V13=0,0,(V13*((LOG(V13))/LOG(2)))) -> -0.1635630199 | Y13: =N13 -> 221 | Z13: =COUNTIF(L37:L65,Y13) -> 4 | AA13: =Z13/(AB4-Z9) -> 0.1379310345 | AB13: =IF(AA13=0,0,(AA13*((LOG(AA13))/LOG(2)))) -> -0.3942042752 | AD13: =N13 -> 221 | AE13: =COUNTIF(L66:L95,AD13) -> 4 | AF13: =AE13/(AG4-AE9) -> 0.1333333333 | AG13: =IF(AF13=0,0,(AF13*((LOG(AF13))/LOG(2)))) -> -0.3875854127 | AI13: =N13 -> 221 | AJ13: =COUNTIF(L96:L125,AI13) -> 1 | AK13: =AJ13/(AL4-AJ9) -> 0.03333333333 | AL13: =IF(AK13=0,0,(AK13*((LOG(AK13))/LOG(2)))) -> -0.1635630199 | AN13: =N13 -> 221 | AO13: =COUNTIF(L126:L154,AN13) -> 2 | AP13: =AO13/(AQ4-AO9) -> 0.06896551724 | AQ13: =IF(AP13=0,0,(AP13*((LOG(AP13))/LOG(2)))) -> -0.2660676548 | AS13: =N13 -> 221 | AT13: =COUNTIF(L155:L184,AS13) -> 1 | AU13: =AT13/(AV4-AT9) -> 0.03333333333 | AV13: =IF(AU13=0,0,(AU13*((LOG(AU13))/LOG(2)))) -> -0.1635630199
A14: 11 | B14: 835 | C14: 12 | D14: 840 | E14: 13 | F14: 845 | K14: 0 | L14: 111 | N14: 222 | O14: =COUNTIF($L$7:$L$500,N14) -> 57 | P14: =O14/$Q$4 -> 0.3202247191 | Q14: =IF(P14=0,0,(P14*((LOG(P14))/LOG(2)))) -> -0.5260790717 | T14: =N14 -> 222 | U14: =COUNTIF(L7:L36,T14) -> 6 | V14: =U14/(W4-U9) -> 0.2 | W14: =IF(V14=0,0,(V14*((LOG(V14))/LOG(2)))) -> -0.464385619 | Y14: =N14 -> 222 | Z14: =COUNTIF(L37:L65,Y14) -> 10 | AA14: =Z14/(AB4-Z9) -> 0.3448275862 | AB14: =IF(AA14=0,0,(AA14*((LOG(AA14))/LOG(2)))) -> -0.5296734139 | AD14: =N14 -> 222 | AE14: =COUNTIF(L66:L95,AD14) -> 11 | AF14: =AE14/(AG4-AE9) -> 0.3666666667 | AG14: =IF(AF14=0,0,(AF14*((LOG(AF14))/LOG(2)))) -> -0.5307349582 | AI14: =N14 -> 222 | AJ14: =COUNTIF(L96:L125,AI14) -> 14 | AK14: =AJ14/(AL4-AJ9) -> 0.4666666667 | AL14: =IF(AK14=0,0,(AK14*((LOG(AK14))/LOG(2)))) -> -0.5131166477 | AN14: =N14 -> 222 | AO14: =COUNTIF(L126:L154,AN14) -> 9 | AP14: =AO14/(AQ4-AO9) -> 0.3103448276 | AQ14: =IF(AP14=0,0,(AP14*((LOG(AP14))/LOG(2)))) -> -0.5238794463 | AS14: =N14 -> 222 | AT14: =COUNTIF(L155:L184,AS14) -> 7 | AU14: =AT14/(AV4-AT9) -> 0.2333333333 | AV14: =IF(AU14=0,0,(AU14*((LOG(AU14))/LOG(2)))) -> -0.4898916572
A15: 11 | B15: 950 | C15: 12 | D15: 954 | E15: 13 | F15: 961 | K15: 0 | L15: 111 | P15: =SUM(P7:P14) -> 1 | Q15: =-SUM(Q7:Q14) -> 2.448464455 | V15: =SUM(V7:V14) -> 1 | W15: =-SUM(W7:W14) -> 2.468273412 | AA15: =SUM(AA7:AA14) -> 1 | AB15: =-SUM(AB7:AB14) -> 2.219929496 | AF15: =SUM(AF7:AF14) -> 1 | AG15: =-SUM(AG7:AG14) -> 2.49294807 | AK15: =SUM(AK7:AK14) -> 1 | AL15: =-SUM(AL7:AL14) -> 1.792159449 | AP15: =SUM(AP7:AP14) -> 1 | AQ15: =-SUM(AQ7:AQ14) -> 2.411922479 | AU15: =SUM(AU7:AU14) -> 1 | AV15: =-SUM(AV7:AV14) -> 2.404310382
A16: 11 | B16: 1056 | C16: 12 | D16: 1060 | E16: 24 | F16: 1073 | K16: 0 | L16: 112 | P16: U= | Q16: =Q15/(LOG(Q4)/LOG(2)) -> 0.3275216376 | V16: U1= | W16: =W15/(LOG(W4)/LOG(2)) -> 0.5030218963 | AA16: U2= | AB16: =AB15/(LOG(AB4)/LOG(2)) -> 0.4569654551 | AF16: U3= | AG16: =AG15/(LOG(AG4)/LOG(2)) -> 0.5080504692 | AK16: U4= | AL16: =AL15/(LOG(AL4)/LOG(2)) -> 0.3652332193 | AP16: U5= | AQ16: =AQ15/(LOG(AQ4)/LOG(2)) -> 0.4964866024 | AU16: U6= | AV16: =AV15/(LOG(AV4)/LOG(2)) -> 0.4899865474
A17: 11 | B17: 1173 | C17: 12 | D17: 1177 | E17: 13 | F17: 1183 | K17: 0 | L17: 111
A18: 11 | B18: 1278 | C18: 12 | D18: 1282 | E18: 24 | F18: 1293 | K18: 0 | L18: 112
A19: 11 | B19: 1394 | C19: 12 | D19: 1399 | E19: 13 | F19: 1405 | K19: 0 | L19: 111 | N19: Total Target Seq
A20: 22 | B20: 1502 | C20: 14 | D20: 1512 | E20: 13 | F20: 1518 | K20: 0 | L20: 211 | N20: =COUNTIF(L7:L184,G3) -> 0 | P20: 30 | Q20: 29 | R20: 30 | S20: 30 | T20: 29 | U20: 30
A21: 11 | B21: 1640 | C21: 12 | D21: 1645 | E21: 24 | F21: 1656 | K21: 0 | L21: 112 | P21: % of reinforcement given in 6 equal intervals based on number of trials
A22: 22 | B22: 1753 | C22: 14 | D22: 1763 | E22: 13 | F22: 1770 | K22: 0 | L22: 211 | P22: %_1 | Q22: %_2 | R22: %_3 | S22: %_4 | T22: %_5 | U22: %_6
A23: 11 | B23: 1871 | C23: 12 | D23: 1876 | E23: 24 | F23: 1889 | K23: 0 | L23: 112 | O23: target sequence | P23: =$G$3 -> 121 | Q23: =$G$3 -> 121 | R23: =$G$3 -> 121 | S23: =$G$3 -> 121 | T23: =$G$3 -> 121 | U23: =$G$3 -> 121
A24: 22 | B24: 1986 | C24: 23 | D24: 1991 | E24: 24 | F24: 1997 | K24: 0 | L24: 222 | O24: total reinforcement | P24: =U9 -> 0 | Q24: =Z9 -> 0 | R24: =AE9 -> 0 | S24: =AJ9 -> 0 | T24: =AO9 -> 0 | U24: =AT9 -> 0
A25: 11 | B25: 2183 | C25: 12 | D25: 2189 | E25: 24 | F25: 2199 | K25: 0 | L25: 112 | O25: % target
A26: 22 | B26: 2296 | C26: 14 | D26: 2305 | E26: 13 | F26: 2310 | K26: 0 | L26: 211 | O26: CCRF
A27: 22 | B27: 2409 | C27: 23 | D27: 2414 | E27: 13 | F27: 2425 | K27: 0 | L27: 221 | O27: % CCRf
A28: 22 | B28: 2617 | C28: 14 | D28: 2632 | E28: 24 | F28: 2649 | K28: 0 | L28: 212 | O28: average response rate | P28: =F36/P20 -> 117.2666667 | Q28: =(F65-F36)/Q20 -> 150.7241379 | R28: =(F95-F65)/R20 -> 145.4666667 | S28: =(F125-F95)/S20 -> 126 | T28: =(F154-F125)/T20 -> 123.1034483 | U28: =(F184-F154)/U20 -> 145.4
A29: 22 | B29: 2748 | C29: 14 | D29: 2758 | E29: 13 | F29: 2763 | K29: 0 | L29: 211
A30: 22 | B30: 2858 | C30: 23 | D30: 2860 | E30: 24 | F30: 2863 | K30: 0 | L30: 222
A31: 22 | B31: 2959 | C31: 23 | D31: 2968 | E31: 24 | F31: 2974 | K31: 0 | L31: 222
A32: 22 | B32: 3072 | C32: 14 | D32: 3082 | E32: 13 | F32: 3087 | K32: 0 | L32: 211
A33: 22 | B33: 3183 | C33: 23 | D33: 3187 | E33: 24 | F33: 3194 | K33: 0 | L33: 222
A34: 22 | B34: 3290 | C34: 23 | D34: 3294 | E34: 24 | F34: 3298 | K34: 0 | L34: 222
A35: 22 | B35: 3396 | C35: 23 | D35: 3400 | E35: 24 | F35: 3404 | K35: 0 | L35: 222
A36: 22 | B36: 3503 | C36: 14 | D36: 3514 | E36: 13 | F36: 3518 | K36: 0 | L36: 211
A37: 22 | B37: 3613 | C37: 23 | D37: 3617 | E37: 24 | F37: 3623 | K37: 0 | L37: 222
A38: 22 | B38: 3720 | C38: 23 | D38: 3724 | E38: 24 | F38: 3729 | K38: 0 | L38: 222
A39: 22 | B39: 3830 | C39: 23 | D39: 3834 | E39: 24 | F39: 3838 | K39: 0 | L39: 222
A40: 11 | B40: 3966 | C40: 12 | D40: 3980 | E40: 24 | F40: 3991 | K40: 0 | L40: 112
A41: 22 | B41: 4088 | C41: 23 | D41: 4093 | E41: 13 | F41: 4104 | K41: 0 | L41: 221
A42: 11 | B42: 4202 | C42: 12 | D42: 4206 | E42: 13 | F42: 4212 | K42: 0 | L42: 111
A43: 22 | B43: 4308 | C43: 23 | D43: 4311 | E43: 24 | F43: 4315 | K43: 0 | L43: 222
A44: 11 | B44: 4421 | C44: 12 | D44: 4426 | E44: 13 | F44: 4432 | K44: 0 | L44: 111
A45: 22 | B45: 4529 | C45: 23 | D45: 4538 | E45: 24 | F45: 4545 | K45: 0 | L45: 222
A46: 22 | B46: 4642 | C46: 23 | D46: 4647 | E46: 13 | F46: 4657 | K46: 0 | L46: 221
A47: 11 | B47: 4764 | C47: 12 | D47: 4769 | E47: 13 | F47: 4775 | K47: 0 | L47: 111
A48: 11 | B48: 5926 | C48: 21 | D48: 5935 | E48: 22 | F48: 5939 | K48: 0 | L48: 122
A49: 11 | B49: 6040 | C49: 12 | D49: 6046 | E49: 13 | F49: 6051 | K49: 0 | L49: 111
A50: 22 | B50: 6147 | C50: 23 | D50: 6152 | E50: 24 | F50: 6159 | K50: 0 | L50: 222
A51: 22 | B51: 6255 | C51: 14 | D51: 6269 | E51: 13 | F51: 6274 | K51: 0 | L51: 211
A52: 22 | B52: 6371 | C52: 23 | D52: 6376 | E52: 13 | F52: 6388 | K52: 0 | L52: 221
A53: 22 | B53: 6488 | C53: 14 | D53: 6499 | E53: 13 | F53: 6504 | K53: 0 | L53: 211
A54: 11 | B54: 6642 | C54: 21 | D54: 6657 | E54: 22 | F54: 6661 | K54: 0 | L54: 122
A55: 11 | B55: 6769 | C55: 12 | D55: 6774 | E55: 13 | F55: 6780 | K55: 0 | L55: 111
A56: 22 | B56: 6878 | C56: 23 | D56: 6886 | E56: 13 | F56: 6899 | K56: 0 | L56: 221
A57: 11 | B57: 7007 | C57: 12 | D57: 7009 | E57: 13 | F57: 7013 | K57: 0 | L57: 111
A58: 22 | B58: 7113 | C58: 14 | D58: 7124 | E58: 13 | F58: 7127 | K58: 0 | L58: 211
A59: 22 | B59: 7225 | C59: 23 | D59: 7231 | E59: 24 | F59: 7237 | K59: 0 | L59: 222
A60: 11 | B60: 7337 | C60: 12 | D60: 7342 | E60: 13 | F60: 7348 | K60: 0 | L60: 111
A61: 11 | B61: 7445 | C61: 12 | D61: 7448 | E61: 13 | F61: 7451 | K61: 0 | L61: 111
A62: 22 | B62: 7548 | C62: 23 | D62: 7552 | E62: 24 | F62: 7557 | K62: 0 | L62: 222
A63: 11 | B63: 7659 | C63: 12 | D63: 7664 | E63: 13 | F63: 7669 | K63: 0 | L63: 111
A64: 22 | B64: 7771 | C64: 23 | D64: 7776 | E64: 24 | F64: 7781 | K64: 0 | L64: 222
A65: 22 | B65: 7879 | C65: 23 | D65: 7884 | E65: 24 | F65: 7889 | K65: 0 | L65: 222
A66: 11 | B66: 7987 | C66: 12 | D66: 7990 | E66: 13 | F66: 7995 | K66: 0 | L66: 111
A67: 22 | B67: 8091 | C67: 23 | D67: 8094 | E67: 24 | F67: 8101 | K67: 0 | L67: 222
A68: 11 | B68: 8230 | C68: 12 | D68: 8235 | E68: 13 | F68: 8243 | K68: 0 | L68: 111
A69: 22 | B69: 8340 | C69: 23 | D69: 8346 | E69: 24 | F69: 8350 | K69: 0 | L69: 222
A70: 11 | B70: 8452 | C70: 12 | D70: 8457 | E70: 13 | F70: 8463 | K70: 0 | L70: 111
A71: 11 | B71: 8561 | C71: 21 | D71: 8562 | E71: 22 | F71: 8568 | K71: 0 | L71: 122
A72: 22 | B72: 8667 | C72: 23 | D72: 8673 | E72: 24 | F72: 8682 | K72: 0 | L72: 222
A73: 22 | B73: 8779 | C73: 23 | D73: 8783 | E73: 24 | F73: 8790 | K73: 0 | L73: 222
A74: 22 | B74: 9652 | C74: 14 | D74: 9666 | E74: 24 | F74: 9680 | K74: 0 | L74: 212
A75: 11 | B75: 9779 | C75: 12 | D75: 9784 | E75: 24 | F75: 9799 | K75: 0 | L75: 112
A76: 22 | B76: 9898 | C76: 14 | D76: 9909 | E76: 13 | F76: 9913 | K76: 0 | L76: 211
A77: 22 | B77: 10010 | C77: 23 | D77: 10015 | E77: 24 | F77: 10019 | K77: 0 | L77: 222
A78: 11 | B78: 10121 | C78: 12 | D78: 10126 | E78: 24 | F78: 10135 | K78: 0 | L78: 112
A79: 22 | B79: 10238 | C79: 14 | D79: 10248 | E79: 13 | F79: 10253 | K79: 0 | L79: 211
A80: 22 | B80: 10351 | C80: 23 | D80: 10355 | E80: 24 | F80: 10362 | K80: 0 | L80: 222
A81: 11 | B81: 10460 | C81: 12 | D81: 10464 | E81: 24 | F81: 10476 | K81: 0 | L81: 112
A82: 22 | B82: 10576 | C82: 14 | D82: 10590 | E82: 13 | F82: 10593 | K82: 0 | L82: 211
A83: 11 | B83: 10702 | C83: 12 | D83: 10708 | E83: 13 | F83: 10714 | K83: 0 | L83: 111
A84: 11 | B84: 10808 | C84: 21 | D84: 10822 | E84: 22 | F84: 10826 | K84: 0 | L84: 122
A85: 22 | B85: 10928 | C85: 14 | D85: 10943 | E85: 13 | F85: 10948 | K85: 0 | L85: 211
A86: 22 | B86: 11045 | C86: 23 | D86: 11051 | E86: 13 | F86: 11067 | K86: 0 | L86: 221
A87: 22 | B87: 11165 | C87: 23 | D87: 11172 | E87: 24 | F87: 11184 | K87: 0 | L87: 222
A88: 22 | B88: 11280 | C88: 23 | D88: 11286 | E88: 13 | F88: 11297 | K88: 0 | L88: 221
A89: 22 | B89: 11532 | C89: 23 | D89: 11537 | E89: 13 | F89: 11549 | K89: 0 | L89: 221
A90: 22 | B90: 11676 | C90: 23 | D90: 11681 | E90: 13 | F90: 11691 | K90: 0 | L90: 221
A91: 22 | B91: 11790 | C91: 23 | D91: 11795 | E91: 24 | F91: 11802 | K91: 0 | L91: 222
A92: 22 | B92: 11900 | C92: 23 | D92: 11906 | E92: 24 | F92: 11917 | K92: 0 | L92: 222
A93: 22 | B93: 12014 | C93: 23 | D93: 12018 | E93: 24 | F93: 12023 | K93: 0 | L93: 222
A94: 22 | B94: 12121 | C94: 14 | D94: 12135 | E94: 13 | F94: 12141 | K94: 0 | L94: 211
A95: 22 | B95: 12238 | C95: 23 | D95: 12247 | E95: 24 | F95: 12253 | K95: 0 | L95: 222
A96: 22 | B96: 12350 | C96: 14 | D96: 12363 | E96: 13 | F96: 12369 | K96: 0 | L96: 211
A97: 11 | B97: 12526 | C97: 12 | D97: 12530 | E97: 13 | F97: 12534 | K97: 0 | L97: 111
A98: 11 | B98: 12633 | C98: 12 | D98: 12636 | E98: 13 | F98: 12641 | K98: 0 | L98: 111
A99: 22 | B99: 12738 | C99: 23 | D99: 12743 | E99: 24 | F99: 12748 | K99: 0 | L99: 222
A100: 22 | B100: 12845 | C100: 14 | D100: 12856 | E100: 13 | F100: 12860 | K100: 0 | L100: 211
A101: 22 | B101: 12956 | C101: 23 | D101: 12967 | E101: 24 | F101: 12973 | K101: 0 | L101: 222
A102: 22 | B102: 13070 | C102: 23 | D102: 13077 | E102: 24 | F102: 13083 | K102: 0 | L102: 222
A103: 22 | B103: 13303 | C103: 23 | D103: 13324 | E103: 24 | F103: 13328 | K103: 0 | L103: 222
A104: 11 | B104: 13426 | C104: 12 | D104: 13431 | E104: 13 | F104: 13438 | K104: 0 | L104: 111
A105: 11 | B105: 13535 | C105: 12 | D105: 13537 | E105: 13 | F105: 13542 | K105: 0 | L105: 111
A106: 11 | B106: 13650 | C106: 12 | D106: 13654 | E106: 13 | F106: 13660 | K106: 0 | L106: 111
A107: 22 | B107: 13760 | C107: 14 | D107: 13779 | E107: 13 | F107: 13783 | K107: 0 | L107: 211
A108: 22 | B108: 13896 | C108: 23 | D108: 13901 | E108: 13 | F108: 13912 | K108: 0 | L108: 221
A109: 11 | B109: 14011 | C109: 12 | D109: 14019 | E109: 13 | F109: 14026 | K109: 0 | L109: 111
A110: 22 | B110: 14124 | C110: 23 | D110: 14130 | E110: 24 | F110: 14140 | K110: 0 | L110: 222
A111: 11 | B111: 14244 | C111: 12 | D111: 14251 | E111: 24 | F111: 14264 | K111: 0 | L111: 112
A112: 22 | B112: 14364 | C112: 23 | D112: 14370 | E112: 24 | F112: 14375 | K112: 0 | L112: 222
A113: 22 | B113: 14634 | C113: 23 | D113: 14648 | E113: 24 | F113: 14655 | K113: 0 | L113: 222
A114: 22 | B114: 14747 | C114: 23 | D114: 14752 | E114: 24 | F114: 14756 | K114: 0 | L114: 222
A115: 22 | B115: 14853 | C115: 23 | D115: 14857 | E115: 24 | F115: 14861 | K115: 0 | L115: 222
A116: 22 | B116: 14959 | C116: 14 | D116: 14974 | E116: 13 | F116: 14980 | K116: 0 | L116: 211
A117: 22 | B117: 15076 | C117: 23 | D117: 15080 | E117: 24 | F117: 15086 | K117: 0 | L117: 222
A118: 22 | B118: 15182 | C118: 23 | D118: 15190 | E118: 24 | F118: 15196 | K118: 0 | L118: 222
